{"text_format":"1","workbook":"xlsx","n_sheets":3,"sheets":["Klasyfikacja","Podsumowanie","TABELA PKT"],"not_rendered":{"charts":0,"images":0,"macros":1,"external_links":0,"defined_names":1,"comments":0,"pivot_tables":0},"unopened":[],"bounds":{"document_bytes":16777216,"sheet_cells":100000,"rows_first":2000,"rows_last":500,"rows_between":2000,"halvings":0,"cell_chars":16384,"cell_head_chars":4096},"cells_cut":0,"cells_raw":0,"read":"whole","date_system":"1900"}

{"sheet":"Klasyfikacja","index":0,"n_rows":2428,"n_cols":225,"rows_kept":562,"cut":true,"hidden":false,"merged":[[1,1,1,4]],"bounds":{"rows_first":250,"rows_last":62,"rows_between":250,"halvings":3}}
["RANKING WSZECHCZASÓW ERnO \"HARPAGAN\""]
[null,"Klasyfikacja po 43 imprezach",null,null,null,null,null,null,"H58 - BOŻEPOLE WIELKIE",null,null,null,null,"H58 - BOŻEPOLE WIELKIE",null,null,null,null,"H58 - BOŻEPOLE WIELKIE",null,null,null,null,"H57 - MIASTKO",null,null,null,null,"H56 - KWIDZYN",null,null,null,null,"H55 - CHOCZEWO",null,null,null,null,"H54 - SZEMUD",null,null,null,null,"H53 - CEWICE",null,null,null,null,"H52 - CZŁUCHÓW",null,null,null,null,"H51 - BYTÓW",null,null,null,null,"H50 - SIERAKOWICE",null,null,null,null,"H49 - KALISKA",null,null,null,null,"H48 - LIPUSZ",null,null,null,null,"H47 - BOŻEPOLE WIELKIE",null,null,null,null,"H46 - KWIDZYN",null,null,null,null,"H45 - KOLBUDY",null,null,null,null,"H44 - REDZIKOWO",null,null,null,null,"H43 - CZARNA WODA",null,null,null,null,"H42 - ELBLĄG",null,null,null,null,"H41 - LIPNICA",null,null,null,null,"H40 - KOŚCIERZYNA",null,null,null,null,"H39 - GDAŃSK",null,null,null,null,"H38 - REDA",null,null,null,null,"H37 - BYTONIA",null,null,null,null,"H36 - SIERAKOWICE",null,null,null,null,"H35 - ŁĘCZYCE",null,null,null,null,"H34 - KOBYLNICA",null,null,null,null,"H33 - TRĄBKI WIELKIE",null,null,null,null,"H32 - PRZODKOWO",null,null,null,null,"H31 - BOŻEPOLE WIELKIE",null,null,null,null,"H30 - RYTEL",null,null,null,null,"H29 - SIERAKOWICE",null,null,null,null,"H28 - KOŚCIERZYNA",null,null,null,null,"H27 - BYTÓW",null,null,null,null,"H26 - BYTONIA",null,null,null,null,"H25 - ELBLĄG",null,null,null,null,"H24 - PUCK",null,null,null,null,"H23 - DRZEWINA",null,null,null,null,"H22 - KWIDZYN",null,null,null,null,"H21 - LĘBORK",null,null,null,null,"H20 - LĘBORK",null,null,null,null,"H19 - CZARNA WODA",null,null,null,null,"H18 - WEJHEROWO"]
["msc",null,"Imię","Miejscowość",null,null,null,null,"poz.","punkty","PK","pkt","czas","poz.","punkty","PK","pkt","czas","poz.","punkty","PK","pkt","czas","poz.","punkty","PK","pkt","czas","poz.","punkty","PK","pkt","czas","poz.","punkty","PK","pkt","czas","poz.","punkty","PK","pkt","czas","poz.","punkty","PK","pkt","czas","poz.","punkty","PK","pkt","czas","poz.","punkty","PK","pkt","czas","poz.","punkty","PK","pkt","czas","poz.","punkty","PK","pkt","czas","poz.","punkty","PK","pkt","czas","poz.","punkty","PK","pkt","czas","poz.","punkty","PK","pkt","czas","poz.","punkty","PK","pkt","czas","poz.","punkty","PK","pkt","czas","poz.","punkty","PK","pkt","czas","poz.","punkty","PK","pkt","czas","poz.","punkty","PK","pkt","czas","poz.","punkty","PK","pkt","czas","poz.","punkty","PK","pkt","czas","poz.","punkty","PK","pkt","czas","poz.","punkty","PK","pkt","czas","poz.","punkty","PK","pkt","czas","poz.","punkty","PK","pkt","czas","poz.","punkty","PK","pkt","czas","poz.","punkty","PK","pkt","czas","poz.","punkty","PK","pkt","czas","poz.","punkty","PK","pkt","czas","poz.","punkty","PK","pkt","czas","poz.","punkty","PK","pkt","czas","poz.","punkty","PK","pkt","czas","poz.","punkty","PK","pkt","czas","poz.","punkty","PK","pkt","czas","poz.","punkty","PK","pkt","czas","poz.","punkty","PK","pkt","czas","poz.","punkty","PK","pkt","czas","poz.","punkty","PK","pkt","czas","poz.","punkty","PK","pkt","czas","poz.","punkty","PK","pkt","czas","poz.","punkty","PK","pkt","czas","poz.","punkty","PK","pkt","czas"]
[1,"Śmieja","Daniel","Szczecin",3642,43,10,22,5,88,25,60,"11:02:44",2,96,24,60,"11:28:03",5,88,24,60,"10:31:38",9,80,24,60,"12:55:25",6,86,24,60,"10:29:15",7,84,24,60,"12:18:36",3,92,24,60,"13:42:33",4,90,20,56,"12:03:51",8,82,20,60,"10:37:46",2,96,20,60,"11:52:18",3,92,20,60,"10:26:09",6,86,20,60,"11:07:06",1,100,20,60,"10:40:03",7,84,20,60,"11:35:39",7,84,18,56,"11:43:00",1,100,20,58,"12:02:00",36,54,18,46,"12:06:55",1,100,"20",60,"11:38:18",209,1,13,26,"12:17:45",3,92,20,60,"11:22:26.400",1,100,20,60,"11:40:00",4,90,20,60,"11:31:00",5,88,16,53,"11:57:19.200",1,100,20,60,"11:26:06.600",6,86,15,49,"11:38:00",6,86,15,49,"11:35:00",1,100,18,56,"11:59:00",4,90,20,59,"12:01:00",2,96,20,60,"11:27:00",4,90,20,56,"12:04:00",1,100,20,60,"11:29:00",22,67,18,44,"12:13:00",4,90,20,60,"11:01:00",2,96,17,55,"12:01:00",1,100,20,60,"11:01:00",1,100,17,57,"11:55:00",1,100,17,49,"11:59:00","NKL",0,0,0,"NKL",13,76,18,18,"11:47:00",5,88,14,14,"11:41:00",7,84,14,14,"09:20:00",8,82,7,7,"11:14:00",31,58,10,10,"11:57:00"]
[2,"Waliński","Mikołaj","Elbląg",2632,35,5,12,12,77,25,60,"11:28:53",11,78,24,60,"13:18:36",8,82,24,60,"11:05:07",14,75,22,58,"12:50:17",3,92,24,60,"10:04:36",15,74,24,60,"12:55:51",1,100,24,60,"13:33:09",14,75,16,50,"11:48:18",1,100,20,60,"10:17:17",13,76,16,54,"11:30:08",1,100,20,60,"10:17:49",8,82,20,60,"11:11:54",6,86,20,60,"11:31:53",1,100,20,60,"10:38:08",1,100,19,59,"11:49:00",3,92,18,56,"11:36:00",4,90,17,54,"11:43:09",15,74,"16","50","11:43:42",6,86,14,48,"11:53:33",44,45,13,43,"11:19:18.600",140,1,12,38,"11:42:00",2,96,20,60,"10:18:00",15,74,15,43,"11:41:24.600",7,84,19,59,"11:18:18",4,90,15,50,"11:59:00",82,7,16,32,"12:16:00",22,67,15,42,"11:37:00",11,78,19,57,"11:34:00",9,80,19,59,"11:09:00",7,84,16,53,"11:55:00",12,6,15,53,"11:52:00",10,79,15,49,"12:02:00",13,76,17,55,"11:50:00",6,86,15,51,"11:45:00",49,40,13,43,"11:43:00"]
[3,"Pachulski","Leszek","Sopot",2387,37,1,14,3,92,25,60,"10:53:44",5,88,24,60,"12:31:56",11,78,24,60,"11:33:54",3,92,24,60,"12:13:46",12,77,24,60,"11:15:08",5,88,24,60,"11:56:57",30,59,22,36,"14:18:56",1,100,20,60,"11:58:18",5,88,20,60,"10:37:41",4,90,20,60,"11:53:46",9,80,20,60,"10:57:07",12,77,20,60,"11:24:59",8,82,20,60,"11:33:13",4,90,20,60,"10:49:07",4,90,17,57,"11:49:00",24,65,15,49,"11:45:00",9,80,17,53,"11:50:33",78,11,"17","37","12:17:52",103,1,8,33,"11:32:13",27,62,16,47,"11:31:18.600",228,1,18,27,"12:26:00",15,74,17,57,"11:58:00",149,1,8,26,"09:37:21.600",186,1,19,31,"12:27:28.800",45,44,17,41,"12:10:00",15,74,14,45,"11:58:00",22,67,15,42,"11:37:00",13,76,18,57,"11:57:00",6,86,20,60,"11:55:00",14,75,15,49,"11:49:00",10,79,16,53,"11:34:00",3,92,16,51,"11:39:00",23,66,17,51,"11:56:00",30,59,12,40,"11:46:00",19,70,14,51,"11:54:00",83,6,10,29,"11:28:00",63,26,9,30,"11:49:00"]
[4,"Brudło","Paweł","Warszawa",2247,26,7,14,23,66,25,60,"12:53:15",3,92,24,60,"12:31:51",1,100,24,60,"09:42:59",null,null,null,null,null,1,100,24,60,"09:57:25",1,100,24,60,"11:15:47",6,86,22,57,"13:34:47",10,79,17,53,"11:54:58",3,92,20,60,"10:19:32",null,null,null,null,null,3,92,20,60,"10:26:09",3,92,20,60,"10:49:57",3,92,20,60,"10:59:05",1,100,20,60,"10:38:08",null,null,null,null,null,6,86,18,55,"11:50:00",13,76,16,53,"11:43:09",3,92,"20",60,"11:48:40",5,88,13,49,"11:45:58",1,100,20,60,"10:54:05.400",19,70,20,50,"12:10:00",1,100,20,60,"10:18:00",1,100,17,56,"11:41:30.600",2,96,20,60,"11:33:30.600",2,96,15,52,"11:46:00",5,88,15,51,"11:46:00",17,72,15,44,"11:51:00",21,68,16,55,"11:40:00",65,24,14,45,"11:39:00"]
[5,"Buciak","Piotr","Warszawa",2055,24,3,16,8,82,25,60,"11:09:40",null,null,null,null,null,3,92,24,60,"09:43:47",2,96,24,60,"12:13:42",5,88,24,60,"10:20:45",10,79,24,60,"12:31:58",8,82,21,56,"13:54:04",31,58,14,42,"10:06:31",4,90,20,60,"10:33:56",1,100,20,60,"11:47:34",6,86,20,60,"10:51:22",5,88,20,60,"11:07:03",5,88,20,60,"11:10:38",6,86,20,60,"11:23:13",9,80,17,56,"11:51:00",null,null,null,null,null,null,null,null,null,null,1,100,"20",60,"11:38:18",14,75,13,44,"11:55:22",2,96,20,60,"11:10:05.400",3,92,17,57,"11:51:00",3,92,20,60,"10:28:00",4,90,18,53,"11:45:13.800",5,88,20,60,"11:50:00",null,null,null,null,null,null,null,null,null,null,33,56,14,39,"10:35:00",null,null,null,null,null,1,100,20,60,"11:15:00",18,71,16,47,"11:26:00"]
[6,"Piwakowski","Wojciech","Gdańsk",1966,30,0,4,82,7,17,37,"09:26:35",19,70,20,51,"13:12:04",null,null,null,null,null,null,null,null,null,null,16,73,24,60,"11:28:53",13,76,24,60,"12:41:13",9,80,21,54,"13:12:16",91,0,0,-999,"NKL",10,79,20,60,"10:40:03",7,84,19,59,"11:47:29",5,88,20,60,"10:45:08",15,74,19,59,"10:46:27",14,75,18,58,"11:21:54",20,69,15,53,"11:16:34",26,63,16,50,"11:44:00",17,72,15,53,"11:27:00",null,null,null,null,null,8,82,"16","54","11:40:38",null,null,null,null,null,25,64,16,48,"11:45:07.800",35,54,17,48,"11:53:00",8,82,19,59,"11:42:00",14,75,13,44,"11:38:02.400",null,null,null,null,null,86,3,11,36,"09:36:00",7,84,15,49,"11:50:00",5,88,14,49,"11:41:00",null,null,null,null,null,null,null,null,null,null,2,96,19,58,"11:56:00",193,1,4,13,"11:01:00",2,96,15,54,"11:33:00",62,27,14,41,"11:45:00",21,68,16,41,"12:15:00",7,84,18,58,"11:46:00",15,74,14,50,"11:44:00",null,null,null,null,null,11,78,14,14,"11:43:00"]
[7,"Korsak","Dariusz","Elbląg",1819,32,1,0,null,null,null,null,null,null,null,null,null,null,60,29,15,41,"13:15:44",24,65,19,52,"13:32:09",39,50,21,57,"13:13:35",43,46,16,44,"12:52:38",56,33,11,29,"10:08:34",null,null,null,null,null,null,null,null,null,null,null,null,null,null,null,null,null,null,null,null,112,1,2,7,"07:20:14",44,45,15,51,"11:28:25",27,62,14,50,"11:21:04",29,60,15,50,"11:35:00",33,56,13,47,"11:23:00",22,67,15,51,"11:45:56",118,1,"11","33","10:52:49",1,100,15,49,"11:39:32",43,46,13,43,"11:19:15.600",null,null,null,null,null,77,12,13,46,"11:29:00",42,47,10,38,"11:26:23.400",40,49,14,49,"11:27:06",18,71,12,46,"12:00:00",16,73,13,45,"11:45:00",7,84,14,48,"11:37:00",19,70,16,55,"11:38:00",59,30,15,47,"11:39:00",31,58,13,44,"11:51:00",23,66,14,47,"11:50:00",7,84,15,50,"11:46:00",19,70,15,52,"11:37:00",13,76,14,49,"11:41:00",13,76,15,51,"11:53:00",9,80,15,51,"11:44:00",null,null,null,null,null,19,70,13,13,"11:41:00",23,66,16,16,"11:51:00",13,76,12,12,"10:54:00"]
[8,"Potocki","Mirosław","Gdynia",1715,28,2,11,13,76,25,60,"11:28:59",9,80,24,60,"13:18:30",9,80,24,60,"11:05:12",12,77,24,60,"13:21:38",4,90,24,60,"10:04:37",14,75,24,60,"12:55:49",2,96,24,60,"13:33:09",15,74,16,50,"11:48:20",null,null,null,null,null,60,29,12,40,"09:15:48",2,96,20,60,"10:17:50",9,80,20,60,"11:11:55",7,84,20,60,"11:32:01",1,100,20,60,"10:38:08",1,100,19,59,"11:49:00",10,79,17,54,"11:36:00",79,11,10,35,"11:47:13",33,56,"14","46","11:56:54",15,74,12,44,"11:44:20",38,51,12,45,"11:34:04.800",34,55,15,49,"11:53:00",16,73,17,56,"11:32:00",98,1,11,29,"12:11:23.400",42,47,14,49,"11:42:06",42,47,12,42,"11:10:00",47,42,13,38,"12:03:00",56,33,10,36,"11:30:00",176,1,15,27,"12:22:00",81,8,13,43,"11:41:00"]
[9,"Pachulski","Marek","Gdańsk",1715,25,0,13,4,90,25,60,"10:55:23",4,90,24,60,"12:31:54",12,77,24,60,"11:33:55",3,92,24,60,"12:13:46",11,78,24,60,"11:15:03",3,92,24,60,"11:43:02",31,58,22,36,"14:18:59",2,96,20,60,"11:58:26",7,84,20,60,"10:37:44",6,86,20,60,"11:57:29",7,84,20,60,"10:56:57",11,78,20,60,"11:24:58",8,82,20,60,"11:33:13",4,90,20,60,"10:49:07",13,76,16,56,"11:49:00",25,64,15,49,"11:45:00",10,79,17,53,"11:50:34",78,12,"17","37","12:17:52",10,79,13,46,"11:51:25",26,63,16,47,"11:31:18",229,1,18,27,"12:26:00",21,68,16,54,"11:28:00",22,67,12,41,"11:43:18",127,1,12,38,"12:09:30",61,28,11,39,"11:22:00"]
[10,"Kitliński","Remigiusz","Gdańsk",1702,23,0,1,null,null,null,null,null,null,null,null,null,null,null,null,null,null,null,null,null,null,null,null,null,null,null,null,null,null,null,null,null,null,null,null,null,null,null,null,null,null,null,null,null,null,null,null,null,null,null,null,null,null,null,null,null,null,null,null,null,null,null,null,null,null,null,null,null,null,null,null,null,null,null,null,null,null,null,null,null,null,null,null,145,1,8,25,"12:06:04",null,null,null,null,null,null,null,null,null,null,42,47,13,44,"11:48:35.400",46,43,14,47,"11:32:00",14,75,17,57,"11:56:00",41,48,11,38,"12:04:25.200",24,65,15,53,"11:35:25.200",10,79,13,48,"11:53:00",9,80,13,49,"11:52:00",7,84,14,48,"11:37:00",19,70,16,55,"11:38:00",22,67,16,56,"11:44:00",null,null,null,null,null,16,73,16,51,"11:59:00",null,null,null,null,null,6,86,20,60,"11:24:00",4,90,16,54,"12:01:00",5,88,19,59,"11:54:00",3,92,16,53,"11:50:00",7,84,13,43,"11:28:00",5,88,14,14,"11:29:00",17,72,16,16,"11:41:00",2,96,15,15,"10:35:00",5,88,16,16,"11:10:00",2,96,8,8,"11:41:00",4,90,16,16,"11:27:00"]
[11,"Warda","Jarosław","Gdynia",1675,30,0,7,null,null,null,null,null,null,null,null,null,null,null,null,null,null,null,null,null,null,null,null,null,null,null,null,null,4,90,24,60,"11:44:55",97,1,4,9,"03:15:13",3,92,20,59,"12:00:16",5,88,20,60,"10:37:41",5,88,20,60,"11:53:49",8,82,20,60,"10:57:06",13,76,20,60,"11:34:58",10,79,20,60,"11:33:16",22,67,16,52,"11:32:56",5,88,17,57,"11:49:00",26,63,15,49,"11:45:00",11,78,17,53,"11:50:39",79,10,"17","37","12:17:59",104,1,8,33,"11:32:20",28,61,16,47,"11:31:23.400",80,9,13,43,"10:49:00",267,1,3,9,"02:52:00",57,32,13,33,"11:51:10.200",187,1,19,31,"12:27:30.600",null,null,null,null,null,98,1,10,31,"08:18:00",null,null,null,null,null,null,null,null,null,null,8,82,20,60,"11:56:00",14,75,15,49,"11:49:00",10,79,16,53,"11:34:00",17,72,15,46,"11:40:00",26,63,16,50,"11:21:00",6,86,15,51,"11:45:00",null,null,null,null,null,42,47,12,39,"11:47:00",null,null,null,null,null,9,80,14,14,"11:40:00",30,59,16,16,"12:00:00",65,24,10,10,"11:45:00"]
[12,"Wiktorowski","Krzysztof","Łódź",1602,24,0,1,null,null,null,null,null,null,null,null,null,null,null,null,null,null,null,null,null,null,null,null,null,null,null,null,null,null,null,null,null,null,null,null,null,null,null,11,78,16,52,"11:25:38",null,null,null,null,null,91,1,6,19,"06:49:44",24,65,16,54,"11:35:12",7,84,20,60,"11:09:20",48,41,15,51,"11:46:45",21,68,17,52,"12:01:07",22,67,16,52,"11:54:00",19,70,15,52,"11:59:00",20,69,15,51,"11:15:13",29,60,"15","47","11:27:36",60,29,13,35,"12:09:03",35,54,13,46,"11:59:19.200",6,86,16,55,"11:49:00",11,78,18,57,"11:41:00",17,72,13,42,"11:53:11.400",10,79,19,59,"11:47:15",13,76,13,47,"11:31:00",28,61,14,42,"11:50:00",null,null,null,null,null,16,73,17,56,"11:38:00",null,null,null,null,null,null,null,null,null,null,null,null,null,null,null,23,66,13,44,"11:44:00",null,null,null,null,null,12,77,14,50,"11:53:00",8,82,18,57,"11:37:00",5,88,15,53,"11:30:00",11,78,13,41,"12:05:00"]
[13,"Nowaczyk","Michał","Gdańsk",1550,24,0,1,56,33,22,51,"12:16:59",null,null,null,null,null,22,67,24,60,"12:51:02",22,67,19,52,"12:28:12",null,null,null,null,null,null,null,null,null,null,null,null,null,null,null,null,null,null,null,null,null,null,null,null,null,null,null,null,null,null,null,null,null,null,null,null,null,null,null,null,null,null,null,null,null,14,75,16,54,"11:20:23",45,44,14,47,"11:45:00",15,74,16,53,"11:55:00",6,86,16,54,"11:52:51",22,67,"13","49","11:41:40",null,null,null,null,null,5,88,18,54,"11:56:25.800",5,88,18,55,"11:30:00",13,77,17,57,"11:55:00",6,86,16,52,"11:51:00.600",14,75,17,57,"11:47:21.600",27,62,12,44,"11:47:00",33,56,14,41,"11:22:00",2,96,15,51,"11:51:00",8,82,18,58,"11:50:00",12,77,18,58,"11:17:00",12,77,14,51,"11:20:00",13,76,16,52,"11:45:00",11,78,16,48,"11:17:00",null,null,null,null,null,107,1,9,27,"11:30:00",78,11,13,38,"11:53:00",null,null,null,null,null,82,7,9,25,"10:20:00"]
[14,"Marciniuk","Adam","Rumia",1510,31,0,1,42,47,24,59.99,"13:35:39",null,null,null,null,null,24,65,24,60,"13:19:44",null,null,null,null,null,33,56,23,58,"13:34:50",null,null,null,null,null,10,79,21,54,"13:27:08",6,86,18,56,"11:43:17",null,null,null,null,null,24,65,15,52,"11:48:43",23,66,16,54,"11:30:48",35,54,15,53,"11:41:32",30,59,16,55,"11:49:41",17,72,16,53,"11:31:21",33,56,15,49,"11:31:00",18,71,15,52,"11:38:00",65,25,11,38,"11:29:00",32,57,"14","47","11:45:07",30,59,10,40,"11:52:51",71,18,12,40,"11:44:05.400",29,60,15,50,"11:40:00",68,21,16,46,"11:49:00",94,1,10,30,"12:03:00.600",72,17,13,45,"11:31:10.800",59,30,12,39,"11:41:00",50,39,12,38,"11:39:00",13,76,13,45,"11:38:00",33,56,14,51,"11:53:00",35,54,15,52,"11:45:00",21,68,13,47,"11:46:00",67,22,13,38,"11:42:00",50,39,11,35,"11:36:00",46,43,14,47,"11:56:00",61,28,10,34,"11:53:00",68,21,13,41,"11:52:00"]
[15,"Widuchowski","Tomasz","Gdańsk",1509,18,3,5,null,null,null,null,null,null,null,null,null,null,null,null,null,null,null,null,null,null,null,null,null,null,null,null,null,null,null,null,null,null,null,null,null,null,null,null,null,null,null,null,null,null,null,null,null,null,null,null,null,null,null,null,null,null,null,null,null,null,null,null,null,null,null,null,null,null,null,null,null,null,null,null,null,null,null,null,null,null,null,null,"NKL",0,13,-999,"NKL",null,null,null,null,null,null,null,null,null,null,null,null,null,null,null,1,100,20,60,"11:40:00",6,86,20,60,"11:54:00",3,92,18,55,"11:55:22.800",8,82,19,59,"11:28:28.200",1,100,18,56,"12:00:00",3,92,16,52,"11:54:00",4,90,15,49,"11:44:00",1,100,20,60,"11:32:00",5,88,20,60,"11:33:00",6,86,17,54,"11:45:00",16,73,16,51,"11:59:00",9,80,14,50,"11:45:00",6,86,20,60,"11:24:00",4,90,16,54,"12:01:00",5,88,19,59,"11:54:00",3,92,16,53,"11:50:00",7,84,13,43,"11:28:00"]
[16,"Bober","Bartłomiej","Kobylnica",1452,18,2,2,null,null,null,null,null,null,null,null,null,null,null,null,null,null,null,null,null,null,null,null,null,null,null,null,null,null,null,null,null,null,null,null,null,null,null,null,null,null,null,null,null,null,null,null,null,null,null,null,null,null,null,null,null,null,null,14,75,20,60,"11:55:57",null,null,null,null,null,10,79,18,56,"11:47:28",null,null,null,null,null,22,67,15,50,"11:33:00",null,null,null,null,null,5,88,"19","57","11:27:30",null,null,null,null,null,null,null,null,null,null,null,null,null,null,null,null,null,null,null,null,null,null,null,null,null,null,null,null,null,null,null,null,null,null,null,null,null,null,null,null,null,null,null,null,null,15,74,19,56,"11:59:00",20,69,17,56,"11:42:00",1,100,19,58,"11:52:00",3,92,18,56,"11:44:00",5,88,16,50,"11:29:00",8,82,20,60,"11:31:00",2,96,17,55,"12:01:00",null,null,null,null,null,null,null,null,null,null,2,96,16,48,"11:34:00",1,100,18,18,"11:55:00",11,78,18,18,"11:45:00",4,90,15,15,"11:56:00",3,92,17,17,"11:50:00","NKL",0,7,0,"NKL",6,86,15,15,"11:56:00"]
[17,"Jędrusik","Rafał","Gdynia",1402,21,1,7,null,null,null,null,null,null,null,null,null,null,21,68,24,60,"12:32:04",6,86,24,60,"12:42:31",null,null,null,null,null,12,77,24,60,"12:39:32",48,41,12,30,"09:58:30",19,70,16,48,"11:50:38",9,80,20,60,"10:39:20",3,92,20,60,"11:52:28",null,null,null,null,null,2,96,20,60,"10:48:23",1,100,20,60,"10:40:03",36,53,17,47,"11:49:51",53,36,15,45,"11:48:00",5,88,18,55,"11:41:00",47,43,14,42,"11:15:12",34,55,"15","45","11:13:32",3,92,15,49,"11:40:52",null,null,null,null,null,null,null,null,null,null,null,null,null,null,null,null,null,null,null,null,30,59,15,52,"11:56:01.200",null,null,null,null,null,55,34,11,37,"11:44:00",7,84,14,48,"11:37:00",8,82,18,58,"11:50:00",55,34,13,48,"11:41:00",57,32,11,40,"11:39:00"]
[18,"Paszkowski","Wojciech","Białystok",1342,20,0,3,null,null,null,null,null,null,null,null,null,null,null,null,null,null,null,null,null,null,null,null,null,null,null,null,null,null,null,null,null,null,null,null,null,null,null,13,76,16,50,"11:05:36",12,77,20,60,"11:12:06",11,78,18,54,"11:34:41",77,12,13,38,"10:27:53",20,69,18,57,"11:51:03",12,77,19,59,"11:42:56",8,82,20,60,"11:53:48",3,92,19,59,"11:55:00",2,96,19,58,"11:45:00",19,70,15,52,"11:43:30",4,90,"19","58","11:41:34",9,80,13,46,"11:47:21",null,null,null,null,null,null,null,null,null,null,null,null,null,null,null,8,82,15,47,"11:43:12",2,96,20,60,"11:33:30.600",19,70,14,45,"11:41:00",35,54,13,41,"11:44:00",25,64,13,41,"11:53:00",37,52,15,49,"11:37:00",65,24,14,45,"11:39:00",117,1,10,29,"12:02:00"]
[19,"Konieczny","Tomasz","Lipka",1296,19,0,0,null,null,null,null,null,null,null,null,null,null,null,null,null,null,null,null,null,null,null,null,null,null,null,null,null,null,null,null,null,null,null,null,null,null,null,null,null,null,null,null,null,null,null,null,null,null,null,null,null,null,null,null,null,null,null,24,65,16,55,"11:44:27",20,69,17,57,"11:34:51",23,66,14,52,"11:40:21",32,57,14,50,"11:46:00",12,77,15,54,"11:50:00",8,82,16,54,"11:56:22",30,59,"15","47","11:43:50",22,67,11,42,"11:54:08",7,84,17,54,"11:43:27",8,82,17,53,"11:35:00",null,null,null,null,null,10,79,14,45,"11:06:27",11,78,18,58,"11:20:27",183,1,14,27,"12:18:00",12,77,15,46,"11:42:00",16,73,15,44,"11:36:00",12,77,18,57,"11:24:00",21,68,17,56,"11:45:00",36,53,13,42,"11:27:00",8,82,17,54,"11:44:00"]
[20,"Szumański","Jakub","Gdańsk",1120,26,0,4,null,null,null,null,null,12,77,24,60,"13:24:26",20,69,24,60,"12:28:49",15,74,22,58,"13:24:24",27,62,24,60,"13:20:55",18,71,24,60,"13:34:10",null,null,null,null,null,16,73,15,49,"10:54:36",17,72,17,56,"11:32:42",10,79,17,56,"11:00:24",34,55,14,49,"11:17:06",33,56,15,54,"11:28:31",34,55,16,54,"11:35:53",37,52,14,47,"10:57:10",63,26,13,43,"11:23:00",32,57,13,48,"11:45:00",37,53,13,46,"11:28:56",53,37,"12","42","11:09:27",65,24,9,35,"10:34:45",53,36,13,42,"11:28:01.200",60,29,13,45,"10:50:00",null,null,null,null,null,102,1,9,29,"11:24:02.400",null,null,null,null,null,138,1,10,32,"11:14:00",null,null,null,null,null,null,null,null,null,null,null,null,null,null,null,null,null,null,null,null,null,null,null,null,null,null,null,null,null,null,null,null,null,null,null,null,null,null,null,null,null,null,null,null,null,null,null,null,null,null,null,null,null,null,null,115,1,8,19,"11:27:00",109,1,6,6,"09:55:00",47,42,15,15,"11:56:00","NKL",0,0,0,"NKL",72,17,10,10,"09:21:00"]
[21,"Dzich","Andrzej","Kwidzyn",1088,29,0,0,null,null,null,null,null,67,22,11,30,"09:31:06",59,30,15,41,"13:15:41",42,47,15,42,"13:14:48",38,51,21,57,"13:13:27",44,45,16,44,"12:52:42",57,32,11,29,"10:08:36",38,51,13,39,"12:02:54",30,59,14,49,"11:39:53",44,45,16,47,"11:46:51",67,22,13,40,"12:04:44",48,41,14,51,"11:50:38",28,61,16,56,"11:54:47",28,61,14,50,"11:21:10",17,72,16,55,"12:00:00",43,46,12,44,"11:27:00",53,37,12,40,"11:49:05",75,15,"11","38","11:44:44",105,1,8,33,"11:39:05",119,1,11,34,"10:07:17.400",56,33,14,45,"11:31:00",70,19,15,46,"12:06:00",31,58,11,40,"11:26:24.600",23,66,16,53,"11:27:22.200",35,54,13,43,"11:56:00",115,1,9,29,"11:37:00",26,63,12,41,"11:48:00",36,53,16,49,"11:52:00",175,1,11,32,"11:21:00",154,1,7,22,"11:08:00"]
[22,"Liszka","Grzegorz","Tychy",1085,18,0,0,null,null,null,null,null,23,66,18,48,"12:04:22",46,43,19,46,"11:56:12",82,7,11,29,"08:33:18",62,27,20,49,"12:35:33",null,null,null,null,null,46,43,12,30,"08:53:02",null,null,null,null,null,null,null,null,null,null,null,null,null,null,null,17,72,20,58,"12:01:03",21,68,18,57,"11:54:59",13,76,19,59,"11:46:17",null,null,null,null,null,16,73,16,55,"11:38:00",40,49,14,45,"11:35:00",3,92,18,54,"11:59:20",7,84,"17","54","11:46:07",null,null,null,null,null,8,82,17,54,"11:45:09",14,75,16,51,"10:08:00","NKL",0,18,"NKL","11:15:00",12,77,13,45,"11:44:12.600",12,77,18,57,"11:48:22.200",15,74,15,46,"11:53:00"]
[23,"Walentowski","Radosław","Skierniewice",1053,24,0,4,41,48,24,59.99,"10:59:05",15,74,23,57,"13:54:47",23,66,24,60,"13:11:11",8,82,24,60,"12:49:24",null,null,null,null,null,null,null,null,null,null,null,null,null,null,null,null,null,null,null,null,14,75,20,60,"11:26:24",74,15,11,36,"09:30:52",15,74,20,59,"12:00:45",4,90,20,60,"11:06:53",11,78,19,59,"11:41:07",33,56,15,48,"11:32:52",6,86,18,56,"11:36:00",9,80,18,54,"12:02:00",5,88,16,54,"11:41:24",24,65,"16","48","11:39:25",21,68,11,42,"11:42:14","NKL",0,4,"NKL","NKL",112,1,14,41,"11:49:00",183,1,10,30,"11:41:00",224,1,6,22,"11:41:03",158,1,10,34,"11:40:07.800",148,1,10,31,"11:41:00",120,1,10,28,"11:32:00",174,1,8,25,"11:42:00",158,1,9,31,"11:42:00"]
[24,"Ścibisz","Jerzy","Szczecin",1034,26,0,0,null,null,null,null,null,null,null,null,null,null,null,null,null,null,null,null,null,null,null,null,null,null,null,null,null,null,null,null,null,null,29,60,14,37,"14:01:43",33,56,13,40,"10:58:35",28,61,14,52,"11:39:45",36,53,13,49,"11:19:57",36,53,13,49,"11:52:58",68,21,12,45,"11:57:50",64,25,13,47,"11:23:12",45,44,13,44,"11:39:56",null,null,null,null,null,66,23,13,39,"12:04:00",193,1,10,13,"12:23:31",36,53,"14","45","11:56:38",84,5,10,34,"11:57:18",46,43,13,43,"11:38:12.600",128,1,12,39,"11:45:00",83,6,15,45,"11:40:00",28,61,13,40,"11:43:30.600",52,37,13,48,"11:38:14.400",56,33,13,39,"12:02:00",29,60,13,42,"11:37:00",18,71,14,44,"11:58:00",44,45,14,48,"11:54:00",87,2,12,42,"11:45:00",68,21,13,38,"11:37:00",24,65,14,46,"11:55:00",18,71,15,46,"11:51:00",null,null,null,null,null,26,63,12,41,"11:59:00"]
[25,"Owczarski","Marcin","Chojnice",992,14,1,4,6,86,25,60,"11:04:01",null,null,null,null,null,null,null,null,null,null,13,76,24,60,"13:24:17",null,null,null,null,null,25,64,22,56,"13:37:49",null,null,null,null,null,9,80,17,53,"11:54:48",1,100,20,60,"10:17:17",null,null,null,null,null,10,79,20,60,"11:02:05",23,66,18,55,"11:42:50",167,1,4,13,"03:48:23",null,null,null,null,null,21,68,18,52,"11:51:00",null,null,null,null,null,14,75,16,53,"11:48:47",6,86,"19","57","11:41:57",null,null,null,null,null,6,86,18,54,"11:58:04.200",15,74,16,51,"11:07:00",null,null,null,null,null,38,51,14,38,"11:40:08.400"]
[26,"Mydlarski","Jarosław","Gdynia",930,15,0,0,null,null,null,null,null,null,null,null,null,null,null,null,null,null,null,null,null,null,null,null,null,null,null,null,null,null,null,null,null,null,null,null,null,null,null,null,null,null,null,null,null,null,null,null,null,null,null,null,null,null,null,null,null,null,null,null,null,null,null,null,null,null,null,null,null,null,null,null,null,null,null,null,null,null,null,null,null,null,null,null,24,65,17,49,"12:05:21",null,null,null,null,null,23,66,12,41,"11:32:26",16,73,15,50,"11:15:25.800",12,77,16,53,"11:41:00",24,65,17,53,"11:33:00",11,78,13,45,"11:35:06",44,45,14,49,"11:43:27.600",20,69,14,45,"11:55:00",29,60,13,42,"11:37:00",null,null,null,null,null,24,65,15,53,"11:38:00",null,null,null,null,null,50,39,12,41,"11:53:00",19,70,16,50,"11:50:00",12,77,14,48,"11:55:00",null,null,null,null,null,35,54,11,39,"11:45:00",62,27,14,41,"11:38:00"]
[27,"Marciniuk","Rafał","Rumia",925,15,0,0,null,null,null,null,null,null,null,null,null,null,null,null,null,null,null,null,null,null,null,null,34,55,23,58,"13:34:53",null,null,null,null,null,11,78,21,54,"13:27:10",5,88,18,56,"11:43:15",null,null,null,null,null,25,64,15,52,"11:48:45",null,null,null,null,null,36,53,15,53,"11:41:34",31,58,16,55,"11:49:43",18,71,16,53,"11:31:29",34,55,15,49,"11:31:00",null,null,null,null,null,51,39,12,40,"11:29:03",31,58,"14","47","11:45:06",129,1,8,31,"10:47:16",null,null,null,null,null,null,null,null,null,null,null,null,null,null,null,null,null,null,null,null,null,null,null,null,null,null,null,null,null,null,null,null,null,null,null,null,null,null,null,null,null,null,null,null,null,null,null,null,null,null,null,null,null,null,null,null,null,null,null,null,null,null,null,null,null,null,null,null,null,null,null,null,null,null,null,null,null,null,null,null,null,null,null,null,null,3,92,14,47,"11:52:00",4,90,15,15,"11:36:00",34,55,15,15,"11:37:00",21,68,12,12,"11:17:00"]
[28,"Rogalewski","Remigiusz","Gdańsk",889,21,0,0,null,null,null,null,null,null,null,null,null,null,null,null,null,null,null,null,null,null,null,null,null,null,null,null,null,null,null,null,null,null,null,null,null,null,null,null,null,null,null,null,null,null,null,null,null,null,null,null,null,null,null,null,null,null,null,null,null,null,null,null,null,null,null,null,null,40,49,14,46,"11:51:59",180,1,13,18,"12:25:00",null,null,null,null,null,null,null,null,null,null,null,null,null,null,null,43,46,9,38,"11:59:18",111,1,13,35,"12:02:30",55,34,15,45,"12:03:00",84,5,15,45,"12:04:00",261,1,6,18,"10:45:17.400",268,1,9,10,"12:21:03.600",154,1,9,31,"11:31:00",58,31,11,36,"11:15:00",null,null,null,null,null,null,null,null,null,null,94,1,12,41,"11:45:00",57,32,11,40,"11:39:00",null,null,null,null,null,21,68,13,45,"11:45:00",11,78,17,57,"11:50:00",20,69,13,44,"11:53:00",12,77,16,52,"11:54:00",null,null,null,null,null,5,88,15,46,"12:05:00",2,96,17,17,"11:59:00",11,78,18,18,"11:45:00",30,59,11,11,"11:35:00",16,73,13,13,"10:50:00"]
[29,"Koźmiński","Paweł","Olsztyn",888,19,0,0,null,null,null,null,null,null,null,null,null,null,null,null,null,null,null,null,null,null,null,null,null,null,null,null,null,null,null,null,null,null,null,null,null,null,null,null,null,null,null,null,null,null,null,null,null,null,null,null,null,null,null,null,null,null,null,null,null,null,null,null,null,null,null,null,null,null,null,null,null,null,18,71,16,55,"12:00:00",20,69,15,51,"11:48:00",42,48,17,44,"12:10:11",21,68,"13","49","11:41:39",225,1,12,25,"12:14:13",15,74,16,51,"11:20:25.200",21,68,16,50,"11:38:00",null,null,null,null,null,24,65,12,41,"11:52:17.400",267,1,13,10,"12:35:28.200",23,66,14,44,"11:40:00",22,67,14,43,"11:45:00",31,58,12,40,"11:59:00",null,null,null,null,null,63,26,14,46,"12:00:00",null,null,null,null,null,55,34,12,40,"11:53:00",36,53,13,39,"11:23:00",73,16,12,41,"11:42:00",44,45,11,37,"11:34:00",180,1,12,-19,"13:05:00",32,57,12,41,"11:31:00"]
[30,"Witkowski","Marcin","Warszawa",884,18,0,0,null,null,null,null,null,35,54,17,46,"12:52:14",30,59,20,53,"12:52:13",null,null,null,null,null,null,null,null,null,null,38,51,18,46,"13:32:48",16,73,16,46,"13:31:23",18,71,15,49,"11:28:03",null,null,null,null,null,null,null,null,null,null,20,69,17,55,"11:53:48",63,26,17,45,"12:10:30",19,70,17,57,"11:28:52",16,73,16,53,"11:17:15",41,48,13,48,"11:49:00",41,48,12,45,"11:49:00",48,42,14,41,"12:07:21",23,66,"13","49","11:54:56",53,36,11,36,"11:21:01",48,41,14,42,"11:27:21",260,1,14,22,"12:26:00",34,55,16,51,"11:29:00",193,1,7,24,"11:21:25.800"]
[31,"Derewecki","Jarosław","Skrzeszewo",849,13,0,0,null,null,null,null,null,null,null,null,null,null,null,null,null,null,null,null,null,null,null,null,null,null,null,null,null,null,null,null,null,null,null,null,null,null,null,null,null,null,null,null,null,null,null,null,null,null,null,null,null,null,null,null,null,null,null,null,null,null,null,null,null,null,null,null,null,15,74,16,54,"11:20:25",46,43,14,47,"11:45:00",16,73,16,53,"11:55:00",7,84,16,54,"11:52:53",null,null,null,null,null,143,1,9,30,"11:56:32",11,78,17,53,"11:49:07.800",45,44,15,47,"12:01:00",29,60,16,52,"11:53:00",null,null,null,null,null,null,null,null,null,null,null,null,null,null,null,null,null,null,null,null,2,96,15,51,"11:51:00",8,82,18,58,"11:50:00",12,77,18,58,"11:17:00",12,77,14,51,"11:20:00",29,60,14,45,"11:41:00"]
[32,"Błasiak","Marcin","Markusy",828,17,0,0,null,null,null,null,null,null,null,null,null,null,null,null,null,null,null,null,null,null,null,null,null,null,null,null,null,null,null,null,null,null,null,null,null,null,null,null,null,null,null,null,null,null,null,null,null,null,null,null,null,null,null,null,null,null,null,null,null,null,null,null,null,null,null,null,null,null,null,null,null,null,19,70,15,54,"11:34:00",39,50,14,45,"11:31:00",17,72,16,52,"11:28:13",17,72,"16","50","11:43:49",11,78,13,45,"11:18:15",60,29,12,41,"11:19:16.800",null,null,null,null,null,151,1,11,34,"11:47:00",51,38,10,35,"11:02:13.200",58,31,13,47,"11:46:00.600",39,50,14,42,"11:34:00",54,35,12,37,"11:11:00",null,null,null,null,null,27,62,15,52,"11:35:00",72,17,14,44,"10:33:00",130,1,15,27,"12:21:00",null,null,null,null,null,null,null,null,null,null,null,null,null,null,null,13,76,14,49,"11:41:00",13,76,15,51,"11:53:00",null,null,null,null,null,null,null,null,null,null,19,70,13,13,"11:41:00"]
[33,"Wojciechowski","Adam","Piastów",824,11,0,2,null,null,null,null,null,null,null,null,null,null,null,null,null,null,null,null,null,null,null,null,null,null,null,null,null,null,null,null,null,null,5,88,22,57,"13:06:28",null,null,null,null,null,null,null,null,null,null,null,null,null,null,null,null,null,null,null,null,null,null,null,null,null,4,90,20,60,"11:01:58",9,80,19,59,"11:32:16",null,null,null,null,null,null,null,null,null,null,2,96,17,55,"11:40:44",9,80,"18","52","11:46:10",13,76,13,45,"11:55:32",4,90,18,54,"11:51:13.200",11,78,16,53,"11:40:00",5,88,20,60,"11:53:00",125,1,8,28,"11:39:04.200",32,57,15,50,"11:15:25.200"]
[34,"Kozłowski","Mariusz","Elblag",816,10,1,0,null,null,null,null,null,null,null,null,null,null,null,null,null,null,null,null,null,null,null,null,null,null,null,null,null,null,null,null,null,null,null,null,null,null,null,null,null,null,null,null,null,null,null,null,null,null,null,null,null,null,null,null,null,null,null,null,null,null,null,null,null,null,null,null,null,null,null,null,null,null,null,null,null,null,null,null,null,null,null,null,null,null,null,null,null,null,null,null,null,null,4,90,15,49,"12:01:49",null,null,null,null,null,null,null,null,null,null,null,null,null,null,null,null,null,null,null,null,null,null,null,null,null,9,80,14,48,"11:50:00",1,100,17,52,"11:59:00",null,null,null,null,null,17,72,18,55,"11:34:00",null,null,null,null,null,11,78,16,51,"11:59:00",null,null,null,null,null,null,null,null,null,null,13,76,17,55,"11:50:00",6,86,15,51,"11:45:00",null,null,null,null,null,6,86,15,52,"11:52:00",null,null,null,null,null,null,null,null,null,null,23,66,16,16,"11:51:00",8,82,13,13,"11:31:00"]
[35,"Ruchlicki","Stanisław","Białystok",809,20,0,2,17,72,25,60,"12:20:06",44,45,15,40,"13:51:16",null,null,null,null,null,null,null,null,null,null,null,null,null,null,null,22,67,24,60,"13:58:59",14,75,18,48,"13:40:53",8,82,16,54,"11:59:26",null,null,null,null,null,9,80,19,56,"11:58:28",16,73,19,59,"11:56:23",16,73,18,58,"11:07:56",17,72,17,57,"11:18:45",77,12,15,36,"12:14:38",31,58,14,50,"11:43:00",65,24,14,39,"12:11:00",60,30,15,39,"12:10:30",197,1,"13","23","12:26:46",287,1,10,20,"12:11:59",81,8,12,39,"12:01:06",null,null,null,null,null,56,33,15,48,"11:42:00",195,1,6,24,"11:55:15",138,1,11,37,"11:57:25.800",120,1,11,33,"11:40:00"]
[36,"Jakubek","Krystian","Wrocław",795,9,3,7,1,100,25,60,"09:33:55",1,100,24,60,"11:28:01",4,90,24,60,"09:44:50",1,100,24,60,"12:02:54",2,96,24,60,"10:00:20",2,96,24,60,"11:41:25",13,76,22,52,"14:02:28",null,null,null,null,null,11,78,20,60,"11:05:13",null,null,null,null,null,30,59,16,51,"11:44:05"]
[37,"Świrkowicz","Anna","Gdynia",790,14,0,0,null,null,null,null,null,null,null,null,null,null,null,null,null,null,null,null,null,null,null,null,null,null,null,null,null,null,null,null,null,null,null,null,null,null,null,null,null,null,null,null,null,null,null,null,null,null,null,null,null,null,null,null,null,null,null,null,null,null,null,null,null,null,null,null,null,null,null,null,null,null,10,79,17,56,"12:00:00",null,null,null,null,null,null,null,null,null,null,null,null,null,null,null,null,null,null,null,null,null,null,null,null,null,16,73,16,51,"11:58:00",10,79,18,57,"11:22:00",7,84,16,52,"11:52:22.800",null,null,null,null,null,7,84,15,49,"11:47:00",31,58,13,42,"11:47:00",29,60,12,40,"11:53:00",88,1,12,40,"11:17:00",14,75,18,58,"11:46:00",34,55,13,42,"11:22:00",196,1,14,-1,"12:47:00",15,73,15,47,"11:37:00",null,null,null,null,null,22,67,13,41,"11:34:00",167,1,16,13,"12:39:00"]
[38,"Zadworny","Tomasz","Chlewo",789,15,0,0,null,null,null,null,null,null,null,null,null,null,null,null,null,null,null,null,null,null,null,null,null,null,null,null,null,null,null,null,null,null,null,null,null,null,null,null,null,null,null,null,null,null,null,null,null,null,null,null,null,null,null,null,null,null,null,null,null,null,null,null,25,64,17,57,"11:58:17",25,64,14,51,"11:44:53",8,82,17,56,"11:47:00",21,68,14,51,"11:56:00",207,1,14,3,"12:44:25",20,69,"15","49","11:26:10",311,1,4,18,"05:05:06",22,67,14,49,"11:53:19.800",null,null,null,null,null,30,59,15,52,"11:22:00",13,76,15,44,"11:56:05.400",27,62,16,52,"11:42:22.800",24,65,14,44,"11:43:00",36,53,13,41,"11:54:00",78,11,9,34,"11:37:00",42,47,15,48,"11:34:00"]
[39,"Chorab","Andrzej","Gdynia",788,9,5,2,null,null,null,null,null,null,null,null,null,null,null,null,null,null,null,null,null,null,null,null,null,null,null,null,null,null,null,null,null,null,null,null,null,null,null,null,null,null,null,null,null,null,null,null,null,null,null,null,null,null,null,null,null,null,null,null,null,null,null,null,null,null,null,null,null,null,null,null,null,null,null,null,null,null,null,null,null,null,null,null,null,null,null,null,null,null,null,null,null,null,null,null,null,null,null,null,null,null,null,null,null,null,null,null,null,null,null,null,null,null,null,null,null,null,null,null,null,null,null,null,null,null,null,null,null,null,null,null,null,null,null,null,null,null,null,null,null,null,null,null,null,null,null,null,null,null,null,null,null,null,null,null,null,null,null,1,100,18,54,"11:45:00",null,null,null,null,null,1,100,17,56,"11:58:00",3,92,20,60,"11:22:00",null,null,null,null,null,52,37,11,32,"11:55:00",null,null,null,null,null,1,100,20,20,"11:38:00",1,100,16,16,"11:10:00",8,82,14,14,"10:30:00",1,100,9,9,"11:47:00",12,77,14,14,"11:47:00"]
[40,"Grabowski","Grzegorz","Łódź",761,11,0,1,null,null,null,null,null,null,null,null,null,null,null,null,null,null,null,null,null,null,null,null,21,68,24,60,"12:30:13",null,null,null,null,null,17,72,16,41,"13:14:02",28,61,14,44,"11:54:35",26,63,16,52,"11:43:38",20,69,17,52,"11:49:44",27,62,17,52,"11:47:23",null,null,null,null,null,16,73,18,57,"11:00:58",null,null,null,null,null,12,77,17,56,"12:00:00",13,76,18,53,"11:32:00",null,null,null,null,null,null,null,null,null,null,null,null,null,null,null,null,null,null,null,null,null,null,null,null,null,null,null,null,null,null,null,null,null,null,null,19,70,18,55,"11:18:07.200",null,null,null,null,null,null,null,null,null,null,null,null,null,null,null,null,null,null,null,null,19,70,17,56,"11:31:00"]
[41,"Rubaj","Tomasz","Warszawa",746,14,0,0,null,null,null,null,null,null,null,null,null,null,null,null,null,null,null,null,null,null,null,null,null,null,null,null,null,null,null,null,null,null,null,null,null,null,null,null,null,null,null,null,null,null,null,null,null,null,null,null,null,null,null,null,null,null,null,null,null,null,null,null,null,null,null,null,null,null,null,null,null,null,null,null,null,null,null,null,null,null,null,null,null,null,null,null,null,18,71,"16","50","11:47:57",39,50,12,38,"11:29:13",20,69,16,49,"11:47:07.800",33,56,16,49,"11:55:00",null,null,null,null,null,null,null,null,null,null,28,61,16,52,"11:43:30.600",71,18,12,38,"12:03:00",11,78,16,48,"11:43:00",66,23,12,34,"11:48:00",null,null,null,null,null,null,null,null,null,null,27,62,15,45,"11:49:00",null,null,null,null,null,23,66,13,44,"11:44:00",null,null,null,null,null,40,49,12,37,"11:39:00",null,null,null,null,null,35,54,15,40,"11:17:00",null,null,null,null,null,null,null,null,null,null,null,null,null,null,null,54,35,10,10,"10:00:00",null,null,null,null,null,35,54,6,6,"11:52:00"]
[42,"Lipiński","Tomasz","Słupsk",724,28,0,0,47,42,22,56,"13:50:05",22,67,19,51,"13:46:02",34,55,19,51,"12:43:43",25,64,19,52,"13:32:13",null,null,null,null,null,26,63,21,54,"13:41:34",null,null,null,null,null,null,null,null,null,null,null,null,null,null,null,null,null,null,null,null,null,null,null,null,null,72,17,12,42,"11:13:24",147,1,8,31,"11:18:24",74,15,11,37,"11:23:13",78,11,14,41,"11:40:00",90,1,10,35,"11:47:00",66,24,11,38,"11:35:03",54,36,"13","41","11:47:31",175,1,9,28,"11:19:11",82,7,13,38,"11:13:16.200",147,1,11,37,"10:35:00",142,1,12,36,"11:53:00",143,1,9,26,"11:12:00",null,null,null,null,null,121,1,11,33,"11:42:00",null,null,null,null,null,106,1,10,31,"11:17:00",null,null,null,null,null,null,null,null,null,null,79,10,11,35,"10:38:00",null,null,null,null,null,59,30,11,34,"11:32:00",null,null,null,null,null,52,37,11,35,"11:06:00",37,52,14,45,"11:16:00",null,null,null,null,null,109,1,8,20,"11:16:00",37,52,12,12,"11:50:00",56,33,14,14,"11:36:00",27,62,11,11,"11:14:00",51,38,10,10,"08:33:00"]
[43,"Grześ","Tomasz","Ciechocinek",681,14,0,1,null,null,null,null,null,null,null,null,null,null,null,null,null,null,null,5,88,24,60,"12:14:06",null,null,null,null,null,null,null,null,null,null,null,null,null,null,null,12,77,17,51,"11:07:20",18,71,18,55,"11:47:18",29,60,15,50,"11:34:51",21,68,16,55,"11:31:12",44,45,14,51,"11:30:18",null,null,null,null,null,null,null,null,null,null,25,64,15,51,"11:38:00",30,59,14,48,"11:32:00",null,null,null,null,null,82,7,"13","37","11:59:32",47,42,11,37,"11:34:03",88,1,12,38,"11:33:09",25,64,15,50,"11:21:00",88,1,13,44,"10:08:00",55,34,11,34,"11:08:32.400"]
[44,"Kozdryk","Piotr","Stawiguda",660,11,0,0,null,null,null,null,null,null,null,null,null,null,null,null,null,null,null,null,null,null,null,null,null,null,null,null,null,null,null,null,null,null,null,null,null,null,null,null,null,null,null,null,null,null,null,null,null,27,62,16,50,"11:41:08",null,null,null,null,null,38,51,15,52,"11:13:07",29,60,17,55,"11:35:25",null,null,null,null,null,20,69,17,53,"11:43:00",11,78,16,54,"11:30:00",41,49,17,44,"12:10:11",null,null,null,null,null,17,72,13,42,"11:38:16",null,null,null,null,null,36,53,15,48,"11:45:00",null,null,null,null,null,32,57,13,39,"11:28:33.600",null,null,null,null,null,null,null,null,null,null,null,null,null,null,null,null,null,null,null,null,null,null,null,null,null,null,null,null,null,null,null,null,null,null,null,null,null,null,null,null,null,null,null,null,null,null,null,null,null,null,null,null,null,null,null,null,null,null,null,null,null,null,null,null,null,null,null,null,null,null,12,77,14,14,"11:47:00",57,32,14,14,"11:37:00"]
[45,"Szot","Tomasz","Gdańsk",641,12,0,2,26,63,25,60,"13:09:44",null,null,null,null,null,null,null,null,null,null,null,null,null,null,null,null,null,null,null,null,null,null,null,null,null,null,null,null,null,null,null,null,null,null,null,15,74,20,60,"11:42:24",19,70,17,52,"11:48:36",19,70,17,55,"10:55:27",31,58,18,54,"11:29:16",null,null,null,null,null,null,null,null,null,null,43,46,16,47,"12:01:00",null,null,null,null,null,18,71,16,52,"11:34:51",null,null,null,null,null,233,1,6,25,"06:42:57",null,null,null,null,null,null,null,null,null,null,null,null,null,null,null,null,null,null,null,null,null,null,null,null,null,null,null,null,null,null,null,null,null,null,null,null,null,null,null,null,null,null,null,null,null,null,null,null,null,null,null,null,null,null,null,26,63,14,45,"11:32:00",null,null,null,null,null,58,31,12,43,"11:22:00",51,38,12,35,"11:39:00",33,56,13,46,"11:34:00"]
[46,"Ciarkowski","Szymon","Gdańsk",631,12,0,3,null,null,null,null,null,null,null,null,null,null,null,null,null,null,null,null,null,null,null,null,null,null,null,null,null,null,null,null,null,null,null,null,null,null,null,null,null,null,null,null,null,null,null,null,null,54,35,14,42,"10:34:51",12,77,20,60,"11:36:14",18,71,19,57,"11:49:54",null,null,null,null,null,null,null,null,null,null,null,null,null,null,null,49,40,19,43,"12:13:00",223,1,13,-51,"13:30:34",null,null,null,null,null,null,null,null,null,null,null,null,null,null,null,null,null,null,null,null,null,null,null,null,null,null,null,null,null,null,null,null,null,null,null,"NKL",0,0,0,"NKL","NKL",0,0,0,"00:00:00",null,null,null,null,null,3,92,20,60,"11:59:00",7,84,20,60,"11:56:00",16,73,15,48,"11:55:00",null,null,null,null,null,3,92,16,51,"11:39:00",23,66,17,51,"11:56:00"]
[47,"Szymelis","Marek","Lębork",627,11,0,0,null,null,null,null,null,null,null,null,null,null,null,null,null,null,null,null,null,null,null,null,null,null,null,null,null,null,null,null,null,null,null,null,null,null,null,null,null,null,null,null,null,null,null,null,null,null,null,null,null,null,null,null,null,null,null,null,null,null,null,null,null,null,null,null,null,null,null,null,null,null,null,null,null,null,null,null,null,null,null,null,null,null,null,null,null,null,null,null,null,null,null,null,null,null,null,67,22,13,40,"11:45:26.400",54,35,13,46,"11:48:00",null,null,null,null,null,null,null,null,null,null,null,null,null,null,null,null,null,null,null,null,null,null,null,null,null,null,null,null,null,null,null,null,null,null,null,28,61,16,55,"11:58:00",10,79,17,51,"11:38:00",15,74,16,51,"11:38:00",14,75,16,47,"11:56:00",18,71,17,52,"11:57:00",19,70,14,44,"11:39:00",91,1,17,35,"12:21:00",40,49,13,39,"11:46:00",4,90,13,46,"11:55:00"]
[48,"Banaszkiewicz","Piotr","Kraków",602,10,0,1,null,null,null,null,null,null,null,null,null,null,null,null,null,null,null,null,null,null,null,null,null,null,null,null,null,23,66,23,58,"13:09:55",null,null,null,null,null,null,null,null,null,null,null,null,null,null,null,null,null,null,null,null,14,75,20,60,"11:38:24",null,null,null,null,null,23,66,17,57,"11:46:53",null,null,null,null,null,15,74,17,55,"12:01:00",null,null,null,null,null,39,51,14,45,"12:02:45",null,null,null,null,null,null,null,null,null,null,30,59,15,46,"11:48:13.200",null,null,null,null,null,17,72,19,54,"12:04:00",null,null,null,null,null,null,null,null,null,null,14,75,15,46,"11:41:00",26,63,12,43,"11:53:00",139,1,9,29,"12:08:00"]
[49,"Skorupski","Paweł","Lublin",601,14,0,0,null,null,null,null,null,null,null,null,null,null,null,null,null,null,null,null,null,null,null,null,null,null,null,null,null,null,null,null,null,null,null,null,null,null,null,null,null,null,null,null,null,null,null,null,null,null,null,null,null,null,null,null,null,null,null,null,null,null,null,null,null,null,null,null,null,null,null,null,null,null,null,null,null,null,null,null,null,null,null,null,null,null,null,null,null,null,null,null,null,null,124,1,9,31,"10:44:00",21,68,16,49,"11:47:14.400",32,57,16,49,"11:55:00",null,null,null,null,null,null,null,null,null,null,29,60,16,52,"11:44:02.400",71,18,12,38,"12:03:00",14,75,14,45,"11:45:00",67,22,12,34,"11:53:00",null,null,null,null,null,null,null,null,null,null,32,57,14,42,"11:59:00",null,null,null,null,null,26,63,13,42,"11:52:00",null,null,null,null,null,40,49,12,37,"11:39:00",null,null,null,null,null,37,52,15,40,"11:31:00",45,44,10,32,"11:33:00",null,null,null,null,null,null,null,null,null,null,54,35,10,10,"10:00:00",null,null,null,null,null,"NKL",0,6,0,"NKL"]
[50,"Niebylski","Władysław","Elbląg",587,12,0,0,null,null,null,null,null,null,null,null,null,null,null,null,null,null,null,null,null,null,null,null,null,null,null,null,null,null,null,null,null,null,null,null,null,null,null,null,null,null,null,null,null,null,null,null,null,null,null,null,null,null,null,null,null,null,null,null,null,null,null,null,null,null,null,null,null,null,null,null,null,null,null,null,null,null,null,null,null,null,null,null,null,null,null,null,null,null,null,null,null,null,62,27,10,35,"11:45:48",null,null,null,null,null,null,null,null,null,null,null,null,null,null,null,null,null,null,null,null,144,1,10,36,"11:06:09.600",52,37,12,40,"11:21:00",null,null,null,null,null,null,null,null,null,null,84,5,12,41,"10:06:00",null,null,null,null,null,87,2,10,34,"11:48:00",null,null,null,null,null,null,null,null,null,null,null,null,null,null,null,13,76,14,49,"11:41:00",13,76,15,51,"11:53:00",9,80,15,51,"11:44:00",18,71,12,37,"11:45:00",19,70,13,13,"11:41:00",23,66,16,16,"11:51:00",13,76,12,12,"10:54:00"]
[51,"Kryszewski","Wojciech","Koleczkowo",586,25,0,0,59,30,21,49,"13:23:09",74,15,13,36,"14:09:24",75,14,16,36,"14:05:53",68,21,12,33,"13:00:40",73,16,18,46,"13:21:17",45,44,16,44,"13:16:54",32,57,14,36,"13:22:20",30,59,13,43,"11:53:05",47,42,11,42,"11:42:38",68,21,11,38,"11:39:16",134,1,9,30,"10:18:46",110,1,9,16,"12:17:01",36,53,15,53,"11:56:03",41,48,14,46,"11:53:15",133,1,10,33,"11:41:00",50,39,12,43,"11:40:00",40,50,13,45,"11:58:49",157,1,"11","30","12:06:58",172,1,7,29,"11:56:17",74,15,12,39,"11:31:10.200",119,1,13,40,"11:44:00",36,53,15,51,"11:29:00",225,1,6,22,"11:50:12",274,1,11,1,"12:38:30.600",155,1,9,31,"11:46:00"]
[52,"Malcher","Robert","Szczecin",583,16,0,0,null,null,null,null,null,null,null,null,null,null,null,null,null,null,null,null,null,null,null,null,null,null,null,null,null,null,null,null,null,null,null,null,null,null,null,null,null,null,null,null,null,null,null,null,null,null,null,null,null,null,null,null,null,null,null,null,null,null,null,null,null,null,null,null,null,32,57,14,49,"11:58:18",null,null,null,null,null,null,null,null,null,null,67,23,11,38,"11:41:49",40,50,"13","44","11:40:53",null,null,null,null,null,null,null,null,null,null,null,null,null,null,null,null,null,null,null,null,null,null,null,null,null,null,null,null,null,null,null,null,null,null,null,null,null,null,null,null,24,65,12,42,"11:52:00",72,17,14,43,"12:05:00",null,null,null,null,null,null,null,null,null,null,93,1,13,34,"12:06:00",6,86,15,50,"11:40:00",null,null,null,null,null,34,55,11,39,"11:40:00",165,1,18,16,"12:39:00",19,70,13,48,"11:57:00",17,72,12,38,"11:59:00","NKL",0,0,0,"NKL",131,1,12,12,"11:40:00",7,84,13,13,"11:11:00",96,1,9,9,"08:43:00","NKL",0,7,0,"NKL"]
[53,"Tusiński","Radosław","Pęcice",575,9,0,1,null,null,null,null,null,null,null,null,null,null,null,null,null,null,null,26,63,19,51,"13:23:39",45,44,22,54,"13:01:38",20,69,24,60,"13:43:33",null,null,null,null,null,null,null,null,null,null,20,69,17,54,"11:44:08",null,null,null,null,null,null,null,null,null,null,null,null,null,null,null,null,null,null,null,null,null,null,null,null,null,null,null,null,null,null,8,82,17,55,"11:44:00",26,63,16,49,"11:45:10",14,75,"18","50","12:06:09",28,61,13,40,"11:38:37",40,49,15,44,"11:19:00"]
[54,"Sadowski","Marek","Czapelki",566,15,0,0,46,43,24,56,"13:22:20",32,57,17,47,"13:12:24",38,51,16,48,"13:37:32",36,53,16,45,"12:47:14",76,13,18,45,"13:06:02",62,27,16,40,"13:08:10",76,13,10,23,"12:07:05",41,48,13,38,"11:13:53",41,48,12,44,"11:38:19",52,37,14,44,"11:36:56",69,20,12,40,"11:46:00",37,52,16,52,"11:59:14",101,1,13,43,"11:28:29",43,46,13,45,"11:53:18",null,null,null,null,null,null,null,null,null,null,null,null,null,null,null,null,null,null,null,null,null,null,null,null,null,null,null,null,null,null,null,null,null,null,null,null,null,null,null,null,null,null,null,null,null,null,null,null,null,null,null,null,null,null,null,null,null,null,null,null,null,null,null,null,null,null,null,null,null,null,null,null,null,null,null,null,null,null,null,null,null,null,null,null,null,null,null,null,null,null,null,null,null,null,null,null,null,null,null,null,null,null,null,null,null,null,null,null,null,null,null,null,null,null,null,null,null,null,null,null,null,null,null,null,null,null,null,null,null,null,null,null,null,null,null,32,57,6,6,"11:45:00"]
[55,"Bagiński","Olgierd","Gdynia",547,10,0,5,15,74,25,60,"11:36:16",13,76,24,60,"13:34:00",25,64,24,60,"13:40:55",18,71,21,54,"12:59:37",13,76,24,60,"11:17:31",21,68,24,60,"13:44:36",12,77,21,54,"13:27:16",83,6,15,17,"12:29:16",84,5,8,23,"08:10:42",59,30,16,40,"12:08:29"]
[56,"Papis","Leszek","Słupsk",545,21,0,0,null,null,null,null,null,null,null,null,null,null,71,18,13,38,"12:40:31",46,43,14,42,"12:39:25",63,26,17,48,"12:43:14",null,null,null,null,null,null,null,null,null,null,null,null,null,null,null,38,51,12,46,"11:53:19",42,47,13,48,"11:48:20",44,45,13,46,"11:54:27",62,27,12,46,"11:44:19",70,19,13,46,"11:34:46",35,54,13,48,"11:21:38",55,34,14,45,"11:14:00",57,32,11,41,"12:03:00",61,29,12,38,"11:34:32",null,null,null,null,null,68,21,9,35,"11:24:48",32,57,14,46,"11:25:30",52,36,13,46,"11:31:00",106,1,13,43,"11:24:00",159,1,7,26,"11:45:19.800",148,1,12,35,"11:30:20.400",160,1,8,30,"11:30:00",129,1,10,27,"11:53:00",210,1,7,19,"10:00:00"]
[57,"Orłowski","Leszek","Słupsk",542,18,0,0,null,null,null,null,null,null,null,null,null,null,null,null,null,null,null,44,45,14,42,"12:39:00",65,24,17,48,"12:44:12",null,null,null,null,null,null,null,null,null,null,null,null,null,null,null,39,50,12,46,"11:53:22",41,48,13,48,"11:48:18",43,46,13,46,"11:54:02",61,28,12,46,"11:44:13",69,20,13,46,"11:34:38",24,65,14,51,"11:42:58",54,35,14,45,"11:13:00",58,31,11,41,"12:03:00",62,28,12,38,"11:34:37",null,null,null,null,null,66,23,9,35,"11:24:39",31,58,14,46,"11:25:27.600",52,37,13,46,"11:31:00",104,1,13,43,"11:24:00",null,null,null,null,null,146,1,12,35,"11:30:09.600",162,1,8,30,"11:39:00",129,1,10,27,"11:53:00"]
[58,"Krasuski","Marcin","Warszawa",529,8,0,0,null,null,null,null,null,null,null,null,null,null,null,null,null,null,null,null,null,null,null,null,null,null,null,null,null,null,null,null,null,null,null,null,null,null,null,null,null,null,null,null,null,null,null,null,null,null,null,null,null,null,null,null,null,null,null,32,57,17,54,"11:40:16",null,null,null,null,null,null,null,null,null,null,null,null,null,null,null,null,null,null,null,null,null,null,null,null,null,null,null,null,null,null,null,null,null,null,null,null,null,null,null,null,null,null,null,null,null,null,null,null,null,null,null,null,null,null,null,22,67,17,53,"11:24:20.400",3,92,14,52,"11:40:00",4,90,15,51,"11:31:00",null,null,null,null,null,18,71,16,55,"11:35:00",137,1,12,36,"08:14:00",9,80,16,52,"11:45:00",18,71,15,51,"11:47:00"]
[59,"Kłoczewiak","Jerzy","Elbląg",521,14,0,0,null,null,null,null,null,null,null,null,null,null,null,null,null,null,null,null,null,null,null,null,null,null,null,null,null,null,null,null,null,null,null,null,null,null,null,null,null,null,null,null,null,null,null,null,null,null,null,null,null,null,null,null,null,null,null,null,null,null,null,null,null,null,null,null,null,null,null,null,null,null,null,null,null,null,null,null,null,null,null,null,null,null,null,null,null,null,null,null,null,null,63,26,10,35,"11:45:54",null,null,null,null,null,null,null,null,null,null,162,1,11,32,"08:01:00",null,null,null,null,null,143,1,10,36,"11:06:08.400",null,null,null,null,null,null,null,null,null,null,null,null,null,null,null,84,5,12,41,"10:06:00",null,null,null,null,null,87,2,10,34,"11:48:00",null,null,null,null,null,20,69,14,46,"11:25:00",194,1,3,8,"03:40:00",13,76,14,49,"11:41:00",75,14,12,40,"10:45:00",47,42,11,38,"11:44:00",18,71,12,37,"11:45:00",12,77,14,14,"11:47:00",29,60,16,16,"11:52:00",13,76,12,12,"10:54:00"]
[60,"Stanek","Robert","Szczecin",517,20,0,1,null,null,null,null,null,null,null,null,null,null,null,null,null,null,null,null,null,null,null,null,26,63,24,60,"13:16:44",null,null,null,null,null,null,null,null,null,null,null,null,null,null,null,null,null,null,null,null,null,null,null,null,null,22,67,16,55,"11:50:35",53,36,14,48,"11:22:09",26,63,16,56,"11:46:46",51,38,13,41,"11:31:15",58,31,12,45,"11:04:00",63,26,11,40,"11:53:00",217,1,8,-6,"12:32:14",65,25,"12","39","11:35:15",55,34,9,36,"11:23:58",61,28,11,41,"11:56:29.400",106,1,12,42,"11:35:00",109,1,13,43,"12:01:00",127,1,8,28,"11:43:16.200",111,1,11,40,"11:37:10.800",109,1,10,35,"11:45:00",61,28,11,36,"11:47:00",114,1,8,31,"11:58:00",null,null,null,null,null,159,1,10,34,"11:10:00",null,null,null,null,null,null,null,null,null,null,19,70,15,46,"11:52:00"]
[61,"Wadowski","Tomasz","Pruszcz Gdański",516,15,0,1,null,null,null,null,null,30,59,19,47,"13:40:57",40,49,19,47,"13:36:54",null,null,null,null,null,30,59,24,60,"13:47:22",30,59,21,51,"13:29:41",null,null,null,null,null,null,null,null,null,null,81,8,14,24,"12:15:32",null,null,null,null,null,65,24,14,40,"12:05:54",39,50,15,52,"11:53:51",50,39,16,50,"11:17:53",57,32,12,41,"11:19:11",73,16,11,42,"11:13:00",81,8,9,36,"11:24:00",null,null,null,null,null,null,null,null,null,null,null,null,null,null,null,136,1,9,32,"10:51:34.200",null,null,null,null,null,null,null,null,null,null,null,null,null,null,null,null,null,null,null,null,null,null,null,null,null,null,null,null,null,null,null,null,null,null,null,null,null,null,null,null,null,null,null,null,null,null,null,null,null,null,null,null,null,null,null,null,null,null,null,null,null,null,null,null,null,null,null,null,null,null,175,1,11,-1,"12:39:00",60,29,11,35,"11:33:00",null,null,null,null,null,null,null,null,null,null,null,null,null,null,null,null,null,null,null,null,8,82,14,14,"10:30:00"]
[62,"Drażan","Łukasz","Warszawa",516,9,0,0,null,null,null,null,null,null,null,null,null,null,null,null,null,null,null,null,null,null,null,null,null,null,null,null,null,null,null,null,null,null,null,null,null,null,null,null,null,null,null,null,null,null,null,null,null,null,null,null,null,null,null,null,null,null,null,91,1,10,34,"11:42:51",null,null,null,null,null,null,null,null,null,null,null,null,null,null,null,4,90,18,56,"11:50:00",null,null,null,null,null,null,null,null,null,null,18,71,12,42,"11:46:13",null,null,null,null,null,10,79,17,53,"11:49:00",28,61,18,52,"11:39:00",27,62,13,40,"11:41:25.800",16,73,19,56,"11:36:28.200",31,58,13,43,"11:44:00",68,21,11,35,"11:32:00"]
[63,"Rzeppa","Tomasz","Gdynia",515,11,0,0,null,null,null,null,null,null,null,null,null,null,null,null,null,null,null,null,null,null,null,null,null,null,null,null,null,null,null,null,null,null,null,null,null,null,null,null,null,null,null,null,null,null,null,null,null,null,null,null,null,null,null,null,null,null,null,null,null,null,null,null,null,null,null,null,null,null,null,null,null,null,null,null,null,null,null,null,null,null,null,null,null,null,null,null,null,null,null,null,null,null,null,null,null,null,null,null,null,null,null,null,null,null,null,null,null,null,null,null,null,null,243,1,8,20,"10:02:32.400",null,null,null,null,null,17,72,14,46,"11:56:00",null,null,null,null,null,null,null,null,null,null,null,null,null,null,null,34,55,15,52,"10:59:00",null,null,null,null,null,51,38,11,41,"11:31:00",null,null,null,null,null,null,null,null,null,null,null,null,null,null,null,73,16,13,40,"11:18:00",26,63,12,43,"11:27:00",30,59,12,36,"11:58:00",113,1,5,5,"07:36:00",null,null,null,null,null,28,61,11,11,"11:18:00",13,76,13,13,"09:32:00",16,73,7,7,"11:51:00"]
[64,"Grabiec","Grzegorz","Wrocław",509,12,2,3,null,null,null,null,null,null,null,null,null,null,null,null,null,null,null,null,null,null,null,null,null,null,null,null,null,null,null,null,null,null,null,null,null,null,null,null,null,null,null,null,null,null,null,null,null,null,null,null,null,null,null,null,null,null,null,null,null,null,null,null,null,null,null,null,null,null,null,null,null,null,null,null,null,null,null,null,null,null,null,null,null,null,null,null,null,219,1,"5","14","05:22:59",null,null,null,null,null,null,null,null,null,null,162,1,11,35,"10:31:00",null,null,null,null,null,null,null,null,null,null,null,null,null,null,null,null,null,null,null,null,null,null,null,null,null,168,1,14,25,"12:12:00",null,null,null,null,null,116,1,16,39,"12:09:00",null,null,null,null,null,1,100,20,60,"11:29:00",13,76,16,47,"11:22:00",4,90,20,60,"11:01:00",null,null,null,null,null,1,100,20,60,"11:01:00",null,null,null,null,null,118,1,8,18,"07:25:00",22,67,13,13,"11:49:00",null,null,null,null,null,18,71,12,12,"11:15:00","NKL",0,0,0,"NKL"]
[65,"Bobiński","Robert","Warszawa",494,12,0,0,null,null,null,null,null,null,null,null,null,null,null,null,null,null,null,null,null,null,null,null,null,null,null,null,null,null,null,null,null,null,null,null,null,null,null,null,null,null,null,null,null,null,null,null,null,null,null,null,null,null,null,null,null,null,null,null,null,null,null,null,null,null,null,null,null,null,null,null,null,null,null,null,null,null,null,null,null,null,null,null,null,null,null,null,null,null,null,null,null,null,null,null,null,null,null,24,65,16,48,"11:07:04.800",40,49,14,48,"10:51:00",71,18,15,46,"12:06:00",23,66,12,41,"11:52:15",39,50,16,49,"11:54:23.400",39,50,14,42,"11:34:00",34,55,13,41,"11:43:00",20,69,13,43,"11:48:00",29,60,15,52,"11:43:00",211,1,12,28,"12:12:00",176,1,11,2,"12:35:00",79,10,12,36,"11:48:00"]
[66,"Łosiewicz","Mariusz","Bojano",493,6,0,5,2,96,25,60,"10:05:57",null,null,null,null,null,13,76,24,60,"11:34:00",10,79,24,60,"12:59:10",17,72,24,60,"11:50:38",9,80,24,60,"12:20:46",4,90,23,59,"13:56:16"]
[67,"Klonowski","Marek","Gryfino",490,7,0,0,null,null,null,null,null,null,null,null,null,null,null,null,null,null,null,null,null,null,null,null,null,null,null,null,null,null,null,null,null,null,null,null,null,null,null,null,null,null,null,null,null,null,null,null,null,null,null,null,null,null,null,null,null,null,null,null,null,null,null,null,null,null,null,null,null,null,null,null,null,null,null,null,null,null,null,null,null,null,null,null,null,null,null,null,null,null,null,null,null,null,null,null,null,null,null,null,null,null,null,null,null,null,null,null,null,null,null,null,null,null,null,null,null,null,null,null,null,null,null,null,null,null,null,null,null,null,null,null,null,null,null,null,null,null,null,null,null,null,null,null,null,null,null,null,null,null,null,null,null,null,null,null,null,null,null,null,null,null,null,null,null,null,null,null,null,58,31,12,34,"11:36:00",null,null,null,null,null,14,75,14,50,"11:42:00",12,77,13,41,"12:11:00",null,null,null,null,null,5,88,18,18,"11:36:00",20,69,12,12,"11:16:00",12,77,14,14,"11:05:00",16,73,7,7,"11:52:00"]
[68,"Zakrzewski","Michał","Olsztyn",481,9,0,0,null,null,null,null,null,null,null,null,null,null,null,null,null,null,null,null,null,null,null,null,null,null,null,null,null,null,null,null,null,null,null,null,null,null,null,null,null,null,null,null,null,null,null,null,null,null,null,null,null,null,null,null,null,null,null,null,null,null,null,null,null,null,null,null,null,null,null,null,null,null,null,null,null,null,null,null,null,null,null,null,null,null,null,null,null,null,null,null,null,null,null,null,null,null,null,null,null,null,null,null,null,null,null,null,null,null,null,null,null,null,null,null,null,null,null,null,null,null,null,null,12,77,14,47,"11:51:00",18,71,13,45,"11:54:00",71,18,10,34,"11:32:00",30,59,17,51,"11:55:00",30,59,16,53,"11:55:00",8,82,16,52,"11:39:00",14,75,16,52,"11:48:00",157,1,1,1,"11:57:00",50,39,15,46,"11:50:00"]
[69,"Wesoły","Krzysztof","Wrocław",478,6,1,2,null,null,null,null,null,null,null,null,null,null,null,null,null,null,null,null,null,null,null,null,null,null,null,null,null,null,null,null,null,null,null,null,null,null,null,null,null,null,null,null,null,null,null,null,null,null,null,null,null,null,11,78,20,60,"11:20:19",1,100,20,60,"10:38:48",15,74,18,58,"11:40:10",11,78,17,55,"11:41:53",14,75,19,55,"11:04:00",null,null,null,null,null,16,73,17,52,"11:43:32"]
[70,"Kuthan","Marcin","Warszawa",468,8,0,0,null,null,null,null,null,null,null,null,null,null,null,null,null,null,null,null,null,null,null,null,null,null,null,null,null,null,null,null,null,null,null,null,null,null,null,null,null,null,null,null,null,null,null,null,null,null,null,null,null,null,null,null,null,null,null,null,null,null,null,null,null,null,null,null,null,null,null,null,null,null,null,null,null,null,null,null,null,null,null,null,null,null,null,null,null,null,null,null,null,null,7,84,12,47,"11:41:58",23,66,16,48,"11:07:03",23,66,15,50,"10:56:00",null,null,null,null,null,288,1,11,9,"12:31:11.400",38,51,16,49,"11:54:20.400",null,null,null,null,null,24,65,13,43,"11:33:00",21,68,13,43,"11:51:00",22,67,16,53,"11:29:00"]
[71,"Niewęgłowski","Piotr","Wiktorów",448,18,0,0,null,null,null,null,null,40,49,15,41,"13:44:14",35,54,18,50,"13:40:31",59,30,13,35,"13:29:16",54,35,21,51,"13:50:18",58,31,16,42,"13:35:45",null,null,null,null,null,77,12,11,25,"12:08:20",101,1,12,18,"12:22:28",null,null,null,null,null,120,1,10,31,"11:00:00",null,null,null,null,null,null,null,null,null,null,105,1,10,31,"11:55:47","NKL",0,0,0,"NKL",7,84,17,55,"11:44:00",118,1,10,28,"11:42:04",43,47,"12","43","11:38:58",40,49,11,38,"11:34:16",39,50,15,44,"11:18:35.400",110,1,11,42,"11:49:00",107,1,13,43,"11:55:00",140,1,7,27,"11:43:19.800"]
[72,"Makowiec","Sławomir","Gdańsk",443,12,0,0,53,36,22,53,"13:48:02",72,17,12,28,"13:16:14",54,35,16,42,"13:33:52",33,56,18,50,"13:31:39",41,48,23,56,"13:49:19",37,52,18,46,"13:12:40",26,63,15,38,"13:52:34",32,57,13,41,"11:28:23",51,38,12,40,"11:52:32",50,39,14,46,"11:44:14",172,1,7,20,"11:17:38",88,1,11,35,"11:28:35"]
[73,"Markiewicz","Domisław","Baranowo",443,12,0,0,null,null,null,null,null,null,null,null,null,null,null,null,null,null,null,null,null,null,null,null,null,null,null,null,null,null,null,null,null,null,null,null,null,null,null,null,null,null,null,null,null,null,null,null,null,null,null,null,null,null,null,null,null,null,null,null,null,null,null,null,null,null,null,null,null,null,null,null,null,null,null,null,null,null,null,157,1,8,26,"11:24:00",52,38,12,40,"11:48:27",27,62,"14","48","11:34:55",null,null,null,null,null,null,null,null,null,null,143,1,10,38,"11:21:00",null,null,null,null,null,null,null,null,null,null,null,null,null,null,null,null,null,null,null,null,null,null,null,null,null,null,null,null,null,null,41,48,15,48,"11:19:00",null,null,null,null,null,47,42,12,41,"11:24:00",21,68,15,48,"11:54:00",25,64,13,42,"11:21:00",61,28,14,41,"11:39:00",48,41,12,36,"11:32:00",76,13,12,40,"12:00:00",52,37,10,38,"11:59:00"]
[74,"Smejda","Andrzej","Warszawa",433,15,0,0,81,8,15,38,"12:48:33",54,35,11,33,"11:41:30",null,null,null,null,null,96,1,6,14,"06:50:02",47,42,20,53,"13:36:02",53,36,16,42,"13:04:34",19,70,13,41,"13:03:29",57,32,9,32,"11:44:45",37,52,12,46,"11:49:34",73,16,11,37,"11:39:55",null,null,null,null,null,50,39,13,49,"11:46:12",49,40,14,51,"11:42:13",48,41,11,43,"11:48:04",72,17,12,42,"11:35:00",86,3,9,36,"11:38:00",100,1,9,31,"11:51:59"]
[75,"Kulka","Jan","Pogórze",432,13,0,0,null,null,null,null,null,84,5,9,21,"11:03:15",null,null,null,null,null,null,null,null,null,null,null,null,null,null,null,56,33,16,42,"13:10:57",44,45,12,31,"13:18:04",89,1,9,10,"12:17:13",18,71,18,55,"11:47:18",29,60,15,50,"11:34:51",39,50,14,47,"11:20:24",43,46,14,51,"11:30:17",128,1,9,35,"11:58:16",42,47,14,45,"11:45:11",47,42,13,47,"11:34:00",59,30,10,41,"11:36:00",130,1,8,26,"11:15:00"]
[76,"Nalazek","Marcin","Warszawa",430,12,0,0,null,null,null,null,null,null,null,null,null,null,null,null,null,null,null,null,null,null,null,null,null,null,null,null,null,null,null,null,null,null,null,null,null,null,null,null,null,null,null,null,null,null,null,null,null,null,null,null,null,null,null,null,null,null,null,null,null,null,null,null,null,null,null,null,null,null,null,null,null,null,null,null,null,null,null,14,75,17,53,"11:44:00",null,null,null,null,null,null,null,null,null,null,19,70,12,42,"11:46:20",19,70,17,49,"11:43:13.200",9,80,17,53,"11:49:00",69,20,15,46,"12:06:00",null,null,null,null,null,161,1,10,34,"11:41:16.200",38,51,14,42,"11:33:00",190,1,6,17,"11:07:00",null,null,null,null,null,210,1,6,20,"11:07:00",32,57,17,52,"11:41:00",86,3,10,34,"10:59:00",108,1,11,32,"11:01:00"]
[77,"Wylężek","Zdzisław","Gdynia",427,12,0,0,null,null,null,null,null,null,null,null,null,null,null,null,null,null,null,null,null,null,null,null,null,null,null,null,null,null,null,null,null,null,null,null,null,null,null,null,null,null,null,null,null,null,null,null,null,null,null,null,null,null,null,null,null,null,null,null,null,null,null,null,null,null,null,null,null,null,null,null,null,null,null,null,null,null,null,null,null,null,null,null,54,36,12,40,"11:49:06",146,1,"9","32","10:24:13",317,1,10,15,"12:19:50",72,17,12,40,"11:48:07.800",39,50,15,48,"11:50:00",null,null,null,null,null,16,73,12,43,"11:54:33",21,68,16,54,"11:56:11.400",30,59,13,43,"11:42:00",20,69,12,44,"11:50:00","NKL",0,0,0,"NKL",109,1,15,36,"12:18:00",37,52,14,51,"11:58:00"]
[78,"Kielusiak","Roman","Gdańsk",426,7,0,0,null,null,null,null,null,null,null,null,null,null,null,null,null,null,null,null,null,null,null,null,null,null,null,null,null,null,null,null,null,null,null,null,null,null,null,null,null,null,null,null,null,null,null,null,null,null,null,null,null,null,null,null,null,null,null,null,null,null,null,null,null,null,null,null,null,null,null,null,null,null,null,null,null,null,null,null,null,null,null,null,null,null,null,null,null,null,null,null,null,null,null,null,null,null,null,null,null,null,null,null,null,null,null,null,null,268,1,3,9,"12:00:00",40,49,11,38,"12:04:24.600",25,64,15,53,"11:35:25.800",10,79,13,48,"11:53:00",9,80,13,49,"11:52:00",6,86,14,48,"11:35:00",null,null,null,null,null,22,67,16,56,"11:44:00"]
[79,"Warmowski","Marcin","Juszkowo",422,13,0,0,null,null,null,null,null,null,null,null,null,null,null,null,null,null,null,null,null,null,null,null,null,null,null,null,null,null,null,null,null,null,null,null,null,null,null,null,null,null,null,null,null,null,null,null,null,57,32,13,42,"11:45:35",26,63,16,54,"11:49:19",null,null,null,null,null,null,null,null,null,null,64,25,13,40,"11:52:04",49,40,13,47,"11:49:00",38,51,13,46,"11:49:00",177,1,11,19,"12:13:19",120,1,"11","33","11:55:11",null,null,null,null,null,null,null,null,null,null,null,null,null,null,null,null,null,null,null,null,null,null,null,null,null,null,null,null,null,null,null,null,null,null,null,null,null,null,null,null,159,1,9,26,"10:24:00",null,null,null,null,null,"NKL",0,0,0,"NKL",null,null,null,null,null,null,null,null,null,null,null,null,null,null,null,31,58,17,48,"11:27:00",24,65,12,41,"11:44:00",null,null,null,null,null,22,67,13,45,"11:48:00",71,18,9,29,"11:32:00"]
[80,"Mirowski","Łukasz","Wrocław",414,11,0,2,null,null,null,null,null,null,null,null,null,null,null,null,null,null,null,null,null,null,null,null,null,null,null,null,null,8,82,24,60,"12:18:37",102,0,0,0,"00:00:00",null,null,null,null,null,null,null,null,null,null,16,73,16,53,"11:53:19",13,76,20,60,"11:37:06",55,34,14,47,"11:57:27",24,65,17,57,"11:58:17",12,77,17,55,"11:50:09",null,null,null,null,null,126,1,9,30,"11:01:00",95,1,9,32,"11:38:49",85,4,"12","37","11:33:52",114,1,10,32,"11:47:15"]
[81,"Zawadzki","Artur","Marki",409,7,0,2,10,79,25,60,"11:25:29",26,63,18,48,"13:30:20",null,null,null,null,null,null,null,null,null,null,7,84,24,60,"10:38:57",null,null,null,null,null,null,null,null,null,null,null,null,null,null,null,null,null,null,null,null,78,11,11,36,"11:29:27",18,71,18,57,"11:32:53",34,55,15,54,"11:50:25",43,46,15,51,"11:26:33"]
[82,"Rzepecki","Dariusz","Łódź",405,27,0,0,76,13,16,41,"13:36:46",52,37,12,36,"13:56:16",56,33,13,42,"13:30:49",48,41,12,39,"13:58:49",107,1,14,24,"14:20:54",59,30,13,41,"13:22:06",65,24,9,28,"11:53:40",46,43,10,36,"11:51:02",49,40,11,42,"11:58:12",88,1,8,31,"11:19:27",87,2,10,37,"11:46:01",78,11,10,40,"11:40:07",116,1,10,39,"11:49:23",85,4,10,36,"12:03:40",94,1,11,39,"11:54:00",79,10,10,36,"11:41:00",140,1,7,26,"11:41:18",77,13,"11","38","11:54:59",127,1,9,31,"11:46:52",91,1,11,38,"11:30:04.800",48,41,14,47,"11:53:00",72,17,14,46,"11:26:00",135,1,8,27,"11:12:19.200",149,1,12,35,"12:06:19.200",103,1,11,35,"11:23:00",211,1,11,-36,"13:15:00",54,35,11,36,"11:44:00"]
[83,"Szajduk","Piotr","Szczecin",404,17,0,0,61,28,22,48,"14:02:36",34,55,17,47,"13:12:35",37,52,16,48,"13:37:30",37,52,16,45,"12:47:25",67,22,16,47,"12:43:17",61,28,16,40,"13:08:06",35,54,11,34,"12:57:32",49,40,11,34,"11:16:57",65,24,13,34,"12:09:06",null,null,null,null,null,48,41,12,45,"11:49:18",null,null,null,null,null,106,1,12,43,"11:55:19",100,1,9,32,"11:46:54",138,1,10,32,"11:26:00",87,2,9,36,"11:47:00",222,1,8,-16,"12:38:46",227,1,"3","7","11:20:28",230,1,7,25,"11:25:11"]
[84,"Trzmielewski","Roman","Kraków",402,5,1,3,null,null,null,null,null,null,null,null,null,null,null,null,null,null,null,null,null,null,null,null,null,null,null,null,null,null,null,null,null,null,null,null,null,null,null,null,null,null,null,null,null,null,null,null,null,null,null,null,null,null,null,null,null,null,null,null,null,null,null,null,null,null,null,null,null,null,null,null,null,null,null,null,null,null,null,null,null,null,null,null,null,null,null,null,null,null,null,null,null,null,null,null,null,null,null,null,null,null,null,null,null,null,null,null,null,null,null,null,null,null,null,null,null,null,null,null,null,null,null,null,null,null,null,null,null,null,null,null,null,null,null,null,null,null,null,null,null,null,null,null,null,null,null,null,null,null,null,null,null,null,7,84,17,55,"11:58:00",null,null,null,null,null,1,100,20,60,"10:28:00",null,null,null,null,null,4,90,20,60,"11:42:00",null,null,null,null,null,57,32,10,32,"12:06:00",null,null,null,null,null,2,96,20,20,"12:00:00"]
[85,"Staniszewski","Bartosz","Gdańsk",397,13,0,0,null,null,null,null,null,null,null,null,null,null,null,null,null,null,null,null,null,null,null,null,null,null,null,null,null,null,null,null,null,null,null,null,null,null,null,null,null,null,null,null,null,null,null,null,null,32,57,15,50,"11:58:57",187,1,14,10,"12:38:00",124,1,1,-999,"NKL",35,54,15,54,"11:45:51",19,70,16,53,"11:34:23",44,45,15,47,"11:40:00",64,25,16,39,"12:12:00",64,26,12,38,"11:56:18",233,1,"14","-35","13:19:49",134,1,8,31,"11:46:50",166,1,10,30,"11:47:19.800",null,null,null,null,null,26,63,16,53,"11:52:00",null,null,null,null,null,null,null,null,null,null,null,null,null,null,null,null,null,null,null,null,null,null,null,null,null,null,null,null,null,null,null,null,null,null,null,null,null,null,null,null,null,null,null,null,null,null,null,null,null,null,null,null,null,null,null,null,null,null,null,null,null,null,null,null,null,null,null,null,null,null,null,null,null,null,null,null,null,null,null,null,null,null,null,null,null,null,null,null,null,null,null,null,null,null,null,null,null,null,null,null,37,52,7,7,"09:57:00"]
[86,"Michalak","Sławomir","Pruszków",392,12,0,0,null,null,null,null,null,null,null,null,null,null,null,null,null,null,null,null,null,null,null,null,null,null,null,null,null,null,null,null,null,null,null,null,null,null,null,null,null,null,null,null,null,null,null,null,null,null,null,null,null,null,null,null,null,null,null,null,null,null,null,null,null,null,null,null,null,null,null,null,null,null,null,null,null,null,null,null,null,null,null,null,null,null,null,null,null,"NKL",0,"1","NKL","NKL",304,1,5,18,"08:53:41",271,1,12,6,"12:34:26.400",43,46,14,48,"11:51:00",31,58,15,52,"11:42:00",265,1,5,17,"07:54:09",null,null,null,null,null,124,1,10,33,"11:01:00",null,null,null,null,null,null,null,null,null,null,14,75,17,57,"11:56:00",18,71,18,56,"11:43:00",19,70,16,47,"11:58:00",22,67,14,48,"11:49:00",null,null,null,null,null,103,1,10,36,"11:39:00"]
[87,"Jakubiniec","Mariusz","Gdańsk",392,11,1,0,null,null,null,null,null,null,null,null,null,null,null,null,null,null,null,null,null,null,null,null,null,null,null,null,null,null,null,null,null,null,null,null,null,null,null,null,null,null,null,null,null,null,null,null,null,65,24,13,39,"10:21:35",null,null,null,null,null,null,null,null,null,null,null,null,null,null,null,34,55,14,48,"11:22:36",52,37,15,46,"11:48:00",31,58,14,48,"11:32:00",1,100,17,55,"11:27:39",81,8,"13","37","11:57:42",48,41,11,37,"11:34:06",87,2,12,38,"11:33:08.400",24,65,15,50,"11:21:00",89,1,13,44,"10:08:00",230,1,8,21,"09:03:04.200"]
[88,"Grundkowski","Jacek","Gdańsk",385,12,0,0,44,45,24,59,"13:47:38",null,null,null,null,null,null,null,null,null,null,null,null,null,null,null,null,null,null,null,null,32,57,20,50,"13:24:54",78,11,9,23,"12:18:00",27,62,14,44,"11:26:41",null,null,null,null,null,null,null,null,null,null,88,1,16,36,"12:14:12",29,60,16,55,"11:55:11",46,43,15,51,"11:33:19",46,43,13,43,"11:46:07",95,1,14,38,"12:03:00",null,null,null,null,null,29,60,17,48,"12:06:44",105,1,"10","36","11:58:18",117,1,10,32,"11:49:58"]
[89,"Pellowski","Grzegorz","Gdańsk",384,7,0,0,null,null,null,null,null,null,null,null,null,null,null,null,null,null,null,null,null,null,null,null,null,null,null,null,null,null,null,null,null,null,null,null,null,null,null,null,null,null,null,null,null,null,null,null,null,null,null,null,null,null,null,null,null,null,null,28,61,16,55,"11:54:33",null,null,null,null,null,82,7,11,36,"11:28:32",null,null,null,null,null,null,null,null,null,null,25,64,17,49,"12:05:31",null,null,null,null,null,null,null,null,null,null,17,72,15,50,"11:15:28.800",null,null,null,null,null,23,66,17,53,"11:33:00",null,null,null,null,null,43,46,14,49,"11:43:27",21,68,14,45,"11:56:00"]
[90,"Potocki","Robert","Gdynia",377,9,0,3,11,78,25,60,"11:28:46",10,79,24,60,"13:18:34",7,84,24,60,"11:05:06",null,null,null,null,null,null,null,null,null,null,null,null,null,null,null,null,null,null,null,null,null,null,null,null,null,null,null,null,null,null,null,null,null,null,null,null,null,null,null,null,null,null,null,null,null,21,68,17,57,"11:35:57",null,null,null,null,null,null,null,null,null,null,null,null,null,null,null,79,10,10,35,"11:47:13",null,null,null,null,null,54,35,10,36,"11:55:32",null,null,null,null,null,68,21,13,44,"11:11:00",102,1,14,43,"11:06:00",null,null,null,null,null,null,null,null,null,null,141,1,11,31,"11:55:00"]
[91,"Lehman","Piotr","Gdynia",375,12,0,0,null,null,null,null,null,null,null,null,null,null,null,null,null,null,null,null,null,null,null,null,null,null,null,null,null,null,null,null,null,null,null,null,null,null,null,null,null,null,null,null,null,null,null,null,null,null,null,null,null,null,null,null,null,null,null,null,null,null,null,null,null,null,null,null,null,111,1,9,30,"11:29:22",null,null,null,null,null,179,1,5,20,"11:14:00",null,null,null,null,null,null,null,null,null,null,null,null,null,null,null,null,null,null,null,null,null,null,null,null,null,159,1,11,33,"12:08:00",113,1,9,28,"11:37:19.200",null,null,null,null,null,null,null,null,null,null,null,null,null,null,null,null,null,null,null,null,null,null,null,null,null,null,null,null,null,null,74,15,10,37,"11:09:00",43,46,14,43,"11:48:00",32,57,12,41,"11:39:00",null,null,null,null,null,55,34,11,35,"12:04:00",null,null,null,null,null,null,null,null,null,null,26,63,11,36,"10:03:00",12,77,14,14,"11:47:00",73,16,13,13,"10:55:00",26,63,11,11,"11:03:00"]
[92,"Szyszkowski","Grzegorz","Rotmanka",362,8,0,0,null,null,null,null,null,null,null,null,null,null,null,null,null,null,null,null,null,null,null,null,null,null,null,null,null,null,null,null,null,null,null,null,null,null,null,null,null,null,null,null,null,null,null,null,null,null,null,null,null,null,null,null,null,null,null,null,null,null,null,null,null,null,null,null,null,null,null,null,null,null,null,null,null,null,null,null,null,null,null,null,null,null,null,null,null,null,null,null,null,null,null,null,null,null,null,null,null,null,null,null,null,null,null,null,null,null,null,null,null,null,null,null,null,null,null,null,null,null,null,null,null,null,null,null,null,null,null,null,null,null,null,null,null,null,null,null,null,null,null,null,10,79,19,59,"11:39:00",17,72,14,48,"11:59:00",34,55,13,45,"11:50:00",null,null,null,null,null,null,null,null,null,null,null,null,null,null,null,21,68,15,50,"11:48:00",null,null,null,null,null,55,34,11,32,"11:59:00",null,null,null,null,null,53,36,14,14,"11:33:00",81,8,9,9,"11:29:00",79,10,10,10,"11:30:00",null,null,null,null,null,null,null,null,null,null,{"$error":"#N/A"},0.47916666666666702]
[93,"Chomicki","Adrian","Gdańsk",360,9,0,0,null,null,null,null,null,null,null,null,null,null,null,null,null,null,null,null,null,null,null,null,null,null,null,null,null,null,null,null,null,null,null,null,null,null,null,21,68,16,47,"11:50:33",16,73,19,57,"11:20:09",31,58,15,50,"11:57:45",63,26,16,40,"12:08:32",25,64,16,55,"11:54:23",39,50,16,52,"11:42:10",79,10,11,36,"11:28:22",79,10,14,41,"11:58:00",91,1,9,35,"11:31:00"]
[94,"Poździk","Radosław","Barlinek",357,9,0,1,null,null,null,null,null,null,null,null,null,null,null,null,null,null,null,null,null,null,null,null,null,null,null,null,null,19,70,24,60,"13:34:20",51,38,12,30,"10:43:42",35,54,13,39,"11:49:06",35,54,15,48,"11:56:41",12,77,17,54,"11:30:36",80,9,11,38,"11:59:29",null,null,null,null,null,null,null,null,null,null,null,null,null,null,null,null,null,null,null,null,null,null,null,null,null,null,null,null,null,null,null,null,null,null,null,45,44,11,37,"11:31:56",251,1,12,15,"12:24:20.400",79,10,14,43,"11:55:00"]
[95,"Marcinkiewicz","Mariusz","Myślibórz",349,18,0,0,null,null,null,null,null,null,null,null,null,null,null,null,null,null,null,null,null,null,null,null,null,null,null,null,null,null,null,null,null,null,40,49,12,32,"12:39:56",55,34,10,32,"10:45:37",42,47,12,44,"11:38:26",47,42,13,47,"11:30:49",45,44,15,45,"11:46:21",64,25,14,45,"11:29:10",null,null,null,null,null,86,3,10,35,"11:13:59",60,29,13,44,"11:49:00",77,12,11,36,"11:55:00",84,5,10,34,"11:48:59",51,39,"13","42","11:54:13",246,1,7,24,"10:11:45",165,1,10,30,"11:47:12",104,1,12,42,"11:33:00",173,1,11,31,"11:35:00",198,1,9,23,"11:38:06.600",209,1,10,27,"12:12:16.800",null,null,null,null,null,null,null,null,null,null,null,null,null,null,null,null,null,null,null,null,null,null,null,null,null,null,null,null,null,null,75,14,10,37,"11:44:00",null,null,null,null,null,null,null,null,null,null,null,null,null,null,null,null,null,null,null,null,null,null,null,null,null,null,null,null,null,null,null,null,null,null,null,null,null,null,null,null,null,null,null,null,null,null,null,null,null,null,null,null,null,null,null,null,null,null,null,null,18,0.48888888888888898]
[96,"Wesołowski","Stefan","Kołobrzeg",349,5,0,3,14,75,25,60,"11:32:12",8,82,24,60,"13:10:49",10,79,24,60,"11:07:02",null,null,null,null,null,32,57,23,59,"13:55:44",33,56,19,50,"13:46:36"]
[97,"Jaś","Piotr","Gdańsk",348,13,0,1,29,60,25,60,"13:35:08",24,65,18,48,"13:23:14",63,26,15,40,"13:32:23",65,24,12,33,"11:57:19",85,4,17,41,"13:43:42",50,39,16,43,"13:54:43",20,69,15,39,"13:30:41",null,null,null,null,null,null,null,null,null,null,63,26,11,40,"11:57:08",85,4,12,37,"11:42:37",74,15,12,42,"11:29:25",100,1,13,43,"11:22:14",75,14,11,37,"11:34:17",116,1,10,36,"11:09:00"]
[98,"Ławicki","Sławomir","Gdynia",347,7,0,0,null,null,null,null,null,null,null,null,null,null,null,null,null,null,null,null,null,null,null,null,null,null,null,null,null,null,null,null,null,null,null,null,null,null,null,null,null,null,null,null,null,null,null,null,null,null,null,null,null,null,null,null,null,null,null,null,null,null,null,null,null,null,null,null,null,null,null,null,null,null,null,null,null,null,null,null,null,null,null,null,null,null,null,null,null,null,null,null,null,null,null,null,null,null,null,null,null,null,null,null,null,null,null,null,null,null,null,null,null,null,null,null,null,null,null,null,null,null,null,null,null,null,null,null,null,null,null,null,null,null,null,null,null,null,null,null,null,null,null,null,null,null,null,null,null,null,null,null,null,null,null,null,null,null,null,null,null,null,null,null,27,62,16,50,"11:24:00",null,null,null,null,null,13,76,15,51,"11:53:00",42,47,12,39,"11:47:00",29,60,11,36,"11:47:00",12,77,14,14,"11:47:00","NKL",0,14,0,"12:09:00",64,25,10,10,"11:44:00"]
[99,"Bieliński","Marcin","Rumia",345,11,0,0,null,null,null,null,null,null,null,null,null,null,null,null,null,null,null,null,null,null,null,null,null,null,null,null,null,null,null,null,null,null,null,null,null,null,null,null,null,null,null,null,null,null,null,null,null,null,null,null,null,null,null,null,null,null,null,null,null,null,null,null,null,null,null,null,null,null,null,null,null,null,39,50,15,48,"11:56:00",52,37,12,43,"11:53:00",93,1,10,33,"11:43:13",49,41,"13","42","11:37:46",31,58,12,39,"11:52:36",36,53,14,45,"11:55:19.800",75,14,12,44,"11:48:00",null,null,null,null,null,25,64,11,41,"11:47:32.400",64,25,13,46,"11:33:01.200",null,null,null,null,null,133,1,9,27,"11:04:00",162,1,8,26,"11:19:00"]
[100,"Ossowski","Adam","Avry-sur-Matran",343,7,1,0,null,null,null,null,null,null,null,null,null,null,null,null,null,null,null,null,null,null,null,null,null,null,null,null,null,null,null,null,null,null,null,null,null,null,null,null,null,null,null,null,null,null,null,null,null,null,null,null,null,null,null,null,null,null,null,null,null,null,null,null,null,null,null,null,null,null,null,null,null,null,null,null,null,null,null,null,null,null,null,null,null,null,null,null,null,null,null,null,null,null,null,null,null,null,null,null,null,null,null,null,null,null,null,null,null,null,null,null,null,null,null,null,null,null,null,6,86,19,59,"11:18:13.800",null,null,null,null,null,1,100,17,52,"11:59:00",null,null,null,null,null,110,1,13,36,"12:10:00",null,null,null,null,null,null,null,null,null,null,null,null,null,null,null,150,1,5,15,"05:25:00",13,76,17,55,"11:50:00",11,78,15,51,"11:50:00",96,1,11,35,"11:15:00"]
[101,"Szawdzin","Krzysztof","Wrocław",341,6,1,1,null,null,null,null,null,null,null,null,null,null,1,100,24,60,"09:42:59",null,null,null,null,null,null,null,null,null,null,null,null,null,null,null,61,28,11,28,"09:15:21",null,null,null,null,null,25,64,17,52,"11:21:18",15,74,16,53,"11:34:48",28,61,17,51,"11:55:46",null,null,null,null,null,75,14,15,45,"11:41:39"]
[102,"Nowicki","Jacek","Gdańsk",338,6,0,0,null,null,null,null,null,null,null,null,null,null,null,null,null,null,null,null,null,null,null,null,null,null,null,null,null,null,null,null,null,null,null,null,null,null,null,null,null,null,null,null,null,null,null,null,null,null,null,null,null,null,null,null,null,null,null,null,null,null,null,null,null,null,null,null,null,30,59,14,49,"10:55:32",28,61,16,50,"11:46:00",27,62,14,49,"11:02:00",38,52,14,45,"11:59:27",13,76,"16","51","11:40:37",61,28,10,35,"11:44:26"]
[103,"Urban ","Tomasz","Bydgoszcz",337,10,0,0,null,null,null,null,null,null,null,null,null,null,null,null,null,null,null,null,null,null,null,null,null,null,null,null,null,null,null,null,null,null,null,null,null,null,null,null,null,null,null,null,null,null,null,null,null,null,null,null,null,null,null,null,null,null,null,null,null,null,null,null,null,null,null,null,null,null,null,null,null,null,null,null,null,null,null,null,null,null,null,null,75,15,11,36,"11:47:21",26,63,"15","48","11:57:22",93,1,9,33,"11:24:06",13,76,17,51,"12:00:24.600",18,71,15,51,"11:40:00",null,null,null,null,null,88,1,10,31,"11:24:25.200",null,null,null,null,null,136,1,11,32,"11:46:00",null,null,null,null,null,null,null,null,null,null,null,null,null,null,null,null,null,null,null,null,null,null,null,null,null,31,58,13,45,"11:37:00",39,50,13,38,"11:37:00",88,1,11,38,"11:05:00"]
[104,"Mytych","Ryszard","Elbląg",336,10,0,0,null,null,null,null,null,null,null,null,null,null,null,null,null,null,null,null,null,null,null,null,null,null,null,null,null,null,null,null,null,null,null,null,null,null,null,null,null,null,null,null,null,null,null,null,null,null,null,null,null,null,null,null,null,null,null,null,null,null,null,null,null,null,null,null,null,null,null,null,null,null,null,null,null,null,null,null,null,null,null,null,null,null,null,null,null,null,null,null,null,null,81,8,10,34,"11:46:54",null,null,null,null,null,147,1,11,37,"10:35:00",null,null,null,null,null,null,null,null,null,null,80,9,13,44,"11:19:31.200",53,36,12,40,"11:27:00",8,82,14,49,"11:42:00",19,70,12,44,"11:41:00",39,50,14,49,"11:42:00",68,21,13,45,"11:36:00",55,34,11,40,"11:22:00",null,null,null,null,null,null,null,null,null,null,null,null,null,null,null,null,null,null,null,null,null,null,null,null,null,64,25,12,34,"11:33:00"]
[105,"Szulta","Euzebiusz","Reda",333,5,0,0,null,null,null,null,null,null,null,null,null,null,null,null,null,null,null,null,null,null,null,null,null,null,null,null,null,null,null,null,null,null,null,null,null,null,null,null,null,null,null,null,null,null,null,null,null,null,null,null,null,null,null,null,null,null,null,null,null,null,null,null,null,null,null,null,null,null,null,null,null,null,null,null,null,null,null,null,null,null,null,null,null,null,null,null,null,null,null,null,null,null,null,null,null,null,null,null,null,null,null,null,null,null,null,null,null,null,null,null,null,null,null,null,null,null,null,null,null,null,null,null,null,null,null,null,null,null,null,null,null,null,null,null,null,null,null,null,null,null,null,null,null,null,null,null,null,null,null,null,null,null,null,null,null,null,null,null,null,null,null,null,null,null,null,null,null,18,71,14,49,"11:57:00",13,76,15,51,"11:53:00",null,null,null,null,null,22,67,12,37,"11:49:00",17,72,14,14,"11:57:00",42,47,15,15,"11:40:00"]
[106,"Stanek","Asia","Szczecin",332,21,0,0,null,null,null,null,null,null,null,null,null,null,null,null,null,null,null,null,null,null,null,null,null,null,null,null,null,null,null,null,null,null,66,23,9,28,"13:15:53",48,41,11,34,"11:16:36",45,44,11,43,"11:30:43",null,null,null,null,null,49,40,12,45,"11:54:23",56,33,13,47,"11:36:01",105,1,12,43,"11:40:26",71,18,11,38,"11:34:30",89,1,11,40,"11:14:00",80,9,9,36,"11:16:00",216,1,8,-6,"12:32:11",64,26,"12","39","11:35:15",56,33,9,36,"11:23:59",62,27,11,41,"11:56:30",107,1,12,42,"11:35:00",110,1,13,43,"12:01:00",154,1,7,26,"11:18:08.400",110,1,11,40,"11:37:04.200",151,1,9,31,"11:12:00",61,28,11,36,"11:47:00",114,1,8,31,"11:58:00",null,null,null,null,null,159,1,10,34,"11:10:00"]
[107,"Wylężek","Jacek","Gdynia",332,7,0,1,null,null,null,null,null,null,null,null,null,null,17,72,24,60,"12:12:59",62,27,14,33,"09:51:00",36,53,22,58,"12:32:30",null,null,null,null,null,27,62,14,38,"13:54:50",null,null,null,null,null,44,45,13,43,"11:46:27",17,72,15,53,"11:32:24",null,null,null,null,null,null,null,null,null,null,null,null,null,null,null,null,null,null,null,null,null,null,null,null,null,null,null,null,null,null,null,null,null,null,null,null,null,null,null,null,null,null,null,null,null,null,null,null,null,null,null,null,null,null,null,null,null,null,null,null,237,1,6,21,"11:38:13.800"]
[108,"Jańczak","Wiesław","Bydgoszcz",331,21,0,0,null,null,null,null,null,null,null,null,null,null,null,null,null,null,null,null,null,null,null,null,null,null,null,null,null,null,null,null,null,null,83,6,8,17,"11:51:36",42,47,13,38,"11:15:54",34,55,15,48,"11:34:58",83,6,9,34,"11:29:34",86,3,10,37,"11:21:57",100,1,13,23,"12:21:56",27,62,16,56,"11:49:26",60,29,12,41,"11:24:46",48,41,13,47,"11:34:00",144,1,8,28,"11:51:00",50,40,12,41,"11:41:38",62,28,"11","40","11:32:14",308,1,5,18,"11:30:29",135,1,11,32,"12:04:30",184,1,10,33,"11:46:00",238,1,11,20,"12:16:00",null,null,null,null,null,84,5,12,44,"11:42:12",133,1,9,33,"11:31:00",null,null,null,null,null,206,1,10,20,"12:19:00",134,1,12,33,"11:23:00","NKL",0,0,0,"NKL"]
[109,"Bożyczko","Mariusz","Elbląg",330,8,0,0,null,null,null,null,null,null,null,null,null,null,null,null,null,null,null,null,null,null,null,null,null,null,null,null,null,null,null,null,null,null,null,null,null,null,null,36,53,13,39,"12:02:28",null,null,null,null,null,null,null,null,null,null,58,31,13,41,"12:03:38",47,42,14,51,"11:50:20",45,44,15,51,"11:28:27",29,60,14,50,"11:21:13",67,22,12,43,"11:37:00",98,1,10,34,"11:28:00",null,null,null,null,null,null,null,null,null,null,12,77,13,45,"11:26:15"]
[110,"Różak","Marcin","Gdańsk",330,4,0,4,9,80,25,60,"11:25:20",6,86,24,60,"12:42:47",6,86,24,60,"10:50:54",11,78,24,60,"12:59:12"]
[111,"Jankowski aka Jankes","Tomasz","Gdańsk",329,12,0,0,null,null,null,null,null,null,null,null,null,null,null,null,null,null,null,null,null,null,null,null,108,1,8,20,"05:34:34",null,null,null,null,null,null,null,null,null,null,26,63,16,46,"12:02:41",null,null,null,null,null,null,null,null,null,null,null,null,null,null,null,null,null,null,null,null,null,null,null,null,null,null,null,null,null,null,null,null,null,null,null,47,42,12,44,"11:33:00",null,null,null,null,null,null,null,null,null,null,323,1,8,13,"12:12:12",null,null,null,null,null,null,null,null,null,null,128,1,12,39,"11:46:00",202,1,8,23,"11:47:16.200",73,16,13,45,"11:40:27.600",43,46,12,42,"11:33:00",44,45,13,39,"11:54:00",35,54,12,39,"11:46:00",64,25,13,44,"11:31:00",null,null,null,null,null,null,null,null,null,null,null,null,null,null,null,null,null,null,null,null,55,34,14,44,"11:37:00"]
[112,"Szymczak","Wojciech","Sopot",328,6,0,0,null,null,null,null,null,null,null,null,null,null,null,null,null,null,null,null,null,null,null,null,null,null,null,null,null,null,null,null,null,null,null,null,null,null,null,null,null,null,null,null,null,null,null,null,null,null,null,null,null,null,null,null,null,null,null,null,null,null,null,null,null,null,null,null,null,null,null,null,null,null,null,null,null,null,null,null,null,null,null,null,null,null,null,null,null,null,null,null,null,null,null,null,null,null,null,null,null,null,null,null,null,null,null,null,null,null,null,null,null,null,null,null,null,null,null,null,null,null,null,null,7,84,15,49,"11:47:00",31,58,13,42,"11:47:00",192,1,8,23,"11:23:00",null,null,null,null,null,25,64,18,55,"11:56:00",null,null,null,null,null,34,55,13,45,"11:50:00",null,null,null,null,null,null,null,null,null,null,null,null,null,null,null,23,66,15,50,"11:49:00"]
[113,"Nowak","Remik","Poznań",327,4,0,3,null,null,null,null,null,null,null,null,null,null,null,null,null,null,null,null,null,null,null,null,18,71,24,60,"11:51:25",null,null,null,null,null,null,null,null,null,null,null,null,null,null,null,null,null,null,null,null,null,null,null,null,null,null,null,null,null,null,null,null,null,null,null,null,null,null,null,null,null,null,null,null,null,null,null,null,null,null,null,null,null,null,null,null,null,null,null,null,null,null,null,null,null,null,null,null,null,null,null,null,null,null,null,null,null,null,null,null,null,null,null,null,null,null,null,null,null,null,null,null,null,null,null,null,null,null,null,null,null,null,null,null,null,null,null,null,null,null,2,96,20,60,"11:53:00",4,90,20,60,"11:30:00",null,null,null,null,null,null,null,null,null,null,null,null,null,null,null,null,null,null,null,null,null,null,null,null,null,null,null,null,null,null,null,null,null,null,null,null,null,null,null,null,null,null,null,null,null,19,70,16,16,"11:43:00"]
[114,"Jóźwiuk","Piotr","Pszczółki",325,17,0,0,95,1,12,30,"09:37:33",null,null,null,null,null,108,1,10,24,"12:22:02",77,12,12,30,"10:43:51",null,null,null,null,null,69,20,15,38,"13:04:49",72,17,9,25,"13:35:35",52,37,11,33,"11:11:24",83,6,13,23,"12:21:49",86,3,10,32,"12:01:10",161,1,14,25,"12:21:06",22,67,18,57,"11:55:00",18,71,17,57,"11:18:53",30,59,14,49,"10:55:32",null,null,null,null,null,151,1,14,26,"12:24:00",221,1,8,-15,"12:42:55",180,1,"10","27","12:09:57",270,1,8,22,"12:04:58",63,26,14,40,"12:03:24"]
[115,"Podhorodecki","Arkadiusz","Elbląg",320,5,0,0,null,null,null,null,null,null,null,null,null,null,null,null,null,null,null,null,null,null,null,null,null,null,null,null,null,null,null,null,null,null,null,null,null,null,null,null,null,null,null,null,null,null,null,null,null,null,null,null,null,null,null,null,null,null,null,null,null,null,null,null,null,null,null,null,null,null,null,null,null,null,null,null,null,null,null,null,null,null,null,null,null,null,null,null,null,null,null,null,null,null,null,null,null,null,null,null,null,null,null,null,null,null,null,null,null,null,null,null,null,null,null,null,null,null,null,null,null,null,null,null,null,null,null,null,null,null,null,null,null,null,null,null,null,null,null,null,null,null,null,null,null,null,null,null,null,null,null,null,null,null,null,null,null,null,null,7,84,15,50,"11:46:00",19,70,15,52,"11:37:00",13,76,14,49,"11:41:00",79,10,12,38,"11:22:00",9,80,15,51,"11:44:00"]
[116,"Sielski","Karol","Gdańsk",318,10,0,0,null,null,null,null,null,49,40,14,36,"12:27:25",null,null,null,null,null,83,6,11,29,"08:50:58",46,43,21,54,"13:13:10",49,40,18,43,"13:24:22",23,66,14,39,"13:07:55",67,22,9,29,"08:56:46",46,43,13,42,"11:53:50",33,56,15,49,"11:18:29",167,1,12,22,"12:17:33",null,null,null,null,null,null,null,null,null,null,116,1,12,28,"12:09:35"]
[117,"Kozłowski","Grzegorz","Elbląg",318,4,0,0,null,null,null,null,null,null,null,null,null,null,null,null,null,null,null,null,null,null,null,null,null,null,null,null,null,null,null,null,null,null,null,null,null,null,null,null,null,null,null,null,null,null,null,null,null,null,null,null,null,null,null,null,null,null,null,null,null,null,null,null,null,null,null,null,null,null,null,null,null,null,null,null,null,null,null,null,null,null,null,null,null,null,null,null,null,null,null,null,null,null,null,null,null,null,null,null,null,null,null,null,null,null,null,null,null,null,null,null,null,null,null,null,null,null,null,null,null,null,null,null,null,null,null,null,null,null,null,null,null,null,null,null,null,null,null,null,null,null,null,null,null,null,null,null,null,null,null,null,null,null,null,null,null,null,null,null,null,null,null,null,null,null,null,null,null,null,null,null,null,null,null,null,null,null,null,6,86,15,52,"11:52:00",null,null,null,null,null,7,84,14,14,"11:35:00",23,66,16,16,"11:51:00",8,82,13,13,"11:31:00"]
[118,"Blank","Danuta","Biała Podlaska",317,8,0,0,null,null,null,null,null,null,null,null,null,null,null,null,null,null,null,null,null,null,null,null,null,null,null,null,null,null,null,null,null,null,85,4,7,16,"06:49:16",34,55,13,40,"12:01:11",29,60,14,49,"11:32:50",43,46,16,47,"11:46:46",57,32,13,41,"12:03:35",46,43,14,51,"11:50:18",null,null,null,null,null,null,null,null,null,null,null,null,null,null,null,46,43,12,44,"11:27:00",56,34,12,40,"11:49:18"]
[119,"Błoński","Paweł","Warszawa",313,10,0,0,null,null,null,null,null,null,null,null,null,null,null,null,null,null,null,null,null,null,null,null,null,null,null,null,null,null,null,null,null,null,null,null,null,null,null,null,null,null,null,null,null,null,null,null,null,null,null,null,null,null,null,null,null,null,null,null,null,null,null,null,null,null,null,null,null,null,null,null,null,null,null,null,null,null,null,null,null,null,null,null,null,null,null,null,null,null,null,null,null,null,null,null,null,null,null,null,null,null,null,null,225,1,14,28,"12:09:00",null,null,null,null,null,null,null,null,null,null,null,null,null,null,null,null,null,null,null,null,null,null,null,null,null,204,1,12,20,"12:16:00",5,88,18,58,"11:42:00",45,44,15,48,"11:45:00",66,23,11,39,"11:39:00",60,29,12,39,"11:16:00",38,51,12,39,"12:01:00",29,60,15,50,"10:28:00",74,15,11,32,"11:36:00",160,1,8,21,"11:55:00"]
[120,"Grabowicz","Andrzej","Kraków",313,5,1,1,null,null,null,null,null,null,null,null,null,null,null,null,null,null,null,null,null,null,null,null,null,null,null,null,null,null,null,null,null,null,null,null,null,null,null,null,null,null,null,null,null,null,null,null,null,null,null,null,null,null,null,null,null,null,null,null,null,null,null,null,null,null,null,null,null,null,null,null,null,null,190,1,13,-675,"23:56:00",null,null,null,null,null,null,null,null,null,null,null,null,null,null,null,null,null,null,null,null,null,null,null,null,null,null,null,null,null,null,null,null,null,null,null,null,null,null,null,null,null,null,null,null,null,null,null,null,null,null,null,null,null,null,null,null,null,null,null,null,null,null,null,null,null,16,73,19,56,"11:47:00",null,null,null,null,null,4,90,17,55,"11:50:00",null,null,null,null,null,1,100,20,60,"10:28:00",null,null,null,null,null,null,null,null,null,null,null,null,null,null,null,40,49,10,33,"11:56:00"]
[121,"Goworek","Sławomir","Gdynia",311,11,0,0,null,null,null,null,null,null,null,null,null,null,null,null,null,null,null,null,null,null,null,null,null,null,null,null,null,null,null,null,null,null,null,null,null,null,null,null,null,null,null,null,null,null,null,null,null,null,null,null,null,null,null,null,null,null,null,null,null,null,null,null,null,null,null,null,null,null,null,null,null,null,null,null,null,null,null,null,null,null,null,null,null,null,null,null,null,null,null,null,null,null,null,null,null,null,null,null,null,null,null,null,null,null,null,null,null,"NKL",0,4,"NKL","07:04:00",null,null,null,null,null,71,18,13,45,"11:30:33.600",59,30,12,39,"11:41:00",49,40,12,38,"11:38:00",242,1,11,-7,"12:47:00",32,57,14,51,"11:52:00",53,36,14,48,"11:58:00",21,68,13,47,"11:46:00",67,22,13,38,"11:42:00",50,39,11,35,"11:36:00","NKL",0,0,0,"NKL"]
[122,"Belica","Robert","Warszawa",302,8,0,0,null,null,null,null,null,36,53,16,46,"13:59:18",33,56,19,53,"13:55:50",16,73,20,56,"13:41:07",59,30,20,50,"13:50:16",57,32,16,42,"13:35:43",74,15,9,24,"13:50:28",47,42,12,35,"11:48:57",102,1,12,18,"12:22:36"]
[123,"Kowal","Zbigniew","Słupsk",302,6,0,2,19,70,25,60,"12:31:08",null,null,null,null,null,36,53,19,48,"12:20:22",null,null,null,null,null,23,66,24,60,"12:52:34",80,9,12,30,"11:14:57",49,40,12,30,"10:03:24",25,64,13,47,"11:33:48"]
[124,"Grela","Wojciech","Koszalin",300,8,0,0,null,null,null,null,null,null,null,null,null,null,null,null,null,null,null,null,null,null,null,null,null,null,null,null,null,null,null,null,null,null,null,null,null,null,null,null,null,null,null,null,null,null,null,null,null,null,null,null,null,null,null,null,null,null,null,null,null,null,null,null,null,null,null,null,null,null,null,null,null,null,null,null,null,null,null,null,null,null,null,null,null,null,null,null,null,null,null,null,null,null,null,null,null,null,null,null,null,null,null,null,null,null,null,null,null,null,null,null,null,null,null,null,null,null,null,null,null,null,null,null,null,null,null,null,null,null,null,null,null,null,205,1,10,20,"12:10:00",null,null,null,null,null,null,null,null,null,null,null,null,null,null,null,null,null,null,null,null,null,null,null,null,null,null,null,null,null,null,54,35,11,35,"12:02:00",28,61,14,47,"11:39:00",17,72,13,48,"11:50:00",27,62,12,36,"11:36:00",22,67,13,13,"11:49:00",null,null,null,null,null,135,1,8,8,"11:40:00",102,1,9,9,"09:04:00"]
[125,"Sosna","Paweł","Kwidzyn",300,5,0,3,7,84,25,60,"11:09:38",14,75,24,60,"13:51:50",14,75,24,60,"12:10:05",75,14,12,30,"08:21:30",37,52,21,57,"13:13:23"]
[126,"Mytych","Jarosław","Kadyny",297,9,0,0,null,null,null,null,null,null,null,null,null,null,null,null,null,null,null,null,null,null,null,null,null,null,null,null,null,null,null,null,null,null,null,null,null,null,null,null,null,null,null,null,null,null,null,null,null,null,null,null,null,null,null,null,null,null,null,null,null,null,null,null,null,null,null,null,null,null,null,null,null,null,null,null,null,null,null,null,null,null,null,null,null,null,null,null,null,null,null,null,null,null,34,55,10,39,"11:57:44",null,null,null,null,null,149,1,11,37,"10:35:00",null,null,null,null,null,null,null,null,null,null,48,41,14,48,"11:06:10.800",57,32,12,39,"11:21:00",41,48,11,40,"11:32:00",32,57,12,40,"12:04:00",52,37,13,46,"11:38:00",64,25,13,46,"11:54:00",180,1,0,0,"11:05:00"]
[127,"Bieliński","Roman","Rumia",295,13,0,0,null,null,null,null,null,null,null,null,null,null,null,null,null,null,null,null,null,null,null,null,null,null,null,null,null,null,null,null,null,null,null,null,null,null,null,null,null,null,null,null,null,null,null,null,null,null,null,null,null,null,null,null,null,null,null,null,null,null,null,null,null,null,null,null,null,null,null,null,null,null,90,1,13,39,"11:43:00",54,35,12,43,"11:53:00",94,1,10,33,"11:43:20",50,40,"13","42","11:37:55",32,57,12,39,"11:52:40",37,52,14,45,"11:56:04.800",76,13,12,44,"11:48:00",null,null,null,null,null,26,63,11,41,"11:48:06",64,25,13,46,"11:33:01.200",111,1,9,35,"11:43:00",84,5,10,32,"11:28:00",129,1,10,29,"11:22:00",145,1,10,32,"10:57:00"]
[128,"Pachulski","Jarosław","Reda",293,15,0,0,null,null,null,null,null,null,null,null,null,null,null,null,null,null,null,null,null,null,null,null,null,null,null,null,null,null,null,null,null,null,null,null,null,null,null,null,null,null,null,null,null,null,null,null,null,null,null,null,null,null,null,null,null,null,null,null,null,null,null,null,null,null,null,null,null,null,null,null,null,null,"NKL",0,0,0,"NKL",84,5,9,36,"11:24:00",71,19,11,37,"12:00:24",56,34,"11","41","11:25:49",222,1,6,26,"10:55:54",156,1,8,31,"11:25:18.600",114,1,12,41,"11:16:00",145,1,13,35,"12:14:00",21,68,12,41,"11:43:10.200",67,22,13,46,"12:03:22.200",28,61,11,44,"11:30:00",70,19,11,35,"12:05:00",57,32,10,36,"11:43:00",61,28,12,45,"11:44:00",120,1,12,38,"11:38:00"]
[129,"Cecuła","Krzysztof","Swarzędz",292,9,0,1,null,null,null,null,null,null,null,null,null,null,null,null,null,null,null,53,36,15,35,"11:06:53",null,null,null,null,null,null,null,null,null,null,null,null,null,null,null,null,null,null,null,null,12,77,20,60,"11:12:06",null,null,null,null,null,37,52,14,48,"11:58:34",17,72,18,58,"11:38:02",59,30,14,48,"11:22:29",67,22,11,39,"11:41:02",null,null,null,null,null,null,null,null,null,null,null,null,null,null,null,null,null,null,null,null,null,null,null,null,null,null,null,null,null,null,null,null,null,null,null,null,null,null,null,null,null,null,null,null,null,119,1,11,39,"11:44:31.800",null,null,null,null,null,null,null,null,null,null,126,1,8,30,0.48888888888888898,null,null,null,null,null,203,1,13,29,"12:13:00"]
[130,"Cygan","Szymon","Warszawa",292,6,0,2,39,50,25,60,"13:57:56",null,null,null,null,null,29,60,23,57,"13:39:06",null,null,null,null,null,28,61,24,60,"13:41:34",null,null,null,null,null,21,68,15,39,"13:48:06",null,null,null,null,null,null,null,null,null,null,null,null,null,null,null,null,null,null,null,null,null,null,null,null,null,37,52,16,52,"11:23:49",null,null,null,null,null,null,null,null,null,null,null,null,null,null,null,null,null,null,null,null,null,null,null,null,null,90,1,11,33,"11:36:06"]
[131,"Kaiser","Ernest","Gorzów Wielkopolski",290,6,0,1,null,null,null,null,null,38,51,18,43,"13:15:08",null,null,null,null,null,19,70,21,52,"13:28:35",null,null,null,null,null,6,86,24,60,"11:57:40",null,null,null,null,null,null,null,null,null,null,23,66,18,53,"11:46:35",null,null,null,null,null,73,16,13,39,"11:44:09",null,null,null,null,null,null,null,null,null,null,null,null,null,null,null,null,null,null,null,null,null,null,null,null,null,null,null,null,null,null,null,null,null,null,null,121,1,10,31,"11:33:15"]
[132,"Ciesielski","Witold","Gdańsk",288,5,0,1,24,65,25,60,"13:06:29",45,44,15,37,"11:30:03",null,null,null,null,null,null,null,null,null,null,null,null,null,null,null,29,60,21,51,"13:29:37",null,null,null,null,null,22,67,15,47,"11:07:02",null,null,null,null,null,37,52,16,48,"11:56:41"]
[133,"Hołdakowski","Wojciech","Warszawa",287,5,0,2,null,null,null,null,null,null,null,null,null,null,16,73,24,60,"12:10:27",null,null,null,null,null,25,64,24,60,"13:16:41",24,65,23,58,"13:43:59",null,null,null,null,null,null,null,null,null,null,null,null,null,null,null,null,null,null,null,null,null,null,null,null,null,null,null,null,null,null,null,null,null,null,null,61,28,12,41,"11:46:02",null,null,null,null,null,null,null,null,null,null,33,57,13,48,"11:56:07"]
[134,"Jarzynka","Robert","Gdynia",286,7,0,0,null,null,null,null,null,null,null,null,null,null,null,null,null,null,null,null,null,null,null,null,null,null,null,null,null,null,null,null,null,null,null,null,null,null,null,null,null,null,null,null,null,null,null,null,null,null,null,null,null,null,null,null,null,null,null,null,null,null,null,null,null,null,null,null,null,null,null,null,null,null,11,78,17,56,"12:00:00",null,null,null,null,null,null,null,null,null,null,null,null,null,null,null,null,null,null,null,null,null,null,null,null,null,262,1,7,20,"05:25:00",null,null,null,null,null,null,null,null,null,null,null,null,null,null,null,null,null,null,null,null,null,null,null,null,null,null,null,null,null,null,88,1,12,40,"11:17:00",14,75,18,58,"11:46:00",34,55,13,42,"11:22:00",196,1,14,-1,"12:47:00",15,75,15,47,"11:37:00"]
[135,"Zalewski","Marcin","Gdańsk",285,15,0,0,null,null,null,null,null,83,6,9,21,"11:03:09",null,null,null,null,null,null,null,null,null,null,null,null,null,null,null,55,34,16,42,"13:10:50",43,46,12,31,"13:18:02",88,1,9,10,"12:17:08",null,null,null,null,null,null,null,null,null,null,40,49,14,47,"11:23:52",45,44,14,51,"11:31:14",null,null,null,null,null,119,1,11,25,"12:13:44",71,18,12,42,"11:28:00",68,21,10,39,"11:47:00",131,1,8,26,"11:15:02",101,1,"11","36","11:37:07","NKL",0,10,null,"NKL",null,null,null,null,null,81,8,13,43,"11:32:00",35,54,16,51,"11:39:00",null,null,null,null,null,271,1,3,9,"03:38:30"]
[136,"Szmuda","Sławomir","Luzino",273,7,0,0,null,null,null,null,null,null,null,null,null,null,null,null,null,null,null,null,null,null,null,null,null,null,null,null,null,null,null,null,null,null,null,null,null,null,null,null,null,null,null,null,null,null,null,null,null,null,null,null,null,null,null,null,null,null,null,null,null,null,null,null,null,null,null,null,null,null,null,null,null,null,null,null,null,null,null,null,null,null,null,null,null,null,null,null,null,null,null,null,null,null,null,null,null,null,null,null,null,null,null,null,86,3,13,43,"11:51:00",40,49,15,50,"11:33:00",18,71,13,42,"11:54:33",37,52,15,50,"11:57:07.200",25,64,13,44,"11:44:00",56,33,13,36,"12:04:00",95,1,9,33,"11:45:00"]
[137,"Wamberski","Grzegorz","Kraków",271,6,0,2,null,null,null,null,null,null,null,null,null,null,null,null,null,null,null,null,null,null,null,null,null,null,null,null,null,null,null,null,null,null,null,null,null,null,null,null,null,null,null,null,null,null,null,null,null,null,null,null,null,null,null,null,null,null,null,null,null,null,null,null,null,null,null,null,null,null,null,null,null,null,null,null,null,null,null,null,null,null,null,null,null,null,null,null,null,null,null,null,null,null,null,null,null,null,null,null,null,null,null,null,null,null,null,null,null,null,null,null,null,null,null,null,null,null,null,null,null,null,null,null,null,null,null,null,null,null,null,null,null,null,null,null,null,null,null,null,null,null,null,null,null,null,null,null,null,114,1,16,29,"12:19:00",null,null,null,null,null,75,14,15,30,"12:16:00",9,80,20,60,"11:48:00",null,null,null,null,null,10,79,16,54,"11:52:00",null,null,null,null,null,103,1,7,22,"08:15:00",null,null,null,null,null,2,96,20,20,"12:00:00"]
[138,"Tomaszewski","Marcin","Gdańsk",269,7,0,0,null,null,null,null,null,null,null,null,null,null,null,null,null,null,null,null,null,null,null,null,null,null,null,null,null,null,null,null,null,null,null,null,null,null,null,84,5,5,15,"05:23:22",68,21,11,33,"11:53:53",null,null,null,null,null,null,null,null,null,null,null,null,null,null,null,null,null,null,null,null,null,null,null,null,null,145,1,9,29,"07:14:00",23,66,15,49,"11:35:00",23,66,17,49,"12:05:17",45,45,"12","43","11:59:24",24,65,12,41,"11:32:31"]
[139,"Stefański","Tomasz","Warszawa",269,6,0,0,49,40,22,54,"12:55:58",null,null,null,null,null,64,25,15,39,"10:34:02",21,68,20,52,"13:51:18",43,46,22,55,"13:34:16",35,54,19,46,"13:36:58",53,36,11,30,"10:55:34"]
[140,"Świsłowski","Michał","Gdańsk",267,5,0,0,null,null,null,null,null,null,null,null,null,null,null,null,null,null,null,null,null,null,null,null,null,null,null,null,null,null,null,null,null,null,null,null,null,null,null,null,null,null,null,null,null,null,null,null,null,null,null,null,null,null,null,null,null,null,null,null,null,null,null,null,null,null,null,null,null,null,null,null,null,null,null,null,null,null,null,null,null,null,null,null,null,null,null,null,null,null,null,null,null,null,null,null,null,null,null,null,null,null,null,null,null,null,null,null,null,null,null,null,null,null,null,null,null,null,null,null,null,null,null,null,null,null,null,null,null,null,null,null,null,null,null,null,null,null,null,null,null,null,null,null,null,null,null,null,null,null,null,null,null,null,38,51,14,44,"11:38:00",null,null,null,null,null,22,67,17,51,"11:27:00",null,null,null,null,null,176,1,14,-5,"12:47:00",17,72,13,48,"11:50:00",13,76,14,40,"11:49:00"]
[141,"Gruziel","Magdalena","Warszawa",266,5,0,0,null,null,null,null,null,null,null,null,null,null,null,null,null,null,null,null,null,null,null,null,null,null,null,null,null,null,null,null,null,null,null,null,null,null,null,null,null,null,null,null,null,null,null,null,null,38,51,15,48,"11:58:18",42,47,16,46,"11:47:30",19,70,19,57,"11:55:06",null,null,null,null,null,68,21,16,38,"12:11:42",null,null,null,null,null,null,null,null,null,null,12,77,17,53,"11:59:42"]
[142,"Rusak","Wiesław","Świnoujście",265,6,0,0,null,null,null,null,null,null,null,null,null,null,null,null,null,null,null,null,null,null,null,null,null,null,null,null,null,null,null,null,null,null,null,null,null,null,null,null,null,null,null,null,null,null,null,null,null,null,null,null,null,null,null,null,null,null,null,null,null,null,null,null,null,null,null,null,null,null,null,null,null,null,null,null,null,null,null,null,null,null,null,null,null,null,null,null,null,null,null,null,null,null,null,null,null,null,null,null,null,null,null,null,null,null,null,null,null,null,null,null,null,null,null,null,null,null,null,null,null,null,null,null,null,null,null,null,null,null,null,null,null,null,null,null,null,null,null,null,null,null,null,null,null,null,null,null,null,null,null,null,null,null,null,null,null,null,null,null,null,null,null,null,null,null,null,null,null,null,null,null,null,null,null,null,null,null,null,33,56,12,41,"11:32:00",41,48,10,32,"11:20:00",54,35,11,11,"11:48:00",32,57,15,15,"11:34:00",110,1,9,9,"11:54:00",21,68,12,12,"08:54:00"]
[143,"Krakowski","Jacek","Bydgoszcz",263,11,0,0,null,null,null,null,null,null,null,null,null,null,null,null,null,null,null,null,null,null,null,null,null,null,null,null,null,null,null,null,null,null,null,null,null,null,null,null,null,null,null,null,null,null,null,null,null,null,null,null,null,null,null,null,null,null,null,null,null,null,null,null,null,null,null,null,null,null,null,null,null,null,null,null,null,null,null,null,null,null,null,null,null,null,null,null,null,null,null,null,null,null,null,null,null,null,null,14,75,17,51,"12:00:26.400",null,null,null,null,null,null,null,null,null,null,93,1,10,30,"11:47:19.200",79,10,13,45,"11:55:13.200",122,1,11,33,"11:46:00",null,null,null,null,null,null,null,null,null,null,48,41,14,47,"11:46:00",56,33,15,47,"11:22:00",101,1,10,32,"11:42:00",40,49,13,44,"11:34:00",39,50,13,38,"11:37:00",88,1,11,38,"11:05:00",101,1,9,28,"11:45:00"]
[144,"Grundkowski","Lesław","Gdansk",260,9,0,0,null,null,null,null,null,null,null,null,null,null,null,null,null,null,null,null,null,null,null,null,null,null,null,null,null,null,null,null,null,null,null,null,null,null,null,50,39,11,33,"09:18:13",null,null,null,null,null,null,null,null,null,null,89,1,16,36,"12:14:22",30,59,16,55,"11:55:24",47,42,15,51,"11:33:28",null,null,null,null,null,96,1,14,38,"12:03:00",29,60,14,48,"11:30:00",34,56,16,47,"12:06:56",106,1,"10","36","11:58:22",341,1,10,-9,"12:40:59"]
[145,"Matejczuk","Maciej","Gdańsk",257,7,0,0,null,null,null,null,null,null,null,null,null,null,null,null,null,null,null,null,null,null,null,null,null,null,null,null,null,null,null,null,null,null,null,null,null,null,null,null,null,null,null,null,null,null,null,null,null,null,null,null,null,null,null,null,null,null,null,null,null,null,null,null,null,null,null,null,null,null,null,null,null,null,null,null,null,null,null,null,null,null,null,null,null,null,null,null,null,35,54,"14","45","11:22:56",null,null,null,null,null,null,null,null,null,null,null,null,null,null,null,45,44,15,49,"11:43:00",63,26,9,33,"11:24:29.400",189,1,11,31,"12:09:16.800",22,67,13,45,"11:54:00",null,null,null,null,null,192,1,8,23,"11:23:00",null,null,null,null,null,25,64,18,55,"11:56:00"]
[146,"Barański","Przemysław","Bydgoszcz",257,6,0,0,null,null,null,null,null,null,null,null,null,null,null,null,null,null,null,null,null,null,null,null,null,null,null,null,null,null,null,null,null,null,null,null,null,null,null,null,null,null,null,null,null,null,null,null,null,null,null,null,null,null,null,null,null,null,null,null,null,null,null,null,null,null,null,null,null,null,null,null,null,null,null,null,null,null,null,null,null,null,null,null,null,null,null,null,null,25,64,"15","48","11:57:20",94,1,9,33,"11:50:46",12,77,17,51,"12:00:13.800",17,72,15,51,"11:40:00",null,null,null,null,null,92,1,10,30,"11:47:12",47,42,15,48,"11:55:15.600"]
[147,"Achtel","Michał","Bydgoszcz",257,5,1,0,null,null,null,null,null,null,null,null,null,null,null,null,null,null,null,null,null,null,null,null,null,null,null,null,null,null,null,null,null,null,null,null,null,null,null,null,null,null,null,null,null,null,null,null,null,null,null,null,null,null,null,null,null,null,null,null,null,null,null,null,null,null,null,null,null,null,null,null,null,null,null,null,null,null,null,null,null,null,null,null,null,null,null,null,null,null,null,null,null,null,null,null,null,null,null,null,null,null,null,null,null,null,null,null,null,null,null,null,null,null,null,null,null,null,null,null,null,null,null,null,null,null,null,null,null,null,null,null,null,null,186,1,8,24,"11:38:00",null,null,null,null,null,null,null,null,null,null,null,null,null,null,null,null,null,null,null,null,null,null,null,null,null,40,49,16,47,"11:03:00",null,null,null,null,null,null,null,null,null,null,null,null,null,null,null,null,null,null,null,null,null,null,null,null,null,64,25,14,14,"11:48:00",null,null,null,null,null,1,100,17,17,"11:40:00",null,null,null,null,null,8,82,14,14,"10:45:00"]
[148,"Goroński","Piotr","Warszawa",256,14,0,0,null,null,null,null,null,null,null,null,null,null,55,34,14,42,"13:40:36",58,31,13,35,"13:29:07",75,14,19,45,"12:25:05",40,49,17,46,"13:45:22",null,null,null,null,null,null,null,null,null,null,99,1,12,18,"12:22:14",null,null,null,null,null,118,1,10,31,"10:59:01",null,null,null,null,null,null,null,null,null,null,104,1,10,31,"11:55:12",64,25,13,43,"11:46:00",null,null,null,null,null,117,1,10,28,"11:41:58",42,48,"12","43","11:38:53",null,null,null,null,null,41,48,15,44,"11:19:10.200",111,1,11,42,"11:49:00",108,1,13,43,"11:55:00",141,1,7,27,"11:44:27"]
[149,"Jaskólski","Konrad","Gdańsk",256,13,0,0,null,null,null,null,null,null,null,null,null,null,null,null,null,null,null,null,null,null,null,null,null,null,null,null,null,null,null,null,null,null,101,1,3,5,"04:48:43",75,14,8,28,"08:42:34",33,56,13,49,"11:49:45",40,49,14,48,"11:47:16",33,56,14,50,"11:31:38",67,22,12,45,"11:45:06",112,1,12,40,"10:02:55",56,33,12,41,"10:49:21",98,1,11,38,"11:40:00",85,4,9,36,"11:34:00",73,17,11,36,"11:05:43",221,1,"7","13","12:10:55",120,1,10,31,"11:19:03"]
[150,"Pszczoliński","Michał","Gdańsk",256,11,0,0,null,null,null,null,null,null,null,null,null,null,null,null,null,null,null,null,null,null,null,null,null,null,null,null,null,null,null,null,null,null,null,null,null,null,null,null,null,null,null,null,null,null,null,null,null,null,null,null,null,null,null,null,null,null,null,null,null,null,null,null,null,null,null,null,null,null,null,null,null,null,null,null,null,null,null,null,null,null,null,null,null,null,null,null,null,null,null,null,null,null,null,null,null,null,null,64,25,13,40,"11:31:30",null,null,null,null,null,82,7,15,45,"11:29:00",null,null,null,null,null,53,36,14,47,"11:18:23.400",29,60,14,43,"11:47:00",null,null,null,null,null,102,1,9,32,"11:00:00",56,33,14,45,"11:29:00",62,27,14,46,"11:41:00",106,1,11,31,"12:04:00",52,37,13,40,"12:01:00",86,3,13,29,"12:13:00",63,26,13,41,"11:37:00"]
[151,"Larczyński","Tomasz","Gdańsk",253,14,0,0,null,null,null,null,null,null,null,null,null,null,null,null,null,null,null,38,51,16,45,"13:59:24",null,null,null,null,null,42,47,17,45,"13:43:29",null,null,null,null,null,20,69,14,48,"11:40:21",null,null,null,null,null,84,5,9,33,"11:38:51",null,null,null,null,null,49,40,13,50,"11:56:52",null,null,null,null,null,101,1,9,32,"12:03:57",null,null,null,null,null,55,34,10,42,"11:46:00",null,null,null,null,null,104,1,"11","36","11:41:42",null,null,null,null,null,109,1,10,36,"11:51:09",179,1,10,34,"11:32:00","NKL",0,6,"NKL",null,105,1,7,29,"11:58:22.200",117,1,11,39,"11:43:21.600",166,1,8,29,"12:00:00"]
[152,"Żuchowski","Krzysztof","Elbląg",251,5,0,0,null,null,null,null,null,null,null,null,null,null,null,null,null,null,null,null,null,null,null,null,null,null,null,null,null,null,null,null,null,null,null,null,null,null,null,null,null,null,null,null,null,null,null,null,null,null,null,null,null,null,null,null,null,null,null,null,null,null,null,null,null,null,null,null,null,null,null,null,null,null,null,null,null,null,null,null,null,null,null,null,null,null,null,null,null,null,null,null,null,null,null,null,null,null,null,null,null,null,null,null,null,null,null,null,null,null,null,null,null,null,null,null,null,null,null,null,null,null,null,null,null,null,null,null,null,null,null,null,null,null,null,null,null,null,null,null,null,null,null,null,null,null,null,null,null,null,null,null,null,null,null,null,null,null,null,null,null,null,null,null,null,null,null,null,null,null,null,null,null,null,13,76,15,51,"11:53:00",123,1,13,10,"12:38:00",23,66,12,37,"11:50:00",10,79,14,14,"11:41:00",60,29,14,14,"11:41:00"]
[153,"Polasz","Jacek","Reda",247,14,0,0,null,null,null,null,null,null,null,null,null,null,null,null,null,null,null,null,null,null,null,null,null,null,null,null,null,null,null,null,null,null,null,null,null,null,null,null,null,null,null,null,null,null,null,null,null,null,null,null,null,null,null,null,null,null,null,null,null,null,null,null,null,null,null,null,null,null,null,null,null,null,null,null,null,null,null,null,null,null,null,null,206,1,12,6,"12:33:51",61,29,"12","40","11:42:00",110,1,11,32,"12:04:37",null,null,null,null,null,151,1,11,37,"11:45:00",87,2,14,44,"11:40:00",217,1,7,22,"08:13:02.400",49,40,14,48,"11:55:10.800",77,12,12,37,"11:59:00",53,36,11,38,"11:47:00",38,51,10,39,"11:46:00",55,34,14,45,"11:19:00",79,10,14,43,"11:50:00",72,17,11,37,"11:51:00",77,12,12,36,"11:42:00"]
[154,"Brechelke","Sławomir","Kosakowo",247,5,0,0,null,null,null,null,null,null,null,null,null,null,null,null,null,null,null,null,null,null,null,null,35,54,23,58,"13:51:27",34,55,24,47,"14:12:54",15,74,18,46,"12:57:17",null,null,null,null,null,null,null,null,null,null,26,63,15,52,"11:48:52",102,1,10,35,"11:04:05"]
[155,"Winek","Tomasz","Warszawa",243,22,0,0,88,1,16,36,"11:16:12",null,null,null,null,null,null,null,null,null,null,null,null,null,null,null,102,1,13,29,"11:10:00",null,null,null,null,null,null,null,null,null,null,64,25,10,30,"11:55:02",null,null,null,null,null,null,null,null,null,null,null,null,null,null,null,null,null,null,null,null,null,null,null,null,null,null,null,null,null,null,null,null,null,null,null,null,null,null,null,null,null,null,null,null,null,138,1,"10","32","11:17:18",97,1,8,33,"11:17:13",276,1,10,-25,"12:57:30.600",70,19,13,44,"11:31:00",198,1,9,28,"09:40:00",43,46,12,37,"11:14:18.600",86,3,12,44,"11:53:20.400",63,26,11,39,"11:51:00",63,26,10,36,"11:37:00",133,1,9,29,"11:48:00",207,1,6,21,"05:41:00",92,1,12,41,"11:43:00",43,46,11,42,"11:34:00",73,16,11,37,"11:59:00",66,23,11,32,"11:51:00",119,1,9,33,"11:21:00",92,1,11,29,"11:37:00",101,1,11,34,"11:37:00",97,1,9,26,"11:40:00"]
[156,"Wasilewski","Wojciech","Warszawa",243,6,0,0,null,null,null,null,null,null,null,null,null,null,null,null,null,null,null,null,null,null,null,null,null,null,null,null,null,null,null,null,null,null,null,null,null,null,null,null,null,null,null,null,null,null,null,null,null,null,null,null,null,null,null,null,null,null,null,null,null,null,null,null,null,null,null,null,null,null,null,null,null,null,null,null,null,null,null,null,null,null,null,null,null,null,null,null,null,null,null,null,null,null,null,null,null,null,null,10,79,17,53,"10:30:16.200",27,62,15,50,"11:27:00",null,null,null,null,null,54,35,10,35,"11:07:15",null,null,null,null,null,85,4,12,36,"11:44:00",27,62,15,42,"11:13:00",100,1,10,32,"11:35:00"]
[157,"Helmin","Wojciech","Rumia",242,6,0,0,null,null,null,null,null,null,null,null,null,null,null,null,null,null,null,null,null,null,null,null,null,null,null,null,null,null,null,null,null,null,null,null,null,null,null,null,null,null,null,null,null,null,null,null,null,null,null,null,null,null,null,null,null,null,null,null,null,null,null,null,null,null,null,null,null,null,null,null,null,null,null,null,null,null,null,null,null,null,null,null,null,null,null,null,null,null,null,null,null,null,null,null,null,null,null,null,null,null,null,null,null,null,null,null,null,null,null,null,null,null,null,null,null,null,null,null,null,null,null,null,null,null,null,null,null,null,null,null,null,null,null,null,null,null,null,null,null,null,null,null,null,null,null,null,null,null,null,null,null,null,null,null,null,null,null,null,null,null,null,null,null,null,null,null,null,null,null,null,null,null,null,null,null,null,null,null,null,null,null,null,32,57,10,35,"11:48:00",31,58,12,12,"11:27:00",133,1,12,12,"11:45:00",36,53,11,11,"11:44:00",16,73,13,13,"10:50:00","NKL",0,7,0,"NKL"]
[158,"Mejka","Michał","Gdańsk",241,4,0,0,null,null,null,null,null,null,null,null,null,null,null,null,null,null,null,null,null,null,null,null,null,null,null,null,null,null,null,null,null,null,null,null,null,null,null,null,null,null,null,null,null,null,null,null,null,null,null,null,null,null,null,null,null,null,null,null,null,null,null,null,null,null,null,null,null,null,null,null,null,null,null,null,null,null,null,null,null,null,null,null,null,null,null,null,null,null,null,null,null,null,null,null,null,null,null,null,null,null,null,null,null,null,null,null,null,null,null,null,null,null,null,null,null,null,null,null,null,null,null,null,null,null,null,null,null,null,null,null,null,null,null,null,null,null,null,null,null,null,null,null,null,null,null,null,null,null,null,null,null,null,null,null,null,null,null,null,null,null,null,null,null,null,null,null,null,null,null,null,null,null,null,null,null,null,null,null,null,null,null,null,null,null,null,null,null,null,null,null,null,null,17,72,16,16,"11:41:00",2,96,15,15,"10:35:00",108,1,8,8,"10:28:00",null,null,null,null,null,17,72,12,12,"11:05:00"]
[160,"Ćwirko","Sławomir","Słupsk",240,4,0,2,18,71,25,60,"12:31:05",null,null,null,null,null,null,null,null,null,null,null,null,null,null,null,24,65,24,60,"12:52:36",null,null,null,null,null,50,39,12,30,"10:03:27",24,65,13,47,"11:33:42"]
[159,"Buchajewicz","Andrzej","Rotmanka",240,4,0,1,null,null,null,null,null,null,null,null,null,null,19,70,24,60,"12:14:52",17,72,21,55,"13:44:14",53,36,21,52,"13:33:46",27,62,20,52,"13:53:01"]
[161,"Galek","Gustaw","Gdynia",239,14,0,0,null,null,null,null,null,null,null,null,null,null,null,null,null,null,null,null,null,null,null,null,null,null,null,null,null,null,null,null,null,null,null,null,null,null,null,null,null,null,null,null,null,null,null,null,null,null,null,null,null,null,null,null,null,null,null,null,null,null,null,null,null,null,null,null,null,null,null,null,null,null,null,null,null,null,null,null,null,null,null,null,null,null,null,null,null,null,null,null,null,null,null,null,null,null,null,210,1,7,23,"11:25:16.200",209,1,10,30,"11:44:00",187,1,10,29,"11:00:00",180,1,9,24,"11:27:09",191,1,9,31,"11:46:17.400",179,1,8,28,"11:29:00",null,null,null,null,null,"NKL",0,0,0,"NKL",50,39,14,47,"11:53:00",48,41,14,48,"11:43:00",null,null,null,null,null,67,22,13,38,"11:42:00",50,39,11,35,"11:36:00",46,43,14,47,"11:56:00",61,28,10,34,"11:53:00",68,21,13,41,"11:52:00"]
[162,"Bogumił","Dariusz","Warszawa",238,3,0,1,null,null,null,null,null,null,null,null,null,null,null,null,null,null,null,null,null,null,null,null,null,null,null,null,null,17,72,24,60,"13:10:20",null,null,null,null,null,7,84,18,55,"11:41:18",null,null,null,null,null,8,82,18,57,"11:27:30"]
[163,"Ćwidak","Paweł","Gdańsk",234,3,0,3,null,null,null,null,null,7,84,24,60,"12:50:58",18,71,24,60,"12:14:49",null,null,null,null,null,null,null,null,null,null,null,null,null,null,null,null,null,null,null,null,null,null,null,null,null,null,null,null,null,null,null,null,null,null,null,null,null,null,null,null,10,79,20,60,"11:17:26"]
[164,"Wrona","Tomasz","Gdańsk",233,6,0,0,null,null,null,null,null,null,null,null,null,null,null,null,null,null,null,null,null,null,null,null,null,null,null,null,null,null,null,null,null,null,null,null,null,null,null,null,null,null,null,null,null,null,null,null,null,null,null,null,null,null,null,null,null,null,null,null,null,null,null,null,null,null,null,null,null,null,null,null,null,null,null,null,null,null,null,null,null,null,null,null,null,null,null,null,null,null,null,null,null,null,null,null,null,null,null,76,13,12,39,"11:36:20.400",74,15,13,44,"11:42:00",null,null,null,null,null,176,1,8,25,"11:12:12",null,null,null,null,null,null,null,null,null,null,58,31,11,36,"11:15:00",null,null,null,null,null,null,null,null,null,null,null,null,null,null,null,null,null,null,null,null,null,null,null,null,null,null,null,null,null,null,12,77,17,57,"11:51:00",null,null,null,null,null,null,null,null,null,null,null,null,null,null,null,null,null,null,null,null,2,96,17,17,"11:59:00"]
[165,"Kwapisiewicz","Piotr","Słupsk",233,5,0,0,null,null,null,null,null,null,null,null,null,null,null,null,null,null,null,null,null,null,null,null,null,null,null,null,null,null,null,null,null,null,7,84,21,56,"13:36:24",null,null,null,null,null,null,null,null,null,null,null,null,null,null,null,null,null,null,null,null,null,null,null,null,null,22,67,17,57,"11:43:32",null,null,null,null,null,null,null,null,null,null,null,null,null,null,null,27,62,14,49,"11:38:22",null,null,null,null,null,null,null,null,null,null,null,null,null,null,null,null,null,null,null,null,null,null,null,null,null,null,null,null,null,null,null,null,null,null,null,null,null,null,null,null,null,null,null,null,null,70,19,10,34,"11:31:00",179,1,9,27,"11:43:00"]
[166,"Pogorzelski","Wojciech","Nowinka",233,5,0,0,null,null,null,null,null,null,null,null,null,null,null,null,null,null,null,null,null,null,null,null,null,null,null,null,null,null,null,null,null,null,null,null,null,null,null,null,null,null,null,null,null,null,null,null,null,null,null,null,null,null,null,null,null,null,null,null,null,null,null,null,null,null,null,null,null,null,null,null,null,null,null,null,null,null,null,null,null,null,null,null,null,null,null,null,null,220,1,"5","14","05:37:12",null,null,null,null,null,null,null,null,null,null,null,null,null,null,null,247,1,12,18,"12:23:00",null,null,null,null,null,null,null,null,null,null,null,null,null,null,null,null,null,null,null,null,null,null,null,null,null,null,null,null,null,null,null,null,null,null,null,20,69,15,47,"12:02:00",null,null,null,null,null,null,null,null,null,null,13,76,17,55,"11:50:00",6,86,15,51,"11:45:00"]
[167,"Rodak","Michał","Bedoń",232,5,0,0,null,null,null,null,null,null,null,null,null,null,null,null,null,null,null,null,null,null,null,null,null,null,null,null,null,null,null,null,null,null,null,null,null,null,null,null,null,null,null,null,null,null,null,null,null,null,null,null,null,null,null,null,null,null,null,null,null,null,null,null,null,null,null,null,null,null,null,null,null,null,null,null,null,null,null,null,null,null,null,null,null,null,null,null,null,null,null,null,null,null,null,null,null,null,null,null,null,null,null,null,null,null,null,null,null,null,null,null,null,null,null,null,null,null,null,null,null,null,null,null,null,null,null,null,null,null,null,null,null,null,null,null,null,null,null,null,null,null,null,null,null,null,null,null,null,null,null,null,null,null,null,null,null,null,null,null,null,null,null,null,null,null,null,null,null,65,24,11,33,"11:35:00",30,59,14,47,"11:51:00",38,51,14,40,"11:44:00",null,null,null,null,null,null,null,null,null,null,43,46,15,15,"11:44:00",37,52,11,11,"11:45:00"]
[168,"Karpiński","Bartłomiej","Gdańsk",231,8,0,0,null,null,null,null,null,null,null,null,null,null,null,null,null,null,null,null,null,null,null,null,null,null,null,null,null,null,null,null,null,null,null,null,null,null,null,null,null,null,null,null,null,null,null,null,null,null,null,null,null,null,null,null,null,null,null,null,null,null,null,null,null,null,null,null,null,null,null,null,null,null,null,null,null,null,null,null,null,null,null,null,null,null,null,null,null,null,null,null,null,null,207,1,6,27,"11:46:36",null,null,null,null,null,183,1,11,33,"11:56:00",null,null,null,null,null,null,null,null,null,null,null,null,null,null,null,null,null,null,null,null,null,null,null,null,null,null,null,null,null,null,null,null,null,null,null,null,null,null,null,null,null,null,null,null,null,null,null,null,null,null,null,null,null,null,null,null,null,null,null,null,null,null,null,null,null,null,null,null,null,null,null,null,null,null,null,7,84,13,43,"11:28:00",34,55,12,12,"11:28:00",null,null,null,null,null,186,1,5,5,"06:00:00",115,1,2,2,"01:30:00","NKL",0,6,0,"NKL",5,88,16,16,"11:35:00"]
[169,"Jakubowski","Jarosław","Otwock",230,19,0,0,null,null,null,null,null,null,null,null,null,null,null,null,null,null,null,null,null,null,null,null,null,null,null,null,null,null,null,null,null,null,null,null,null,null,null,null,null,null,null,null,null,null,null,null,null,null,null,null,null,null,null,null,null,null,null,null,null,null,null,null,null,null,null,null,null,null,null,null,null,null,null,null,null,null,null,73,16,10,37,"11:53:00",null,null,null,null,null,null,null,null,null,null,52,37,11,37,"11:58:26",147,1,10,31,"11:37:15.600",null,null,null,null,null,null,null,null,null,null,118,1,8,28,"11:06:26.400",103,1,11,41,"11:52:12.600",49,40,12,41,"11:56:00",65,24,11,35,"11:04:00",null,null,null,null,null,119,1,10,35,"11:39:00",null,null,null,null,null,75,14,12,36,"11:44:00",103,1,9,34,"11:33:00",60,29,11,34,"11:35:00",113,1,12,33,"11:29:00",133,1,7,22,"11:06:00",114,1,11,33,"11:44:00",93,1,9,27,"11:28:00",72,17,10,29,"11:52:00",46,43,11,11,"11:24:00","NKL",0,9,0,"12:18:00",164,1,7,7,"11:29:00"]
[170,"Niedbalski","Daniel","Milanówek",230,11,0,0,null,null,null,null,null,null,null,null,null,null,null,null,null,null,null,null,null,null,null,null,92,1,14,36,"09:05:50",null,null,null,null,null,null,null,null,null,null,null,null,null,null,null,null,null,null,null,null,null,null,null,null,null,null,null,null,null,null,null,null,null,null,null,null,null,null,null,null,null,null,null,null,null,null,null,null,null,null,67,22,10,39,"11:13:00",21,68,15,51,"11:40:30",47,43,"14","42","11:31:21",216,1,8,26,"11:36:54",267,1,12,7,"12:29:23.400",null,null,null,null,null,126,1,12,39,"11:46:00",228,1,9,21,"12:04:24.600",76,13,13,45,"11:41:00",null,null,null,null,null,null,null,null,null,null,35,54,12,39,"11:46:00",64,25,13,44,"11:31:00"]
[171,"Derk","Jan","Warszawa",230,9,0,0,null,null,null,null,null,null,null,null,null,null,null,null,null,null,null,null,null,null,null,null,null,null,null,null,null,67,22,14,39,"12:22:17",null,null,null,null,null,null,null,null,null,null,48,41,11,42,"11:47:02",null,null,null,null,null,55,34,13,42,"11:39:08",null,null,null,null,null,null,null,null,null,null,91,1,10,34,"11:27:52",66,23,13,43,"11:52:00",28,61,14,49,"11:32:00",89,1,11,33,"11:48:51",44,46,"12","43","11:39:01",111,1,10,32,"11:24:37"]
[172,"Beszterda","Sebastian","Koszalin",226,5,0,0,50,39,22,54,"13:12:21",null,null,null,null,null,32,57,19,53,"13:23:26",null,null,null,null,null,50,39,20,53,"13:44:25",46,43,19,43,"13:32:32",null,null,null,null,null,null,null,null,null,null,null,null,null,null,null,null,null,null,null,null,null,null,null,null,null,null,null,null,null,null,41,48,16,52,"11:46:45"]
[173,"Rodak","Tomasz","Bedoń",226,5,0,0,null,null,null,null,null,null,null,null,null,null,null,null,null,null,null,null,null,null,null,null,null,null,null,null,null,null,null,null,null,null,null,null,null,null,null,null,null,null,null,null,null,null,null,null,null,null,null,null,null,null,null,null,null,null,null,null,null,null,null,null,null,null,null,null,null,null,null,null,null,null,null,null,null,null,null,null,null,null,null,null,null,null,null,null,null,null,null,null,null,null,null,null,null,null,null,null,null,null,null,null,null,null,null,null,null,null,null,null,null,null,null,null,null,null,null,null,null,null,null,null,null,null,null,null,null,null,null,null,null,null,null,null,null,null,null,null,null,null,null,null,null,null,null,null,null,null,null,null,null,null,null,null,null,null,null,null,null,null,null,null,null,null,null,null,null,72,17,11,33,"11:48:00",29,60,14,47,"11:49:00",38,51,14,40,"11:44:00",null,null,null,null,null,null,null,null,null,null,43,46,15,15,"11:44:00",37,52,11,11,"11:45:00"]
[174,"Skowroński","Jacek","Warszawa",226,3,0,1,null,null,null,null,null,null,null,null,null,null,null,null,null,null,null,null,null,null,null,null,15,74,24,60,"11:17:46",null,null,null,null,null,null,null,null,null,null,null,null,null,null,null,null,null,null,null,null,null,null,null,null,null,null,null,null,null,null,null,null,null,null,null,null,null,null,null,null,null,null,null,null,null,null,null,null,null,null,null,null,null,null,null,null,null,null,null,null,null,null,null,null,null,null,null,null,null,null,null,null,null,null,null,null,null,null,null,null,null,null,null,null,null,null,null,null,null,null,null,null,null,null,null,null,null,null,null,null,null,null,null,null,null,null,null,null,null,null,null,null,null,null,null,null,null,null,null,null,null,null,null,null,null,null,null,null,null,null,null,null,null,null,null,17,72,17,55,"11:52:00",null,null,null,null,null,9,80,16,55,"11:54:00"]
[175,"Buczek","Rafał","Gdynia",223,7,0,0,null,null,null,null,null,null,null,null,null,null,null,null,null,null,null,94,1,9,21,"07:20:17",null,null,null,null,null,null,null,null,null,null,28,61,14,38,"13:54:53",null,null,null,null,null,43,46,13,43,"11:46:26",18,71,15,53,"11:32:27",null,null,null,null,null,null,null,null,null,null,null,null,null,null,null,null,null,null,null,null,null,null,null,null,null,null,null,null,null,null,null,null,null,null,null,96,1,"11","36","11:13:21",null,null,null,null,null,105,1,12,36,"11:53:34.800",47,42,14,47,"11:32:00"]
[176,"Kowalski","Marcin","Wejherowo",223,4,0,0,null,null,null,null,null,null,null,null,null,null,null,null,null,null,null,null,null,null,null,null,null,null,null,null,null,null,null,null,null,null,null,null,null,null,null,null,null,null,null,null,null,null,null,null,null,null,null,null,null,null,null,null,null,null,null,null,null,null,null,null,null,null,null,null,null,null,null,null,null,null,null,null,null,null,null,null,null,null,null,null,null,null,null,null,null,null,null,null,null,null,null,null,null,null,null,null,null,null,null,null,null,null,null,null,null,41,48,15,50,"11:33:00",30,59,13,40,"11:56:07.200",36,53,15,50,"11:56:34.200",26,63,13,44,0.49652777777777801]
[177,"Katlewicz","Łukasz","Gdańsk",222,10,0,0,null,null,null,null,null,null,null,null,null,null,null,null,null,null,null,null,null,null,null,null,null,null,null,null,null,null,null,null,null,null,null,null,null,null,null,null,null,null,null,null,null,null,null,null,null,null,null,null,null,null,null,null,null,null,null,null,null,null,null,null,null,null,null,null,null,null,null,null,null,null,null,null,null,null,null,null,null,null,null,null,null,null,null,null,null,null,null,null,null,null,208,1,6,27,"11:46:36",null,null,null,null,null,182,1,11,33,"11:55:00",null,null,null,null,null,null,null,null,null,null,217,1,7,26,"11:54:09",null,null,null,null,null,null,null,null,null,null,null,null,null,null,null,null,null,null,null,null,null,null,null,null,null,null,null,null,null,null,72,17,11,37,"11:50:00",48,41,11,35,"11:31:00",null,null,null,null,null,56,33,10,35,"11:37:00",null,null,null,null,null,54,35,12,37,"11:31:00",52,37,10,32,"11:55:00","NKL",0,0,0,"NKL",null,null,null,null,null,null,null,null,null,null,null,null,null,null,null,null,null,null,null,null,33,56,9,9,"12:00:00"]
[178,"Jóźwiak","Bolesław","Gdańsk",222,4,0,0,null,null,null,null,null,null,null,null,null,null,null,null,null,null,null,null,null,null,null,null,null,null,null,null,null,null,null,null,null,null,null,null,null,null,null,null,null,null,null,null,null,null,null,null,null,null,null,null,null,null,null,null,null,null,null,null,null,null,null,null,null,null,null,null,null,null,null,null,null,null,null,null,null,null,null,null,null,null,null,null,null,null,null,null,null,null,null,null,null,null,null,null,null,null,null,null,null,null,null,null,null,null,null,null,null,null,null,null,null,null,null,null,null,null,null,null,null,null,null,null,null,null,null,null,null,null,null,null,null,null,null,null,null,null,null,null,null,null,null,null,null,null,null,null,null,null,null,null,null,null,34,55,13,45,"11:50:00",null,null,null,null,null,null,null,null,null,null,null,null,null,null,null,21,68,15,50,"11:48:00",null,null,null,null,null,null,null,null,null,null,null,null,null,null,null,null,null,null,null,null,null,null,null,null,null,32,57,11,11,"08:40:00",47,42,5,5,"11:13:00"]
[179,"Piątkowski","Zbigniew","Gdańsk",221,20,0,0,94,1,13,30,"11:23:22",91,1,7,23,"15:40:46",70,19,13,38,"12:40:21",45,44,14,42,"12:39:18",64,25,17,48,"12:43:24",39,50,17,46,"13:16:46",41,48,12,32,"12:39:57",76,13,10,27,"11:23:58",null,null,null,null,null,82,7,11,35,"11:47:54",117,1,11,31,"12:03:50",86,3,11,36,"11:35:57",132,1,10,34,"11:48:18",null,null,null,null,null,170,1,7,21,"11:33:00",95,1,11,34,"11:39:00",163,1,7,23,"10:13:16",159,1,"10","30","11:18:34",269,1,8,22,"12:04:52",null,null,null,null,null,220,1,10,29,"09:57:00",152,1,13,33,"11:42:00",197,1,9,23,"10:55:07.200"]
[180,"Rukszto","Bartosz","Gdańsk",221,9,0,0,null,null,null,null,null,null,null,null,null,null,null,null,null,null,null,null,null,null,null,null,null,null,null,null,null,null,null,null,null,null,null,null,null,null,null,null,null,null,null,null,32,57,13,49,"11:49:37",39,50,14,48,"11:47:13",32,57,14,50,"11:31:34",null,null,null,null,null,113,1,12,40,"10:03:02",55,34,12,41,"10:49:19",162,1,8,25,"09:44:00",null,null,null,null,null,null,null,null,null,null,null,null,null,null,null,null,null,null,null,null,null,null,null,null,null,208,1,10,30,"11:02:00",null,null,null,null,null,null,null,null,null,null,null,null,null,null,null,70,19,12,38,"11:35:00",null,null,null,null,null,null,null,null,null,null,null,null,null,null,null,207,1,8,29,"06:44:00"]
[181,"Zieliński","Daniel","Luboń",218,16,0,0,null,null,null,null,null,null,null,null,null,null,null,null,null,null,null,null,null,null,null,null,null,null,null,null,null,null,null,null,null,null,null,null,null,null,null,null,null,null,null,null,null,null,null,null,null,61,28,12,40,"11:05:46",76,13,13,39,"11:52:46",null,null,null,null,null,77,12,14,45,"11:23:54",49,40,14,42,"11:29:45",65,24,13,43,"11:47:00",96,1,11,34,"11:58:00",106,1,10,30,"11:48:44",70,20,"12","38","11:14:35",null,null,null,null,null,89,1,12,38,"11:53:21",67,22,14,44,"11:55:00",67,22,14,47,"11:41:00",145,1,9,26,"11:21:33.600",94,1,12,42,"11:26:33.600",117,1,11,34,"11:13:00",119,1,10,28,"11:11:00",59,30,10,36,"11:57:00"]
[182,"Warmowski","Łukasz","Juszkowo",217,10,0,0,null,null,null,null,null,null,null,null,null,null,null,null,null,null,null,null,null,null,null,null,null,null,null,null,null,null,null,null,null,null,86,3,7,16,"07:36:49",null,null,null,null,null,null,null,null,null,null,58,31,13,42,"11:45:51",25,64,16,54,"11:49:17",null,null,null,null,null,null,null,null,null,null,65,24,13,40,"11:52:04",50,39,13,47,"11:49:00",37,52,13,46,"11:49:00",176,1,11,19,"12:13:14",121,1,"11","33","11:55:11",313,1,5,17,"12:02:02",209,1,8,23,"11:42:18.600"]
[183,"Lelukiewicz","Rafał","Słupsk",214,6,0,0,null,null,null,null,null,null,null,null,null,null,null,null,null,null,null,null,null,null,null,null,null,null,null,null,null,null,null,null,null,null,null,null,null,null,null,null,null,null,null,null,null,null,null,null,null,null,null,null,null,null,null,null,null,null,null,null,null,null,null,null,null,null,null,null,null,null,null,null,null,null,null,null,null,null,null,null,null,null,null,null,null,null,null,null,null,null,null,null,null,null,null,null,null,null,null,null,null,null,null,null,null,null,null,null,null,null,null,null,null,null,null,null,null,null,null,null,null,null,null,null,null,null,null,null,null,null,null,null,null,null,null,null,null,null,null,90,1,12,40,"11:23:00",null,null,null,null,null,null,null,null,null,null,null,null,null,null,null,null,null,null,null,null,null,null,null,null,null,null,null,null,null,null,null,null,null,null,null,46,43,11,39,"12:00:00",null,null,null,null,null,null,null,null,null,null,142,1,11,11,"10:29:00",74,15,9,9,"10:55:00",13,76,13,13,"09:32:00",11,78,7,7,"11:44:00"]
[184,"Rychert","Miroslaw","Reda",213,8,0,0,null,null,null,null,null,null,null,null,null,null,null,null,null,null,null,null,null,null,null,null,null,null,null,null,null,null,null,null,null,null,null,null,null,null,null,null,null,null,null,null,null,null,null,null,null,null,null,null,null,null,null,null,null,null,null,null,null,null,null,null,null,null,null,null,null,null,null,null,null,null,null,null,null,null,null,null,null,null,null,null,null,null,null,null,null,null,null,null,null,null,null,null,null,null,null,78,11,12,39,"11:42:09",null,null,null,null,null,182,1,11,30,"11:48:00",56,33,11,34,"12:03:05.400",70,19,13,45,"11:30:17.400",58,31,12,39,"11:40:00",48,41,12,38,"11:37:00",12,77,13,45,"11:35:00","NKL",0,0,0,"NKL"]
[185,"Szczygielski","Krzysztof","Gdynia",210,4,1,0,null,null,null,null,null,null,null,null,null,null,null,null,null,null,null,null,null,null,null,null,null,null,null,null,null,null,null,null,null,null,null,null,null,null,null,null,null,null,null,null,null,null,null,null,null,null,null,null,null,null,null,null,null,null,null,null,null,null,null,null,null,null,null,null,null,null,null,null,null,null,null,null,null,null,null,null,null,null,null,null,null,null,null,null,null,null,null,null,null,null,null,null,null,null,null,null,null,null,null,null,null,null,null,null,null,null,null,null,null,null,null,null,null,null,null,null,null,null,null,null,null,null,null,null,null,null,null,null,null,null,null,null,null,null,null,null,null,null,null,null,null,null,null,null,null,null,null,null,null,null,null,null,null,null,null,null,null,null,null,null,null,null,null,null,null,null,null,null,null,null,161,1,15,20,"12:28:00",1,100,17,57,"11:55:00",24,65,13,37,"11:54:00",45,44,11,11,"11:01:00"]
[186,"Wieczorek","Jarosław","Wrocław",210,4,0,1,null,null,null,null,null,null,null,null,null,null,15,74,24,60,"12:10:25",null,null,null,null,null,null,null,null,null,null,null,null,null,null,null,null,null,null,null,null,null,null,null,null,null,null,null,null,null,null,14,75,16,53,"11:34:34",29,60,17,51,"11:56:23",null,null,null,null,null,146,1,10,31,"08:49:02"]
[187,"Tomaszewski","Jacek","Gdańsk",208,7,0,0,null,null,null,null,null,null,null,null,null,null,null,null,null,null,null,null,null,null,null,null,null,null,null,null,null,null,null,null,null,null,null,null,null,null,null,null,null,null,null,null,null,null,null,null,null,null,null,null,null,null,null,null,null,null,null,null,null,null,null,null,null,null,null,null,null,null,null,null,null,null,null,null,null,null,null,null,null,null,null,null,null,null,null,null,null,null,null,null,null,null,null,null,null,null,null,null,null,null,null,null,null,null,null,null,null,null,null,null,null,null,null,null,null,null,null,null,null,null,null,null,null,null,null,null,null,null,null,null,null,null,null,null,null,null,null,null,null,null,null,null,null,null,null,null,null,null,null,null,null,null,null,null,null,null,null,72,17,12,31,"12:08:00",null,null,null,null,null,79,10,11,31,"11:20:00",null,null,null,null,null,42,47,12,39,"11:47:00",null,null,null,null,null,16,73,14,14,"11:52:00",70,19,14,14,"11:52:00",47,42,11,11,"11:56:00",null,null,null,null,null,"NKL",0,6,0,"NKL"]
[188,"Kowalczyk","Maciej","Gdynia",208,6,0,0,null,null,null,null,null,null,null,null,null,null,null,null,null,null,null,null,null,null,null,null,null,null,null,null,null,null,null,null,null,null,null,null,null,null,null,null,null,null,null,null,null,null,null,null,null,null,null,null,null,null,null,null,null,null,null,null,null,null,null,null,null,null,null,null,null,null,null,null,null,null,null,null,null,null,null,null,null,null,null,null,null,null,null,null,null,null,null,null,null,null,null,null,null,null,null,null,null,null,null,null,null,null,null,null,null,null,null,null,null,null,null,null,null,null,null,null,null,null,null,null,null,null,null,null,null,null,null,null,null,null,null,null,null,null,null,51,38,16,46,"11:23:00",null,null,null,null,null,26,63,13,46,"11:13:00",62,27,12,39,"11:28:00",33,56,12,41,"11:49:00",66,23,12,41,"10:54:00",90,1,9,30,"11:46:00"]
[189,"Połczyński","Dawid","Elbląg",208,3,0,0,null,null,null,null,null,null,null,null,null,null,null,null,null,null,null,null,null,null,null,null,null,null,null,null,null,null,null,null,null,null,null,null,null,null,null,null,null,null,null,null,null,null,null,null,null,null,null,null,null,null,null,null,null,null,null,null,null,null,null,null,null,null,null,null,null,null,null,null,null,null,null,null,null,null,null,null,null,null,null,null,null,null,null,null,null,null,null,null,null,null,null,null,null,null,null,null,null,null,null,null,null,null,null,null,null,null,null,null,null,null,null,null,null,null,null,null,null,null,null,null,null,null,null,null,null,null,null,null,null,null,null,null,null,null,null,null,null,null,null,null,null,null,null,null,null,null,null,null,null,null,null,null,null,null,null,null,null,null,null,null,null,null,null,null,null,null,null,null,null,null,null,null,null,null,null,null,null,null,null,null,null,null,null,null,null,null,null,null,null,null,23,66,16,16,"11:51:00",10,79,13,13,"11:31:00",null,null,null,null,null,null,null,null,null,null,26,63,10,10,"11:04:00"]
[190,"Karczmarczyk","Piotr","Kotuń",206,3,0,0,null,null,null,null,null,null,null,null,null,null,null,null,null,null,null,null,null,null,null,null,null,null,null,null,null,null,null,null,null,null,null,null,null,null,null,null,null,null,null,null,null,null,null,null,null,null,null,null,null,null,null,null,null,null,null,null,null,null,null,null,null,null,null,null,null,null,null,null,null,null,null,null,null,null,null,null,null,null,null,null,null,null,null,null,null,null,null,null,null,null,null,null,null,null,null,null,null,null,null,null,null,null,null,null,null,20,69,17,54,"11:52:00",null,null,null,null,null,null,null,null,null,null,null,null,null,null,null,null,null,null,null,null,null,null,null,null,null,null,null,null,null,null,11,78,18,58,"11:16:00",null,null,null,null,null,30,59,14,45,"11:52:00"]
[191,"Linowski","Dariusz","Gdańsk",204,9,0,0,null,null,null,null,null,null,null,null,null,null,null,null,null,null,null,null,null,null,null,null,null,null,null,null,null,null,null,null,null,null,null,null,null,null,null,null,null,null,null,null,null,null,null,null,null,null,null,null,null,null,null,null,null,null,null,null,null,null,null,null,null,null,null,null,null,null,null,null,null,null,null,null,null,null,null,48,41,12,44,"11:51:00",55,35,12,40,"11:49:12",74,16,"11","38","11:44:41",334,1,2,6,"05:30:53",null,null,null,null,null,85,4,13,43,"11:47:00",38,51,15,50,"10:28:00",null,null,null,null,null,null,null,null,null,null,50,39,12,40,"11:18:00",157,1,8,24,"11:37:00",73,16,10,34,"11:38:00"]
[192,"Skowronek","Grzegorz","Warszawa",203,15,0,0,null,null,null,null,null,null,null,null,null,null,null,null,null,null,null,null,null,null,null,null,null,null,null,null,null,null,null,null,null,null,null,null,null,null,null,43,46,12,37,"12:00:47",null,null,null,null,null,null,null,null,null,null,51,38,13,44,"11:54:01",null,null,null,null,null,90,1,12,44,"11:30:35",null,null,null,null,null,181,1,6,18,"04:53:00",61,28,12,40,"11:38:00",96,1,11,31,"10:50:22",71,19,"12","38","11:24:13",305,1,5,18,"09:13:08",151,1,10,31,"11:50:01.800",98,1,12,42,"11:15:00",64,25,14,47,"11:39:00",null,null,null,null,null,51,38,14,48,"11:56:33.600",247,1,7,21,"10:56:00",96,1,11,31,"11:33:00",231,1,4,13,"10:44:00"]
[193,"Figas","Bartłomiej","Poznań",203,14,0,0,null,null,null,null,null,null,null,null,null,null,null,null,null,null,null,null,null,null,null,null,null,null,null,null,null,null,null,null,null,null,null,null,null,null,null,null,null,null,null,null,null,null,null,null,null,53,36,14,43,"11:33:44",null,null,null,null,null,null,null,null,null,null,null,null,null,null,null,null,null,null,null,null,69,20,13,42,"11:00:00",76,13,11,36,"11:39:00",69,21,11,37,"11:55:07",null,null,null,null,null,75,14,9,35,"11:31:04",50,39,14,42,"11:43:18",61,28,14,44,"10:54:00",136,1,12,37,"11:34:00",95,1,9,30,"11:40:16.200",178,1,10,33,"11:21:27",null,null,null,null,null,null,null,null,null,null,null,null,null,null,null,null,null,null,null,null,null,null,null,null,null,63,26,13,39,"11:40:00",null,null,null,null,null,107,1,8,27,"11:42:00",110,1,11,34,"11:50:00",null,null,null,null,null,139,1,11,28,"11:23:00"]
[194,"Wierzbicki","Grzegorz","Siedlce",202,5,0,0,null,null,null,null,null,null,null,null,null,null,null,null,null,null,null,null,null,null,null,null,null,null,null,null,null,null,null,null,null,null,null,null,null,null,null,null,null,null,null,null,null,null,null,null,null,null,null,null,null,null,null,null,null,null,null,null,null,null,null,null,null,null,null,null,null,null,null,null,null,null,null,null,null,null,null,null,null,null,null,null,null,null,null,null,null,null,null,null,null,null,null,null,null,null,null,null,null,null,null,null,null,null,null,null,null,null,null,null,null,null,null,null,null,null,null,null,null,null,null,null,null,null,null,null,null,37,52,13,41,"11:55:00",128,1,14,29,"12:12:00",5,88,18,58,"11:42:00",null,null,null,null,null,null,null,null,null,null,null,null,null,null,null,null,null,null,null,null,null,null,null,null,null,null,null,null,null,null,null,null,null,null,null,null,null,null,null,null,null,null,null,null,null,null,null,null,null,null,75,14,13,13,"11:12:00",42,47,11,11,"11:54:00"]
[195,"Walter","Maciej","Dąbrowa",202,4,0,0,null,null,null,null,null,null,null,null,null,null,null,null,null,null,null,null,null,null,null,null,null,null,null,null,null,null,null,null,null,null,18,71,16,41,"13:14:10",null,null,null,null,null,26,63,16,52,"11:43:38",21,68,17,52,"11:49:50","NKL",0,16,-999,"NKL"]
[196,"Nitka","Szymon","Gdańsk",200,7,0,0,null,null,null,null,null,null,null,null,null,null,null,null,null,null,null,null,null,null,null,null,null,null,null,null,null,null,null,null,null,null,null,null,null,null,null,null,null,null,null,null,null,null,null,null,null,null,null,null,null,null,null,null,null,null,null,null,null,null,null,null,null,null,null,null,null,null,null,null,null,null,null,null,null,null,null,null,null,null,null,null,null,null,null,null,null,41,49,"12","43","11:33:57",null,null,null,null,null,29,60,15,46,"11:31:02.400",78,11,14,43,"11:40:00",33,56,16,51,"11:27:00",null,null,null,null,null,null,null,null,null,null,269,1,11,14,"12:24:00",null,null,null,null,null,98,1,10,32,"10:32:00",null,null,null,null,null,null,null,null,null,null,67,22,14,38,"11:40:00"]
[197,"Wiski","Paweł","Mińsk Mazowiecki",200,6,0,0,null,null,null,null,null,null,null,null,null,null,null,null,null,null,null,null,null,null,null,null,null,null,null,null,null,null,null,null,null,null,null,null,null,null,null,null,null,null,null,null,null,null,null,null,null,null,null,null,null,null,null,null,null,null,null,null,null,null,null,null,null,null,null,null,null,null,null,null,null,null,null,null,null,null,null,null,null,null,null,null,null,null,null,null,null,null,null,null,null,null,null,null,null,null,null,null,null,null,null,null,null,null,null,null,null,null,null,null,null,null,null,null,null,null,null,null,null,null,null,null,null,null,null,null,null,null,null,null,null,null,null,null,null,null,null,null,null,null,null,null,null,null,null,null,null,null,null,null,null,null,null,null,null,null,null,null,null,null,null,null,null,null,null,null,null,null,null,null,null,null,67,22,13,41,"11:43:00",null,null,null,null,null,48,41,9,32,"11:50:00",31,58,12,12,"11:27:00",null,null,null,null,null,165,1,7,7,"11:34:00",63,26,10,10,"09:00:00",37,52,6,6,"11:54:00"]
[198,"Flisikowski","Zdzisław","Gdańsk",199,16,0,0,null,null,null,null,null,null,null,null,null,null,null,null,null,null,null,null,null,null,null,null,null,null,null,null,null,87,2,10,23,"11:53:12",null,null,null,null,null,53,36,11,33,"11:20:15",55,34,12,38,"10:48:42",49,40,14,46,"11:29:54",92,1,11,36,"11:50:32",54,35,14,48,"11:44:01",65,24,13,47,"11:54:09",70,19,12,38,"11:40:18",null,null,null,null,null,null,null,null,null,null,214,1,4,-4,"12:18:54",88,1,"11","37","11:43:18",349,1,6,-38,"12:58:34",155,1,10,31,"11:58:15.600",172,1,11,34,"11:44:00",144,1,11,36,"11:32:00",183,1,9,24,"11:50:35.400",292,1,9,-115,"14:24:04.800"]
[199,"Dunowska","Ilona","Gorzów Wielkopolski",198,10,0,0,97,1,13,27,"11:03:43",56,33,13,31,"13:06:43",null,null,null,null,null,64,25,13,33,"13:45:07",82,7,17,42,"13:41:11",64,25,17,39,"12:48:08",59,30,11,29,"12:53:41",59,30,11,31,"11:49:09",56,33,12,38,"11:26:46",76,13,11,36,"10:45:20",148,1,8,28,"10:57:57"]
[200,"Rząd","Krzysztof","Lublin",197,6,0,0,null,null,null,null,null,null,null,null,null,null,null,null,null,null,null,null,null,null,null,null,null,null,null,null,null,null,null,null,null,null,null,null,null,null,null,null,null,null,null,null,null,null,null,null,null,null,null,null,null,null,null,null,null,null,null,null,null,null,null,null,null,null,null,null,null,null,null,null,null,null,null,null,null,null,null,null,null,null,null,null,null,null,null,null,null,null,null,null,null,null,null,null,null,null,null,null,null,null,null,null,null,null,null,null,null,null,null,null,null,null,null,null,null,null,null,null,null,null,null,null,null,null,null,null,null,null,null,null,null,null,null,null,null,null,null,null,null,null,null,null,null,null,null,null,null,69,20,12,38,"11:07:00",null,null,null,null,null,null,null,null,null,null,null,null,null,null,null,43,46,12,37,"11:41:00",null,null,null,null,null,35,54,15,40,"11:17:00",47,42,10,32,"11:34:00",null,null,null,null,null,null,null,null,null,null,54,35,10,10,"10:00:00",null,null,null,null,null,"NKL",0,6,0,"NKL"]
[201,"Marzejon","Marcin","Chojnice",197,5,0,0,null,null,null,null,null,null,null,null,null,null,null,null,null,null,null,null,null,null,null,null,null,null,null,null,null,null,null,null,null,null,null,null,null,null,null,null,null,null,null,null,null,null,null,null,null,null,null,null,null,null,null,null,null,null,null,null,null,null,null,null,null,null,null,null,null,13,76,17,54,"10:39:51",23,66,17,51,"11:25:00",36,53,13,47,"11:52:00",92,1,10,33,"11:38:39",169,1,"9","29","10:44:07"]
[202,"Nieścioruk","Barbara","Lublin",197,5,0,0,null,null,null,null,null,null,null,null,null,null,null,null,null,null,null,null,null,null,null,null,null,null,null,null,null,null,null,null,null,null,null,null,null,null,null,null,null,null,null,null,null,null,null,null,null,35,54,13,49,"11:19:47",35,54,13,49,"11:49:10",71,18,13,42,"12:07:44",63,26,13,47,"11:23:10",null,null,null,null,null,null,null,null,null,null,44,45,12,44,"11:27:00"]
[203,"Szymborski","Tomasz","Sopot",195,6,0,0,null,null,null,null,null,null,null,null,null,null,null,null,null,null,null,null,null,null,null,null,null,null,null,null,null,null,null,null,null,null,null,null,null,null,null,null,null,null,null,null,null,null,null,null,null,null,null,null,null,null,null,null,null,null,null,null,null,null,null,null,null,null,null,null,null,null,null,null,null,null,null,null,null,null,null,null,null,null,null,null,null,null,null,null,null,null,null,null,null,null,null,null,null,null,null,52,37,14,42,"12:01:29.400",null,null,null,null,null,121,1,13,39,"11:06:00",null,null,null,null,null,61,28,14,46,"12:04:15.600",null,null,null,null,null,null,null,null,null,null,60,29,12,35,"11:38:00",null,null,null,null,null,null,null,null,null,null,null,null,null,null,null,null,null,null,null,null,null,null,null,null,null,null,null,null,null,null,null,null,null,null,null,null,null,null,null,null,null,null,null,null,null,null,null,null,null,null,null,null,null,null,null,null,null,null,null,null,null,null,null,null,null,49,40,10,10,"08:15:00",29,60,6,6,"11:44:00"]
[204,"Pudło","Roman","Pruszcz Gdański",194,16,0,0,null,null,null,null,null,null,null,null,null,null,null,null,null,null,null,null,null,null,null,null,null,null,null,null,null,null,null,null,null,null,null,null,null,null,null,null,null,null,null,null,null,null,null,null,null,null,null,null,null,null,null,null,null,null,null,null,null,null,null,null,130,1,10,34,"11:36:53",null,null,null,null,null,null,null,null,null,null,89,1,11,35,"11:28:00",98,1,11,31,"12:05:41",108,1,"10","35","11:04:27",180,1,8,28,"11:31:02",112,1,12,35,"11:28:27.600",64,25,14,44,"11:41:00",63,26,14,47,"11:32:00",222,1,6,22,"11:34:09.600",96,1,12,42,"11:50:29.400",null,null,null,null,null,null,null,null,null,null,99,1,10,32,"11:19:00",null,null,null,null,null,102,1,12,40,"11:47:00",null,null,null,null,null,86,3,10,36,"11:42:00",null,null,null,null,null,null,null,null,null,null,null,null,null,null,null,null,null,null,null,null,42,47,12,39,"11:47:00",69,20,10,29,"11:31:00",26,63,12,12,"11:20:00"]
[205,"Sławik","Łukasz","Warszawa",194,7,0,0,null,null,null,null,null,null,null,null,null,null,null,null,null,null,null,null,null,null,null,null,null,null,null,null,null,null,null,null,null,null,null,null,null,null,null,null,null,null,null,null,null,null,null,null,null,null,null,null,null,null,null,null,null,null,null,null,null,null,null,null,null,null,null,null,null,null,null,null,null,null,null,null,null,null,null,null,null,null,null,null,null,null,null,null,null,null,null,null,null,null,null,null,null,null,null,null,null,null,null,null,null,null,null,null,null,null,null,null,null,null,null,null,null,null,null,null,null,null,null,null,null,null,null,null,null,null,null,null,null,null,null,null,null,null,null,null,null,null,null,null,null,null,null,null,null,null,null,null,null,null,null,null,null,null,null,null,null,null,null,null,null,null,null,null,null,null,null,null,null,null,83,6,13,37,"12:07:00",27,62,12,43,"11:31:00",48,41,9,32,"11:50:00",31,58,12,12,"11:27:00",null,null,null,null,null,165,1,7,7,"11:34:00",63,26,10,10,"09:00:00","NKL",0,6,0,"NKL"]
[206,"Dunowski","Przemysław","Gorzów Wielkopolski",193,10,0,0,96,1,13,27,"11:03:34",55,34,13,31,"13:06:38",null,null,null,null,null,63,26,13,33,"13:44:55",84,5,17,42,"13:41:20",66,23,17,39,"12:48:23",60,29,11,29,"12:53:43",60,29,11,31,"11:49:12",58,31,12,38,"11:27:03",75,14,11,36,"10:45:13",151,1,8,28,"10:58:22"]
[207,"Gałaguz","Jacek","Koszalin",191,11,0,0,null,null,null,null,null,70,19,11,30,"10:54:25",57,32,17,41,"12:43:01",41,48,16,42,"13:15:36",null,null,null,null,null,null,null,null,null,null,null,null,null,null,null,null,null,null,null,null,null,null,null,null,null,null,null,null,null,null,null,null,null,null,null,null,null,null,null,null,null,null,null,null,null,null,null,null,null,null,null,null,null,null,null,null,null,null,null,null,null,null,null,null,null,null,null,null,null,null,73,16,9,35,"11:26:02",54,35,14,41,"11:38:18",90,1,13,42,"11:48:00",85,4,15,44,"11:21:00",72,17,11,32,"11:38:25.200",null,null,null,null,null,107,1,10,35,"11:01:00",72,17,12,34,"11:43:00",155,1,9,27,"11:47:00"]
[208,"Szamrej","Wojciech","Koszalin",191,7,0,0,null,null,null,null,null,null,null,null,null,null,null,null,null,null,null,null,null,null,null,null,null,null,null,null,null,null,null,null,null,null,null,null,null,null,null,null,null,null,null,null,null,null,null,null,null,null,null,null,null,null,null,null,null,null,null,null,null,null,null,null,null,null,null,null,null,null,null,null,null,null,null,null,null,null,null,null,null,null,null,null,null,null,null,null,null,null,null,null,null,null,71,18,9,35,"11:25:54",null,null,null,null,null,91,1,13,42,"11:48:00",80,9,16,45,"11:21:00",75,14,11,32,"11:47:09",null,null,null,null,null,33,56,13,43,"11:51:00",45,44,13,38,"11:37:00",40,49,9,39,"11:37:00"]
[209,"Złomańczuk","Michał","Juszkowo",191,4,0,1,80,9,16,38,"09:50:17",28,61,19,47,"13:40:48",null,null,null,null,null,null,null,null,null,null,29,60,24,60,"13:47:19",28,61,21,51,"13:29:30"]
[210,"Zwoliński","Albert","Elbląg",190,8,0,0,null,null,null,null,null,null,null,null,null,null,null,null,null,null,null,null,null,null,null,null,null,null,null,null,null,null,null,null,null,null,null,null,null,null,null,null,null,null,null,null,null,null,null,null,null,null,null,null,null,null,null,null,null,null,null,null,null,null,null,null,null,null,null,null,null,null,null,null,null,null,30,59,15,50,"11:35:00",34,55,13,47,"11:23:00",49,41,12,41,"11:41:16",null,null,null,null,null,58,31,9,36,"11:54:35",null,null,null,null,null,205,1,9,31,"11:44:00",200,1,9,28,"11:41:00",null,null,null,null,null,null,null,null,null,null,204,1,7,26,"11:17:00",125,1,8,28,"10:41:00"]
[211,"Kauss","Dawid","Bydgoszcz",189,18,0,0,null,null,null,null,null,null,null,null,null,null,null,null,null,null,null,40,49,17,42,"12:43:30",68,21,19,46,"11:54:28",null,null,null,null,null,null,null,null,null,null,null,null,null,null,null,null,null,null,null,null,null,null,null,null,null,93,1,10,36,"11:02:44",69,20,12,43,"11:47:03",61,28,14,47,"11:25:28",52,37,13,41,"11:49:54",142,1,9,31,"11:51:00",null,null,null,null,null,68,22,11,37,"11:45:44",null,null,null,null,null,217,1,8,26,"11:43:30",158,1,11,30,"10:18:10.200",171,1,11,34,"11:31:00",null,null,null,null,null,137,1,8,27,"11:48:12",null,null,null,null,null,144,1,10,31,"11:30:00",153,1,8,24,"11:14:00",190,1,8,23,"10:24:00",141,1,10,32,"10:09:00",null,null,null,null,null,136,1,8,27,"11:21:00",null,null,null,null,null,null,null,null,null,null,null,null,null,null,null,null,null,null,null,null,null,null,null,null,null,null,null,null,null,null,93,1,9,24,"09:42:00"]
[212,"Rogowski","Leszek","Gdańsk",189,11,0,0,null,null,null,null,null,null,null,null,null,null,null,null,null,null,null,null,null,null,null,null,null,null,null,null,null,null,null,null,null,null,null,null,null,null,null,null,null,null,null,null,null,null,null,null,null,null,null,null,null,null,null,null,null,null,null,null,null,null,null,null,null,null,null,null,null,137,1,3,13,"04:10:37",null,null,null,null,null,42,47,14,44,"11:49:00",null,null,null,null,null,192,1,"8","25","09:13:41",null,null,null,null,null,null,null,null,null,null,null,null,null,null,null,null,null,null,null,null,null,null,null,null,null,277,1,9,-2,"12:35:16.200",null,null,null,null,null,null,null,null,null,null,null,null,null,null,null,124,1,11,34,"11:44:00",104,1,12,39,"11:00:00",133,1,11,27,"12:09:00",39,50,13,44,"11:24:00",29,60,13,42,"12:00:00",92,1,12,37,"10:17:00",null,null,null,null,null,64,25,14,41,"11:52:00",null,null,null,null,null,null,null,null,null,null,null,null,null,null,null,null,null,null,null,null,null,null,null,null,null,null,null,null,null,null,null,null,null,null,null,null,null,null,null,null,18]
[213,"Stenka","Krystian","Gdynia",189,5,0,0,null,null,null,null,null,null,null,null,null,null,null,null,null,null,null,null,null,null,null,null,null,null,null,null,null,null,null,null,null,null,null,null,null,null,null,null,null,null,null,null,null,null,null,null,null,null,null,null,null,null,null,null,null,null,null,null,null,null,null,null,null,null,null,null,null,null,null,null,null,null,null,null,null,null,null,null,null,null,null,null,null,null,null,null,null,null,null,null,null,null,null,null,null,null,null,null,null,null,null,null,null,null,null,null,null,null,null,null,null,null,null,null,null,null,null,null,null,null,null,null,null,null,null,null,null,null,null,null,null,null,null,null,null,null,null,null,null,null,null,null,null,null,null,null,null,null,null,null,null,null,null,null,null,null,null,62,27,10,34,"09:18:00",108,1,11,34,"10:01:00",24,65,12,41,"11:44:00",24,65,16,48,"11:19:00",null,null,null,null,null,58,31,10,31,"10:00:00"]
[214,"Sokołowski","Krzysztof","Elbląg",188,6,0,0,null,null,null,null,null,null,null,null,null,null,null,null,null,null,null,null,null,null,null,null,null,null,null,null,null,null,null,null,null,null,null,null,null,null,null,null,null,null,null,null,null,null,null,null,null,null,null,null,null,null,null,null,null,null,null,null,null,null,null,null,null,null,null,null,null,null,null,null,null,null,null,null,null,null,null,75,14,14,36,"12:11:00",null,null,null,null,null,null,null,null,null,null,null,null,null,null,null,null,null,null,null,null,null,null,null,null,null,null,null,null,null,null,null,null,null,null,null,null,null,null,null,null,null,null,null,null,null,52,37,11,38,"11:31:00",null,null,null,null,null,66,23,12,44,"11:23:00",null,null,null,null,null,null,null,null,null,null,116,1,6,32,"11:53:00",null,null,null,null,null,null,null,null,null,null,null,null,null,null,null,49,40,13,43,"11:43:00",16,73,16,48,"11:47:00"]
[215,"Ciecholewski","Jerzy","Gdynia",186,5,0,0,null,null,null,null,null,null,null,null,null,null,null,null,null,null,null,null,null,null,null,null,null,null,null,null,null,null,null,null,null,null,null,null,null,null,null,null,null,null,null,null,null,null,null,null,null,null,null,null,null,null,null,null,null,null,null,null,null,null,null,null,null,null,null,null,null,null,null,null,null,null,null,null,null,null,null,null,null,null,null,null,null,null,null,null,null,null,null,null,null,null,null,null,null,null,null,null,null,null,null,null,null,null,null,null,null,null,null,null,null,null,null,null,null,null,null,null,null,null,null,null,null,null,null,null,null,null,null,null,null,null,null,null,null,null,null,null,null,null,null,null,null,null,null,null,null,null,null,null,null,null,null,null,null,null,null,null,null,null,null,null,null,null,null,null,null,null,null,null,null,null,145,1,11,27,"12:08:00",null,null,null,null,null,32,57,10,35,"11:48:00",null,null,null,null,null,133,1,12,12,"11:45:00",35,54,11,11,"11:43:00",16,73,13,13,"10:50:00"]
[216,"Suwara","Marcin","Gdynia",185,6,0,0,null,null,null,null,null,null,null,null,null,null,null,null,null,null,null,null,null,null,null,null,null,null,null,null,null,null,null,null,null,null,null,null,null,null,null,null,null,null,null,null,null,null,null,null,null,null,null,null,null,null,null,null,null,null,null,null,null,null,null,null,null,null,null,null,null,null,null,null,null,null,null,null,null,null,null,null,null,null,null,null,null,null,null,null,null,null,null,null,null,null,null,null,null,null,null,null,null,null,null,null,null,null,null,null,null,57,32,15,47,"11:38:00",96,1,12,29,"11:40:34.200",54,35,14,47,"11:20:33",null,null,null,null,null,21,68,14,43,"11:43:00",41,48,13,37,"11:38:00",131,1,13,33,"12:13:00"]
[218,"Nowacka","Elżbieta","Koszalin",184,5,0,0,51,38,22,54,"13:12:24",null,null,null,null,null,31,58,19,53,"13:23:24",84,5,11,29,"09:57:07",48,41,20,53,"13:44:17",47,42,19,43,"13:32:36"]
[217,"Kosior","Michał","Gdańsk",184,5,0,0,null,null,null,null,null,null,null,null,null,null,null,null,null,null,null,null,null,null,null,null,null,null,null,null,null,null,null,null,null,null,null,null,null,null,null,null,null,null,null,null,null,null,null,null,null,null,null,null,null,null,null,null,null,null,null,null,null,null,null,null,null,null,null,null,null,null,null,null,null,null,null,null,null,null,null,null,null,null,null,null,null,null,null,null,null,null,null,null,null,null,null,null,null,null,null,null,null,null,null,null,null,null,null,null,null,null,null,null,null,null,null,null,null,null,null,null,null,null,null,null,null,null,null,null,null,null,null,null,null,null,10,79,14,46,"11:54:00",45,44,14,47,"10:54:00",null,null,null,null,null,65,24,11,39,"10:59:00",null,null,null,null,null,106,1,12,27,"12:13:00",53,36,13,46,"11:46:00"]
[219,"Haczek","Krzysztof","Otwock",183,5,0,0,null,null,null,null,null,null,null,null,null,null,null,null,null,null,null,null,null,null,null,null,null,null,null,null,null,null,null,null,null,null,null,null,null,null,null,null,null,null,null,null,null,null,null,null,null,null,null,null,null,null,null,null,null,null,null,null,null,null,null,null,null,null,null,null,null,null,null,null,null,null,null,null,null,null,null,null,null,null,null,null,null,null,null,null,null,null,null,null,null,null,null,null,null,null,null,9,80,17,53,"10:30:14.400",28,61,15,50,"11:27:00",null,null,null,null,null,53,36,10,35,"11:07:09",null,null,null,null,null,84,5,12,36,"11:43:00",null,null,null,null,null,100,1,10,32,"11:35:00"]
[220,"Banach","Piotr","Gdańsk",182,8,0,0,null,null,null,null,null,null,null,null,null,null,null,null,null,null,null,null,null,null,null,null,null,null,null,null,null,null,null,null,null,null,null,null,null,null,null,null,null,null,null,null,null,null,null,null,null,null,null,null,null,null,null,null,null,null,null,null,null,null,null,null,null,null,null,null,null,null,null,null,null,null,null,null,null,null,null,null,null,null,null,null,null,null,null,null,null,95,1,"11","36","11:13:20",271,1,7,22,"11:24:50",102,1,13,36,"12:00:34.200",167,1,12,34,"11:51:00",37,52,15,50,"10:28:00",20,69,14,41,"11:03:06",33,56,15,50,"11:19:21.600",98,1,12,35,"11:24:00"]
[221,"Szadura","Michał","Warszawa",182,3,0,1,null,null,null,null,null,null,null,null,null,null,null,null,null,null,null,null,null,null,null,null,null,null,null,null,null,11,78,24,60,"12:35:38",null,null,null,null,null,null,null,null,null,null,null,null,null,null,null,null,null,null,null,null,null,null,null,null,null,null,null,null,null,null,32,57,17,54,"11:52:10",null,null,null,null,null,42,47,16,47,"11:49:00"]
[222,"Olesiński","Maciej","Warszawa",182,2,0,1,null,null,null,null,null,null,null,null,null,null,null,null,null,null,null,null,null,null,null,null,null,null,null,null,null,null,null,null,null,null,null,null,null,null,null,null,null,null,null,null,null,null,null,null,null,null,null,null,null,null,null,null,null,null,null,null,null,null,null,null,null,null,null,null,null,null,null,null,null,null,null,null,null,null,null,null,null,null,null,null,null,null,null,null,null,null,null,null,null,null,null,null,null,null,null,null,null,null,null,null,null,null,null,null,null,null,null,null,null,null,null,null,null,null,null,null,null,null,null,null,null,null,null,null,null,null,null,null,null,null,null,null,null,null,null,null,null,null,null,null,null,null,null,null,null,null,null,null,null,null,null,null,null,null,null,null,null,null,null,null,null,null,null,null,null,null,null,null,null,null,null,null,null,null,null,null,null,null,null,null,null,null,null,null,null,null,null,null,null,null,2,96,20,20,"12:00:00",6,86,13,13,"11:05:00"]
[223,"Czajkowski","Radosław","Siemianice",179,3,0,0,null,null,null,null,null,null,null,null,null,null,null,null,null,null,null,null,null,null,null,null,null,null,null,null,null,null,null,null,null,null,null,null,null,null,null,null,null,null,null,null,null,null,null,null,null,null,null,null,null,null,null,null,null,null,null,null,null,null,null,null,null,null,null,null,null,null,null,null,null,null,null,null,null,null,null,null,null,null,null,null,null,null,null,null,null,null,null,null,null,null,null,null,null,null,null,null,null,null,null,null,null,null,null,null,null,null,null,null,null,null,null,null,null,null,null,null,null,null,null,null,null,null,null,null,null,null,null,null,null,null,null,null,null,null,null,null,null,null,null,null,null,null,null,null,null,null,null,null,null,null,null,null,null,null,null,null,null,null,null,null,null,null,null,null,null,null,null,null,null,null,null,null,null,null,null,null,null,null,null,null,null,null,null,null,null,null,null,null,null,null,null,null,null,null,null,null,null,null,null,null,52,37,10,10,"08:35:00",18,71,7,7,"11:58:00",18,71,12,12,"11:09:00"]
[224,"Tysarczyk","Piotr","Gdańsk",178,7,0,0,null,null,null,null,null,null,null,null,null,null,null,null,null,null,null,null,null,null,null,null,null,null,null,null,null,null,null,null,null,null,null,null,null,null,null,null,null,null,null,null,null,null,null,null,null,null,null,null,null,null,null,null,null,null,null,null,null,null,null,null,109,1,13,41,"11:15:33",null,null,null,null,null,null,null,null,null,null,null,null,null,null,null,null,null,null,null,null,null,null,null,null,null,202,1,7,27,"08:57:04",null,null,null,null,null,83,6,13,43,"11:33:00",null,null,null,null,null,173,1,8,25,"10:19:08.400",null,null,null,null,null,null,null,null,null,null,null,null,null,null,null,null,null,null,null,null,null,null,null,null,null,29,60,16,53,"11:19:00",null,null,null,null,null,null,null,null,null,null,null,null,null,null,null,34,55,15,48,"11:05:00",null,null,null,null,null,35,54,15,45,"11:46:00"]
[225,"Grzegorzewski","Krzysztof","Poznań",178,3,0,0,null,null,null,null,null,null,null,null,null,null,null,null,null,null,null,null,null,null,null,null,null,null,null,null,null,null,null,null,null,null,null,null,null,null,null,null,null,null,null,null,null,null,null,null,null,null,null,null,null,null,null,null,null,null,null,null,null,null,null,null,null,null,null,null,null,null,null,null,null,null,null,null,null,null,null,null,null,null,null,null,null,null,null,null,null,null,null,null,null,null,null,null,null,null,null,null,null,null,null,null,null,null,null,null,null,null,null,null,null,null,null,null,null,null,null,null,null,null,null,null,null,null,null,null,null,null,null,null,null,null,79,10,11,33,"09:02:00",null,null,null,null,null,null,null,null,null,null,5,88,18,55,"11:31:00",9,80,17,53,"11:52:00"]
[226,"Rohde","Stanisław","Gdańsk",177,5,0,0,null,null,null,null,null,null,null,null,null,null,null,null,null,null,null,null,null,null,null,null,null,null,null,null,null,null,null,null,null,null,null,null,null,null,null,null,null,null,null,null,null,null,null,null,null,null,null,null,null,null,null,null,null,null,null,null,null,null,null,null,null,null,null,null,null,null,null,null,null,null,null,null,null,null,null,null,null,null,null,null,null,null,null,null,null,null,null,null,null,null,null,null,null,null,null,null,null,null,null,null,63,26,14,44,"11:41:00",null,null,null,null,null,null,null,null,null,null,null,null,null,null,null,null,null,null,null,null,null,null,null,null,null,null,null,null,null,null,null,null,null,null,null,null,null,null,null,null,null,null,null,null,null,null,null,null,null,null,null,null,null,null,null,null,null,null,null,null,null,null,null,null,null,null,null,null,null,null,22,67,13,45,"11:48:00",69,20,10,29,"11:31:00",26,63,12,12,"11:20:00",89,1,13,13,"11:44:00"]
[227,"Grządziela","Grzegorz","Gdańsk",177,3,0,0,null,null,null,null,null,null,null,null,null,null,null,null,null,null,null,null,null,null,null,null,null,null,null,null,null,null,null,null,null,null,null,null,null,null,null,null,null,null,null,null,null,null,null,null,null,null,null,null,null,null,null,null,null,null,null,null,null,null,null,null,null,null,null,null,null,null,null,null,null,null,null,null,null,null,null,null,null,null,null,null,null,null,null,null,null,null,null,null,null,null,null,null,null,null,null,null,null,null,null,null,null,null,null,null,null,null,null,null,null,null,null,null,null,null,null,null,null,null,null,null,null,null,null,null,null,null,null,null,null,null,null,null,null,null,null,null,null,null,null,null,null,null,null,null,null,null,null,null,null,null,null,null,null,null,null,null,null,null,null,null,null,null,null,null,null,null,null,null,null,null,null,null,null,null,null,null,null,null,null,null,null,null,null,null,null,null,null,null,null,null,null,null,null,null,null,null,null,null,null,null,52,37,10,10,"08:35:00",25,64,6,6,"11:01:00",13,76,13,13,"11:31:00"]
[228,"Paroń","Paweł","Warszawa",175,8,0,0,null,null,null,null,null,null,null,null,null,null,null,null,null,null,null,null,null,null,null,null,null,null,null,null,null,null,null,null,null,null,null,null,null,null,null,null,null,null,null,null,null,null,null,null,null,null,null,null,null,null,null,null,null,null,null,null,null,null,null,null,null,null,null,null,null,null,null,null,null,null,null,null,null,null,null,null,null,null,null,null,null,null,null,null,null,null,null,null,null,null,null,null,null,null,null,null,null,null,null,null,null,null,null,null,null,null,null,null,null,null,null,null,null,null,null,null,null,null,null,null,null,null,null,null,null,null,null,null,null,null,null,null,null,null,null,null,null,null,null,null,null,null,null,null,null,null,null,null,null,null,null,null,null,null,null,null,null,null,null,null,128,1,8,32,"11:32:00",78,11,10,32,"11:47:00",74,15,13,40,"11:26:00",101,1,8,25,"11:57:00",72,17,10,29,"11:52:00",50,39,11,11,"11:27:00",66,23,14,14,"11:49:00",null,null,null,null,null,null,null,null,null,null,21,68,6,6,"10:25:00"]
[229,"Wrona","Łukasz","Siedlce",175,4,0,0,null,null,null,null,null,null,null,null,null,null,null,null,null,null,null,null,null,null,null,null,null,null,null,null,null,null,null,null,null,null,null,null,null,null,null,37,52,13,39,"12:02:40",31,58,14,49,"11:40:03",45,44,16,47,"11:46:59",68,21,13,40,"12:04:55"]
[230,"Zygmunt","Andrzej","Gdynia",175,3,0,0,null,null,null,null,null,null,null,null,null,null,null,null,null,null,null,null,null,null,null,null,null,null,null,null,null,null,null,null,null,null,null,null,null,null,null,null,null,null,null,null,null,null,null,null,null,null,null,null,null,null,null,null,null,null,null,null,null,null,null,null,null,null,null,null,null,null,null,null,null,null,null,null,null,null,null,null,null,null,null,null,null,null,null,null,null,null,null,null,null,null,null,null,null,null,null,null,null,null,null,null,30,59,20,49,"12:11:00",12,77,17,57,"11:52:00",50,39,13,35,"11:17:18.600"]
[231,"Rygalski","Grzegorz","Józefów",174,5,0,0,null,null,null,null,null,null,null,null,null,null,47,42,18,45,"11:37:38",85,4,11,29,"10:32:37",79,10,17,44,"13:57:59",36,53,19,46,"13:37:51",24,65,14,39,"13:33:54"]
[232,"Sokołowski","Henryk","Wąbrzeźno",174,5,0,0,null,null,null,null,null,null,null,null,null,null,null,null,null,null,null,null,null,null,null,null,null,null,null,null,null,null,null,null,null,null,null,null,null,null,null,null,null,null,null,null,null,null,null,null,null,null,null,null,null,null,null,null,null,null,null,null,null,null,null,null,null,null,null,null,null,null,null,null,null,null,null,null,null,null,null,null,null,null,null,null,null,null,null,null,null,16,73,"16","50","11:43:47",158,1,9,29,"11:43:40",45,44,13,43,"11:19:19.800",null,null,null,null,null,null,null,null,null,null,null,null,null,null,null,null,null,null,null,null,null,null,null,null,null,null,null,null,null,null,null,null,null,null,null,null,null,null,null,null,null,null,null,null,null,null,null,null,null,null,null,null,null,null,null,null,null,null,null,null,null,null,null,null,null,null,null,null,null,null,null,null,null,null,null,null,null,null,null,null,34,55,12,34,"11:03:00",null,null,null,null,null,178,1,8,8,"09:36:00"]
[233,"Sozański","Piotr","Kraków",173,4,0,1,null,null,null,null,null,null,null,null,null,null,null,null,null,null,null,null,null,null,null,null,null,null,null,null,null,null,null,null,null,null,null,null,null,null,null,null,null,null,null,null,null,null,null,null,null,null,null,null,null,null,null,null,null,null,null,null,null,null,null,null,null,null,null,null,null,null,null,null,null,null,null,null,null,null,null,null,null,null,null,null,null,null,null,null,null,null,null,null,null,null,null,null,null,null,null,null,null,null,null,null,null,null,null,null,null,null,null,null,null,null,null,null,null,null,null,null,null,null,null,null,null,null,null,null,null,null,null,null,null,null,null,null,null,null,null,null,null,null,null,null,269,1,2,-19,"12:26:00",null,null,null,null,null,4,90,17,55,"11:50:00",87,2,10,29,"10:08:00",9,80,20,60,"11:48:00"]
[234,"Oględziński","Dominik","Kraków",173,3,1,1,null,null,null,null,null,null,null,null,null,null,null,null,null,null,null,null,null,null,null,null,null,null,null,null,null,null,null,null,null,null,null,null,null,null,null,null,null,null,null,null,null,null,null,null,null,null,null,null,null,null,null,null,null,null,null,null,null,null,null,null,null,null,null,null,null,null,null,null,null,null,null,null,null,null,null,null,null,null,null,null,null,null,null,null,null,null,null,null,null,null,null,null,null,null,null,null,null,null,null,null,null,null,null,null,null,null,null,null,null,null,null,null,null,null,null,null,null,null,null,null,null,null,null,null,null,null,null,null,null,null,null,null,null,null,null,null,null,null,null,null,17,72,19,56,"11:49:00",null,null,null,null,null,null,null,null,null,null,158,1,18,-106,"14:42:00",1,100,20,60,"10:28:00"]
[235,"Truszkowska","Kamila","Gdańsk",173,3,0,0,null,null,null,null,null,31,58,17,47,"13:03:16",null,null,null,null,null,23,66,19,52,"13:29:10",40,49,21,57,"13:30:55"]
[236,"Florek","Przemysław","Gdańsk",171,12,0,0,null,null,null,null,null,25,64,18,48,"13:23:28",null,null,null,null,null,67,22,12,33,"11:59:08",87,2,17,41,"13:44:32",70,19,15,38,"13:07:29",null,null,null,null,null,null,null,null,null,null,null,null,null,null,null,64,25,11,40,"11:57:18","NKL",0,11,-999,"NKL",73,16,12,42,"11:29:23",82,7,14,44,"11:49:48",76,13,11,37,"11:34:26",106,1,11,37,"11:38:00",148,1,7,27,"11:59:00",197,1,3,13,"11:57:24"]
[237,"Majerski","Wojciech","Słupsk",171,3,1,0,null,null,null,null,null,null,null,null,null,null,null,null,null,null,null,null,null,null,null,null,null,null,null,null,null,null,null,null,null,null,null,null,null,null,null,null,null,null,null,null,null,null,null,null,null,null,null,null,null,null,null,null,null,null,null,null,null,null,null,null,null,null,null,null,null,null,null,null,null,null,null,null,null,null,null,null,null,null,null,null,null,null,null,null,null,null,null,null,null,null,null,null,null,null,null,null,null,null,null,null,null,null,null,null,null,null,null,null,null,null,null,null,null,null,null,null,null,null,null,null,null,null,null,null,null,null,null,null,null,null,null,null,null,null,null,null,null,null,null,null,null,null,null,null,null,null,null,null,null,null,null,null,null,null,null,null,null,null,null,null,null,null,null,null,null,null,null,null,null,null,null,null,null,null,null,null,null,null,null,null,null,null,null,null,null,null,null,null,null,null,null,null,null,null,null,null,null,null,null,null,115,1,2,2,"01:30:00",19,70,7,7,"11:59:00",1,100,17,17,"11:38:00"]
[238,"Mechliński","Łukasz","Lębork",170,2,1,0,null,null,null,null,null,null,null,null,null,null,null,null,null,null,null,null,null,null,null,null,null,null,null,null,null,null,null,null,null,null,null,null,null,null,null,null,null,null,null,null,null,null,null,null,null,null,null,null,null,null,null,null,null,null,null,null,null,null,null,null,null,null,null,null,null,null,null,null,null,null,null,null,null,null,null,null,null,null,null,null,null,null,null,null,null,null,null,null,null,null,null,null,null,null,null,null,null,null,null,null,null,null,null,null,null,null,null,null,null,null,null,null,null,null,null,null,null,null,null,null,null,null,null,null,null,null,null,null,null,null,null,null,null,null,null,null,null,null,null,null,null,null,null,null,null,null,null,null,null,null,null,null,null,null,null,null,null,null,null,null,null,null,null,null,null,null,null,null,null,null,null,null,null,null,null,null,null,null,null,null,null,null,null,null,null,null,null,null,null,null,null,null,null,null,null,null,null,null,null,null,null,null,null,null,null,19,70,7,7,"11:59:00",1,100,17,17,"11:38:00"]
[239,"Gożdzik","Tomasz","Gdańsk",169,5,0,0,null,null,null,null,null,null,null,null,null,null,null,null,null,null,null,null,null,null,null,null,null,null,null,null,null,null,null,null,null,null,null,null,null,null,null,null,null,null,null,null,null,null,null,null,null,null,null,null,null,null,null,null,null,null,null,null,null,null,null,null,null,null,null,null,null,null,null,null,null,null,null,null,null,null,null,null,null,null,null,null,null,null,null,null,null,null,null,null,null,null,null,null,null,null,null,null,null,null,null,null,null,null,null,null,null,null,null,null,null,null,null,null,null,null,null,null,null,null,null,null,null,null,null,null,null,null,null,null,null,null,null,null,null,null,null,null,null,null,null,null,null,null,null,null,null,null,null,null,null,null,null,null,null,null,null,null,null,null,null,null,null,null,null,null,null,null,null,null,null,null,null,null,null,null,null,47,42,11,38,"11:44:00",null,null,null,null,null,null,null,null,null,null,67,22,14,14,"11:51:00",170,1,6,6,"08:50:00",null,null,null,null,null,39,50,6,6,"11:56:00",35,54,8,8,"08:21:00"]
[240,"Szymczak","Robert","Gdańsk",169,4,0,0,null,null,null,null,null,null,null,null,null,null,null,null,null,null,null,null,null,null,null,null,null,null,null,null,null,null,null,null,null,null,null,null,null,null,null,null,null,null,null,null,null,null,null,null,null,null,null,null,null,null,null,null,null,null,null,null,null,null,null,null,null,null,null,null,null,null,null,null,null,null,null,null,null,null,null,null,null,null,null,null,null,null,null,null,null,null,null,null,null,null,null,null,null,null,null,null,null,null,null,null,13,77,16,53,"11:41:00",null,null,null,null,null,null,null,null,null,null,null,null,null,null,null,null,null,null,null,null,null,null,null,null,null,null,null,null,null,null,31,58,16,51,"12:03:00",null,null,null,null,null,null,null,null,null,null,null,null,null,null,null,56,33,11,35,"11:58:00",112,1,9,34,"11:41:00"]
[241,"Wojciechowska","Urszula","Nowa Iwiczna",169,4,0,0,null,null,null,null,null,null,null,null,null,null,null,null,null,null,null,null,null,null,null,null,null,null,null,null,null,null,null,null,null,null,null,null,null,null,null,null,null,null,null,null,null,null,null,null,null,null,null,null,null,null,null,null,null,null,null,null,null,null,null,null,null,null,null,null,null,null,null,null,null,null,null,null,null,null,null,null,null,null,null,null,null,null,null,null,null,null,null,null,null,null,16,73,11,43,"11:52:42",34,55,14,46,"11:54:13.800",49,40,13,47,"10:58:00",null,null,null,null,null,126,1,8,28,"11:39:08.400"]
[242,"Pesta","Adam","Gdynia",168,7,0,0,null,null,null,null,null,null,null,null,null,null,null,null,null,null,null,null,null,null,null,null,null,null,null,null,null,null,null,null,null,null,null,null,null,null,null,null,null,null,null,null,null,null,null,null,null,null,null,null,null,null,null,null,null,null,null,null,null,null,null,null,null,null,null,null,null,null,null,null,null,null,null,null,null,null,null,null,null,null,null,null,null,null,null,null,null,null,null,null,null,null,327,1,3,12,"08:23:28",261,1,4,14,"07:59:22.800",null,null,null,null,null,null,null,null,null,null,null,null,null,null,null,null,null,null,null,null,138,1,10,32,"11:14:00",19,70,12,44,"11:36:00",55,34,10,36,"11:19:00",46,43,14,47,"11:36:00",71,18,15,44,"10:57:00"]
[243,"Stach","Michał","Będzin",168,7,0,0,null,null,null,null,null,null,null,null,null,null,null,null,null,null,null,null,null,null,null,null,null,null,null,null,null,null,null,null,null,null,null,null,null,null,null,null,null,null,null,null,null,null,null,null,null,null,null,null,null,null,null,null,null,null,null,null,null,null,null,null,null,null,null,null,null,null,null,null,null,null,null,null,null,null,null,null,null,null,null,null,null,null,null,null,null,null,null,null,null,null,null,null,null,null,null,null,null,null,null,null,null,null,null,null,null,null,null,null,null,null,null,null,null,null,null,null,null,null,null,null,241,1,7,22,"08:44:00",null,null,null,null,null,null,null,null,null,null,null,null,null,null,null,88,1,14,41,"11:45:00",null,null,null,null,null,28,61,14,45,"11:35:00",null,null,null,null,null,null,null,null,null,null,null,null,null,null,null,26,63,14,48,"11:44:00",null,null,null,null,null,48,41,12,32,"11:50:00","NKL",0,0,0,"NKL",94,1,13,13,"11:48:00"]
[244,"Sobieszczański","Bartłomiej","Piła",167,6,0,0,null,null,null,null,null,null,null,null,null,null,null,null,null,null,null,null,null,null,null,null,null,null,null,null,null,null,null,null,null,null,null,null,null,null,null,null,null,null,null,null,null,null,null,null,null,null,null,null,null,null,null,null,null,null,null,null,null,null,null,null,null,null,null,null,null,null,null,null,null,null,null,null,null,null,null,null,null,null,null,null,null,null,null,null,null,null,null,null,null,null,null,null,null,null,null,null,null,null,null,null,null,null,null,null,null,null,null,null,null,null,null,null,null,null,null,null,null,null,null,null,110,1,10,35,"11:51:00",42,47,14,39,"11:39:00",43,46,10,37,0.484027777777778,91,1,12,40,0.47986111111111102,null,null,null,null,null,null,null,null,null,null,null,null,null,null,null,42,47,15,37,0.50624999999999998,null,null,null,null,null,null,null,null,null,null,null,null,null,null,null,null,null,null,null,null,null,null,null,null,null,null,null,null,null,null,64,25,14,14,"11:48:00"]
[245,"Modzelewski","Tomir","Rumia",166,7,0,0,null,null,null,null,null,null,null,null,null,null,null,null,null,null,null,null,null,null,null,null,null,null,null,null,null,null,null,null,null,null,null,null,null,null,null,null,null,null,null,null,null,null,null,null,null,null,null,null,null,null,null,null,null,null,null,null,null,null,null,null,null,null,null,null,null,null,null,null,null,null,null,null,null,null,null,null,null,null,null,null,null,null,null,null,null,null,null,null,null,null,null,null,null,null,null,null,null,null,null,null,null,null,null,null,null,null,null,null,null,null,null,null,null,null,null,null,null,null,null,null,null,null,null,null,null,87,2,10,32,"11:33:00",null,null,null,null,null,49,40,14,47,"11:52:00",null,null,null,null,null,54,35,12,40,"12:00:00",123,1,10,30,"11:44:00",50,39,11,35,"11:36:00",68,21,12,41,"11:16:00",61,28,10,34,"11:53:00"]
[246,"Załuski","Jan","Koszalin",166,5,0,0,null,null,null,null,null,null,null,null,null,null,null,null,null,null,null,null,null,null,null,null,null,null,null,null,null,null,null,null,null,null,null,null,null,null,null,null,null,null,null,null,null,null,null,null,null,null,null,null,null,null,null,null,null,null,null,null,null,null,null,null,null,null,null,null,null,null,null,null,null,null,null,null,null,null,null,null,null,null,null,null,null,null,null,null,null,null,null,null,null,null,null,null,null,null,null,null,null,null,null,null,92,1,13,42,"11:48:00",null,null,null,null,null,76,13,11,32,"11:47:11.400",null,null,null,null,null,33,56,13,43,"11:51:00",45,44,13,38,"11:37:00",37,52,10,39,"11:37:00"]
[247,"Iwosa","Marek","Hamburg",166,4,0,0,null,null,null,null,null,null,null,null,null,null,null,null,null,null,null,null,null,null,null,null,null,null,null,null,null,null,null,null,null,null,null,null,null,null,null,null,null,null,null,null,null,null,null,null,null,null,null,null,null,null,null,null,null,null,null,null,null,null,null,null,null,null,null,null,null,null,null,null,null,null,null,null,null,null,null,null,null,null,null,null,null,null,null,null,null,null,null,null,null,null,null,null,null,null,null,null,null,null,null,null,null,null,null,null,null,null,null,null,null,null,null,null,null,null,null,15,74,19,56,"11:36:26.400",null,null,null,null,null,null,null,null,null,null,null,null,null,null,null,54,35,15,45,"11:19:00",38,51,14,49,"11:26:00",83,6,11,35,"11:56:00"]
[249,"Orzoł","Piotr","Olsztyn",166,4,0,0,null,null,null,null,null,null,null,null,null,null,null,null,null,null,null,null,null,null,null,null,null,null,null,null,null,null,null,null,null,null,null,null,null,null,null,null,null,null,null,null,24,65,17,53,"11:26:41",51,38,15,44,"11:56:31",56,33,13,42,"11:53:52",59,30,14,46,"11:53:36"]
[258,"Gołębiowski","Wojciech","Elbląg",162,2,0,0,null,null,null,null,null,null,null,null,null,null,null,null,null,null,null,null,null,null,null,null,null,null,null,null,null,null,null,null,null,null,null,null,null,null,null,null,null,null,null,null,null,null,null,null,null,null,null,null,null,null,null,null,null,null,null,null,null,null,null,null,null,null,null,null,null,null,null,null,null,null,null,null,null,null,null,null,null,null,null,null,null,null,null,null,null,null,null,null,null,null,null,null,null,null,null,null,null,null,null,null,null,null,null,null,null,null,null,null,null,null,null,null,null,null,null,null,null,null,null,null,null,null,null,null,null,null,null,null,null,null,null,null,null,null,null,null,null,null,null,null,null,null,null,null,null,null,null,null,null,null,null,null,null,null,null,null,null,null,null,null,null,null,null,null,null,6,86,15,51,"11:45:00",null,null,null,null,null,13,76,15,51,"11:49:00"]
[271,"Mejka","Bartłomiej","Pruszcz Gdański",150,6,0,0,null,null,null,null,null,null,null,null,null,null,39,50,19,47,"13:36:51",null,null,null,null,null,56,33,20,51,"13:56:45",null,null,null,null,null,55,34,12,29,"13:41:04",null,null,null,null,null,null,null,null,null,null,null,null,null,null,null,null,null,null,null,null,null,null,null,null,null,null,null,null,null,null,null,null,null,null,null,null,null,null,null,null,null,null,null,null,null,null,null,null,null,null,null,null,null,null,null,null,null,null,null,null,null,null,null,null,null,null,null,null,null,null,null,null,null,null,null,null,null,null,null,null,null,null,null,null,null,null,null,null,null,null,null,null,null,null,null,null,null,null,null,null,null,null,null,null,null,null,null,null,null,null,null,null,null,null,null,null,null,null,null,null,null,null,null,null,null,null,null,null,null,null,59,30,12,34,"11:45:00",null,null,null,null,null,null,null,null,null,null,null,null,null,null,null,null,null,null,null,null,null,null,null,null,null,86,3,9,9,"11:35:00",null,null,null,null,null,"NKL",0,8,0,"NKL"]
[277,"Groth","Ryszard","Rumia",146,6,0,0,null,null,null,null,null,null,null,null,null,null,null,null,null,null,null,null,null,null,null,null,null,null,null,null,null,null,null,null,null,null,null,null,null,null,null,null,null,null,null,null,null,null,null,null,null,null,null,null,null,null,null,null,null,null,null,null,null,null,null,null,null,null,null,null,null,null,null,null,null,null,null,null,null,null,null,null,null,null,null,null,null,null,null,null,null,null,null,null,null,null,49,40,11,37,"11:55:22",null,null,null,null,null,109,1,12,42,"11:53:00",null,null,null,null,null,null,null,null,null,null,50,39,14,48,"11:55:23.400",95,1,11,36,"11:43:00",75,14,10,34,"11:48:00",38,51,10,39,"11:46:00"]
[289,"Łuhowy","Jakub","Toruń",140,3,0,0,null,null,null,null,null,null,null,null,null,null,null,null,null,null,null,null,null,null,null,null,null,null,null,null,null,null,null,null,null,null,null,null,null,null,null,null,null,null,null,null,null,null,null,null,null,null,null,null,null,null,null,null,null,null,null,null,null,null,null,null,null,null,null,null,null,null,null,null,null,null,null,null,null,null,null,null,null,null,null,null,null,null,null,null,null,null,null,null,null,null,null,null,null,null,null,null,null,null,null,null,null,null,null,null,null,null,null,null,null,null,null,null,null,null,null,null,null,null,null,null,null,null,null,null,null,null,null,null,null,null,null,null,null,null,null,null,null,null,null,null,null,null,null,null,null,null,null,null,null,null,null,null,null,null,null,null,null,null,null,null,null,null,null,null,null,null,null,null,null,null,32,57,14,46,"11:58:00",null,null,null,null,null,31,58,11,35,"11:30:00",64,25,10,10,"11:27:00"]
[296,"Dudek","Marcin","Gdańsk",137,8,0,0,null,null,null,null,null,null,null,null,null,null,null,null,null,null,null,null,null,null,null,null,null,null,null,null,null,null,null,null,null,null,null,null,null,null,null,null,null,null,null,null,null,null,null,null,null,null,null,null,null,null,null,null,null,null,null,null,null,null,null,null,null,null,null,null,null,null,null,null,null,null,null,null,null,null,null,null,null,null,null,null,null,null,null,null,null,null,null,null,null,null,null,null,null,null,null,null,null,null,null,null,null,null,null,null,null,null,null,null,null,null,212,1,7,23,"11:40:24.600",134,1,11,38,"11:51:27",null,null,null,null,null,null,null,null,null,null,null,null,null,null,null,null,null,null,null,null,101,1,12,40,"11:37:00",null,null,null,null,null,54,35,12,40,"11:46:00",46,43,11,36,"11:55:00",78,11,13,39,"11:13:00",null,null,null,null,null,55,34,14,42,"11:46:00",78,11,10,30,"11:11:00"]
[298,"Tysarczyk","Jacek","Gdańsk",135,8,0,0,null,null,null,null,null,null,null,null,null,null,null,null,null,null,null,null,null,null,null,null,null,null,null,null,null,null,null,null,null,null,54,35,12,29,"13:40:57",null,null,null,null,null,103,1,9,15,"12:16:31",null,null,null,null,null,null,null,null,null,null,null,null,null,null,null,null,null,null,null,null,null,null,null,null,null,121,1,11,35,"11:54:00",null,null,null,null,null,null,null,null,null,null,null,null,null,null,null,80,9,10,34,"11:31:49",null,null,null,null,null,82,7,13,43,"11:33:00",null,null,null,null,null,175,1,8,25,"10:24:20.400",null,null,null,null,null,null,null,null,null,null,null,null,null,null,null,null,null,null,null,null,null,null,null,null,null,null,null,null,null,null,null,null,null,null,null,null,null,null,null,null,null,null,null,null,null,34,55,15,48,"11:05:00",null,null,null,null,null,63,26,14,41,"11:46:00"]
[307,"Szymanek","Dawid","Pinczyn",132,4,0,0,62,27,21,48,"13:37:24",null,null,null,null,null,44,45,18,47,"13:55:09",52,37,14,36,"13:55:36",66,23,19,47,"13:36:14"]
[316,"Mizerski","Marek","Sopot",128,8,0,0,null,null,null,null,null,null,null,null,null,null,null,null,null,null,null,null,null,null,null,null,null,null,null,null,null,null,null,null,null,null,null,null,null,null,null,null,null,null,null,null,null,null,null,null,null,null,null,null,null,null,null,null,null,null,null,null,null,null,null,null,null,null,null,null,null,null,null,null,null,null,null,null,null,null,null,null,null,null,null,null,null,null,null,null,null,null,null,null,null,null,null,null,null,null,null,null,null,null,null,null,null,null,null,null,null,111,1,13,42,"11:29:00",null,null,null,null,null,null,null,null,null,null,90,1,11,36,"11:17:00",87,2,10,32,"11:33:00",null,null,null,null,null,80,9,14,41,"11:48:00",74,15,14,44,"12:02:00",37,52,13,42,"11:44:00",66,23,11,39,"11:59:00",64,25,10,33,"11:29:00"]
[326,"Szwaracka","Małgorzata","Gdańsk",125,6,0,0,null,null,null,null,null,71,18,11,29,"13:24:36",null,null,null,null,null,43,46,15,42,"13:29:14",88,1,14,41,"13:41:30",68,21,14,39,"13:37:46",68,21,10,27,"13:33:22",null,null,null,null,null,71,18,8,31,"11:04:07"]
[339,"Bigus","Oskar","Reda",122,3,0,0,null,null,null,null,null,null,null,null,null,null,null,null,null,null,null,null,null,null,null,null,null,null,null,null,null,null,null,null,null,null,null,null,null,null,null,null,null,null,null,null,null,null,null,null,null,null,null,null,null,null,null,null,null,null,null,null,null,null,null,null,null,null,null,null,null,null,null,null,null,null,null,null,null,null,null,null,null,null,null,null,null,null,null,null,null,null,null,null,null,null,null,null,null,null,null,null,null,null,null,null,null,null,null,null,null,null,null,null,null,null,null,null,null,null,null,null,null,null,null,null,null,null,null,null,null,null,null,null,null,null,null,null,null,null,null,null,null,null,null,null,null,null,null,null,null,null,null,null,null,null,null,null,null,null,null,null,null,null,null,null,null,null,null,null,null,null,null,null,null,null,null,null,null,null,null,null,null,null,null,null,null,null,null,null,null,null,null,null,null,null,61,28,14,14,"11:42:00",59,30,10,10,"11:18:00",25,64,12,12,"09:25:00"]
[345,"Hala","Karel","Gdynia",119,6,0,0,null,null,null,null,null,null,null,null,null,null,62,27,15,40,"13:32:21",66,23,12,33,"11:58:51",86,3,17,41,"13:44:15",51,38,16,43,"13:55:00",null,null,null,null,null,null,null,null,null,null,null,null,null,null,null,62,27,11,40,"11:56:52",100,1,11,35,"11:55:15"]
[357,"Kosiorek","Małgorzata","Ełk",112,5,0,0,null,null,null,null,null,null,null,null,null,null,65,24,15,39,"10:34:08",null,null,null,null,null,61,28,19,50,"11:39:03",null,null,null,null,null,null,null,null,null,null,null,null,null,null,null,null,null,null,null,null,null,null,null,null,null,110,1,11,32,"09:01:27",57,32,15,46,"12:01:06",null,null,null,null,null,62,27,13,40,"11:16:55"]
[364,"Drabik","Krzysztof","Gdynia",110,2,0,0,null,null,null,null,null,null,null,null,null,null,null,null,null,null,null,null,null,null,null,null,null,null,null,null,null,null,null,null,null,null,null,null,null,null,null,null,null,null,null,null,null,null,null,null,null,null,null,null,null,null,null,null,null,null,null,null,null,null,null,null,null,null,null,null,null,null,null,null,null,null,null,null,null,null,null,null,null,null,null,null,null,null,null,null,null,null,null,null,null,null,null,null,null,null,null,null,null,null,null,null,20,69,20,50,"12:10:00",null,null,null,null,null,48,41,13,35,"11:17:15.600"]
[373,"Wojniusz","Maciej","Gdynia",107,5,0,0,null,null,null,null,null,null,null,null,null,null,null,null,null,null,null,null,null,null,null,null,null,null,null,null,null,null,null,null,null,null,null,null,null,null,null,null,null,null,null,null,null,null,null,null,null,null,null,null,null,null,null,null,null,null,null,null,null,null,null,null,null,null,null,null,null,null,null,null,null,null,null,null,null,null,null,null,null,null,null,null,null,null,null,null,null,null,null,null,null,null,null,null,null,null,null,171,1,9,29,"11:25:20.400",null,null,null,null,null,60,29,14,47,"11:30:00",null,null,null,null,null,null,null,null,null,null,null,null,null,null,null,null,null,null,null,null,null,null,null,null,null,null,null,null,null,null,null,null,null,null,null,null,null,null,null,null,null,null,null,null,null,null,null,null,null,null,null,null,null,null,null,null,null,null,null,null,null,null,null,null,null,31,58,13,42,"11:26:00",null,null,null,null,null,null,null,null,null,null,122,1,12,12,"11:31:00",71,18,10,10,"11:56:00"]
[377,"Miśkiewicz","Marcin","Kozienice",106,2,0,0,null,null,null,null,null,null,null,null,null,null,null,null,null,null,null,49,40,15,37,"11:09:22",null,null,null,null,null,null,null,null,null,null,null,null,null,null,null,23,66,15,47,"11:28:08"]
[384,"Gębarowski","Piotr","Warszawa",103,2,0,0,48,41,23,54,"13:45:53",27,62,18,48,"13:30:23"]
[395,"Skwarski","Witold","Olsztyn",100,4,0,0,null,null,null,null,null,null,null,null,null,null,null,null,null,null,null,null,null,null,null,null,null,null,null,null,null,null,null,null,null,null,null,null,null,null,null,null,null,null,null,null,null,null,null,null,null,null,null,null,null,null,null,null,null,null,null,108,1,6,20,"07:20:28",null,null,null,null,null,null,null,null,null,null,null,null,null,null,null,null,null,null,null,null,43,47,17,44,"12:10:54",null,null,null,null,null,173,1,11,28,"10:58:20",null,null,null,null,null,38,51,15,48,"11:45:00"]
[403,"Dębski","Bartosz ","Bytów",97,6,0,0,null,null,null,null,null,null,null,null,null,null,null,null,null,null,null,null,null,null,null,null,null,null,null,null,null,null,null,null,null,null,null,null,null,null,null,null,null,null,null,null,null,null,null,null,null,null,null,null,null,null,null,null,null,null,null,null,null,null,null,null,null,null,null,null,null,null,null,null,null,null,null,null,null,null,null,null,null,null,null,null,null,null,null,null,null,null,null,null,null,null,null,null,null,null,null,176,1,9,28,"11:16:06.600",100,1,12,42,"11:15:00",null,null,null,null,null,241,1,9,20,"12:06:22.800",null,null,null,null,null,null,null,null,null,null,null,null,null,null,null,68,21,10,34,"11:28:00",null,null,null,null,null,null,null,null,null,null,null,null,null,null,null,null,null,null,null,null,null,null,null,null,null,56,33,13,44,"11:45:00",49,40,12,36,"11:45:00"]
[413,"Czywczyński","Kamil","Bydgoszcz",96,1,0,0,null,null,null,null,null,null,null,null,null,null,null,null,null,null,null,null,null,null,null,null,null,null,null,null,null,null,null,null,null,null,null,null,null,null,null,null,null,null,null,null,null,null,null,null,null,null,null,null,null,null,null,null,null,null,null,null,null,null,null,null,null,null,null,null,null,null,null,null,null,null,null,null,null,null,null,null,null,null,null,null,null,null,null,null,null,null,null,null,null,null,null,null,null,null,null,null,null,null,null,null,null,null,null,null,null,null,null,null,null,null,null,null,null,null,null,null,null,null,null,null,null,null,null,null,null,null,null,null,null,null,null,null,null,null,null,null,null,null,null,null,null,null,null,null,null,null,null,null,null,null,null,null,null,null,null,null,null,null,null,null,null,null,null,null,null,null,null,null,null,null,null,null,null,null,null,null,null,null,null,null,null,null,null,null,null,null,null,null,null,null,null,null,null,null,null,null,null,null,null,null,null,null,null,null,null,2,96,8,8,"11:41:00"]
[422,"Kruczek","Stanisław","Kraków",93,3,0,0,null,null,null,null,null,null,null,null,null,null,null,null,null,null,null,null,null,null,null,null,null,null,null,null,null,null,null,null,null,null,null,null,null,null,null,null,null,null,null,null,null,null,null,null,null,null,null,null,null,null,null,null,null,null,null,null,null,null,null,null,null,null,null,null,null,null,null,null,null,null,null,null,null,null,null,null,null,null,null,null,null,null,null,null,null,null,null,null,null,null,null,null,null,null,null,null,null,null,null,null,null,null,null,null,null,null,null,null,null,null,null,null,null,null,null,null,null,null,null,null,null,null,null,null,null,null,null,null,null,null,null,null,null,null,null,null,null,null,null,null,null,null,null,null,null,null,null,null,null,null,null,null,null,null,null,null,null,null,null,null,null,null,null,null,null,null,null,null,null,null,27,62,15,47,"11:35:00",59,30,13,35,"12:13:00",150,1,9,11,"12:26:00"]
[431,"Zając","Leszek","Warszawa",90,1,0,0,null,null,null,null,null,null,null,null,null,null,null,null,null,null,null,null,null,null,null,null,null,null,null,null,null,null,null,null,null,null,null,null,null,null,null,null,null,null,null,null,null,null,null,null,null,null,null,null,null,null,null,null,null,null,null,null,null,null,null,null,null,null,null,null,null,null,null,null,null,null,null,null,null,null,null,null,null,null,null,null,null,null,null,null,null,null,null,null,null,null,null,null,null,null,null,null,null,null,null,null,null,null,null,null,null,null,null,null,null,null,null,null,null,null,null,null,null,null,null,null,null,null,null,null,null,null,null,null,null,null,null,null,null,null,null,null,null,null,null,null,null,null,null,null,null,null,null,null,null,null,null,null,null,null,null,null,null,null,null,null,null,null,null,null,null,null,null,null,null,null,null,null,null,null,null,null,null,null,null,null,null,null,null,null,null,null,null,null,null,null,null,null,null,null,null,null,null,null,null,null,null,null,null,null,null,4,90,8,8,"11:44:00"]
[441,"Smykowski","Ryszard","Gdynia",87,3,0,0,null,null,null,null,null,null,null,null,null,null,null,null,null,null,null,null,null,null,null,null,null,null,null,null,null,null,null,null,null,null,null,null,null,null,null,null,null,null,null,null,null,null,null,null,null,null,null,null,null,null,null,null,null,null,null,null,null,null,null,null,null,null,null,null,null,null,null,null,null,null,null,null,null,null,null,null,null,null,null,null,null,null,null,null,null,null,null,null,null,null,null,null,null,null,null,79,10,12,39,"11:44:09",null,null,null,null,null,null,null,null,null,null,152,1,7,26,"11:03:03.600",null,null,null,null,null,null,null,null,null,null,null,null,null,null,null,13,76,13,45,"11:38:00"]
[445,"Ropela","Patryk","Wejherowo",86,3,0,0,null,null,null,null,null,null,null,null,null,null,null,null,null,null,null,null,null,null,null,null,null,null,null,null,null,null,null,null,null,null,null,null,null,null,null,null,null,null,null,null,null,null,null,null,null,null,null,null,null,null,null,null,null,null,null,null,null,null,null,null,null,null,null,null,null,null,null,null,null,null,null,null,null,null,null,null,null,null,null,null,null,null,null,null,null,null,null,null,null,null,null,null,null,null,null,null,null,null,null,null,null,null,null,null,null,null,null,null,null,null,null,null,null,null,null,null,null,null,null,null,null,null,null,null,null,null,null,null,null,null,null,null,null,null,null,null,null,null,null,null,null,null,null,null,null,null,null,null,null,null,null,null,null,null,null,null,null,null,null,null,null,null,null,null,null,null,null,null,null,null,null,null,null,null,null,null,null,null,null,null,null,null,null,null,null,null,null,null,null,null,84,5,13,13,"11:37:00",73,16,9,9,"10:07:00",24,65,12,12,"08:55:00"]
[452,"Michalak ","Marcin","Łódź",86,1,0,0,null,null,null,null,null,null,null,null,null,null,null,null,null,null,null,null,null,null,null,null,null,null,null,null,null,null,null,null,null,null,null,null,null,null,null,null,null,null,null,null,null,null,null,null,null,null,null,null,null,null,null,null,null,null,null,null,null,null,null,null,null,null,null,null,null,null,null,null,null,null,null,null,null,null,null,null,null,null,null,null,null,null,null,null,null,null,null,null,null,null,null,null,null,null,null,null,null,null,null,null,null,null,null,null,null,null,null,null,null,null,null,null,null,null,null,null,null,null,null,null,null,null,null,null,null,null,null,null,null,null,null,null,null,null,null,null,null,null,null,null,null,null,null,null,null,null,null,null,null,null,null,null,null,null,null,null,null,null,null,null,null,null,null,null,null,null,null,null,null,null,null,null,null,null,null,null,null,null,null,null,6,86,14,44,"11:52:00"]
[463,"Kalinowski","Andrzej","Gdańsk",83,11,0,0,null,null,null,null,null,null,null,null,null,null,null,null,null,null,null,null,null,null,null,null,null,null,null,null,null,null,null,null,null,null,null,null,null,null,null,71,18,9,28,"11:37:13",null,null,null,null,null,81,8,11,36,"11:50:17",null,null,null,null,null,null,null,null,null,null,null,null,null,null,null,null,null,null,null,null,null,null,null,null,null,null,null,null,null,null,null,null,null,null,null,143,1,"10","32","11:37:40",199,1,8,27,"11:31:00",null,null,null,null,null,null,null,null,null,null,92,1,13,44,"11:24:00",205,1,8,23,"11:55:04.200",null,null,null,null,null,92,1,11,36,"11:26:00",null,null,null,null,null,81,8,11,33,"11:35:00",102,1,11,38,"11:57:00",83,6,13,42,"11:47:00",52,37,12,40,"11:27:00"]
[471,"Gałązka","Grzegorz","Osielsko",82,3,0,0,43,46,24,59.99,"13:41:35",null,null,null,null,null,null,null,null,null,null,null,null,null,null,null,null,null,null,null,null,null,null,null,null,null,null,null,null,null,null,null,null,null,null,null,null,null,null,null,null,null,null,null,null,null,null,null,null,null,null,null,null,null,null,null,null,null,null,null,null,54,35,13,41,"11:51:06",123,1,11,34,"11:54:00"]
[480,"Kościelny","Wojciech","Kraków",80,2,0,0,null,null,null,null,null,null,null,null,null,null,null,null,null,null,null,null,null,null,null,null,null,null,null,null,null,null,null,null,null,null,null,null,null,null,null,null,null,null,null,null,null,null,null,null,null,null,null,null,null,null,null,null,null,null,null,null,null,null,null,null,null,null,null,null,null,null,null,null,null,null,null,null,null,null,null,null,null,null,null,null,null,null,null,null,null,null,null,null,null,null,null,null,null,null,null,null,null,null,null,null,null,null,null,null,null,null,null,null,null,null,null,null,null,null,null,null,null,null,null,null,null,null,null,null,null,null,null,null,null,null,null,null,null,null,null,null,null,null,null,null,null,null,null,null,null,null,null,null,null,null,null,null,null,null,null,null,null,null,null,null,null,null,null,null,null,null,null,null,null,null,10,79,16,54,"11:52:00",null,null,null,null,null,92,1,8,24,"08:52:00"]
[492,"Kaseja","Jan","Warszawa",79,1,0,1,null,null,null,null,null,null,null,null,null,null,null,null,null,null,null,null,null,null,null,null,10,79,24,60,"11:04:43"]
[499,"Skolimowski","Waldemar","Gdańsk",77,15,0,0,null,null,null,null,null,79,10,10,25,"10:36:18",84,5,13,34,"12:32:21",78,11,12,30,"12:01:17",null,null,null,null,null,76,13,13,34,"13:43:32",null,null,null,null,null,70,19,9,28,"11:37:12",null,null,null,null,null,79,10,11,36,"11:45:21",185,1,4,11,"07:54:20",null,null,null,null,null,null,null,null,null,null,null,null,null,null,null,null,null,null,null,null,null,null,null,null,null,null,null,null,null,null,142,1,"10","32","11:37:33",198,1,8,27,"11:30:48",null,null,null,null,null,131,1,11,39,"11:34:00",91,1,13,44,"11:24:00",204,1,8,23,"11:55:03",null,null,null,null,null,93,1,11,36,"11:27:00",null,null,null,null,null,null,null,null,null,null,140,1,11,32,"12:06:00",117,1,12,38,"11:04:00"]
[501,"Bojdecki","Filip","Warszawa",77,2,0,1,40,49,25,60,"13:58:01",null,null,null,null,null,61,28,17,40,"13:36:16"]
[510,"Tomaszewski","Leszek","Elbląg",75,8,0,0,null,null,null,null,null,null,null,null,null,null,null,null,null,null,null,null,null,null,null,null,null,null,null,null,null,null,null,null,null,null,null,null,null,null,null,null,null,null,null,null,null,null,null,null,null,null,null,null,null,null,null,null,null,null,null,98,1,10,24,"12:09:45",114,1,13,39,"11:46:59",78,11,12,36,"11:53:40",68,21,12,43,"11:37:00",71,18,11,37,"11:55:00",137,1,8,26,"11:59:19",69,21,"12","38","11:06:55",118,1,9,32,"11:47:12"]
[519,"Markowicz","Krystian","Poznań",74,1,0,0,null,null,null,null,null,null,null,null,null,null,null,null,null,null,null,null,null,null,null,null,null,null,null,null,null,null,null,null,null,null,null,null,null,null,null,null,null,null,null,null,null,null,null,null,null,null,null,null,null,null,null,null,null,null,null,null,null,null,null,null,null,null,null,null,null,null,null,null,null,null,null,null,null,null,null,null,null,null,null,null,null,null,null,null,null,null,null,null,null,null,null,null,null,null,null,null,null,null,null,null,null,null,null,null,null,null,null,null,null,null,null,null,null,null,null,null,null,null,null,null,null,null,null,null,null,null,null,null,null,null,null,null,null,null,null,null,null,null,null,null,null,null,null,null,null,null,null,null,null,null,null,null,null,null,null,null,null,null,null,null,null,null,null,null,null,null,null,null,null,null,null,null,null,null,null,null,null,null,null,null,null,null,null,null,null,null,null,null,null,null,15,74,17,17,"11:43:00"]
[529,"Zieliński","Mariusz","Rumia",73,1,0,0,null,null,null,null,null,null,null,null,null,null,null,null,null,null,null,null,null,null,null,null,null,null,null,null,null,null,null,null,null,null,null,null,null,null,null,null,null,null,null,null,null,null,null,null,null,null,null,null,null,null,null,null,null,null,null,null,null,null,null,null,null,null,null,null,null,null,null,null,null,null,null,null,null,null,null,null,null,null,null,null,null,null,null,null,null,null,null,null,null,null,null,null,null,null,null,null,null,null,null,null,null,null,null,null,null,null,null,null,null,null,null,null,null,null,null,null,null,null,null,null,null,null,null,null,null,null,null,null,null,null,null,null,null,null,null,null,null,null,null,null,null,null,null,null,null,null,null,null,null,null,null,null,null,null,null,null,null,null,null,null,null,null,null,null,null,null,null,null,null,null,null,null,null,null,null,null,null,null,null,null,16,73,12,40,"11:52:00"]
[542,"Weber","Roman",null,70,1,0,0,null,null,null,null,null,null,null,null,null,null,null,null,null,null,null,null,null,null,null,null,null,null,null,null,null,null,null,null,null,null,null,null,null,null,null,null,null,null,null,null,null,null,null,null,null,null,null,null,null,null,null,null,null,null,null,null,null,null,null,null,null,null,null,null,null,null,null,null,null,null,null,null,null,null,null,null,null,null,null,null,null,null,null,null,null,null,null,null,null,null,null,null,null,null,null,null,null,null,null,null,null,null,null,null,null,null,null,null,null,null,null,null,null,null,null,null,null,null,null,null,null,null,null,null,null,null,null,null,null,null,null,null,null,null,null,null,null,null,null,null,null,null,null,null,null,null,null,null,null,null,null,null,null,null,null,null,null,null,null,null,null,null,null,null,null,null,null,null,null,null,null,null,null,null,null,null,null,null,null,null,null,null,null,null,null,null,null,null,null,null,null,null,null,null,null,null,null,null,null,null,null,null,null,null,null,null,null,null,null,null,19,70,12,12,"11:13:00"]
[548,"Krzywy","Krzysztof","Pierwoszyno",69,2,0,0,null,null,null,null,null,null,null,null,null,null,null,null,null,null,null,null,null,null,null,null,null,null,null,null,null,null,null,null,null,null,null,null,null,null,null,null,null,null,null,null,null,null,null,null,null,null,null,null,null,null,null,null,null,null,null,null,null,null,null,null,null,null,null,null,null,null,null,null,null,null,null,null,null,null,null,null,null,null,null,null,null,null,null,null,null,null,null,null,null,null,null,null,null,null,null,null,null,null,null,null,null,null,null,null,null,103,1,14,43,"11:34:00",null,null,null,null,null,null,null,null,null,null,null,null,null,null,null,null,null,null,null,null,null,null,null,null,null,null,null,null,null,null,null,null,null,null,null,null,null,null,null,null,null,null,null,null,null,null,null,null,null,null,null,null,null,null,null,null,null,null,null,null,null,null,null,null,null,null,null,null,null,null,null,null,null,null,null,null,null,null,null,null,null,null,null,null,null,null,null,null,null,null,21,68,12,12,"08:44:00"]
[559,"Danielak","Michał","Pruszcz Gdański",68,1,0,0,null,null,null,null,null,null,null,null,null,null,null,null,null,null,null,null,null,null,null,null,null,null,null,null,null,null,null,null,null,null,null,null,null,null,null,null,null,null,null,null,null,null,null,null,null,null,null,null,null,null,null,null,null,null,null,null,null,null,null,null,null,null,null,null,null,null,null,null,null,null,null,null,null,null,null,null,null,null,null,null,null,null,null,null,null,null,null,null,null,null,null,null,null,null,null,null,null,null,null,null,null,null,null,null,null,null,null,null,null,null,null,null,null,null,null,null,null,null,null,null,null,null,null,null,null,null,null,null,null,null,null,null,null,null,null,null,null,null,null,null,null,null,null,null,null,null,null,null,null,null,null,null,null,null,null,null,null,null,null,null,null,null,null,null,null,null,null,null,null,null,null,null,null,null,null,null,null,null,null,null,null,null,null,null,null,null,null,null,null,null,null,null,null,null,null,null,null,null,null,null,21,68,12,12,"08:44:00"]
[567,"Gościniak","Grzegorz","Warszawa",67,3,0,0,null,null,null,null,null,null,null,null,null,null,null,null,null,null,null,null,null,null,null,null,null,null,null,null,null,null,null,null,null,null,null,null,null,null,null,null,null,null,null,null,null,null,null,null,null,null,null,null,null,null,null,null,null,null,null,null,null,null,null,null,null,null,null,null,null,null,null,null,null,null,null,null,null,null,null,null,null,null,null,null,null,null,null,null,null,null,null,null,null,null,null,null,null,null,null,null,null,null,null,null,null,null,null,null,null,null,null,null,null,null,81,8,9,32,"11:19:25.200",31,58,14,51,"11:45:26.400",null,null,null,null,null,90,1,10,32,"11:49:00"]
[569,"Szczuka","Adam",null,67,1,0,0,null,null,null,null,null,null,null,null,null,null,null,null,null,null,null,null,null,null,null,null,null,null,null,null,null,null,null,null,null,null,null,null,null,null,null,null,null,null,null,null,null,null,null,null,null,null,null,null,null,null,null,null,null,null,null,null,null,null,null,null,null,null,null,null,null,null,null,null,null,null,null,null,null,null,null,null,null,null,null,null,null,null,null,null,null,null,null,null,null,null,null,null,null,null,null,null,null,null,null,null,null,null,null,null,null,null,null,null,null,null,null,null,null,null,null,null,null,null,null,null,null,null,null,null,null,null,null,null,null,null,null,null,null,null,null,null,null,null,null,null,null,null,null,null,null,null,null,null,null,null,null,null,null,null,null,null,null,null,null,null,null,null,null,null,null,22,67,13,41,"11:34:00"]
[578,"Sielski","Sławomir","Bydgoszcz",65,7,0,0,null,null,null,null,null,null,null,null,null,null,null,null,null,null,null,null,null,null,null,null,null,null,null,null,null,null,null,null,null,null,null,null,null,null,null,null,null,null,null,null,null,null,null,null,null,null,null,null,null,null,null,null,null,null,null,null,null,null,null,null,null,null,null,null,null,null,null,null,null,null,null,null,null,null,null,null,null,null,null,null,null,null,null,null,null,188,1,"9","26","10:38:45",321,1,4,14,"11:10:10",268,1,12,7,"12:29:23.400",null,null,null,null,null,125,1,12,39,"11:46:00",169,1,9,25,"11:17:30",75,14,13,45,"11:40:34.200",43,46,12,42,"11:33:00"]
[587,"Kiepski","Krzysztof","Elbląg",64,1,0,0,null,null,null,null,null,null,null,null,null,null,null,null,null,null,null,null,null,null,null,null,null,null,null,null,null,null,null,null,null,null,null,null,null,null,null,null,null,null,null,null,null,null,null,null,null,null,null,null,null,null,null,null,null,null,null,null,null,null,null,null,null,null,null,null,null,null,null,null,null,null,null,null,null,null,null,null,null,null,null,null,null,null,null,null,null,null,null,null,null,null,null,null,null,null,null,null,null,null,null,null,null,null,null,null,null,null,null,null,null,null,null,null,null,null,null,null,null,null,null,null,null,null,null,null,null,null,null,null,null,null,null,null,null,null,null,null,null,null,null,null,null,null,null,null,null,25,64,14,46,"11:48:00"]
[597,"Olszewski","Robert","Góra Kalwaria",62,4,0,0,null,null,null,null,null,null,null,null,null,null,null,null,null,null,null,null,null,null,null,null,null,null,null,null,null,null,null,null,null,null,null,null,null,null,null,null,null,null,null,null,null,null,null,null,null,null,null,null,null,null,null,null,null,null,null,null,null,null,null,null,null,null,null,null,null,null,null,null,null,null,null,null,null,null,null,null,null,null,null,null,null,null,null,null,null,null,null,null,null,null,null,null,null,null,null,null,null,null,null,null,null,null,null,null,null,null,null,null,null,null,null,null,null,null,null,null,null,null,null,null,null,null,null,null,null,null,null,null,null,null,null,null,null,null,null,null,null,null,null,null,null,null,null,null,null,"NKL",0,0,0,"NKL",null,null,null,null,null,null,null,null,null,null,149,1,9,29,"09:38:00",47,42,13,36,"11:19:00",70,19,12,41,"11:06:00"]
[606,"Recław","Arkadiusz","Bytów",61,1,0,0,null,null,null,null,null,null,null,null,null,null,null,null,null,null,null,28,61,20,50,"13:04:44"]
[616,"Pawlusiński","Tomasz","Sopot",60,1,0,0,null,null,null,null,null,null,null,null,null,null,null,null,null,null,null,null,null,null,null,null,null,null,null,null,null,null,null,null,null,null,null,null,null,null,null,null,null,null,null,null,null,null,null,null,null,null,null,null,null,null,null,null,null,null,null,null,null,null,null,null,null,null,null,null,null,null,null,null,null,null,null,null,null,null,null,null,null,null,null,null,null,null,null,null,null,null,null,null,null,null,null,null,null,null,null,null,null,null,null,null,null,null,null,null,null,null,null,null,null,null,null,null,null,null,null,null,null,null,null,null,null,null,null,null,null,null,null,null,null,null,null,null,null,null,null,null,null,null,null,null,null,null,null,null,null,null,null,null,null,null,null,null,null,null,null,null,null,null,null,null,null,null,null,null,null,null,null,null,null,null,null,null,null,null,null,null,null,null,null,null,null,null,null,null,null,null,null,null,null,null,null,null,null,null,null,null,null,null,null,null,null,null,null,null,null,29,60,6,6,"11:44:00"]
[625,"Więcek","Maciej","Kraków",59,1,0,0,null,null,null,null,null,null,null,null,null,null,null,null,null,null,null,null,null,null,null,null,null,null,null,null,null,null,null,null,null,null,null,null,null,null,null,null,null,null,null,null,null,null,null,null,null,null,null,null,null,null,null,null,null,null,null,null,null,null,null,null,null,null,null,null,null,null,null,null,null,null,null,null,null,null,null,null,null,null,null,null,31,59,14,48,"11:46:14"]
[634,"Rejf","Tomasz","Bartoszyce",57,4,0,0,null,null,null,null,null,null,null,null,null,null,null,null,null,null,null,null,null,null,null,null,null,null,null,null,null,null,null,null,null,null,null,null,null,null,null,null,null,null,null,null,null,null,null,null,null,null,null,null,null,null,null,null,null,null,null,null,null,null,null,null,null,null,null,null,null,null,null,null,null,null,99,1,11,37,"08:34:00",null,null,null,null,null,null,null,null,null,null,null,null,null,null,null,293,1,5,20,"09:47:36",null,null,null,null,null,null,null,null,null,null,null,null,null,null,null,null,null,null,null,null,null,null,null,null,null,null,null,null,null,null,null,null,null,null,null,null,null,null,null,null,35,54,16,49,"11:51:00",null,null,null,null,null,154,1,7,22,"11:08:00"]
[644,"Urbanowicz","Marek",null,57,1,0,0,null,null,null,null,null,null,null,null,null,null,null,null,null,null,null,null,null,null,null,null,null,null,null,null,null,null,null,null,null,null,null,null,null,null,null,null,null,null,null,null,null,null,null,null,null,null,null,null,null,null,null,null,null,null,null,null,null,null,null,null,null,null,null,null,null,null,null,null,null,null,null,null,null,null,null,null,null,null,null,null,null,null,null,null,null,null,null,null,null,null,null,null,null,null,null,null,null,null,null,null,null,null,null,null,null,null,null,null,null,null,null,null,null,null,null,null,null,null,null,null,null,null,null,null,null,null,null,null,null,null,null,null,null,null,null,null,null,null,null,null,null,null,null,null,null,null,null,null,null,null,null,null,null,null,null,null,null,null,null,null,null,null,null,null,null,null,null,null,null,null,null,null,null,null,null,null,null,null,null,null,null,null,null,null,null,null,null,null,null,null,null,null,null,null,null,32,57,11,11,"11:36:00"]
[648,"Pastusiak","Marcin","Człuchów",56,1,0,1,33,56,25,60,"13:51:17"]
[655,"Marko","Wojciech","Rumia",55,2,0,0,null,null,null,null,null,null,null,null,null,null,null,null,null,null,null,null,null,null,null,null,null,null,null,null,null,null,null,null,null,null,null,null,null,null,null,null,null,null,null,null,null,null,null,null,null,null,null,null,null,null,null,null,null,null,null,null,null,null,null,null,null,null,null,null,null,null,null,null,null,null,35,54,15,49,"11:31:00",null,null,null,null,null,169,1,6,22,"11:21:13"]
[666,"Rozwadowski","Paweł","Brwinów",54,2,0,0,null,null,null,null,null,null,null,null,null,null,null,null,null,null,null,null,null,null,null,null,null,null,null,null,null,null,null,null,null,null,null,null,null,null,null,null,null,null,null,null,null,null,null,null,null,null,null,null,null,null,null,null,null,null,null,null,null,null,null,null,null,null,null,null,null,null,null,null,null,null,36,53,15,49,"11:32:00",null,null,null,null,null,null,null,null,null,null,null,null,null,null,null,null,null,null,null,null,null,null,null,null,null,253,1,14,24,"12:20:00"]
[674,"Jarzembiński","Tomasz","Kościerzyna",53,2,0,0,null,null,null,null,null,null,null,null,null,null,null,null,null,null,null,null,null,null,null,null,null,null,null,null,null,null,null,null,null,null,null,null,null,null,null,null,null,null,null,null,null,null,null,null,null,null,null,null,null,null,52,37,14,43,"11:25:15",null,null,null,null,null,null,null,null,null,null,73,16,12,37,"11:42:24"]
[684,"Dreger","Dariusz","Wojcieszyce",52,4,0,0,null,null,null,null,null,null,null,null,null,null,null,null,null,null,null,null,null,null,null,null,null,null,null,null,null,null,null,null,null,null,null,null,null,null,null,null,null,null,null,null,null,null,null,null,null,null,null,null,null,null,null,null,null,null,null,null,null,null,null,null,null,null,null,null,null,null,null,null,null,null,null,null,null,null,null,null,null,null,null,null,220,1,8,-12,"12:38:43",null,null,null,null,null,119,1,8,32,"11:28:27",null,null,null,null,null,null,null,null,null,null,null,null,null,null,null,60,29,11,33,"11:28:34.800",null,null,null,null,null,68,21,12,38,"11:33:00"]
[693,"Duszyński","Jacek","Choroszcz",51,1,0,0,null,null,null,null,null,null,null,null,null,null,null,null,null,null,null,null,null,null,null,null,null,null,null,null,null,null,null,null,null,null,38,51,13,32,"12:26:14"]
[702,"Skrzypiński","Tomasz","Swarzędz",50,2,0,0,null,null,null,null,null,null,null,null,null,null,74,15,16,37,"13:37:53",54,35,14,35,"12:31:08"]
[712,"Surma","Grzegorz","Szczecin",49,1,0,0,null,null,null,null,null,null,null,null,null,null,null,null,null,null,null,null,null,null,null,null,null,null,null,null,null,null,null,null,null,null,null,null,null,null,null,null,null,null,null,null,null,null,null,null,null,null,null,null,null,null,null,null,null,null,null,null,null,null,null,null,null,null,null,null,null,null,null,null,null,null,null,null,null,null,null,null,null,null,null,null,null,null,null,null,null,null,null,null,null,null,null,null,null,null,null,null,null,null,null,null,null,null,null,null,null,null,null,null,null,null,null,null,null,null,null,null,null,null,null,null,null,null,null,null,null,null,null,null,null,null,null,null,null,null,null,null,null,null,null,null,null,null,null,null,null,null,null,null,null,null,null,null,null,null,null,null,null,null,null,null,null,null,null,null,null,null,null,null,null,null,null,null,null,null,null,null,null,null,null,null,null,null,null,null,null,null,null,null,null,null,null,null,null,null,null,null,null,null,null,null,null,null,null,null,null,40,49,5,5,"09:44:00"]
[713,"Jankowski","Mariusz","Gdańsk",48,7,0,0,null,null,null,null,null,null,null,null,null,null,null,null,null,null,null,null,null,null,null,null,null,null,null,null,null,null,null,null,null,null,null,null,null,null,null,null,null,null,null,null,null,null,null,null,null,null,null,null,null,null,null,null,null,null,null,null,null,null,null,null,null,null,null,null,null,null,null,null,null,null,null,null,null,null,null,null,null,null,null,null,null,null,null,null,null,48,42,"14","42","11:31:22",162,1,8,29,"11:10:17",215,1,9,22,"12:09:32.400",265,1,5,20,"08:24:00",257,1,5,15,"07:55:00",null,null,null,null,null,null,null,null,null,null,276,1,3,8,"05:50:00",91,1,10,32,"11:54:00"]
[722,"Sobol","Michał",null,48,1,0,0,null,null,null,null,null,null,null,null,null,null,null,null,null,null,null,null,null,null,null,null,null,null,null,null,null,null,null,null,null,null,null,null,null,null,null,null,null,null,null,null,null,null,null,null,null,null,null,null,null,null,null,null,null,null,null,null,null,null,null,null,null,null,null,null,null,null,null,null,null,null,null,null,null,null,null,null,null,null,null,null,null,null,null,null,null,null,null,null,null,null,null,null,null,null,null,null,null,null,null,null,null,null,null,null,null,null,null,null,null,null,null,null,null,null,null,null,null,null,null,null,null,null,null,null,null,null,null,null,null,null,null,null,null,null,null,null,null,null,null,null,null,null,null,null,null,null,null,null,null,null,null,null,null,null,null,null,null,null,null,null,null,null,null,null,null,null,null,null,null,null,null,null,null,null,null,null,null,null,null,null,null,null,null,null,null,41,48,12,12,"11:52:00"]
[732,"Piszcz","Krzysztof",null,47,1,0,0,null,null,null,null,null,null,null,null,null,null,null,null,null,null,null,null,null,null,null,null,null,null,null,null,null,null,null,null,null,null,null,null,null,null,null,null,null,null,null,null,null,null,null,null,null,null,null,null,null,null,null,null,null,null,null,null,null,null,null,null,null,null,null,null,null,null,null,null,null,null,null,null,null,null,null,null,null,null,null,null,null,null,null,null,null,null,null,null,null,null,null,null,null,null,null,null,null,null,null,null,null,null,null,null,null,null,null,null,null,null,null,null,null,null,null,null,null,null,null,null,null,null,null,null,null,null,null,null,null,null,null,null,null,null,null,null,null,null,null,null,null,null,null,null,null,null,null,null,null,null,null,null,null,null,null,null,null,null,null,null,null,null,null,null,null,null,null,null,null,null,null,null,null,null,null,null,null,null,null,null,null,null,null,null,null,null,null,null,null,null,null,null,null,null,null,42,47,11,11,"11:54:00"]
[740,"Stefaniak","Wojciech","Kwidzyn",46,1,0,0,null,null,null,null,null,null,null,null,null,null,43,46,19,47,"13:58:01"]
[751,"Parys","Paweł","Miotek",45,1,0,0,null,null,null,null,null,null,null,null,null,null,null,null,null,null,null,null,null,null,null,null,null,null,null,null,null,null,null,null,null,null,null,null,null,null,null,null,null,null,null,null,null,null,null,null,null,null,null,null,null,null,null,null,null,null,null,null,null,null,null,null,null,null,null,null,null,null,null,null,null,null,null,null,null,null,null,null,null,null,null,null,null,null,null,null,null,null,null,null,null,null,null,null,null,null,null,null,null,null,null,null,null,null,null,null,null,null,null,null,null,null,null,null,null,null,null,null,null,null,null,null,null,null,null,null,null,null,null,null,null,null,null,null,null,null,null,null,null,null,null,null,null,null,null,null,null,44,45,13,41,"11:27:00"]
[762,"Grabowski","Jacek","Siedlce",44,1,0,0,null,null,null,null,null,null,null,null,null,null,null,null,null,null,null,null,null,null,null,null,null,null,null,null,null,null,null,null,null,null,null,null,null,null,null,null,null,null,null,null,null,null,null,null,null,null,null,null,null,null,null,null,null,null,null,null,null,null,null,null,null,null,null,null,null,null,null,null,null,null,null,null,null,null,null,45,44,12,44,"11:27:00"]
[770,"Cytawa","Leszek","Lublin",43,2,0,0,null,null,null,null,null,null,null,null,null,null,null,null,null,null,null,null,null,null,null,null,null,null,null,null,null,null,null,null,null,null,null,null,null,null,null,null,null,null,null,null,null,null,null,null,null,null,null,null,null,null,null,null,null,null,null,null,null,null,null,null,null,null,null,null,null,null,null,null,null,null,null,null,null,null,null,null,null,null,null,null,null,null,null,null,null,null,null,null,null,null,null,null,null,null,null,null,null,null,null,null,null,null,null,null,null,null,null,null,null,null,null,null,null,null,null,null,null,null,null,null,null,null,null,null,null,null,null,null,null,null,null,null,null,null,null,null,null,null,null,null,null,null,null,null,null,null,null,null,null,null,null,null,null,null,null,null,null,null,null,null,null,null,null,null,null,null,null,null,null,null,null,null,null,null,null,null,null,null,null,null,null,null,null,null,null,null,null,null,null,null,47,42,15,15,"11:56:00",123,1,8,8,"11:17:00"]
[772,"Sirocki","Rafał","Olsztyn",43,2,0,0,null,null,null,null,null,null,null,null,null,null,null,null,null,null,null,null,null,null,null,null,null,null,null,null,null,null,null,null,null,null,null,null,null,null,null,null,null,null,null,null,80,9,8,26,"07:55:33",55,34,14,42,"11:56:29"]
[781,"Szultka","Szymon","Człuchów",42,1,0,0,null,null,null,null,null,null,null,null,null,null,null,null,null,null,null,47,42,16,39,"13:50:40"]
[790,"Moniewski","Michał","Warszawa",40,1,0,0,null,null,null,null,null,null,null,null,null,null,null,null,null,null,null,null,null,null,null,null,null,null,null,null,null,null,null,null,null,null,null,null,null,null,null,null,null,null,null,null,null,null,null,null,null,null,null,null,null,null,null,null,null,null,null,null,null,null,null,null,null,null,null,null,null,null,null,null,null,null,null,null,null,null,null,null,null,null,null,null,null,null,null,null,null,null,null,null,null,null,null,null,null,null,null,null,null,null,null,null,null,null,null,null,null,null,null,null,null,null,null,null,null,null,null,null,null,null,null,null,null,null,null,null,null,null,null,null,null,null,null,null,null,null,null,null,null,null,null,null,null,null,null,null,null,null,null,null,null,null,null,null,null,null,null,null,null,null,null,null,null,null,null,null,null,null,null,null,null,null,null,null,null,null,null,null,null,null,null,null,null,null,null,null,null,49,40,11,11,"11:26:00"]
[800,"Bieliński","Stanisław","Rumia",38,12,0,0,null,null,null,null,null,null,null,null,null,null,null,null,null,null,null,null,null,null,null,null,null,null,null,null,null,null,null,null,null,null,null,null,null,null,null,null,null,null,null,null,null,null,null,null,null,null,null,null,null,null,null,null,null,null,null,null,null,null,null,null,null,null,null,null,null,null,null,null,null,null,null,null,null,null,null,177,1,6,20,"11:10:00",186,1,5,17,"11:35:50",166,1,"8","30","11:22:14",252,1,6,24,"11:24:12",184,1,8,27,"11:44:06",235,1,8,27,"11:22:00",null,null,null,null,null,254,1,5,19,"10:57:12",66,23,13,46,"11:33:06.600",212,1,7,25,"11:16:00",84,5,10,32,"11:28:00",129,1,10,29,"11:22:00",145,1,10,32,"10:57:00"]
[808,"Stawski","Łukasz","Gdańsk",38,2,0,0,null,null,null,null,null,null,null,null,null,null,null,null,null,null,null,null,null,null,null,null,null,null,null,null,null,null,null,null,null,null,null,null,null,null,null,null,null,null,null,null,null,null,null,null,null,null,null,null,null,null,null,null,null,null,null,null,null,null,null,null,null,null,null,null,null,null,null,null,null,null,null,null,null,null,null,null,null,null,null,null,null,null,null,null,null,null,null,null,null,null,null,null,null,null,null,null,null,null,null,null,null,null,null,null,null,null,null,null,null,null,null,null,null,null,null,null,null,null,null,null,null,null,null,null,null,null,null,null,null,null,null,null,null,null,null,null,null,null,null,null,null,null,null,null,null,null,null,null,null,null,null,null,null,null,null,null,null,null,null,null,null,null,null,null,null,null,null,null,null,null,null,null,null,null,null,null,null,null,null,null,null,null,null,null,null,null,null,null,null,null,null,null,null,null,null,103,1,9,9,"11:41:00",52,37,10,10,"08:35:00"]
[819,"Domachowski","Szymon","Święta Katarzyna",37,1,0,0,null,null,null,null,null,null,null,null,null,null,null,null,null,null,null,null,null,null,null,null,null,null,null,null,null,null,null,null,null,null,52,37,12,30,"13:13:12"]
[831,"Partyka","Tomasz","Gdańsk",36,3,0,0,null,null,null,null,null,null,null,null,null,null,null,null,null,null,null,null,null,null,null,null,null,null,null,null,null,null,null,null,null,null,null,null,null,null,null,null,null,null,null,null,null,null,null,null,null,null,null,null,null,null,null,null,null,null,null,null,null,null,null,null,null,null,null,null,null,null,null,null,null,null,null,null,null,null,null,null,null,null,null,null,null,null,null,null,null,null,null,null,null,null,null,null,null,null,null,null,null,null,null,null,null,null,null,null,null,null,null,null,null,null,null,null,null,null,null,null,null,null,null,null,null,null,null,null,null,null,null,null,null,null,null,null,null,null,null,null,null,null,null,null,null,null,null,null,null,null,null,null,null,null,88,1,10,36,"11:50:00",55,34,11,35,"11:38:00",139,1,12,30,"12:03:00"]
[838,"Cołbecki","Krzysztof","Gdańsk",35,5,0,0,null,null,null,null,null,null,null,null,null,null,null,null,null,null,null,null,null,null,null,null,null,null,null,null,null,null,null,null,null,null,null,null,null,null,null,null,null,null,null,null,null,null,null,null,null,null,null,null,null,null,null,null,null,null,null,null,null,null,null,null,null,null,null,null,null,null,null,null,null,null,null,null,null,null,null,null,null,null,null,null,null,null,null,null,null,null,null,null,null,null,null,null,null,null,null,null,null,null,null,null,null,null,null,null,null,null,null,null,null,null,null,null,null,null,null,null,null,null,null,null,null,null,null,null,null,null,null,null,null,null,null,null,null,null,null,null,null,null,null,null,null,null,null,null,null,null,null,null,null,null,null,null,null,null,null,null,null,null,null,null,null,null,null,null,null,null,null,null,null,null,null,null,null,null,null,76,13,11,30,"10:47:00",86,3,9,25,"11:47:00",72,17,9,9,"10:24:00",155,1,11,11,"11:35:00",178,1,6,6,"10:19:00"]
[847,"Pawlewski","Igor","Poznań",35,1,0,0,null,null,null,null,null,null,null,null,null,null,null,null,null,null,null,null,null,null,null,null,null,null,null,null,null,54,35,16,42,"13:07:56"]
[855,"Skrent","Joanna","Gdańsk",34,2,0,0,null,null,null,null,null,null,null,null,null,null,null,null,null,null,null,null,null,null,null,null,null,null,null,null,null,null,null,null,null,null,null,null,null,null,null,null,null,null,null,null,null,null,null,null,null,null,null,null,null,null,null,null,null,null,null,null,null,null,null,null,null,null,null,null,null,null,null,null,null,null,null,null,null,null,null,null,null,null,null,null,null,null,null,null,null,null,null,null,null,null,null,null,null,null,null,null,null,null,null,null,null,null,null,null,null,null,null,null,null,null,null,null,null,null,null,null,null,null,null,null,null,null,null,null,null,null,null,null,null,null,null,null,null,null,null,null,null,null,null,null,null,null,null,null,null,null,null,null,null,null,null,null,null,null,null,null,null,null,null,null,null,null,null,null,null,null,null,null,null,null,null,null,null,null,null,null,null,null,null,null,null,null,null,null,null,null,null,null,null,null,null,null,null,null,null,146,1,8,8,"11:59:00",null,null,null,null,null,56,33,5,5,"11:30:00"]
[858,"Brzeziński","Artur","Lębork",33,3,0,0,null,null,null,null,null,null,null,null,null,null,null,null,null,null,null,null,null,null,null,null,null,null,null,null,null,null,null,null,null,null,null,null,null,null,null,null,null,null,null,null,null,null,null,null,null,null,null,null,null,null,null,null,null,null,null,null,null,null,null,null,null,null,null,null,null,69,20,12,38,"10:15:12",null,null,null,null,null,null,null,null,null,null,null,null,null,null,null,null,null,null,null,null,null,null,null,null,null,null,null,null,null,null,null,null,null,null,null,264,1,13,10,"12:33:00",77,12,11,32,"11:48:25.200"]
[869,"Werecki","Marcin","Stargard",33,1,0,0,null,null,null,null,null,null,null,null,null,null,null,null,null,null,null,null,null,null,null,null,null,null,null,null,null,null,null,null,null,null,null,null,null,null,null,56,33,10,32,"10:46:22"]
[877,"Kozakowski","Wiktor","Warszawa",32,1,0,0,null,null,null,null,null,null,null,null,null,null,null,null,null,null,null,null,null,null,null,null,null,null,null,null,null,null,null,null,null,null,null,null,null,null,null,null,null,null,null,null,null,null,null,null,null,null,null,null,null,null,null,null,null,null,null,null,null,null,null,null,null,null,null,null,null,null,null,null,null,null,57,32,14,45,"11:50:00"]
[887,"Ślósarczyk","Maciej","Gdańsk",31,5,0,0,null,null,null,null,null,null,null,null,null,null,null,null,null,null,null,null,null,null,null,null,null,null,null,null,null,null,null,null,null,null,null,null,null,null,null,null,null,null,null,null,null,null,null,null,null,null,null,null,null,null,null,null,null,null,null,null,null,null,null,null,null,null,null,null,null,null,null,null,null,null,null,null,null,null,null,null,null,null,null,null,null,null,null,null,null,84,5,"12","37","11:26:21",101,1,8,33,"11:29:59",92,1,11,38,"11:35:34.800",null,null,null,null,"NKL",66,23,14,47,"11:39:00",201,1,8,23,"11:40:09.600"]
[896,"Ciskowski","Waldemar","Gdynia",30,11,0,0,null,null,null,null,null,null,null,null,null,null,null,null,null,null,null,null,null,null,null,null,null,null,null,null,null,null,null,null,null,null,null,null,null,null,null,null,null,null,null,null,null,null,null,null,null,null,null,null,null,null,83,6,12,37,"11:27:25",79,10,11,39,"11:50:51",119,1,11,38,"11:38:46",83,6,11,36,"11:58:08",null,null,null,null,null,119,1,10,31,"11:40:00",103,1,8,31,"11:36:17",114,1,"10","34","11:35:22",147,1,7,30,"11:06:32",128,1,10,33,"11:21:09",198,1,11,31,"11:01:00",null,null,null,null,null,147,1,9,26,"11:58:25.800"]
[905,"Dereziński","Jacek","Warszawa",30,2,0,0,null,null,null,null,null,null,null,null,null,null,null,null,null,null,null,null,null,null,null,null,null,null,null,null,null,null,null,null,null,null,null,null,null,null,null,null,null,null,null,null,null,null,null,null,null,null,null,null,null,null,null,null,null,null,null,null,null,null,null,null,null,null,null,null,null,null,null,null,null,null,null,null,null,null,null,null,null,null,null,null,null,null,null,null,null,null,null,null,null,null,null,null,null,null,null,null,null,null,null,null,null,null,null,null,null,null,null,null,null,null,null,null,null,null,null,null,null,null,null,null,null,null,null,null,null,null,null,null,null,null,null,null,null,null,null,null,null,null,null,null,78,11,14,43,"11:50:00",null,null,null,null,null,70,19,13,37,"12:03:00"]
[918,"Maliszewski","Marek","Gdynia",29,2,0,0,74,15,19,42,"12:10:56",75,14,11,26,"10:04:55"]
[923,"Wójtowicz","Paweł",null,29,1,0,0,null,null,null,null,null,null,null,null,null,null,null,null,null,null,null,null,null,null,null,null,null,null,null,null,null,null,null,null,null,null,null,null,null,null,null,null,null,null,null,null,null,null,null,null,null,null,null,null,null,null,null,null,null,null,null,null,null,null,null,null,null,null,null,null,null,null,null,null,null,null,null,null,null,null,null,null,null,null,null,null,null,null,null,null,null,null,null,null,null,null,null,null,null,null,null,null,null,null,null,null,null,null,null,null,null,null,null,null,null,null,null,null,null,null,null,null,null,null,null,null,null,null,null,null,null,null,null,null,null,null,null,null,null,null,null,null,null,null,null,null,null,null,null,null,null,null,null,null,null,null,null,null,null,null,null,null,null,null,null,null,null,null,null,null,null,null,null,null,null,null,null,null,null,null,null,null,null,null,null,null,null,null,null,null,null,null,null,null,null,null,null,null,null,null,null,60,29,10,10,"11:21:00"]
[926,"Rynkiewicz","Wojciech","Gdynia",28,4,0,0,null,null,null,null,null,null,null,null,null,null,null,null,null,null,null,null,null,null,null,null,null,null,null,null,null,null,null,null,null,null,null,null,null,null,null,null,null,null,null,null,null,null,null,null,null,null,null,null,null,null,null,null,null,null,null,null,null,null,null,null,null,null,null,null,null,null,null,null,null,null,null,null,null,null,null,null,null,null,null,null,null,null,null,null,null,null,null,null,null,null,null,null,null,null,null,null,null,null,null,null,null,null,null,null,null,null,null,null,null,null,null,null,null,null,null,null,null,null,null,null,null,null,null,null,null,null,null,null,null,null,109,1,9,31,"11:01:00",82,7,13,41,"10:01:00",95,1,14,40,"10:33:00",70,19,12,38,"11:55:00"]
[937,"Miller","Jan","Gdańsk",27,2,0,0,92,1,15,32,"11:14:29",63,26,12,30,"10:20:36"]
[945,"Bowar","Piotr","Gdańsk",26,5,0,0,null,null,null,null,null,null,null,null,null,null,null,null,null,null,null,null,null,null,null,null,78,11,17,44,"13:06:05",null,null,null,null,null,null,null,null,null,null,null,null,null,null,null,null,null,null,null,null,null,null,null,null,null,137,1,9,28,"07:10:33",77,12,11,40,"11:57:48",104,1,12,43,"11:39:14",null,null,null,null,null,null,null,null,null,null,null,null,null,null,null,null,null,null,null,null,null,null,null,null,null,null,null,null,null,null,null,null,null,null,null,null,null,null,null,null,null,null,null,null,null,null,null,null,null,null,null,null,null,null,null,null,null,null,null,null,null,null,null,null,null,null,null,null,null,null,null,null,null,null,null,null,null,null,null,null,null,null,null,null,null,null,null,null,null,null,null,null,null,null,null,null,null,null,null,null,null,null,null,null,null,null,null,null,null,null,null,null,null,null,null,null,null,null,null,null,null,null,null,null,null,113,1,12,12,"11:16:00"]
[954,"Iwaszkiewicz","Zbigniew","Słupsk",26,1,0,0,null,null,null,null,null,null,null,null,null,null,null,null,null,null,null,null,null,null,null,null,null,null,null,null,null,null,null,null,null,null,null,null,null,null,null,null,null,null,null,null,null,null,null,null,null,null,null,null,null,null,null,null,null,null,null,null,null,null,null,null,null,null,null,null,null,null,null,null,null,null,null,null,null,null,null,null,null,null,null,null,null,null,null,null,null,null,null,null,null,null,null,null,null,null,null,null,null,null,null,null,null,null,null,null,null,null,null,null,null,null,null,null,null,null,null,null,null,null,null,null,null,null,null,null,null,null,null,null,null,null,null,null,null,null,null,null,null,null,null,null,null,null,null,null,null,null,null,null,null,null,null,null,null,null,null,null,null,null,null,null,null,null,null,null,null,null,null,null,null,null,null,null,null,null,null,null,null,null,null,null,null,null,null,null,null,null,null,null,null,null,null,null,null,null,null,null,null,null,null,null,63,26,10,10,"09:00:00"]
[961,"Sobek","Michał","Bydgoszcz",25,4,0,0,null,null,null,null,null,null,null,null,null,null,null,null,null,null,null,null,null,null,null,null,null,null,null,null,null,null,null,null,null,null,null,null,null,null,null,null,null,null,null,null,null,null,null,null,null,null,null,null,null,null,null,null,null,null,null,null,null,null,null,null,null,null,null,null,null,null,null,null,null,null,null,null,null,null,null,null,null,null,null,null,null,null,null,null,null,null,null,null,null,null,null,null,null,null,null,null,null,null,null,null,null,null,null,null,null,null,null,null,null,null,null,null,null,null,null,null,null,null,null,null,null,null,null,null,null,null,null,null,null,null,null,null,null,null,null,null,null,null,null,null,null,null,null,null,null,null,null,null,null,null,null,null,null,null,null,91,1,9,29,"11:44:00",134,1,10,31,"11:19:00",116,1,8,26,"11:49:00",null,null,null,null,null,null,null,null,null,null,67,22,10,29,"11:02:00"]
[973,"Walentynowicz","Piotr","Gdańsk",24,3,0,0,null,null,null,null,null,null,null,null,null,null,null,null,null,null,null,null,null,null,null,null,null,null,null,null,null,null,null,null,null,null,null,null,null,null,null,null,null,null,null,null,null,null,null,null,null,null,null,null,null,null,null,null,null,null,null,null,null,null,null,null,null,null,null,null,null,null,null,null,null,null,null,null,null,null,null,null,null,null,null,null,null,null,null,null,null,null,null,null,null,null,null,null,null,null,null,null,null,null,null,null,null,null,null,null,null,null,null,null,null,null,67,22,9,33,"11:27:21",289,1,9,-43,"13:09:24.600",135,1,11,32,"11:35:00"]
[975,"Jusiński","Adrian","Tłuszcz",24,2,0,0,null,null,null,null,null,null,null,null,null,null,null,null,null,null,null,null,null,null,null,null,null,null,null,null,null,null,null,null,null,null,null,null,null,null,null,null,null,null,null,null,null,null,null,null,null,null,null,null,null,null,null,null,null,null,null,null,null,null,null,null,null,null,null,null,null,null,null,null,null,null,null,null,null,null,null,null,null,null,null,null,null,null,null,null,null,null,null,null,null,null,null,null,null,null,null,null,null,null,null,null,null,null,null,null,null,null,null,null,null,null,66,23,9,33,"11:27:15.600",162,1,10,34,"11:43:31.200"]
[984,"Kujoth","Robert","Rumia",23,9,0,0,null,null,null,null,null,null,null,null,null,null,null,null,null,null,null,null,null,null,null,null,null,null,null,null,null,null,null,null,null,null,null,null,null,null,null,null,null,null,null,null,null,null,null,null,null,null,null,null,null,null,null,null,null,null,null,null,null,null,null,null,null,null,null,null,null,null,null,null,null,null,null,null,null,null,null,null,null,null,null,null,null,null,null,null,null,231,1,"8","-6","12:25:08",null,null,null,null,null,null,null,null,null,null,203,1,10,31,"11:40:00",246,1,8,19,"11:26:00",null,null,null,null,null,195,1,10,30,"11:14:25.200",null,null,null,null,null,177,1,7,21,"10:49:00",82,7,11,33,"11:38:00",null,null,null,null,null,229,1,10,26,"12:01:00",118,1,9,29,"11:32:00",null,null,null,null,null,null,null,null,null,null,null,null,null,null,null,null,null,null,null,null,null,null,null,null,null,null,null,null,null,null,null,null,null,null,null,80,9,9,9,"11:47:00"]
[993,"Budaszewski","Marcin","Łeba",22,5,0,0,null,null,null,null,null,null,null,null,null,null,null,null,null,null,null,null,null,null,null,null,null,null,null,null,null,null,null,null,null,null,null,null,null,null,null,null,null,null,null,null,null,null,null,null,null,null,null,null,null,null,null,null,null,null,null,null,null,null,null,null,null,null,null,null,null,null,null,null,null,null,null,null,null,null,null,null,null,null,null,null,null,null,null,null,null,null,null,null,null,null,null,null,null,null,null,null,null,null,null,null,null,null,null,null,null,null,null,null,null,null,null,null,null,null,null,null,null,null,null,null,194,1,8,27,"11:37:00",null,null,null,null,null,null,null,null,null,null,74,15,12,43,"11:30:00",85,4,12,42,"11:32:00",165,1,12,18,"12:18:00",132,1,9,29,"11:01:00"]
[1003,"Gieryk","Mariusz","Łeba",22,1,0,0,null,null,null,null,null,null,null,null,null,null,null,null,null,null,null,null,null,null,null,null,null,null,null,null,null,null,null,null,null,null,null,null,null,null,null,null,null,null,null,null,null,null,null,null,null,null,null,null,null,null,null,null,null,null,null,null,null,null,null,null,null,null,null,null,null,null,null,null,null,null,null,null,null,null,null,null,null,null,null,null,null,null,null,null,null,null,null,null,null,null,null,null,null,null,null,null,null,null,null,null,null,null,null,null,null,null,null,null,null,null,null,null,null,null,null,null,null,null,null,null,null,null,null,null,null,null,null,null,null,null,null,null,null,null,null,null,null,null,null,null,null,null,null,null,null,null,null,null,null,null,null,null,null,null,null,67,22,10,32,"10:25:00"]
[1011,"Leśniowski","Mariusz","Gdańsk",21,1,0,0,null,null,null,null,null,null,null,null,null,null,null,null,null,null,null,null,null,null,null,null,null,null,null,null,null,null,null,null,null,null,null,null,null,null,null,null,null,null,null,null,null,null,null,null,null,null,null,null,null,null,null,null,null,null,null,null,null,null,null,null,null,null,null,null,null,null,null,null,null,null,null,null,null,null,null,null,null,null,null,null,null,null,null,null,null,null,null,null,null,null,null,null,null,null,null,68,21,12,40,"11:38:13.200"]
[1022,"Ogiegło","Witold",null,20,1,0,0,null,null,null,null,null,null,null,null,null,null,null,null,null,null,null,null,null,null,null,null,null,null,null,null,null,null,null,null,null,null,null,null,null,null,null,null,null,null,null,null,null,null,null,null,null,null,null,null,null,null,null,null,null,null,null,null,null,null,null,null,null,null,null,null,null,null,null,null,null,null,null,null,null,null,null,null,null,null,null,null,null,null,null,null,null,null,null,null,null,null,null,null,null,null,null,null,null,null,null,null,null,null,null,null,null,null,null,null,null,null,null,null,null,null,null,null,null,null,null,null,null,null,null,null,null,null,null,null,null,null,null,null,null,null,null,null,null,null,null,null,null,null,null,null,null,null,null,null,null,null,null,null,null,null,null,null,null,null,null,null,null,null,null,null,null,null,null,null,null,null,null,null,null,null,null,null,null,null,null,null,null,null,null,null,null,null,null,null,null,null,null,null,null,null,null,69,20,10,10,"11:50:00"]
[1029,"Golembka","Karol","Rawicz",19,2,0,0,null,null,null,null,null,null,null,null,null,null,null,null,null,null,null,101,1,5,11,"06:24:28",71,18,19,46,"13:08:43"]
[1041,"Sawka","Marcin","Gdańsk",18,3,0,0,null,null,null,null,null,null,null,null,null,null,null,null,null,null,null,null,null,null,null,null,null,null,null,null,null,null,null,null,null,null,null,null,null,null,null,null,null,null,null,null,null,null,null,null,null,null,null,null,null,null,null,null,null,null,null,null,null,null,null,null,null,null,null,null,null,null,null,null,null,null,null,null,null,null,null,null,null,null,null,null,null,null,null,null,null,null,null,null,null,null,null,null,null,null,null,null,null,null,null,null,null,null,null,null,null,null,null,null,null,null,null,null,null,null,null,null,null,null,null,null,null,null,null,null,null,null,null,null,null,null,null,null,null,null,null,null,null,null,null,null,null,null,null,null,null,null,null,null,null,null,null,null,null,null,null,null,null,null,null,null,null,null,null,null,null,null,null,null,null,null,null,null,null,null,null,null,null,null,null,null,null,null,null,null,null,null,null,null,null,null,88,1,13,13,"11:41:00","NKL",0,5,0,"NKL",72,17,10,10,"09:21:00"]
[1043,"Wójtowicz","Mariusz","Gdańsk",18,2,0,0,null,null,null,null,null,null,null,null,null,null,null,null,null,null,null,null,null,null,null,null,null,null,null,null,null,null,null,null,null,null,null,null,null,null,null,null,null,null,null,null,null,null,null,null,null,null,null,null,null,null,null,null,null,null,null,null,null,null,null,null,null,null,null,null,null,null,null,null,null,null,null,null,null,null,null,null,null,null,null,null,null,null,null,null,null,null,null,null,null,null,null,null,null,null,null,null,null,null,null,null,null,null,null,null,null,null,null,null,null,null,null,null,null,null,null,null,null,null,null,null,null,null,null,null,null,null,null,null,null,null,null,null,null,null,null,null,null,null,null,null,null,null,null,null,null,null,null,null,null,null,null,null,null,null,null,null,null,null,null,null,null,null,null,null,null,null,null,null,null,null,123,1,10,32,"10:54:00",null,null,null,null,null,72,17,10,29,"11:52:00"]
[1052,"Urban","Izabela","Malbork",17,2,0,0,null,null,null,null,null,null,null,null,null,null,93,1,13,33,"11:41:57",73,16,13,30,"11:04:22"]
[1061,"Sieszchulski","Rafał ","Janowiec Wlkp.",16,4,0,0,null,null,null,null,null,null,null,null,null,null,null,null,null,null,null,null,null,null,null,null,null,null,null,null,null,null,null,null,null,null,null,null,null,null,null,null,null,null,null,null,null,null,null,null,null,null,null,null,null,null,null,null,null,null,null,null,null,null,null,null,null,null,null,null,null,null,null,null,null,null,null,null,null,null,null,null,null,null,null,null,null,null,null,null,null,null,null,null,null,null,null,null,null,null,null,null,null,null,null,null,null,null,null,null,null,null,null,null,null,null,null,null,null,null,null,null,null,null,null,null,null,null,null,null,null,null,null,null,null,null,null,null,null,null,null,null,null,null,null,null,null,null,null,null,null,null,null,null,null,null,null,null,null,null,null,null,null,null,null,null,null,null,null,null,null,99,1,9,28,"11:21:00",130,1,10,31,"11:40:00",113,1,8,21,"11:17:00",76,13,10,28,"11:43:00"]
[1070,"Kaliszczak","Łukasz","Poznań",16,1,0,0,null,null,null,null,null,null,null,null,null,null,73,16,16,37,"13:37:50"]
[1080,"Dąbrowski","Jarosław","Ząbki",15,2,0,0,null,null,null,null,null,null,null,null,null,null,null,null,null,null,null,null,null,null,null,null,null,null,null,null,null,null,null,null,null,null,100,1,2,6,"07:50:34",null,null,null,null,null,null,null,null,null,null,null,null,null,null,null,null,null,null,null,null,null,null,null,null,null,null,null,null,null,null,null,null,null,null,null,null,null,null,null,null,null,null,null,null,null,null,null,null,null,null,null,null,null,null,null,null,null,null,null,null,null,null,null,null,null,null,null,null,null,null,null,null,null,null,null,null,null,null,null,null,null,null,null,null,null,null,null,null,null,null,75,14,10,34,"11:48:00"]
[1090,"Urbanowski","Dariusz","Gdynia",14,14,0,0,null,null,null,null,null,null,null,null,null,null,null,null,null,null,null,null,null,null,null,null,null,null,null,null,null,null,null,null,null,null,null,null,null,null,null,null,null,null,null,null,null,null,null,null,null,90,1,6,24,"11:05:22",182,1,5,15,"11:13:03",102,1,7,23,"10:14:45",159,1,8,27,"11:35:13",134,1,6,19,"11:49:43",null,null,null,null,null,null,null,null,null,null,196,1,5,13,"10:25:17",null,null,null,null,null,332,1,3,10,"10:49:34",241,1,6,18,"10:26:23.400",247,1,9,25,"09:02:00",259,1,5,11,"09:27:00",249,1,7,19,"11:11:04.200",null,null,null,null,null,null,null,null,null,null,null,null,null,null,null,225,1,5,15,"09:19:00",null,null,null,null,null,206,1,10,29,"11:53:00",null,null,null,null,null,null,null,null,null,null,null,null,null,null,null,185,1,8,19,"10:36:00"]
[1099,"Rubinowski","Sebastian",null,14,1,0,0,null,null,null,null,null,null,null,null,null,null,null,null,null,null,null,null,null,null,null,null,null,null,null,null,null,null,null,null,null,null,null,null,null,null,null,null,null,null,null,null,null,null,null,null,null,null,null,null,null,null,null,null,null,null,null,null,null,null,null,null,null,null,null,null,null,null,null,null,null,null,null,null,null,null,null,null,null,null,null,null,null,null,null,null,null,null,null,null,null,null,null,null,null,null,null,null,null,null,null,null,null,null,null,null,null,null,null,null,null,null,null,null,null,null,null,null,null,null,null,null,null,null,null,null,null,null,null,null,null,null,null,null,null,null,null,null,null,null,null,null,null,null,null,null,null,null,null,null,null,null,null,null,null,null,null,null,null,null,null,null,null,null,null,null,null,null,null,null,null,null,null,null,null,null,null,null,null,null,null,null,null,null,null,null,null,null,null,null,null,null,null,null,null,null,null,75,14,9,9,"10:56:00"]
[1108,"Chudzik","Emil","Gdańsk",13,1,0,0,null,null,null,null,null,76,13,11,26,"10:05:08"]
[1118,"Karp","Jakub","Ziślonka",12,2,0,0,null,null,null,null,null,null,null,null,null,null,null,null,null,null,null,null,null,null,null,null,null,null,null,null,null,null,null,null,null,null,null,null,null,null,null,null,null,null,null,null,null,null,null,null,null,null,null,null,null,null,null,null,null,null,null,null,null,null,null,null,null,null,null,null,null,null,null,null,null,null,null,null,null,null,null,null,null,null,null,null,null,null,null,null,null,null,null,null,null,null,null,null,null,null,null,null,null,null,null,null,null,null,null,null,null,null,null,null,null,null,null,null,null,null,null,null,null,null,null,null,null,null,null,null,null,null,null,null,null,null,null,null,null,null,null,null,null,null,null,null,null,null,null,null,null,null,null,null,null,null,null,null,null,null,null,null,null,null,null,null,null,null,null,null,null,null,null,null,null,null,null,null,null,null,null,null,null,null,null,null,null,null,null,null,null,null,null,null,null,null,172,1,9,9,"11:13:00",78,11,9,9,"11:09:00"]
[1126,"Bielińska","Katarzyna","Rumia",11,11,0,0,null,null,null,null,null,null,null,null,null,null,null,null,null,null,null,null,null,null,null,null,null,null,null,null,null,null,null,null,null,null,null,null,null,null,null,null,null,null,null,null,null,null,null,null,null,null,null,null,null,null,null,null,null,null,null,null,null,null,null,null,null,null,null,null,null,null,null,null,null,null,null,null,null,null,null,176,1,6,20,"11:10:00",188,1,5,17,"11:36:05",185,1,"7","27","11:22:15",170,1,7,29,"11:24:13",204,1,7,24,"11:41:33",238,1,8,27,"11:23:00",null,null,null,null,null,255,1,5,19,"10:57:18",211,1,8,27,"11:43:04.800",212,1,7,25,"11:16:00",134,1,9,27,"11:06:00",162,1,8,26,"11:19:00"]
[1129,"Łozowski","Adam","Gdańsk",11,4,0,0,null,null,null,null,null,null,null,null,null,null,null,null,null,null,null,null,null,null,null,null,null,null,null,null,null,null,null,null,null,null,null,null,null,null,null,null,null,null,null,null,null,null,null,null,null,null,null,null,null,null,null,null,null,null,null,null,null,null,null,null,null,null,null,null,null,null,null,null,null,null,null,null,null,null,null,null,null,null,null,null,null,null,null,null,null,null,null,null,null,null,null,null,null,null,null,null,null,null,null,null,null,null,null,null,null,null,null,null,null,null,null,null,null,null,null,null,null,null,null,null,null,null,null,null,null,null,null,null,null,null,null,null,null,null,null,204,1,6,23,"10:06:00",267,1,4,10,"10:45:00",125,1,9,28,"11:24:00",81,8,11,36,"11:37:00"]
[1144,"Fałatowicz","Jacek","Otwock",10,2,0,0,null,null,null,null,null,null,null,null,null,null,null,null,null,null,null,null,null,null,null,null,null,null,null,null,null,null,null,null,null,null,null,null,null,null,null,null,null,null,null,null,null,null,null,null,null,null,null,null,null,null,null,null,null,null,null,null,null,null,null,null,null,null,null,null,null,null,null,null,null,null,null,null,null,null,null,null,null,null,null,null,null,null,null,null,null,null,null,null,null,null,null,null,null,null,null,null,null,null,null,null,null,null,null,null,null,null,null,null,null,null,null,null,null,null,null,null,null,null,null,null,null,null,null,null,null,null,null,null,null,null,null,null,null,null,null,null,null,null,null,null,null,null,null,null,null,null,null,null,null,null,80,9,11,36,"11:31:00",126,1,9,24,"11:49:00"]
[1151,"Lewandowski","Marek","Bydgoszcz",10,1,0,0,79,10,17,38,"09:44:18"]
[1158,"Śpiewak","Marcin","Bytom",10,1,0,0,null,null,null,null,null,null,null,null,null,null,null,null,null,null,null,null,null,null,null,null,null,null,null,null,null,null,null,null,null,null,null,null,null,null,null,null,null,null,null,null,null,null,null,null,null,null,null,null,null,null,null,null,null,null,null,null,null,null,null,null,null,null,null,null,null,null,null,null,null,null,null,null,null,null,null,null,null,null,null,null,null,null,null,null,null,null,null,null,null,null,null,null,null,null,null,null,null,null,null,null,null,null,null,null,null,null,null,null,null,null,null,null,null,null,null,null,null,null,null,null,null,null,null,null,null,null,null,null,null,null,null,null,null,null,null,null,null,null,null,null,null,null,null,null,null,null,null,null,null,null,null,null,null,null,null,79,10,9,30,"11:41:00"]
[1167,"Majka","Jacek","Nysa",9,2,0,0,null,null,null,null,null,null,null,null,null,null,null,null,null,null,null,null,null,null,null,null,null,null,null,null,null,null,null,null,null,null,null,null,null,null,null,null,null,null,null,null,null,null,null,null,null,null,null,null,null,null,null,null,null,null,null,null,null,null,null,null,null,null,null,null,null,null,null,null,null,null,null,null,null,null,null,null,null,null,null,null,null,null,null,null,null,null,null,null,null,null,null,null,null,null,null,104,1,12,36,"11:20:33",null,null,null,null,null,81,8,16,45,"11:24:00"]
[1176,"Wojtczak","Marcin","Gdańsk",9,1,0,0,null,null,null,null,null,null,null,null,null,null,null,null,null,null,null,null,null,null,null,null,null,null,null,null,null,null,null,null,null,null,null,null,null,null,null,null,null,null,null,null,null,null,null,null,null,null,null,null,null,null,null,null,null,null,null,null,null,null,null,null,null,null,null,null,null,null,null,null,null,null,null,null,null,null,null,null,null,null,null,null,null,null,null,null,null,null,null,null,null,null,null,null,null,null,null,null,null,null,null,null,null,null,null,null,null,null,null,null,null,null,null,null,null,null,null,null,null,null,null,null,null,null,null,null,null,null,null,null,null,null,null,null,null,null,null,null,null,null,null,null,null,null,null,null,null,null,null,null,null,null,null,null,null,null,null,null,null,null,null,null,null,null,null,null,null,null,null,null,null,null,null,null,null,null,null,null,null,null,null,null,null,null,null,null,null,80,9,9,9,"11:47:00"]
[1186,"Podhorodecki","Michał","Gdynia",8,8,0,0,null,null,null,null,null,null,null,null,null,null,null,null,null,null,null,null,null,null,null,null,null,null,null,null,null,null,null,null,null,null,null,null,null,null,null,null,null,null,null,null,null,null,null,null,null,null,null,null,null,null,null,null,null,null,null,null,null,null,null,null,null,null,null,null,null,null,null,null,null,null,null,null,null,null,null,null,null,null,null,null,null,null,null,null,null,null,null,null,null,null,null,null,null,null,null,null,null,null,null,null,null,null,null,null,null,118,1,12,40,"11:43:00",null,null,null,null,null,null,null,null,null,null,90,1,11,36,"11:17:00",201,1,4,13,"10:13:00",null,null,null,null,null,195,1,10,25,"11:26:00",131,1,11,37,"11:10:00",null,null,null,null,null,null,null,null,null,null,null,null,null,null,null,154,1,9,29,"11:33:00",107,1,9,27,"11:30:00",172,1,7,3,"12:21:00"]
[1187,"Szymczak","Sławomir","Malbork",8,8,0,0,null,null,null,null,null,null,null,null,null,null,null,null,null,null,null,null,null,null,null,null,null,null,null,null,null,null,null,null,null,null,null,null,null,null,null,null,null,null,null,null,null,null,null,null,null,null,null,null,null,null,null,null,null,null,null,null,null,null,null,null,null,null,null,null,null,null,null,null,null,null,null,null,null,null,null,null,null,null,null,null,null,null,null,null,null,203,1,"7","23","10:24:45",240,1,6,25,"10:56:44",224,1,7,21,"11:27:15.600",257,1,7,23,"11:15:00",218,1,9,26,"11:14:00",280,1,3,13,"09:34:15.600",228,1,7,23,"11:04:24",264,1,6,18,"10:19:00"]
[1196,"Filipczyk","Jurand","Gdynia",7,7,0,0,null,null,null,null,null,null,null,null,null,null,null,null,null,null,null,null,null,null,null,null,null,null,null,null,null,null,null,null,null,null,null,null,null,null,null,null,null,null,null,null,null,null,null,null,null,null,null,null,null,null,null,null,null,null,null,null,null,null,null,null,null,null,null,null,null,null,null,null,null,null,null,null,null,null,null,null,null,null,null,null,null,null,null,null,null,null,null,null,null,null,160,1,9,29,"11:51:50",196,1,9,24,"12:07:27",264,1,5,20,"08:21:00",215,1,8,27,"10:54:00",268,1,4,16,"09:17:35.400",282,1,11,-13,"12:54:14.400",201,1,8,26,"11:43:00"]
[1206,"Czubalski","Andrzej","Pruszków",7,3,0,0,null,null,null,null,null,null,null,null,null,null,null,null,null,null,null,null,null,null,null,null,95,1,12,33,"13:48:36",84,5,10,27,"13:06:53",null,null,null,null,null,null,null,null,null,null,null,null,null,null,null,null,null,null,null,null,null,null,null,null,null,null,null,null,null,null,null,null,null,null,null,null,null,null,null,null,null,null,null,null,null,null,null,null,null,null,null,null,null,null,null,null,null,null,null,null,null,null,null,null,null,null,null,null,null,null,null,null,null,null,null,null,null,null,null,null,null,null,null,null,null,null,null,null,null,null,null,null,null,null,null,null,null,null,null,null,null,null,null,null,null,null,null,null,null,null,201,1,9,30,"11:24:00"]
[1214,"Szewczyk"," ","Gdańsk",7,1,0,0,null,null,null,null,null,null,null,null,null,null,null,null,null,null,null,null,null,null,null,null,null,null,null,null,null,null,null,null,null,null,null,null,null,null,null,null,null,null,null,null,null,null,null,null,null,null,null,null,null,null,null,null,null,null,null,null,null,null,null,null,null,null,null,null,null,null,null,null,null,null,null,null,null,null,null,null,null,null,null,null,null,null,null,null,null,null,null,null,null,null,null,null,null,null,null,null,null,null,null,null,null,null,null,null,null,null,null,null,null,null,null,null,null,null,null,null,null,null,null,null,null,null,null,null,null,null,null,null,null,null,null,null,null,null,null,null,null,null,null,null,null,null,null,null,null,null,null,null,null,null,null,null,null,null,null,null,null,null,null,null,null,null,null,null,null,null,null,null,null,null,82,7,13,37,"11:40:00"]
[1225,"Melaniuk","Arkadiusz","Słupsk",6,6,0,0,null,null,null,null,null,null,null,null,null,null,null,null,null,null,null,null,null,null,null,null,null,null,null,null,null,null,null,null,null,null,null,null,null,null,null,null,null,null,null,null,null,null,null,null,null,null,null,null,null,null,null,null,null,null,null,null,null,null,null,null,null,null,null,null,null,null,null,null,null,null,null,null,null,null,null,null,null,null,null,null,211,1,8,-2,"12:29:31",null,null,null,null,null,null,null,null,null,null,140,1,9,32,"11:36:20.400",null,null,null,null,null,176,1,10,31,"11:21:00",184,1,8,24,"11:12:05.400",207,1,9,29,"11:26:28.800",null,null,null,null,null,null,null,null,null,null,244,1,7,-9,"12:31:00"]
[1232,"Zieliński","Jacek","Reda",6,4,0,0,null,null,null,null,null,null,null,null,null,null,null,null,null,null,null,null,null,null,null,null,null,null,null,null,null,null,null,null,null,null,null,null,null,null,null,null,null,null,null,null,null,null,null,null,null,null,null,null,null,null,null,null,null,null,null,null,null,null,null,null,null,null,null,null,null,null,null,null,null,null,null,null,null,null,null,null,null,null,null,null,null,null,null,null,null,null,null,null,null,null,null,null,null,null,null,null,null,null,null,null,null,null,null,null,null,null,null,null,null,null,null,null,null,null,null,null,null,null,null,null,null,null,null,null,null,null,null,null,null,null,null,null,null,null,null,null,null,null,null,null,null,null,null,null,null,null,null,null,null,null,null,null,null,null,null,112,1,8,26,"11:36:00",159,1,8,28,"11:51:00",null,null,null,null,null,null,null,null,null,null,86,3,10,29,"11:30:00",90,1,7,25,"11:50:00"]
[1244,"Bielińska","Joanna","Rumia",5,5,0,0,null,null,null,null,null,null,null,null,null,null,null,null,null,null,null,null,null,null,null,null,null,null,null,null,null,null,null,null,null,null,null,null,null,null,null,null,null,null,null,null,null,null,null,null,null,null,null,null,null,null,null,null,null,null,null,null,null,null,null,null,null,null,null,null,null,null,null,null,null,null,null,null,null,null,null,174,1,6,20,"11:10:00",185,1,5,17,"11:35:39",165,1,"8","30","11:21:53",null,null,null,null,null,205,1,7,24,"11:42:25.800",235,1,8,27,"11:22:00"]
[1250,"Jurkowski","Albert","Gdańsk",5,5,0,0,null,null,null,null,null,null,null,null,null,null,null,null,null,null,null,null,null,null,null,null,null,null,null,null,null,null,null,null,null,null,null,null,null,null,null,null,null,null,null,null,null,null,null,null,null,null,null,null,null,null,null,null,null,null,null,null,null,null,null,null,null,null,null,null,null,null,null,null,null,null,null,null,null,null,null,null,null,null,null,null,null,null,null,null,null,null,null,null,null,null,null,null,null,null,null,null,null,null,null,null,null,null,null,null,null,null,null,null,null,null,null,null,null,null,null,220,1,9,25,"11:11:17.400",259,1,6,18,"09:40:00",null,null,null,null,null,null,null,null,null,null,null,null,null,null,null,151,1,10,35,"11:46:00",90,1,9,34,"11:30:00",126,1,8,30,"11:42:00"]
[1255,"Noskow","Damian","Wudzynek",5,5,0,0,null,null,null,null,null,null,null,null,null,null,null,null,null,null,null,null,null,null,null,null,null,null,null,null,null,null,null,null,null,null,null,null,null,null,null,null,null,null,null,null,null,null,null,null,null,null,null,null,null,null,null,null,null,null,null,null,null,null,null,null,null,null,null,null,null,null,null,null,null,null,null,null,null,null,null,null,null,null,null,null,null,null,null,null,null,null,null,null,null,null,null,null,null,null,null,null,null,null,null,null,null,null,null,null,null,null,null,null,null,null,null,null,null,null,null,null,null,null,null,null,null,null,null,null,null,null,null,null,null,null,null,null,null,null,null,141,1,10,32,"10:09:00",null,null,null,null,null,140,1,8,27,"11:58:00",187,1,7,14,"12:11:00",95,1,9,29,"11:52:00",145,1,9,30,"10:43:00"]
[1264,"Urbanik","Tomasz","Kolonia Żuchowice",5,5,0,0,null,null,null,null,null,null,null,null,null,null,null,null,null,null,null,null,null,null,null,null,null,null,null,null,null,null,null,null,null,null,null,null,null,null,null,null,null,null,null,null,null,null,null,null,null,null,null,null,null,null,null,null,null,null,null,null,null,null,null,null,null,null,null,null,null,null,null,null,null,null,158,1,9,28,"11:43:00",null,null,null,null,null,null,null,null,null,null,164,1,"8","30","11:13:49",302,1,5,19,"11:32:52",198,1,8,24,"11:15:07.800",null,null,null,null,null,null,null,null,null,null,null,null,null,null,null,null,null,null,null,null,null,null,null,null,null,null,null,null,null,null,null,null,null,null,null,null,null,null,null,null,189,1,10,31,"11:32:00"]
[1274,"Balik","Łukasz","Bydgoszcz",4,6,0,0,null,null,null,null,null,null,null,null,null,null,null,null,null,null,null,null,null,null,null,null,null,null,null,null,null,null,null,null,null,null,null,null,null,null,null,null,null,null,null,null,null,null,null,null,null,null,null,null,null,null,null,null,null,null,null,null,null,null,null,null,null,null,null,null,null,null,null,null,null,null,null,null,null,null,null,null,null,null,null,null,null,null,null,null,null,null,null,null,null,null,null,null,null,null,null,null,null,null,null,null,null,null,null,null,null,null,null,null,null,null,null,null,null,null,null,null,null,null,null,null,null,null,null,null,null,null,null,null,null,null,null,null,null,null,null,"NKL",0,0,0,"NKL",244,1,8,22,"10:46:00","NKL",0,0,0,"NKL",181,1,6,20,"11:41:00",122,1,7,25,"11:38:00",null,null,null,null,null,124,1,7,24,"11:32:00"]
[1281,"Block","Barbara","Wejherowo",4,4,0,0,null,null,null,null,null,null,null,null,null,null,null,null,null,null,null,null,null,null,null,null,null,null,null,null,null,null,null,null,null,null,null,null,null,null,null,null,null,null,null,null,null,null,null,null,null,null,null,null,null,null,114,1,9,32,"10:29:04",null,null,null,null,null,143,1,9,33,"11:49:35",null,null,null,null,null,null,null,null,null,null,null,null,null,null,null,null,null,null,null,null,null,null,null,null,null,315,1,5,16,"12:06:49",null,null,null,null,null,216,1,9,30,"11:55:00"]
[1293,"Jarocka","Anna","Gdańsk",4,4,0,0,null,null,null,null,null,null,null,null,null,null,null,null,null,null,null,null,null,null,null,null,null,null,null,null,null,null,null,null,null,null,null,null,null,null,null,null,null,null,null,null,null,null,null,null,null,null,null,null,null,null,null,null,null,null,null,null,null,null,null,null,null,null,null,null,null,null,null,null,null,null,null,null,null,null,null,null,null,null,null,null,null,null,null,null,null,null,null,null,null,null,null,null,null,null,null,249,1,5,17,"11:06:31.200",null,null,null,null,null,null,null,null,null,null,null,null,null,null,null,null,null,null,null,null,null,null,null,null,null,null,null,null,null,null,null,null,null,null,null,null,null,null,null,null,257,1,7,19,"07:03:00",170,1,5,14,"11:00:00",156,1,9,26,"10:31:00"]
[1300,"Kopyś","Przemysław","Koszalin",4,4,0,0,null,null,null,null,null,null,null,null,null,null,null,null,null,null,null,null,null,null,null,null,null,null,null,null,null,null,null,null,null,null,null,null,null,null,null,null,null,null,null,null,null,null,null,null,null,null,null,null,null,null,null,null,null,null,null,null,null,null,null,null,null,null,null,null,null,95,1,10,33,"11:41:40",115,1,11,36,"11:50:00",103,1,10,33,"11:41:00",144,1,8,25,"12:00:36"]
[1312,"Stachowicz","Grzegorz","Ostróda",4,4,0,0,null,null,null,null,null,null,null,null,null,null,null,null,null,null,null,null,null,null,null,null,null,null,null,null,null,null,null,null,null,null,null,null,null,null,null,null,null,null,null,null,null,null,null,null,null,null,null,null,null,null,null,null,null,null,null,null,null,null,null,null,null,null,null,null,null,null,null,null,null,null,null,null,null,null,null,null,null,null,null,null,null,null,null,null,null,null,null,null,null,null,null,null,null,null,null,null,null,null,null,null,null,null,null,null,null,149,1,12,34,"11:39:00",null,null,null,null,null,236,1,13,21,"12:15:00.600",274,1,3,10,"09:44:00",114,1,9,29,"11:31:00"]
[1321,"Stubiński","Piotr","Gdynia",4,1,0,0,null,null,null,null,null,85,4,9,21,"11:03:22"]
[1329,"Zieliński","Szymon","Zabrze",3,4,0,0,null,null,null,null,null,null,null,null,null,null,null,null,null,null,null,null,null,null,null,null,null,null,null,null,null,null,null,null,null,null,null,null,null,null,null,null,null,null,null,null,null,null,null,null,null,null,null,null,null,null,null,null,null,null,null,null,null,null,null,null,null,null,null,null,null,null,null,null,null,null,185,1,12,12,"12:25:00",115,1,11,31,"11:42:00",168,1,7,22,"11:33:21",null,null,null,null,null,"NKL",0,8,null,"NKL"]
[1330,"Adamski","Bartosz","Hel",3,3,0,0,null,null,null,null,null,null,null,null,null,null,null,null,null,null,null,null,null,null,null,null,null,null,null,null,null,null,null,null,null,null,null,null,null,null,null,null,null,null,null,null,null,null,null,null,null,null,null,null,null,null,null,null,null,null,null,null,null,null,null,null,null,null,null,null,null,null,null,null,null,null,null,null,null,null,null,null,null,null,null,null,null,null,null,null,null,null,null,null,null,null,null,null,null,null,null,null,null,null,null,null,null,null,null,null,null,null,null,null,null,null,null,null,null,null,null,null,null,null,null,null,null,null,null,null,null,null,null,null,null,null,null,null,null,null,null,null,null,null,null,null,174,1,11,32,"11:19:00",115,1,12,29,"12:07:00",null,null,null,null,null,110,1,8,26,"11:27:00"]
[1346,"Greszta","Krzysztof","Wejherowo",3,3,0,0,null,null,null,null,null,null,null,null,null,null,null,null,null,null,null,null,null,null,null,null,null,null,null,null,null,null,null,null,null,null,null,null,null,null,null,null,null,null,null,null,null,null,null,null,null,null,null,null,null,null,null,null,null,null,null,null,null,null,null,null,null,null,null,null,null,null,null,null,null,null,null,null,null,null,null,null,null,null,null,null,159,1,7,24,"11:23:37",null,null,null,null,null,null,null,null,null,null,null,null,null,null,null,188,1,12,32,"11:48:00",161,1,12,32,"12:09:00"]
[1350,"Ignaciuk","Tomasz","Gdańsk",3,3,0,0,null,null,null,null,null,null,null,null,null,null,null,null,null,null,null,null,null,null,null,null,null,null,null,null,null,null,null,null,null,null,null,null,null,null,null,null,null,null,null,null,null,null,null,null,null,null,null,null,null,null,null,null,null,null,null,null,null,null,null,null,null,null,null,null,null,null,null,null,null,null,null,null,null,null,null,null,null,null,null,null,null,null,null,null,null,null,null,null,null,null,null,null,null,null,null,null,null,null,null,null,null,null,null,null,null,null,null,null,null,null,null,null,null,null,null,null,null,null,null,null,null,null,null,null,null,null,null,null,null,null,null,null,null,null,null,130,1,9,34,"10:53:00",111,1,12,39,"11:30:00",97,1,10,33,"10:39:00"]
[1355,"Kirejczyk","Wojciech","Warszawa",3,3,0,0,null,null,null,null,null,null,null,null,null,null,null,null,null,null,null,null,null,null,null,null,null,null,null,null,null,null,null,null,null,null,null,null,null,null,null,null,null,null,null,null,null,null,null,null,null,null,null,null,null,null,null,null,null,null,null,null,null,null,null,null,null,null,null,null,null,null,null,null,null,null,null,null,null,null,null,null,null,null,null,null,null,null,null,null,null,null,null,null,null,null,null,null,null,null,null,null,null,null,null,null,null,null,null,null,null,null,null,null,null,null,130,1,10,27,"11:14:27.600",93,1,13,42,"11:56:20.400",125,1,10,33,"11:02:00"]
[1369,"Moskal","Monika","Kolbudy",3,3,0,0,null,null,null,null,null,null,null,null,null,null,null,null,null,null,null,null,null,null,null,null,null,null,null,null,null,null,null,null,null,null,null,null,null,null,null,null,null,null,null,null,null,null,null,null,null,null,null,null,null,null,null,null,null,null,null,null,null,null,null,null,null,null,null,null,null,null,null,null,null,null,null,null,null,null,null,null,null,null,null,null,null,null,null,null,null,null,null,null,null,null,325,1,3,12,"07:24:11",null,null,null,null,null,277,1,4,14,"09:22:00",255,1,6,15,"11:16:00"]
[1378,"Rodziewicz","Jarosław","Pruszków",3,3,0,0,null,null,null,null,null,null,null,null,null,null,null,null,null,null,null,null,null,null,null,null,null,null,null,null,null,null,null,null,null,null,null,null,null,null,null,null,null,null,null,null,null,null,null,null,null,null,null,null,null,null,null,null,null,null,null,null,null,null,null,null,null,null,null,null,null,null,null,null,null,null,null,null,null,null,null,null,null,null,null,null,null,null,null,null,null,null,null,null,null,null,null,null,null,null,null,null,null,null,null,null,null,null,null,null,null,null,null,null,null,null,null,null,null,null,null,null,null,null,null,null,null,null,null,null,null,null,null,null,null,null,null,null,null,null,null,null,null,null,null,null,162,1,10,34,"11:20:00",93,1,9,34,"11:58:00",117,1,10,31,"11:01:00"]
[1389,"Szuca","Zbigniew","Gdańsk",3,3,0,0,null,null,null,null,null,null,null,null,null,null,null,null,null,null,null,null,null,null,null,null,null,null,null,null,null,null,null,null,null,null,null,null,null,null,null,null,null,null,null,null,null,null,null,null,null,null,null,null,null,null,null,null,null,null,null,null,null,null,null,null,null,null,null,null,null,null,null,null,null,null,159,1,7,26,"08:39:00",127,1,8,30,"11:01:00",155,1,7,24,"10:04:16"]
[1397,"Urbanik","Dariusz","Warszawa",3,3,0,0,null,null,null,null,null,null,null,null,null,null,null,null,null,null,null,null,null,null,null,null,null,null,null,null,null,null,null,null,null,null,null,null,null,null,null,null,null,null,null,null,null,null,null,null,null,null,null,null,null,null,null,null,null,null,null,null,null,null,null,null,null,null,null,null,null,null,null,null,null,null,157,1,9,28,"11:43:00",null,null,null,null,null,null,null,null,null,null,179,1,"8","28","11:40:04",301,1,5,19,"11:32:48"]
[1400,"Warzecha","Marcin","Poznań",3,3,0,0,null,null,null,null,null,null,null,null,null,null,null,null,null,null,null,null,null,null,null,null,null,null,null,null,null,null,null,null,null,null,null,null,null,null,null,null,null,null,null,null,null,null,null,null,null,null,null,null,null,null,null,null,null,null,null,null,null,null,null,null,null,null,null,null,null,null,null,null,null,null,null,null,null,null,null,null,null,null,null,null,null,null,null,null,null,null,null,null,null,null,null,null,null,null,null,null,null,null,null,null,null,null,null,null,null,null,null,null,null,null,null,null,null,null,null,279,1,8,-3,"12:27:34.200",null,null,null,null,null,null,null,null,null,null,null,null,null,null,null,null,null,null,null,null,null,null,null,null,null,null,null,null,null,null,179,1,6,20,"11:21:00",null,null,null,null,null,192,1,9,11,"12:19:00"]
[1414,"Banka","Krystian","Gdańsk",3,1,0,0,null,null,null,null,null,null,null,null,null,null,null,null,null,null,null,null,null,null,null,null,null,null,null,null,null,null,null,null,null,null,null,null,null,null,null,null,null,null,null,null,null,null,null,null,null,null,null,null,null,null,null,null,null,null,null,null,null,null,null,null,null,null,null,null,null,null,null,null,null,null,null,null,null,null,null,null,null,null,null,null,null,null,null,null,null,null,null,null,null,null,null,null,null,null,null,null,null,null,null,null,null,null,null,null,null,null,null,null,null,null,null,null,null,null,null,null,null,null,null,null,null,null,null,null,null,null,null,null,null,null,null,null,null,null,null,null,null,null,null,null,null,null,null,null,null,null,null,null,null,null,null,null,null,null,null,null,null,null,null,null,null,null,null,null,null,null,null,null,null,null,null,null,null,null,null,null,null,null,null,null,86,3,9,25,"11:47:00"]
[1419,"Szczepanowski","Marcin",null,3,1,0,0,null,null,null,null,null,null,null,null,null,null,null,null,null,null,null,null,null,null,null,null,null,null,null,null,null,null,null,null,null,null,null,null,null,null,null,null,null,null,null,null,null,null,null,null,null,null,null,null,null,null,null,null,null,null,null,null,null,null,null,null,null,null,null,null,null,null,null,null,null,null,null,null,null,null,null,null,null,null,null,null,null,null,null,null,null,null,null,null,null,null,null,null,null,null,null,null,null,null,null,null,null,null,null,null,null,null,null,null,null,null,null,null,null,null,null,null,null,null,null,null,null,null,null,null,null,null,null,null,null,null,null,null,null,null,null,null,null,null,null,null,null,null,null,null,null,null,null,null,null,null,null,null,null,null,null,null,null,null,null,null,null,null,null,null,null,null,null,null,null,null,null,null,null,null,null,null,null,null,null,null,null,null,null,null,null,null,null,null,null,null,null,null,null,null,null,86,3,9,9,"11:35:00"]
[1428,"Wilkowska","Dorota","Gdańsk",2,3,0,0,null,null,null,null,null,null,null,null,null,null,null,null,null,null,null,null,null,null,null,null,null,null,null,null,null,null,null,null,null,null,null,null,null,null,null,null,null,null,null,null,null,null,null,null,null,null,null,null,null,null,"NKL",0,null,"brak karty",null,null,null,null,null,null,133,1,8,34,"10:55:14",129,1,7,20,"10:25:08"]
[1435,"Arent","Krystyna","Starogard Gd.",2,2,0,0,null,null,null,null,null,null,null,null,null,null,null,null,null,null,null,null,null,null,null,null,null,null,null,null,null,null,null,null,null,null,null,null,null,null,null,null,null,null,null,null,null,null,null,null,null,null,null,null,null,null,null,null,null,null,null,null,null,null,null,null,null,null,null,null,null,null,null,null,null,null,null,null,null,null,null,null,null,null,null,null,null,null,null,null,null,null,null,null,null,null,null,null,null,null,null,null,null,null,null,null,null,null,null,null,null,null,null,null,null,null,null,null,null,null,null,null,null,null,null,null,null,null,null,null,null,null,null,null,null,null,null,null,null,null,null,221,1,6,16,"11:28:00",null,null,null,null,null,null,null,null,null,null,190,1,5,14,"11:43:00"]
[1447,"Ćwikliński","Dariusz","Pruszcz Gdański",2,2,0,0,null,null,null,null,null,null,null,null,null,null,null,null,null,null,null,null,null,null,null,null,null,null,null,null,null,null,null,null,null,null,null,null,null,null,null,null,null,null,null,null,null,null,null,null,null,null,null,null,null,null,null,null,null,null,null,null,null,null,null,null,null,null,null,null,null,null,null,null,null,null,null,null,null,null,null,null,null,null,null,null,124,1,8,28,"11:49:33",null,null,null,null,null,177,1,8,28,"11:10:23"]
[1453,"Formela","Sebastian","Żukowo",2,2,0,0,null,null,null,null,null,null,null,null,null,null,null,null,null,null,null,null,null,null,null,null,null,null,null,null,null,null,null,null,null,null,null,null,null,null,null,null,null,null,null,null,null,null,null,null,null,null,null,null,null,null,null,null,null,null,null,null,null,null,null,null,null,null,null,null,null,null,null,null,null,null,null,null,null,null,null,null,null,null,null,null,null,null,null,null,null,null,null,null,null,null,null,null,null,null,null,143,1,9,32,"11:40:29.400",197,1,9,32,"11:06:00"]
[1458,"Gawryszewski","Michał","Granica",2,2,0,0,null,null,null,null,null,null,null,null,null,null,null,null,null,null,null,null,null,null,null,null,null,null,null,null,null,null,null,null,null,null,null,null,null,null,null,null,null,null,null,null,null,null,null,null,null,null,null,null,null,null,null,null,null,null,null,null,null,null,null,null,null,null,null,null,null,null,null,null,null,null,null,null,null,null,null,132,1,9,29,"11:40:00",null,null,null,null,null,null,null,null,null,null,null,null,null,null,null,144,1,11,31,"11:29:10.800"]
[1471,"Idziński","Marcin","Sopot",2,2,0,0,null,null,null,null,null,null,null,null,null,null,null,null,null,null,null,null,null,null,null,null,null,null,null,null,null,null,null,null,null,null,null,null,null,null,null,null,null,null,null,null,null,null,null,null,null,null,null,null,null,null,null,null,null,null,null,null,null,null,null,null,null,null,null,null,null,null,null,null,null,null,null,null,null,null,null,null,null,null,null,null,null,null,null,null,null,null,null,null,null,null,null,null,null,null,null,116,1,11,35,"11:43:16.800",288,1,9,0,"13:06:00"]
[1477,"Jeż","Jakub","Łódź",2,2,0,0,null,null,null,null,null,null,null,null,null,null,null,null,null,null,null,null,null,null,null,null,null,null,null,null,null,null,null,null,null,null,null,null,null,null,null,null,null,null,null,null,null,null,null,null,null,null,null,null,null,null,null,null,null,null,null,null,null,null,null,null,null,null,null,null,null,null,null,null,null,null,null,null,null,null,null,null,null,null,null,null,null,null,null,null,null,null,null,null,null,null,null,null,null,null,null,null,null,null,null,null,null,null,null,null,null,null,null,null,null,null,null,null,null,null,null,136,1,11,37,"11:49:31.800",null,null,null,null,null,140,1,8,27,"11:30:00"]
[1485,"Kmiec","Artur","Sopot",2,2,0,0,null,null,null,null,null,null,null,null,null,null,null,null,null,null,null,null,null,null,null,null,null,null,null,null,null,null,null,null,null,null,null,null,null,null,null,null,null,null,null,null,null,null,null,null,null,null,null,null,null,null,null,null,null,null,null,null,null,null,null,null,null,null,null,null,null,null,null,null,null,null,null,null,null,null,null,null,null,null,null,null,null,null,null,null,null,null,null,null,null,null,null,null,null,null,null,null,null,null,null,null,null,null,null,null,null,null,null,null,null,null,null,null,null,null,null,null,null,null,null,null,null,null,null,null,null,null,null,null,null,null,null,null,null,null,null,null,null,null,null,null,null,null,null,null,null,null,null,null,null,null,170,1,7,24,"11:34:00",null,null,null,null,null,116,1,10,33,"11:12:00"]
[1496,"Kucza ","Bartosz","Warszawa",2,2,0,0,null,null,null,null,null,null,null,null,null,null,null,null,null,null,null,null,null,null,null,null,null,null,null,null,null,null,null,null,null,null,null,null,null,null,null,null,null,null,null,null,null,null,null,null,null,null,null,null,null,null,null,null,null,null,null,null,null,null,null,null,null,null,null,null,null,null,null,null,null,null,null,null,null,null,null,null,null,null,null,null,null,null,null,null,null,null,null,null,null,null,null,null,null,null,null,null,null,null,null,null,null,null,null,null,null,null,null,null,null,null,null,null,null,null,null,null,null,null,null,null,null,null,null,null,null,null,null,null,null,null,null,null,null,null,null,null,null,null,null,null,null,null,null,null,null,null,null,null,null,null,null,null,null,null,null,null,null,null,null,null,null,null,null,null,null,null,null,null,null,null,146,1,11,27,"12:11:00",131,1,9,-4,"12:35:00"]
[1503,"Lewandowski","Grzegorz","Gdynia",2,2,0,0,null,null,null,null,null,null,null,null,null,null,null,null,null,null,null,null,null,null,null,null,null,null,null,null,null,null,null,null,null,null,null,null,null,null,null,null,null,null,null,null,null,null,null,null,null,null,null,null,null,null,null,null,null,null,null,null,null,null,null,null,null,null,null,null,null,null,null,null,null,null,null,null,null,null,null,null,null,null,null,null,null,null,null,null,null,null,null,null,null,null,null,null,null,null,null,null,null,null,null,null,254,1,10,24,"12:08:00",117,1,12,40,"11:39:00"]
[1515,"Małecki","Artur","Janowiec Wlkp.",2,2,0,0,null,null,null,null,null,null,null,null,null,null,null,null,null,null,null,null,null,null,null,null,null,null,null,null,null,null,null,null,null,null,null,null,null,null,null,null,null,null,null,null,null,null,null,null,null,null,null,null,null,null,null,null,null,null,null,null,null,null,null,null,null,null,null,null,null,null,null,null,null,null,null,null,null,null,null,null,null,null,null,null,null,null,null,null,null,null,null,null,null,null,null,null,null,null,null,null,null,null,null,null,null,null,null,null,null,null,null,null,null,null,null,null,null,null,null,null,null,null,null,null,null,null,null,null,null,null,null,null,null,null,null,null,null,null,null,null,null,null,null,null,null,null,null,null,null,null,null,null,null,null,null,null,null,null,null,null,null,null,null,null,null,null,null,null,null,97,1,9,28,"11:20:00",130,1,10,31,"11:40:00"]
[1521,"Mierzwicki","Krzysztof","Warszawa",2,2,0,0,null,null,null,null,null,null,null,null,null,null,null,null,null,null,null,null,null,null,null,null,null,null,null,null,null,null,null,null,null,null,null,null,null,null,null,null,null,null,null,null,null,null,null,null,null,null,null,null,null,null,null,null,null,null,null,null,null,null,null,null,null,null,null,null,null,null,null,null,null,null,null,null,null,null,null,114,1,9,32,"11:48:00",88,1,10,34,"11:55:23"]
[1526,"Moszczyński","Łukasz","Gdynia",2,2,0,0,null,null,null,null,null,null,null,null,null,null,null,null,null,null,null,null,null,null,null,null,null,null,null,null,null,null,null,null,null,null,null,null,null,null,null,null,null,null,null,null,null,null,null,null,null,null,null,null,null,null,null,null,null,null,null,null,null,null,null,null,null,null,null,null,null,null,null,null,null,null,null,null,null,null,null,null,null,null,null,null,null,null,null,null,null,214,1,"7","21","11:19:08",283,1,8,21,"12:09:48"]
[1535,"Nowak","Piotr","Wieden",2,2,0,0,null,null,null,null,null,null,null,null,null,null,null,null,null,null,null,null,null,null,null,null,null,null,null,null,null,null,null,null,null,null,null,null,null,null,null,null,null,null,null,null,null,null,null,null,null,null,null,null,null,null,null,null,null,null,null,null,null,null,null,null,null,null,null,null,null,null,null,null,null,null,122,1,10,35,"12:01:00",null,null,null,null,null,null,null,null,null,null,null,null,null,null,null,null,null,null,null,null,null,null,null,null,null,103,1,12,42,"11:20:00"]
[1550,"Pieczka","Tymoteusz","Gdańsk",2,2,0,0,null,null,null,null,null,null,null,null,null,null,null,null,null,null,null,null,null,null,null,null,null,null,null,null,null,null,null,null,null,null,null,null,null,null,null,null,null,null,null,null,null,null,null,null,null,null,null,null,null,null,null,null,null,null,null,null,null,null,null,null,null,null,null,null,null,null,null,null,null,null,null,null,null,null,null,null,null,null,null,null,null,null,null,null,null,null,null,null,null,null,null,null,null,null,null,null,null,null,null,null,274,1,4,14,"09:22:00",null,null,null,null,null,276,1,4,15,"11:25:27"]
[1554,"Piotrowski","Florian","Gdańsk",2,2,0,0,null,null,null,null,null,null,null,null,null,null,null,null,null,null,null,null,null,null,null,null,null,null,null,null,null,null,null,null,null,null,null,null,null,null,null,null,null,null,null,null,null,null,null,null,null,null,null,null,null,null,null,null,null,null,null,null,null,null,null,null,null,null,null,null,null,null,null,null,null,null,null,null,null,null,null,null,null,null,null,null,null,null,null,null,null,null,null,null,null,null,null,null,null,null,null,null,null,null,null,null,null,null,null,null,null,null,null,null,null,null,null,null,null,null,null,null,null,null,null,null,null,null,null,null,null,null,null,null,null,null,null,null,null,null,null,228,1,3,6,"06:06:00",null,null,null,null,null,null,null,null,null,null,null,null,null,null,null,119,1,8,25,"11:14:00"]
[1559,"Pomierski","Zbigniew","Kwidzyn",2,2,0,0,null,null,null,null,null,null,null,null,null,null,null,null,null,null,null,null,null,null,null,null,null,null,null,null,null,null,null,null,null,null,null,null,null,null,null,null,null,null,null,null,null,null,null,null,null,null,null,null,null,null,null,null,null,null,null,null,null,null,null,null,null,null,null,null,null,null,null,null,null,null,null,null,null,null,null,null,null,null,null,null,null,null,null,null,null,null,null,null,null,null,null,null,null,null,null,null,null,null,null,null,null,null,null,null,null,null,null,null,null,null,227,1,6,22,"11:50:16.200",276,1,11,0,"12:39:06.600"]
[1573,"Siepak","Rafał","Kraków",2,2,0,0,null,null,null,null,null,null,null,null,null,null,null,null,null,null,null,null,null,null,null,null,null,null,null,null,null,null,null,null,null,null,null,null,null,null,null,null,null,null,null,null,null,null,null,null,null,null,null,null,null,null,null,null,null,null,null,null,null,null,null,null,null,null,null,null,null,null,null,null,null,null,null,null,null,null,null,null,null,null,null,null,null,null,null,null,null,null,null,null,null,null,null,null,null,null,null,null,null,null,null,null,null,null,null,null,null,null,null,null,null,null,null,null,null,null,null,null,null,null,null,null,null,null,null,null,null,null,null,null,null,null,null,null,null,null,null,null,null,null,null,null,null,null,null,null,null,null,null,null,null,null,null,null,null,null,null,null,null,null,null,null,null,null,null,null,null,null,null,null,null,null,null,null,null,null,null,null,null,null,null,null,null,null,null,null,null,93,1,8,8,"11:58:00",110,1,12,12,"11:13:00"]
[1582,"Stradowski","Bartłomiej","Gdynia",2,2,0,0,null,null,null,null,null,null,null,null,null,null,null,null,null,null,null,null,null,null,null,null,null,null,null,null,null,null,null,null,null,null,null,null,null,null,null,null,null,null,null,null,null,null,null,null,null,null,null,null,null,null,null,null,null,null,null,null,null,null,null,null,null,null,null,null,null,null,null,null,null,null,null,null,null,null,null,null,null,null,null,null,null,null,null,null,null,null,null,null,null,null,null,null,null,null,null,null,null,null,null,null,null,null,null,null,null,null,null,null,null,null,null,null,null,null,null,null,null,null,null,null,null,null,null,null,null,null,null,null,null,null,null,null,null,null,null,116,1,11,35,"10:47:00",105,1,12,39,"11:15:00"]
[1592,"Szulc","Sabina","Czersk",2,2,0,0,null,null,null,null,null,null,null,null,null,null,null,null,null,null,null,null,null,null,null,null,null,null,null,null,null,null,null,null,null,null,null,null,null,null,null,null,null,null,null,null,null,null,null,null,null,null,null,null,null,null,null,null,null,null,null,null,null,null,null,null,null,null,null,null,null,null,null,null,null,null,null,null,null,null,null,null,null,null,null,null,null,null,null,null,null,null,null,null,null,null,null,null,null,null,null,null,null,null,null,null,null,null,null,null,null,null,null,null,null,null,null,null,null,null,null,null,null,null,null,null,null,null,null,null,null,null,null,null,null,null,null,null,null,null,null,null,null,null,null,null,null,null,null,null,null,null,null,null,null,null,null,null,null,null,null,null,null,null,null,null,null,null,null,null,null,null,null,null,null,null,null,null,null,null,null,null,null,null,null,null,159,1,2,3,"08:32:00",null,null,null,null,null,164,1,10,10,"11:30:00"]
[1600,"Tuczyński","Adam","Gorzów Wielkopolski",2,2,0,0,null,null,null,null,null,null,null,null,null,null,null,null,null,null,null,null,null,null,null,null,null,null,null,null,null,null,null,null,null,null,null,null,null,null,null,null,null,null,null,null,null,null,null,null,null,null,null,null,null,null,null,null,null,null,null,null,null,null,null,null,88,1,12,44,"11:23:15",null,null,null,null,null,null,null,null,null,null,null,null,null,null,null,null,null,null,null,null,null,null,null,null,null,null,null,null,null,null,null,null,null,null,null,null,null,null,null,null,null,null,null,null,null,120,1,8,28,"11:09:34.200"]
[1603,"Uznański","Tomasz","Warszawa",2,2,0,0,null,null,null,null,null,null,null,null,null,null,null,null,null,null,null,null,null,null,null,null,null,null,null,null,null,null,null,null,null,null,null,null,null,null,null,null,null,null,null,null,null,null,null,null,null,null,null,null,null,null,null,null,null,null,null,null,null,null,null,null,null,null,null,null,null,null,null,null,null,null,null,null,null,null,null,null,null,null,null,null,null,null,null,null,null,null,null,null,null,null,null,null,null,null,null,null,null,null,null,null,null,null,null,null,null,null,null,null,null,null,null,null,null,null,null,null,null,null,null,null,143,1,10,31,"11:29:00",null,null,null,null,null,null,null,null,null,null,null,null,null,null,null,121,1,12,38,"12:03:00"]
[1618,"Zająkała","Dariusz","Bydgoszcz",2,2,0,0,null,null,null,null,null,null,null,null,null,null,null,null,null,null,null,null,null,null,null,null,null,null,null,null,null,null,null,null,null,null,null,null,null,null,null,null,null,null,null,null,null,null,null,null,null,null,null,null,null,null,null,null,null,null,null,null,null,null,null,null,null,null,null,null,null,null,null,null,null,null,null,null,null,null,null,null,null,null,null,null,null,null,null,null,null,null,null,null,null,null,309,1,5,18,"11:30:40",null,null,null,null,null,null,null,null,null,null,null,null,null,null,null,null,null,null,null,null,null,null,null,null,null,null,null,null,null,null,null,null,null,null,null,null,null,null,null,null,134,1,12,33,"11:23:00"]
[1622,"Zawisza","Dariusz","Gdańsk",2,2,0,0,null,null,null,null,null,null,null,null,null,null,null,null,null,null,null,null,null,null,null,null,null,null,null,null,null,null,null,null,null,null,null,null,null,null,null,null,null,null,null,null,null,null,null,null,null,null,null,null,null,null,null,null,null,null,null,null,null,null,null,null,null,null,null,null,null,null,null,null,null,null,null,null,null,null,null,null,null,null,null,null,null,null,null,null,null,null,null,null,null,null,null,null,null,null,null,null,null,null,null,null,213,1,9,30,"11:15:00",null,null,null,null,null,null,null,null,null,null,null,null,null,null,null,null,null,null,null,null,null,null,null,null,null,117,1,10,30,"10:24:00"]
[1627,"Michałowski","Michał","Gdańsk",2,1,0,0,null,null,null,null,null,null,null,null,null,null,null,null,null,null,null,null,null,null,null,null,null,null,null,null,null,null,null,null,null,null,null,null,null,null,null,null,null,null,null,null,null,null,null,null,null,null,null,null,null,null,null,null,null,null,null,null,null,null,null,null,null,null,null,null,null,null,null,null,null,null,null,null,null,null,null,null,null,null,null,null,null,null,null,null,null,null,null,null,null,null,null,null,null,null,null,null,null,null,null,null,null,null,null,null,null,null,null,null,null,null,null,null,null,null,null,null,null,null,null,null,87,2,11,36,"10:40:00"]
[1641,"Henicz","Maciej","Poznań",1,2,0,0,null,null,null,null,null,null,null,null,null,null,null,null,null,null,null,null,null,null,null,null,null,null,null,null,null,null,null,null,null,null,null,null,null,null,null,null,null,null,null,null,null,null,null,null,null,null,null,null,null,null,null,null,null,null,null,null,null,null,null,null,null,null,null,null,null,null,null,null,null,null,null,null,null,null,null,null,null,null,null,null,null,null,null,null,null,null,null,null,null,null,null,null,null,null,null,null,null,null,null,null,null,null,null,null,null,null,null,null,null,null,null,null,null,null,null,null,null,null,null,null,null,null,null,null,null,null,null,null,null,null,null,null,null,null,null,null,null,null,null,null,null,null,null,null,null,null,null,null,null,null,null,null,null,null,null,null,null,null,null,null,null,null,null,null,null,null,null,null,null,null,null,null,null,null,null,null,null,null,null,null,null,null,null,null,null,"NKL",0,0,0,"NKL",null,null,null,null,null,191,1,5,5,"10:46:00"]
[1645,"Kowalewski","Mariusz","Gdańsk",1,2,0,0,null,null,null,null,null,null,null,null,null,null,null,null,null,null,null,null,null,null,null,null,null,null,null,null,null,null,null,null,null,null,null,null,null,null,null,null,null,null,null,null,null,null,null,null,null,null,null,null,null,null,null,null,null,null,null,null,null,null,null,null,null,null,null,null,null,null,null,null,null,null,null,null,null,null,null,null,null,null,null,null,null,null,null,null,null,null,null,null,null,null,null,null,null,null,null,"NKL",0,null,"NKL","NKL",181,1,10,34,"11:45:00"]
[1654,"Adamik","Bartłomiej","Rotmanka",1,1,0,0,null,null,null,null,null,null,null,null,null,null,null,null,null,null,null,null,null,null,null,null,null,null,null,null,null,null,null,null,null,null,null,null,null,null,null,null,null,null,null,null,null,null,null,null,null,null,null,null,null,null,null,null,null,null,null,null,null,null,null,null,null,null,null,null,null,null,null,null,null,null,null,null,null,null,null,null,null,null,null,null,null,null,null,null,null,null,null,null,null,null,null,null,null,null,null,null,null,null,null,null,null,null,null,null,null,null,null,null,null,null,null,null,null,null,null,null,null,null,null,null,null,null,null,null,null,null,null,null,null,null,null,null,null,null,null,null,null,null,null,null,null,null,null,null,null,181,1,0,0,"11:22:00"]
[1655,"Afanasie","Sergin",null,1,1,0,0,null,null,null,null,null,null,null,null,null,null,null,null,null,null,null,null,null,null,null,null,null,null,null,null,null,null,null,null,null,null,null,null,null,null,null,null,null,null,null,null,null,null,null,null,null,null,null,null,null,null,null,null,null,null,null,null,null,null,null,null,null,null,null,null,null,null,null,null,null,null,null,null,null,null,null,null,null,null,null,null,null,null,null,null,null,null,null,null,null,null,null,null,null,null,null,null,null,null,null,null,null,null,null,null,null,null,null,null,null,null,null,null,null,null,null,null,null,null,null,null,257,1,10,18,"12:11:00"]
[1668,"Banach","Mariusz","Malbork",1,1,0,0,null,null,null,null,null,null,null,null,null,null,null,null,null,null,null,null,null,null,null,null,null,null,null,null,null,null,null,null,null,null,null,null,null,null,null,null,null,null,null,null,null,null,null,null,null,null,null,null,null,null,null,null,null,null,null,null,null,null,null,null,null,null,null,null,null,null,null,null,null,null,null,null,null,null,null,null,null,null,null,null,null,null,null,null,null,null,null,null,null,null,null,null,null,null,null,null,null,null,null,null,null,null,null,null,null,null,null,null,null,null,null,null,null,null,null,null,null,null,null,null,null,null,null,null,null,null,null,null,null,null,null,null,null,null,null,null,null,null,null,null,264,1,3,12,"10:28:00"]
[1674,"Bartosiewicz","Błażej",null,1,1,0,0,null,null,null,null,null,null,null,null,null,null,null,null,null,null,null,null,null,null,null,null,null,null,null,null,null,null,null,null,null,null,null,null,null,null,null,null,null,null,null,null,null,null,null,null,null,null,null,null,null,null,null,null,null,null,null,null,null,null,null,null,null,null,null,null,null,null,null,null,null,null,null,null,null,null,null,null,null,null,null,null,null,null,null,null,null,null,null,null,null,null,null,null,null,null,null,null,null,null,null,null,null,null,null,null,null,null,null,null,null,null,null,null,null,null,null,null,null,null,null,null,null,null,null,null,null,null,null,null,null,null,null,null,null,null,null,null,null,null,null,null,null,null,null,null,null,null,null,null,null,null,null,null,null,null,null,null,null,null,null,null,null,null,null,null,null,null,null,null,null,null,null,null,null,null,null,null,null,null,null,null,null,null,null,null,null,null,null,null,null,null,null,null,null,null,null,158,1,7,7,"11:05:00"]
[1682,"Berdych","Andrzej","Bydgoszcz",1,1,0,0,null,null,null,null,null,null,null,null,null,null,null,null,null,null,null,null,null,null,null,null,null,null,null,null,null,null,null,null,null,null,null,null,null,null,null,null,null,null,null,null,null,null,null,null,null,null,null,null,null,null,null,null,null,null,null,null,null,null,null,null,null,null,null,null,null,null,null,null,null,null,null,null,null,null,null,null,null,null,null,null,null,null,null,null,null,226,1,"4","10","10:17:25"]
[1693,"Bolesta","Jacek",null,1,1,0,0,null,null,null,null,null,null,null,null,null,null,null,null,null,null,null,null,null,null,null,null,null,null,null,null,null,null,null,null,null,null,null,null,null,null,null,null,null,null,null,null,null,null,null,null,null,null,null,null,null,null,null,null,null,null,null,null,null,null,null,null,null,null,null,null,null,null,null,null,null,null,null,null,null,null,null,null,null,null,null,null,null,null,null,null,null,null,null,null,null,null,null,null,null,null,null,null,null,null,null,null,null,null,null,null,null,null,null,null,null,null,null,null,null,null,null,null,null,null,null,null,null,null,null,null,null,null,null,null,null,null,null,null,null,null,null,null,null,null,null,null,null,null,null,null,null,null,null,null,null,null,null,null,null,null,null,null,null,null,null,null,null,null,null,null,null,null,null,null,null,null,null,null,null,null,null,null,null,null,null,null,null,null,null,null,null,null,null,null,null,null,null,null,null,null,null,108,1,9,9,"11:47:00"]
[1700,"Brudło","Maciej","Poznań",1,1,0,0,null,null,null,null,null,null,null,null,null,null,null,null,null,null,null,null,null,null,null,null,null,null,null,null,null,null,null,null,null,null,null,null,null,null,null,null,null,null,null,null,null,null,null,null,null,null,null,null,null,null,null,null,null,null,null,null,null,null,null,null,null,null,null,null,null,null,null,null,null,null,null,null,null,null,null,null,null,null,null,null,null,null,null,null,null,null,null,null,null,null,null,null,null,null,null,107,1,11,36,"11:16:34.800"]
[1712,"Chabowski","Marcin",null,1,1,0,0,null,null,null,null,null,null,null,null,null,null,null,null,null,null,null,null,null,null,null,null,null,null,null,null,null,null,null,null,null,null,null,null,null,null,null,null,null,null,null,null,null,null,null,null,null,null,null,null,null,null,null,null,null,null,null,null,null,null,null,null,null,null,null,null,null,null,null,null,null,null,null,null,null,null,null,null,null,null,null,null,null,null,null,null,null,null,null,null,null,null,null,null,null,null,null,null,null,null,null,null,null,null,null,null,null,null,null,null,null,null,null,null,null,null,null,null,null,null,null,null,null,null,null,null,null,null,null,null,null,null,null,null,null,null,null,null,null,null,null,null,null,null,null,null,null,null,null,null,null,null,null,null,null,null,null,null,null,null,null,null,null,null,null,null,null,null,null,null,null,null,null,null,null,null,null,null,null,null,null,null,null,null,null,null,null,null,null,null,null,null,null,null,null,null,null,91,1,9,9,"11:37:00"]
[1718,"Ciecierski","Dawid",null,1,1,0,0,null,null,null,null,null,null,null,null,null,null,null,null,null,null,null,null,null,null,null,null,null,null,null,null,null,null,null,null,null,null,null,null,null,null,null,null,null,null,null,null,null,null,null,null,null,null,null,null,null,null,null,null,null,null,null,null,null,null,null,null,null,null,null,null,null,null,null,null,null,null,null,null,null,null,null,null,null,null,null,null,null,null,null,null,null,null,null,null,null,null,null,null,null,null,null,null,null,null,null,null,null,null,null,null,null,null,null,null,null,null,null,null,null,null,null,null,null,null,null,null,null,null,null,null,null,null,null,null,null,null,null,null,null,null,null,null,null,null,null,null,null,null,null,null,null,null,null,null,null,null,null,null,null,null,null,null,null,null,null,null,null,null,null,null,null,159,1,5,-1,"12:11:00"]
[1723,"Cybula","Jarosław","Maków ",1,1,0,0,null,null,null,null,null,null,null,null,null,null,null,null,null,null,null,null,null,null,null,null,null,null,null,null,null,null,null,null,null,null,null,null,null,null,null,null,null,null,null,null,null,null,null,null,null,null,null,null,null,null,null,null,null,null,null,null,null,null,null,null,null,null,null,null,null,null,null,null,null,null,null,null,null,null,null,null,null,null,null,null,null,null,null,null,null,null,null,null,null,null,null,null,null,null,null,null,null,null,null,null,null,null,null,null,null,null,null,null,null,null,null,null,null,null,null,null,null,null,null,null,null,null,null,null,null,null,null,null,null,null,null,null,null,null,null,null,null,null,null,null,null,null,null,null,null,null,null,null,null,null,null,null,null,null,null,null,null,null,null,null,null,null,null,null,null,null,null,null,null,null,null,null,null,null,null,null,null,null,null,null,null,null,null,null,null,null,null,null,null,null,153,1,11,11,"11:26:00"]
[1736,"Ćwiek","Jarosław","Warszawa",1,1,0,0,null,null,null,null,null,null,null,null,null,null,null,null,null,null,null,null,null,null,null,null,null,null,null,null,null,null,null,null,null,null,null,null,null,null,null,null,null,null,null,null,null,null,null,null,null,null,null,null,null,null,null,null,null,null,null,null,null,null,null,null,null,null,null,null,null,null,null,null,null,null,null,null,null,null,null,null,null,null,null,null,null,null,null,null,null,null,null,null,null,null,null,null,null,null,null,null,null,null,null,null,null,null,null,null,null,null,null,null,null,null,null,null,null,null,null,null,null,null,null,null,null,null,null,null,null,null,null,null,null,null,214,1,7,19,"11:24:00"]
[1742,"Demczuk","Andrzej","Elbląg",1,1,0,0,null,null,null,null,null,null,null,null,null,null,null,null,null,null,null,null,null,null,null,null,null,null,null,null,null,null,null,null,null,null,null,null,null,null,null,null,null,null,null,null,null,null,null,null,null,null,null,null,null,null,null,null,null,null,null,null,null,null,null,null,null,null,null,null,null,null,null,null,null,null,null,null,null,null,null,null,null,null,null,null,null,null,null,null,null,null,null,null,null,null,299,1,6,19,"09:51:15"]
[1750,"Domarus","Michał",null,1,1,0,0,null,null,null,null,null,null,null,null,null,null,null,null,null,null,null,null,null,null,null,null,null,null,null,null,null,null,null,null,null,null,null,null,null,null,null,null,null,null,null,null,null,null,null,null,null,null,null,null,null,null,null,null,null,null,null,null,null,null,null,null,null,null,null,null,null,null,null,null,null,null,null,null,null,null,null,null,null,null,null,null,null,null,null,null,null,null,null,null,null,null,null,null,null,null,null,null,null,null,null,null,null,null,null,null,null,null,null,null,null,null,null,null,null,null,null,null,null,null,null,null,null,null,null,null,null,null,null,null,null,null,null,null,null,null,null,null,null,null,null,null,null,null,null,null,null,null,null,null,null,null,null,null,null,null,null,null,null,null,null,null,null,null,null,null,null,null,null,null,null,null,null,null,null,null,null,null,null,null,null,null,null,null,null,null,null,null,null,null,null,null,null,null,null,null,null,135,1,8,8,"11:40:00"]
[1761,"Dunajewski","Maciej","Błonie",1,1,0,0,null,null,null,null,null,null,null,null,null,null,null,null,null,null,null,null,null,null,null,null,null,null,null,null,null,null,null,null,null,null,null,null,null,null,null,null,null,null,null,null,null,null,null,null,null,null,null,null,null,null,null,null,null,null,null,null,null,null,null,null,null,null,null,null,null,null,null,null,null,null,null,null,null,null,null,null,null,null,null,null,null,null,null,null,null,null,null,null,null,null,null,null,null,null,null,null,null,null,null,null,null,null,null,null,null,null,null,null,null,null,null,null,null,null,null,null,null,null,null,null,null,null,null,null,null,null,null,null,null,null,null,null,null,null,null,null,null,null,null,null,null,null,null,null,null,null,null,null,null,null,null,null,null,null,null,null,null,null,null,null,null,null,null,null,null,null,null,null,null,null,null,null,null,null,null,null,null,null,null,null,132,1,6,15,"11:49:00"]
[1771,"Firek","Aleksandra","Warszawa",1,1,0,0,null,null,null,null,null,null,null,null,null,null,null,null,null,null,null,null,null,null,null,null,null,null,null,null,null,null,null,null,null,null,null,null,null,null,null,null,null,null,null,null,null,null,null,null,null,null,null,null,null,null,null,null,null,null,null,null,null,null,null,null,null,null,null,null,null,null,null,null,null,null,null,null,null,null,null,null,null,null,null,null,null,null,null,null,null,null,null,null,null,null,null,null,null,null,null,null,null,null,null,null,null,null,null,null,null,null,null,null,null,null,null,null,null,null,null,null,null,null,null,null,null,null,null,null,null,null,null,null,null,null,null,null,null,null,null,null,null,null,null,null,null,null,null,null,null,null,null,null,null,null,null,null,null,null,null,114,1,8,26,"11:57:00"]
[1775,"Fuhrmann","Ulrike","Warszawa",1,1,0,0,null,null,null,null,null,null,null,null,null,null,null,null,null,null,null,null,null,null,null,null,null,null,null,null,null,null,null,null,null,null,null,null,null,null,null,null,null,null,null,null,null,null,null,null,null,null,null,null,null,null,null,null,null,null,null,null,null,null,null,null,null,null,null,null,null,null,null,null,null,null,null,null,null,null,null,null,null,null,null,null,141,1,7,26,"11:51:31"]
[1790,"GIZELA","MICHAŁ","Kartuzy",1,1,0,0,null,null,null,null,null,null,null,null,null,null,null,null,null,null,null,null,null,null,null,null,null,null,null,null,null,null,null,null,null,null,null,null,null,null,null,null,null,null,null,null,null,null,null,null,null,null,null,null,null,null,null,null,null,null,null,null,null,null,null,null,null,null,null,null,null,null,null,null,null,null,null,null,null,null,null,null,null,null,null,null,null,null,null,null,null,null,null,null,null,null,286,1,5,21,"11:36:04"]
[1798,"Gołębiowska","Marta","Gdańsk",1,1,0,0,null,null,null,null,null,null,null,null,null,null,null,null,null,null,null,null,null,null,null,null,null,null,null,null,null,null,null,null,null,null,null,null,null,null,null,null,null,null,null,null,null,null,null,null,null,null,null,null,null,null,null,null,null,null,null,null,null,null,null,null,null,null,null,null,null,null,null,null,null,null,null,null,null,null,null,null,null,null,null,null,null,null,null,null,null,null,null,null,null,null,null,null,null,null,null,null,null,null,null,null,267,1,5,20,"11:02:00"]
[1801,"Górnowicz","Michał","Gdańsk",1,1,0,0,null,null,null,null,null,null,null,null,null,null,null,null,null,null,null,null,null,null,null,null,null,null,null,null,null,null,null,null,null,null,null,null,null,null,null,null,null,null,null,null,null,null,null,null,null,null,null,null,null,null,null,null,null,null,null,null,null,null,null,null,null,null,null,null,null,null,null,null,null,null,null,null,null,null,null,null,null,null,null,null,null,null,null,null,null,null,null,null,null,null,null,null,null,null,null,null,null,null,null,null,null,null,null,null,null,null,null,null,null,null,296,1,8,0,"12:23:15.600"]
[1816,"Grzesiak","Marcin","Warszawa",1,1,0,0,null,null,null,null,null,null,null,null,null,null,null,null,null,null,null,null,null,null,null,null,null,null,null,null,null,null,null,null,null,null,null,null,null,null,null,null,null,null,null,null,null,null,null,null,null,null,null,null,null,null,157,1,8,27,"11:50:38"]
[1821,"Gus","Grzegorz","Warszawa",1,1,0,0,null,null,null,null,null,null,null,null,null,null,null,null,null,null,null,null,null,null,null,null,null,null,null,null,null,null,null,null,null,null,null,null,null,null,null,null,null,null,null,null,null,null,null,null,null,null,null,null,null,null,null,null,null,null,null,null,null,null,null,null,null,null,null,null,null,null,null,null,null,null,null,null,null,null,null,null,null,null,null,null,null,null,null,null,null,null,null,null,null,null,null,null,null,null,null,null,null,null,null,null,null,null,null,null,null,null,null,null,null,null,null,null,null,null,null,null,null,null,null,null,null,null,null,null,null,null,null,null,null,null,null,null,null,null,null,null,null,null,null,null,null,null,null,null,null,null,null,null,null,null,null,null,null,null,null,null,null,null,null,null,171,1,10,25,"11:38:00"]
[1826,"Hoffmann","Weronika","Sopot",1,1,0,0,null,null,null,null,null,null,null,null,null,null,null,null,null,null,null,null,null,null,null,null,null,null,null,null,null,null,null,null,null,null,null,null,null,null,null,null,null,null,null,null,null,null,null,null,null,null,null,null,null,null,null,null,null,null,null,null,null,null,null,null,null,null,null,null,null,null,null,null,null,null,null,null,null,null,null,null,null,null,null,null,null,null,null,null,null,null,null,null,null,null,null,null,null,null,null,null,null,null,null,null,125,1,11,40,"11:58:00"]
[1840,"Janowska","Magdalena","Sopot",1,1,0,0,null,null,null,null,null,null,null,null,null,null,null,null,null,null,null,null,null,null,null,null,null,null,null,null,null,null,null,null,null,null,null,null,null,null,null,null,null,null,null,null,null,null,null,null,null,null,null,null,null,null,null,null,null,null,null,null,null,null,null,null,null,null,null,null,null,null,null,null,null,null,null,null,null,null,null,141,1,8,28,"11:25:00"]
[1844,"Januszkiewicz","Alicja","Słupsk",1,1,0,0,null,null,null,null,null,null,null,null,null,null,null,null,null,null,null,null,null,null,null,null,null,null,null,null,null,null,null,null,null,null,null,null,null,null,null,null,null,null,null,null,null,null,null,null,null,null,null,null,null,null,null,null,null,null,null,null,null,null,null,null,null,null,null,null,null,null,null,null,null,null,null,null,null,null,null,null,null,null,null,null,null,null,null,null,null,null,null,null,null,null,null,null,null,null,null,null,null,null,null,null,null,null,null,null,null,null,null,null,null,null,null,null,null,null,null,270,1,3,10,"11:12:17.400"]
[1859,"Kaatz","Michał","Chełmża",1,1,0,0,null,null,null,null,null,null,null,null,null,null,null,null,null,null,null,null,null,null,null,null,null,null,null,null,null,null,null,null,null,null,null,null,null,null,null,null,null,null,null,null,null,null,null,null,null,null,null,null,null,null,null,null,null,null,null,null,null,null,null,null,null,null,null,null,null,null,null,null,null,null,null,null,null,null,null,null,null,null,null,null,null,null,null,null,null,null,null,null,null,null,null,null,null,null,null,null,null,null,null,null,null,null,null,null,null,null,null,null,null,null,null,null,null,null,null,null,null,null,null,null,null,null,null,null,null,null,null,null,null,null,null,null,null,null,null,null,null,null,null,null,null,null,null,null,null,151,1,9,22,"12:04:00"]
[1867,"Kałka","Tadeusz","Rawicz",1,1,0,0,null,null,null,null,null,null,null,null,null,null,null,null,null,null,null,null,null,null,null,null,null,null,null,null,null,null,null,null,null,null,null,null,null,null,null,null,null,null,null,null,null,null,null,null,null,null,null,null,null,null,null,null,null,null,null,115,1,10,-11,"12:39:38"]
[1870,"Kański","Tomasz","Gdańsk",1,1,0,0,null,null,null,null,null,null,null,null,null,null,null,null,null,null,null,null,null,null,null,null,null,null,null,null,null,null,null,null,null,null,null,null,null,null,null,null,null,null,null,null,null,null,null,null,null,null,null,null,null,null,null,null,null,null,null,null,null,null,null,null,null,null,null,null,null,null,null,null,null,null,null,null,null,null,null,null,null,null,null,null,null,null,null,null,null,null,null,null,null,null,169,1,7,29,"11:19:35"]
[1885,"Kiełczewski","Ryszard",null,1,1,0,0,null,null,null,null,null,null,null,null,null,null,null,null,null,null,null,null,null,null,null,null,null,null,null,null,null,null,null,null,null,null,null,null,null,null,null,null,null,null,null,null,null,null,null,null,null,null,null,null,null,null,null,null,null,null,null,null,null,null,null,null,null,null,null,null,null,null,null,null,null,null,null,null,null,null,null,null,null,null,null,null,null,null,null,null,null,null,null,null,null,null,null,null,null,null,null,null,null,null,null,null,null,null,null,null,null,null,null,null,null,null,null,null,null,null,null,null,null,null,null,null,null,null,null,null,null,null,null,null,null,null,null,null,null,null,null,null,null,null,null,null,null,null,null,null,null,null,null,null,null,null,null,null,null,null,null,null,null,null,null,null,null,null,null,null,null,null,null,null,null,null,null,null,null,null,null,null,null,null,null,null,null,null,null,null,null,null,null,null,null,null,null,null,null,null,null,188,1,5,5,"10:04:00"]
[1889,"Klain","Zbigniew","Bydgoszcz",1,1,0,0,null,null,null,null,null,null,null,null,null,null,null,null,null,null,null,null,null,null,null,null,null,null,null,null,null,null,null,null,null,null,null,null,null,null,null,null,null,null,null,null,null,null,null,null,null,null,null,null,null,null,178,1,10,15,"12:14:43"]
[1898,"Ko?dub","Piotr",null,1,1,0,0,null,null,null,null,null,null,null,null,null,null,null,null,null,null,null,null,null,null,null,null,null,null,null,null,null,null,null,null,null,null,null,null,null,null,null,null,null,null,null,null,null,null,null,null,null,null,null,null,null,null,null,null,null,null,null,null,null,null,null,null,null,null,null,null,null,null,null,null,null,null,null,null,null,null,null,null,null,null,null,null,null,null,null,null,null,null,null,null,null,null,null,null,null,null,null,null,null,null,null,null,null,null,null,null,null,null,null,null,null,null,null,null,null,null,null,null,null,null,null,null,null,null,null,null,null,null,null,null,null,null,null,null,null,null,null,null,null,null,null,null,null,null,null,null,null,null,null,null,null,null,null,null,null,null,null,null,null,null,null,null,null,null,null,null,null,null,null,null,null,null,null,null,null,null,null,null,null,null,null,null,null,null,null,null,null,null,null,null,null,null,null,null,null,null,null,90,1,9,9,"11:36:00"]
[1906,"Kordan","Zbigniew","Malbork",1,1,0,0,null,null,null,null,null,null,null,null,null,null,null,null,null,null,null,null,null,null,null,null,null,null,null,null,null,null,null,null,null,null,null,null,null,null,null,null,null,null,null,null,null,null,null,null,null,null,null,null,null,null,null,null,null,null,null,null,null,null,null,null,null,null,null,null,null,null,null,null,null,null,null,null,null,null,null,null,null,null,null,null,null,null,null,null,null,null,null,null,null,null,null,null,null,null,null,null,null,null,null,null,null,null,null,null,null,null,null,null,null,null,null,null,null,null,null,null,null,null,null,null,null,null,null,null,null,null,null,null,null,null,null,null,null,null,null,null,null,null,null,null,null,null,null,null,null,null,null,null,null,null,null,null,null,null,null,null,null,null,null,null,null,null,null,null,null,null,null,null,null,null,null,null,null,null,null,null,null,null,null,null,null,null,null,null,null,null,null,null,null,null,null,null,null,null,null,null,null,null,null,null,111,1,4,4,"04:20:00"]
[1918,"Kowalski","Paweł","Leszno",1,1,0,0,null,null,null,null,null,null,null,null,null,null,null,null,null,null,null,null,null,null,null,null,null,null,null,null,null,null,null,null,null,null,null,null,null,null,null,null,null,null,null,null,null,null,null,null,null,null,null,null,null,null,null,null,null,null,null,null,null,null,null,null,null,null,null,null,null,null,null,null,null,null,null,null,null,null,null,null,null,null,null,null,null,null,null,null,null,null,null,null,null,null,null,null,null,null,null,null,null,null,null,null,null,null,null,null,null,null,null,null,null,null,null,null,null,null,null,null,null,null,null,null,null,null,null,null,null,null,null,null,null,null,null,null,null,null,null,null,null,null,null,null,null,null,null,null,null,null,null,null,null,null,null,null,null,null,null,null,null,null,null,null,null,null,null,null,null,null,null,null,null,null,null,null,null,null,null,null,null,null,null,null,105,1,8,22,"11:53:00"]
[1924,"Kozłowski","Łukasz","Gdynia",1,1,0,0,null,null,null,null,null,null,null,null,null,null,null,null,null,null,null,null,null,null,null,null,null,null,null,null,null,null,null,null,null,null,null,null,null,null,null,null,null,null,null,null,null,null,null,null,null,null,null,null,null,null,null,null,null,null,null,null,null,null,null,null,null,null,null,null,null,null,null,null,null,null,null,null,null,null,null,null,null,null,null,null,null,null,null,null,null,null,null,null,null,null,null,null,null,null,null,null,null,null,null,null,null,null,null,null,null,null,null,null,null,null,null,null,null,null,null,null,null,null,null,null,null,null,null,null,null,202,1,4,12,"07:13:00"]
[1929,"Krasodomski","Maciej","Gdynia",1,1,0,0,null,null,null,null,null,null,null,null,null,null,117,1,3,9,"08:56:38"]
[1942,"Kucharski","Sławomir","Toruń",1,1,0,0,null,null,null,null,null,null,null,null,null,null,null,null,null,null,null,null,null,null,null,null,null,null,null,null,null,null,null,null,null,null,null,null,null,null,null,null,null,null,null,null,null,null,null,null,null,null,null,null,null,null,130,1,10,30,"11:39:15"]
[1948,"Kwiatkowska","Barbara","Warszawa",1,1,0,0,null,null,null,null,null,null,null,null,null,null,null,null,null,null,null,null,null,null,null,null,null,null,null,null,null,null,null,null,null,null,null,null,null,null,null,null,null,null,null,null,null,null,null,null,null,null,null,null,null,null,null,null,null,null,null,null,null,null,null,null,null,null,null,null,null,null,null,null,null,null,null,null,null,null,null,null,null,null,null,null,null,null,null,null,null,null,null,null,null,null,null,null,null,null,null,null,null,null,null,null,null,null,null,null,null,null,null,null,null,null,null,null,null,null,null,null,null,null,null,null,null,null,null,null,null,null,null,null,null,null,null,null,null,null,null,null,null,null,null,null,null,null,null,null,null,null,null,null,null,null,128,1,10,29,"11:01:00"]
[1960,"Lisowski","Tomasz","Warszawa",1,1,0,0,null,null,null,null,null,null,null,null,null,null,null,null,null,null,null,null,null,null,null,null,null,null,null,null,null,null,null,null,null,null,null,null,null,null,null,null,null,null,null,null,null,null,null,null,null,null,null,null,null,null,null,null,null,null,null,null,null,null,null,null,null,null,null,null,null,null,null,null,null,null,null,null,null,null,null,null,null,null,null,null,null,null,null,null,null,null,null,null,null,null,null,null,null,null,null,null,null,null,null,null,null,null,null,null,null,null,null,null,null,null,null,null,null,null,null,null,null,null,null,null,null,null,null,null,null,null,null,null,null,null,null,null,null,null,null,null,null,null,null,null,null,null,null,null,null,null,null,null,null,null,null,null,null,null,null,null,null,null,null,null,null,null,null,null,null,null,null,null,null,null,null,null,null,null,null,92,1,8,28,"11:53:00"]
[1967,"Lucewicz","Karol","Elbląg",1,1,0,0,null,null,null,null,null,null,null,null,null,null,null,null,null,null,null,null,null,null,null,null,null,null,null,null,null,null,null,null,null,null,null,null,null,null,null,null,null,null,null,null,null,null,null,null,null,null,null,null,null,null,null,null,null,null,null,null,null,null,null,null,null,null,null,null,null,null,null,null,null,null,null,null,null,null,null,null,null,null,null,null,null,null,null,null,null,null,null,null,null,null,109,1,8,33,"12:00:38"]
[1974,"Łuczak","Waldemar","Poznań",1,1,0,0,null,null,null,null,null,null,null,null,null,null,null,null,null,null,null,null,null,null,null,null,null,null,null,null,null,null,null,null,null,null,null,null,null,null,null,null,null,null,null,null,null,null,null,null,null,null,null,null,null,null,139,1,9,28,"11:56:15"]
[1986,"Majek","Łukasz","Karczew",1,1,0,0,null,null,null,null,null,null,null,null,null,null,null,null,null,null,null,null,null,null,null,null,null,null,null,null,null,null,null,null,null,null,null,null,null,null,null,null,null,null,null,null,null,null,null,null,null,null,null,null,null,null,null,null,null,null,null,null,null,null,null,null,null,null,null,null,null,null,null,null,null,null,null,null,null,null,null,null,null,null,null,null,null,null,null,null,null,null,null,null,null,null,142,1,9,30,"11:22:01"]
[1992,"Małecki","Marek","Nowy Dwór Maz.",1,1,0,0,null,null,null,null,null,null,null,null,null,null,null,null,null,null,null,null,null,null,null,null,null,null,null,null,null,null,null,null,null,null,null,null,null,null,null,null,null,null,null,null,null,null,null,null,null,null,null,null,null,null,null,null,null,null,null,null,null,null,null,null,null,null,null,null,null,null,null,null,null,null,null,null,null,null,null,null,null,null,null,null,null,null,null,null,null,null,null,null,null,null,null,null,null,null,null,null,null,null,null,null,null,null,null,null,null,null,null,null,null,null,null,null,null,null,null,null,null,null,null,null,null,null,null,null,null,null,null,null,null,null,null,null,null,null,null,159,1,8,30,"11:36:00"]
[1997,"Markowski","Łukasz","Ostrzyce",1,1,0,0,null,null,null,null,null,null,null,null,null,null,null,null,null,null,null,null,null,null,null,null,null,null,null,null,null,null,null,null,null,null,null,null,null,null,null,null,null,null,null,null,null,null,null,null,null,null,null,null,null,null,null,null,null,null,null,null,null,null,null,null,null,null,null,null,null,null,null,null,null,null,null,null,null,null,null,null,null,null,null,null,null,null,null,null,null,null,null,null,null,null,null,null,null,null,null,null,null,null,null,null,null,null,null,null,null,243,1,6,20,"11:52:00"]
[2006,"Mazurek","Bartosz","Poznań",1,1,0,0,null,null,null,null,null,null,null,null,null,null,null,null,null,null,null,null,null,null,null,null,null,null,null,null,null,null,null,null,null,null,null,null,null,null,null,null,null,null,null,null,null,null,null,null,null,null,null,null,null,null,null,null,null,null,null,null,null,null,null,null,null,null,null,null,null,null,null,null,null,null,null,null,null,null,null,null,null,null,null,null,null,null,null,null,null,207,1,"10","22","12:08:56"]
[2021,"Miziołek","Bartosz",null,1,1,0,0,null,null,null,null,null,null,null,null,null,null,null,null,null,null,null,null,null,null,null,null,null,null,null,null,null,null,null,null,null,null,null,null,null,null,null,null,null,null,null,null,null,null,null,null,null,null,null,null,null,null,null,null,null,null,null,null,null,null,null,null,null,null,null,null,null,null,null,null,null,null,null,null,null,null,null,null,null,null,null,null,null,null,null,null,null,null,null,null,null,null,null,null,null,null,null,null,null,null,null,null,null,null,null,null,null,null,null,null,null,null,null,null,null,null,null,null,null,null,null,null,null,null,null,null,null,null,null,null,null,null,null,null,null,null,null,null,null,null,null,null,null,null,null,null,null,null,null,null,null,null,null,null,null,null,null,null,null,null,null,null,null,null,null,null,null,null,null,null,null,null,null,null,null,null,null,null,null,null,null,null,null,null,null,null,null,null,null,null,null,null,null,null,null,null,null,162,1,7,7,"11:21:00"]
[2025,"Mosakowski","Mariusz","Bartoszyce",1,1,0,0,null,null,null,null,null,null,null,null,null,null,null,null,null,null,null,null,null,null,null,null,null,null,null,null,null,null,null,null,null,null,null,null,null,null,null,null,null,null,null,null,null,null,null,null,null,null,null,null,null,null,null,null,null,null,null,null,null,null,null,null,null,null,null,null,null,null,null,null,null,null,null,null,null,null,null,null,null,null,null,null,null,null,null,null,null,null,null,null,null,null,null,null,null,null,null,227,1,6,21,"10:56:31.800"]
[2030,"Muchowska","Monika","Bydgoszcz",1,1,0,0,null,null,null,null,null,null,null,null,null,null,null,null,null,null,null,null,null,null,null,null,null,null,null,null,null,null,null,null,null,null,null,null,null,null,null,null,null,null,null,null,null,null,null,null,null,null,null,null,null,null,null,null,null,null,null,null,null,null,null,null,null,null,null,null,null,null,null,null,null,null,null,null,null,null,null,null,null,null,null,null,null,null,null,null,null,null,null,null,null,null,null,null,null,null,null,null,null,null,null,null,null,null,null,null,null,null,null,null,null,null,null,null,null,null,null,null,null,null,null,null,null,null,null,null,null,null,null,null,null,null,null,null,null,null,null,null,null,null,null,null,null,null,null,null,null,null,null,null,null,null,182,1,6,20,"11:44:00"]
[2044,"Niziołek","Anna","Lublin",1,1,0,0,null,null,null,null,null,null,null,null,null,null,null,null,null,null,null,null,null,null,null,null,101,1,13,29,"11:09:50"]
[2048,"Nowak","Grzegorz","Gorzów Wielkopolski",1,1,0,0,null,null,null,null,null,null,null,null,null,null,null,null,null,null,null,null,null,null,null,null,null,null,null,null,null,null,null,null,null,null,null,null,null,null,null,null,null,null,null,null,null,null,null,null,null,null,null,null,null,null,null,null,null,null,null,null,null,null,null,null,null,null,null,null,null,null,null,null,null,null,null,null,null,null,null,null,null,null,null,null,null,null,null,null,null,null,null,null,null,null,null,null,null,null,null,null,null,null,null,null,null,null,null,null,null,null,null,null,null,null,103,1,8,29,"11:43:22.800"]
[2063,"Paduch","Stefan","Sopot",1,1,0,0,null,null,null,null,null,null,null,null,null,null,null,null,null,null,null,null,null,null,null,null,null,null,null,null,null,null,null,null,null,null,null,null,null,null,null,null,null,null,null,null,null,null,null,null,null,null,null,null,null,null,null,null,null,null,null,null,null,null,null,null,null,null,null,null,null,null,null,null,null,null,null,null,null,null,null,null,null,null,null,null,null,null,null,null,null,null,null,null,null,null,null,null,null,null,null,null,null,null,null,null,null,null,null,null,null,null,null,null,null,null,null,null,null,null,null,null,null,null,null,null,null,null,null,null,null,null,null,null,null,null,null,null,null,null,null,null,null,null,null,null,165,1,11,33,"11:21:00"]
[2066,"Palian","Karolina","Gdynia",1,1,0,0,null,null,null,null,null,null,null,null,null,null,null,null,null,null,null,null,null,null,null,null,null,null,null,null,null,null,null,null,null,null,null,null,null,null,null,null,null,null,null,null,null,null,null,null,null,null,null,null,null,null,null,null,null,null,null,null,null,null,null,null,null,null,null,null,null,null,null,null,null,null,null,null,null,null,null,null,null,null,null,null,null,null,null,null,null,null,null,null,null,null,null,null,null,null,null,null,null,null,null,null,null,null,null,null,null,null,null,null,null,null,null,null,null,null,null,null,null,null,null,null,null,null,null,null,null,null,null,null,null,null,null,null,null,null,null,null,null,null,null,null,null,null,null,null,null,null,null,null,null,null,null,null,null,null,null,null,null,null,null,null,null,null,null,null,null,null,null,null,null,null,162,1,7,19,"09:54:00"]
[2074,"Paterkowski","Paweł","Stargard Szczeciński",1,1,0,0,null,null,null,null,null,null,null,null,null,null,null,null,null,null,null,null,null,null,null,null,null,null,null,null,null,null,null,null,null,null,null,null,null,null,null,null,null,null,null,null,null,null,null,null,null,null,null,null,null,null,null,null,null,null,null,null,null,null,null,null,null,null,null,null,null,null,null,null,null,null,172,1,6,21,"09:21:00"]
[2090,"Piłupa","Paulina","Gdynia",1,1,0,0,null,null,null,null,null,null,null,null,null,null,null,null,null,null,null,null,null,null,null,null,null,null,null,null,null,null,null,null,null,null,null,null,null,null,null,null,null,null,null,null,null,null,null,null,null,null,null,null,null,null,null,null,null,null,null,null,null,null,null,null,null,null,null,null,null,null,null,null,null,null,null,null,null,null,null,null,null,null,null,null,null,null,null,null,null,null,null,null,null,null,null,null,null,null,null,null,null,null,null,null,null,null,null,null,null,null,null,null,null,null,null,null,null,null,null,null,null,null,null,null,null,null,null,null,null,null,null,null,null,null,184,1,8,24,"11:20:00"]
[2094,"Piwakowska","Magdalena","Gdańsk",1,1,0,0,null,null,null,null,null,null,null,null,null,null,null,null,null,null,null,null,null,null,null,null,null,null,null,null,null,null,null,null,null,null,null,null,null,null,null,null,null,null,null,null,null,null,null,null,null,null,null,null,null,null,null,null,null,null,null,null,null,null,null,null,null,null,null,null,null,null,null,null,null,null,null,null,null,null,null,null,null,null,null,null,null,null,null,null,null,null,null,null,null,null,null,null,null,null,null,null,null,null,null,null,null,null,null,null,null,null,null,null,null,null,null,null,null,null,null,null,null,null,null,null,null,null,null,null,null,null,null,null,null,null,216,1,6,18,"10:53:00"]
[2099,"Płudowski","Wojciech",null,1,1,0,0,null,null,null,null,null,null,null,null,null,null,null,null,null,null,null,null,null,null,null,null,null,null,null,null,null,null,null,null,null,null,null,null,null,null,null,null,null,null,null,null,null,null,null,null,null,null,null,null,null,null,null,null,null,null,null,null,null,null,null,null,null,null,null,null,null,null,null,null,null,null,null,null,null,null,null,null,null,null,null,null,null,null,null,null,null,null,null,null,null,null,null,null,null,null,null,null,null,null,null,null,null,null,null,null,null,null,null,null,null,null,null,null,null,null,null,null,null,null,null,null,null,null,null,null,null,null,null,null,null,null,null,null,null,null,null,null,null,null,null,null,null,null,null,null,null,null,null,null,null,null,null,null,null,null,null,null,null,null,null,null,null,null,null,null,null,null,null,null,null,null,null,null,null,null,null,null,null,null,null,null,null,null,null,null,null,null,null,null,null,null,null,null,null,null,null,156,1,7,7,"11:03:00"]
[2113,"Powiatowski","Krzysztof",null,1,1,0,0,null,null,null,null,null,null,null,null,null,null,null,null,null,null,null,null,null,null,null,null,null,null,null,null,null,null,null,null,null,null,null,null,null,null,null,null,null,null,null,null,null,null,null,null,null,null,null,null,null,null,null,null,null,null,null,null,null,null,null,null,null,null,null,null,null,null,null,null,null,null,null,null,null,null,null,null,null,null,null,null,null,null,null,null,null,null,null,null,null,null,null,null,null,null,null,null,null,null,null,null,null,null,null,null,null,null,null,null,null,null,null,null,null,null,null,null,null,null,null,null,null,null,null,null,null,null,null,null,null,null,null,null,null,null,null,null,null,null,null,null,null,null,null,null,null,null,null,null,null,null,null,null,null,null,null,null,null,null,null,null,null,null,null,null,null,null,null,null,null,null,null,null,null,null,null,null,null,null,null,null,null,null,null,null,null,null,null,null,null,null,null,null,null,null,null,123,1,8,8,"11:17:00"]
[2117,"Prątnicki","Marek","Warszawa",1,1,0,0,null,null,null,null,null,null,null,null,null,null,null,null,null,null,null,null,null,null,null,null,null,null,null,null,null,null,null,null,null,null,null,null,null,null,null,null,null,null,null,null,null,null,null,null,null,null,null,null,null,null,null,null,null,null,null,null,null,null,null,null,null,null,null,null,null,null,null,null,null,null,null,null,null,null,null,null,null,null,null,null,null,null,null,null,null,null,null,null,null,null,null,null,null,null,null,null,null,null,null,null,null,null,null,null,null,null,null,null,null,null,null,null,null,null,null,null,null,null,null,null,null,null,null,null,null,null,null,null,null,null,null,null,null,null,null,null,null,null,null,null,null,null,null,null,null,null,null,null,null,null,null,null,null,null,null,null,null,null,null,null,142,1,10,30,"10:14:00"]
[2132,"Rak","Mirosław","Gliwice",1,1,0,0,null,null,null,null,null,null,null,null,null,null,null,null,null,null,null,null,null,null,null,null,null,null,null,null,null,null,null,null,null,null,null,null,null,null,null,null,null,null,null,null,null,null,null,null,null,null,null,null,null,null,null,null,null,null,null,null,null,null,null,null,null,null,null,null,null,null,null,null,null,null,null,null,null,null,null,null,null,null,null,null,null,null,null,null,null,null,null,null,null,null,null,null,null,null,null,null,null,null,null,null,null,null,null,null,null,null,null,null,null,null,null,null,null,null,null,null,null,null,null,null,null,null,null,null,null,null,null,null,null,null,null,null,null,null,null,null,null,null,null,null,null,null,null,null,null,null,null,null,null,null,121,1,12,30,"12:04:00"]
[2133,"Ratajczak","Krzysztof","Pniewy",1,1,0,0,null,null,null,null,null,null,null,null,null,null,null,null,null,null,null,null,null,null,null,null,null,null,null,null,null,null,null,null,null,null,null,null,null,null,null,null,null,null,null,null,null,null,null,null,null,null,null,null,null,null,null,null,null,null,null,null,null,null,null,null,null,null,null,null,null,null,null,null,null,null,null,null,null,null,null,null,null,null,null,null,null,null,null,null,null,null,null,null,null,null,null,null,null,null,null,null,null,null,null,null,null,null,null,null,null,null,null,null,null,null,null,null,null,null,null,null,null,null,null,null,null,null,null,null,null,null,null,null,null,null,null,null,null,null,null,null,null,null,null,null,148,1,11,35,"11:26:00"]
[2146,"Roszak","Bogumił","Turze",1,1,0,0,null,null,null,null,null,null,null,null,null,null,null,null,null,null,null,null,null,null,null,null,null,null,null,null,null,null,null,null,null,null,null,null,null,null,null,null,null,null,null,null,null,null,null,null,null,null,null,null,null,null,null,null,null,null,null,null,null,null,null,null,null,null,null,null,null,null,null,null,null,null,null,null,null,null,null,null,null,null,null,null,null,null,null,null,null,null,null,null,null,null,null,null,null,null,null,null,null,null,null,null,null,null,null,null,null,null,null,null,null,null,null,null,null,null,null,null,null,null,null,null,null,null,null,null,null,null,null,null,null,null,null,null,null,null,null,null,null,null,null,null,null,null,null,null,null,null,null,null,null,null,null,null,null,null,null,null,null,null,null,null,null,null,null,null,null,null,null,null,null,null,null,null,null,null,null,null,null,null,null,null,137,1,5,14,"11:30:00"]
[2152,"Rumiński","Jakub","Tczew",1,1,0,0,null,null,null,null,null,null,null,null,null,null,null,null,null,null,null,null,null,null,null,null,null,null,null,null,null,null,null,null,null,null,null,null,null,null,null,null,null,null,null,null,null,null,null,null,null,null,null,null,null,null,null,null,null,null,null,null,null,null,null,null,null,null,null,null,null,null,null,null,null,null,null,null,null,null,null,null,null,null,null,null,null,null,null,null,null,null,null,null,null,null,null,null,null,null,null,null,null,null,null,null,null,null,null,null,null,null,null,null,null,null,null,null,null,null,null,null,null,null,null,null,null,null,null,null,null,null,null,null,null,null,null,null,null,null,null,null,null,null,null,null,null,null,null,null,null,null,null,null,null,null,null,null,null,null,null,null,null,null,null,null,null,null,null,null,null,null,null,null,null,null,127,1,12,31,"11:49:00"]
[2164,"Saczewski","Arkadiusz","Siedlce",1,1,0,0,null,null,null,null,null,null,null,null,null,null,null,null,null,null,null,null,null,null,null,null,null,null,null,null,null,null,null,null,null,null,null,null,null,null,null,null,null,null,null,null,null,null,null,null,null,null,null,null,null,null,null,null,null,null,null,null,null,null,null,null,null,null,null,null,null,null,null,null,null,null,null,null,null,null,null,null,null,null,null,null,null,null,null,null,null,null,null,null,null,null,null,null,null,null,null,null,null,null,null,null,null,null,null,null,null,null,null,null,null,null,null,null,null,null,null,null,null,null,null,null,null,null,null,null,null,null,null,null,null,null,null,null,null,null,null,null,null,null,null,null,null,null,null,null,null,null,null,null,null,null,null,null,null,null,null,null,null,null,null,null,null,null,null,null,null,null,null,null,null,null,null,null,null,null,null,null,null,null,null,null,null,null,null,null,null,101,1,7,7,"11:36:00"]
[2171,"Sawicki","Kacper","Wrocław",1,1,0,0,null,null,null,null,null,null,null,null,null,null,null,null,null,null,null,null,null,null,null,null,null,null,null,null,null,null,null,null,null,null,null,null,null,null,null,null,null,null,null,null,null,null,null,null,null,null,null,null,null,null,null,null,null,null,null,113,1,10,-11,"12:39:03"]
[2182,"Siebert","Mariusz","Kłodawa",1,1,0,0,null,null,null,null,null,null,null,null,null,null,null,null,null,null,null,null,null,null,null,null,null,null,null,null,null,null,null,null,null,null,null,null,null,null,null,null,null,null,null,null,null,null,null,null,null,null,null,null,null,null,null,null,null,null,null,null,null,null,null,null,null,null,null,null,null,null,null,null,null,null,null,null,null,null,null,null,null,null,null,null,null,null,null,null,null,null,null,null,null,null,null,null,null,null,null,null,null,null,null,null,null,null,null,null,null,null,null,null,null,null,104,1,8,29,"11:43:34.200"]
[2190,"Skowron","Kamil","Mikołów",1,1,0,0,null,null,null,null,null,null,null,null,null,null,null,null,null,null,null,null,null,null,null,null,null,null,null,null,null,null,null,null,null,null,null,null,null,null,null,null,null,null,null,null,null,null,null,null,null,null,null,null,null,null,null,null,null,null,null,null,null,null,null,null,null,null,null,null,null,null,null,null,null,null,null,null,null,null,null,null,null,null,null,null,null,null,null,null,null,null,null,null,null,null,null,null,null,null,null,null,null,null,null,null,null,null,null,null,null,null,null,null,null,null,null,null,null,null,null,null,null,null,null,null,275,1,3,10,"10:11:00"]
[2196,"Smoliński","Rafał","Ostróda",1,1,0,0,null,null,null,null,null,null,null,null,null,null,null,null,null,null,null,null,null,null,null,null,null,null,null,null,null,null,null,null,null,null,null,null,null,null,null,null,null,null,null,null,null,null,null,null,null,null,null,null,null,null,null,null,null,null,null,null,null,null,null,null,null,null,null,null,null,null,null,null,null,null,null,null,null,null,null,null,null,null,null,null,null,null,null,null,null,null,null,null,null,null,null,null,null,null,null,null,null,null,null,null,null,null,null,null,null,131,1,14,38,"11:39:00"]
[2201,"Sołtys","Maciej","Chełmża",1,1,0,0,null,null,null,null,null,null,null,null,null,null,null,null,null,null,null,null,null,null,null,null,null,null,null,null,null,null,null,null,null,null,null,null,null,null,null,null,null,null,null,null,null,null,null,null,null,null,null,null,null,null,null,null,null,null,null,null,null,null,null,null,null,null,null,null,null,null,null,null,null,null,null,null,null,null,null,null,null,null,null,null,null,null,null,null,null,null,null,null,null,null,null,null,null,null,null,null,null,null,null,null,null,null,null,null,null,null,null,null,null,null,null,null,null,null,null,null,null,null,null,null,null,null,null,null,null,null,null,null,null,null,null,null,null,null,null,null,null,null,null,null,null,null,null,null,null,189,1,8,-64,"13:24:00"]
[2214,"Stefanek","Łukasz","Gdańsk",1,1,0,0,null,null,null,null,null,null,null,null,null,null,null,null,null,null,null,null,null,null,null,null,null,null,null,null,null,null,null,null,null,null,null,null,null,null,null,null,null,null,null,null,null,null,null,null,null,null,null,null,null,null,null,null,null,null,null,null,null,null,null,null,148,1,10,30,"11:50:03"]
[2220,"Stręk","Wojciech","Krosno",1,1,0,0,null,null,null,null,null,null,null,null,null,null,null,null,null,null,null,null,null,null,null,null,null,null,null,null,null,null,null,null,null,null,null,null,null,null,null,null,null,null,null,null,null,null,null,null,null,null,null,null,null,null,188,1,4,10,"10:17:11"]
[2232,"Szczerbiński","Mariusz","Warszawa",1,1,0,0,null,null,null,null,null,null,null,null,null,null,null,null,null,null,null,null,null,null,null,null,null,null,null,null,null,null,null,null,null,null,null,null,null,null,null,null,null,null,null,null,null,null,null,null,null,null,null,null,null,null,null,null,null,null,null,null,null,null,null,null,null,null,null,null,null,null,null,null,null,null,null,null,null,null,null,null,null,null,null,null,null,null,null,null,null,null,null,null,null,null,null,null,null,null,null,null,null,null,null,null,null,null,null,null,null,248,1,6,18,"09:12:00"]
[2239,"Szlachtowski","Krzysztof","Gorzów Wielkopolski",1,1,0,0,null,null,null,null,null,null,null,null,null,null,null,null,null,null,null,null,null,null,null,null,null,null,null,null,null,null,null,null,null,null,null,null,null,null,null,null,null,null,null,null,null,null,null,null,null,null,null,null,null,null,null,null,null,null,null,null,null,null,null,null,null,null,null,null,null,null,null,null,null,null,null,null,null,null,null,null,null,null,null,null,null,null,null,null,null,null,null,null,null,null,null,null,null,null,null,null,null,null,null,null,null,null,null,null,null,null,null,null,null,null,122,1,8,28,"11:10:02.400"]
[2249,"Szymański","Maciej","Gdańsk",1,1,0,0,null,null,null,null,null,null,null,null,null,null,null,null,null,null,null,null,null,null,null,null,null,null,null,null,null,null,null,null,null,null,null,null,null,null,null,null,null,null,null,null,null,null,null,null,null,null,null,null,null,null,null,null,null,null,null,null,null,null,null,null,null,null,null,null,null,null,null,null,null,null,null,null,null,null,null,null,null,null,null,null,null,null,null,null,null,null,null,null,null,null,null,null,null,null,null,214,1,9,22,"12:06:35.400"]
[2253,"Szymichowski","Radosław","Lębork",1,1,0,0,null,null,null,null,null,null,null,null,null,null,null,null,null,null,null,null,null,null,null,null,null,null,null,null,null,null,null,null,null,null,null,null,null,null,null,null,null,null,null,null,null,null,null,null,null,null,null,null,null,null,null,null,null,null,null,null,null,null,null,null,null,null,null,null,null,null,null,null,null,null,null,null,null,null,null,null,null,null,null,null,null,null,null,null,null,null,null,null,null,null,null,null,null,null,null,null,null,null,null,null,null,null,null,null,null,null,null,null,null,null,null,null,null,null,null,null,null,null,null,null,172,1,9,28,"11:27:00"]
[2268,"Tkacz","Krzysztof","Janowiec Wlkp.",1,1,0,0,null,null,null,null,null,null,null,null,null,null,null,null,null,null,null,null,null,null,null,null,null,null,null,null,null,null,null,null,null,null,null,null,null,null,null,null,null,null,null,null,null,null,null,null,null,null,null,null,null,null,null,null,null,null,null,null,null,null,null,null,null,null,null,null,null,null,null,null,null,null,null,null,null,null,null,null,null,null,null,null,null,null,null,null,null,null,null,null,null,null,null,null,null,null,null,null,null,null,null,null,null,null,null,null,null,null,null,null,null,null,null,null,null,null,null,null,null,null,null,null,null,null,null,null,null,null,null,null,null,null,null,null,null,null,null,null,null,null,null,null,null,null,null,null,null,null,null,null,null,null,null,null,null,null,null,null,null,null,null,null,null,null,null,null,null,null,null,null,null,null,null,null,null,null,null,114,1,8,21,"11:20:00"]
[2271,"Torzecki","Łukasz","BYDGOSZCZ",1,1,0,0,null,null,null,null,null,null,null,null,null,null,105,1,10,25,"12:48:59"]
[2279,"Turowski","Jan","Pruszcz Gdański",1,1,0,0,null,null,null,null,null,null,null,null,null,null,null,null,null,null,null,null,null,null,null,null,null,null,null,null,null,null,null,null,null,null,null,null,null,null,null,null,null,null,null,null,null,null,null,null,null,null,null,null,null,null,null,null,null,null,null,null,null,null,null,null,null,null,null,null,null,null,null,null,null,null,null,null,null,null,null,108,1,10,32,"11:41:00"]
[2289,"Wandas","Piotr","Lipka",1,1,0,0,null,null,null,null,null,null,null,null,null,null,null,null,null,null,null,null,null,null,null,null,null,null,null,null,null,null,null,null,null,null,null,null,null,null,null,null,null,null,null,null,null,null,null,null,null,null,null,null,null,null,null,null,null,null,null,null,null,null,null,null,null,null,null,null,null,null,null,null,null,null,null,null,null,null,null,null,null,null,null,null,null,null,null,null,null,null,null,null,null,null,null,null,null,null,null,null,null,null,null,null,null,null,null,null,null,null,null,null,null,null,null,null,null,null,null,175,1,11,33,"11:36:02.400"]
[2298,"Wilczyński","Paweł","Gdańsk",1,1,0,0,null,null,null,null,null,null,null,null,null,null,null,null,null,null,null,null,null,null,null,null,null,null,null,null,null,null,null,null,null,null,null,null,null,null,null,null,null,null,null,null,null,null,null,null,null,null,null,null,null,null,null,null,null,null,null,null,null,null,null,null,null,null,null,null,null,null,null,null,null,null,null,null,null,null,null,null,null,null,null,null,null,null,null,null,null,null,null,null,null,null,null,null,null,null,null,125,1,11,33,"11:41:25.800"]
[2303,"Wiśniewska","Małgorzata","Warszawa",1,1,0,0,null,null,null,null,null,null,null,null,null,null,null,null,null,null,null,null,null,null,null,null,null,null,null,null,null,null,null,null,null,null,null,null,null,null,null,null,null,null,null,null,null,null,null,null,null,null,null,null,null,null,null,null,null,null,null,null,null,null,null,null,null,null,null,null,null,null,null,null,null,null,null,null,null,null,null,null,null,null,null,null,null,null,null,null,null,null,null,null,null,null,null,null,null,null,null,null,null,null,null,null,null,null,null,null,null,null,null,null,null,null,null,null,null,null,null,null,null,null,null,null,null,null,null,null,null,null,null,null,null,null,null,null,null,null,null,null,null,null,null,null,200,1,9,30,"11:21:00"]
[2318,"Wojda","Stanisław","Gdańsk",1,1,0,0,null,null,null,null,null,null,null,null,null,null,null,null,null,null,null,null,null,null,null,null,null,null,null,null,null,null,null,null,null,null,null,null,null,null,null,null,null,null,null,null,null,null,null,null,null,null,null,null,null,null,null,null,null,null,null,null,null,null,null,null,null,null,null,null,null,null,null,null,null,null,null,null,null,null,null,null,null,null,null,null,null,null,null,null,null,null,null,null,null,null,null,null,null,null,null,null,null,null,null,null,null,null,null,null,null,null,null,null,null,null,206,1,8,23,"11:58:26.400"]
[2322,"Wolcendorf","Marcin",null,1,1,0,0,null,null,null,null,null,null,null,null,null,null,null,null,null,null,null,null,null,null,null,null,null,null,null,null,null,null,null,null,null,null,null,null,null,null,null,null,null,null,null,null,null,null,null,null,null,null,null,null,null,null,null,null,null,null,null,null,null,null,null,null,null,null,null,null,null,null,null,null,null,null,null,null,null,null,null,null,null,null,null,null,null,null,null,null,null,null,null,null,null,null,null,null,null,null,null,null,null,null,null,null,null,null,null,null,null,null,null,null,null,null,null,null,null,null,null,null,null,null,null,null,null,null,null,null,null,null,null,null,null,null,null,null,null,null,null,null,null,null,null,null,null,null,null,null,null,null,null,null,null,null,null,null,null,null,null,null,null,null,null,null,null,null,null,null,null,null,null,null,null,null,null,null,null,null,null,null,null,null,null,null,null,null,null,null,null,null,null,null,null,null,null,null,null,null,null,175,1,6,6,"10:03:00"]
[2337,"Zawadzki","Piotr","Warszawa",1,1,0,0,null,null,null,null,null,null,null,null,null,null,null,null,null,null,null,null,null,null,null,null,null,null,null,null,null,null,null,null,null,null,null,null,null,null,null,null,null,null,null,null,null,null,null,null,null,null,null,null,null,null,null,null,null,null,null,null,null,null,null,null,null,null,null,null,null,null,null,null,null,null,null,null,null,null,null,null,null,null,null,null,null,null,null,null,null,null,null,null,null,null,null,null,null,null,null,null,null,null,null,null,null,null,null,null,null,null,null,null,null,null,null,null,null,null,null,null,null,null,null,null,null,null,null,null,null,null,null,null,null,null,null,null,null,null,null,null,null,null,null,null,166,1,11,33,"11:34:00"]
[2340,"Zbylut","Jacek","Szczecin",1,1,0,0,null,null,null,null,null,null,null,null,null,null,null,null,null,null,null,null,null,null,null,null,null,null,null,null,null,null,null,null,null,null,null,null,null,null,null,null,null,null,null,null,null,null,null,null,null,null,null,null,null,null,null,null,null,null,null,null,null,null,null,null,null,null,null,null,null,null,null,null,null,null,null,null,null,null,null,null,null,null,null,null,null,null,null,null,null,null,null,null,null,null,null,null,null,null,null,null,null,null,null,null,null,null,null,null,null,null,null,null,null,null,null,null,null,null,null,null,null,null,null,null,null,null,null,null,null,null,null,null,null,null,null,null,null,null,null,null,null,null,null,null,null,null,null,null,null,null,null,null,null,null,null,null,null,null,null,null,null,null,null,null,null,null,null,null,null,null,null,null,null,null,null,null,null,null,null,null,null,null,null,null,null,null,null,null,null,null,null,null,null,null,148,1,11,11,"11:21:00"]
[2348,"Ziętara","Marek","Brzeg",1,1,0,0,null,null,null,null,null,null,null,null,null,null,null,null,null,null,null,null,null,null,null,null,null,null,null,null,null,null,null,null,null,null,null,null,null,null,null,null,null,null,null,null,null,null,null,null,null,null,null,null,null,null,null,null,null,null,null,null,null,null,null,null,null,null,null,null,null,null,null,null,null,null,null,null,null,null,null,null,null,null,null,null,null,null,null,null,null,null,null,null,null,null,null,null,null,null,null,null,null,null,null,null,null,null,null,null,null,null,null,null,null,null,null,null,null,null,null,null,null,null,null,null,null,null,null,null,null,null,null,null,null,null,null,null,null,null,null,null,null,null,null,null,null,null,null,null,null,null,null,null,null,null,null,null,null,null,null,null,null,null,null,null,null,null,null,null,null,104,1,9,27,"11:06:00"]
[2358,"Odya","Marcin","Gdańsk",0,2,0,0,null,null,null,null,null,null,null,null,null,null,null,null,null,null,null,null,null,null,null,null,null,null,null,null,null,null,null,null,null,null,null,null,null,null,null,null,null,null,null,null,null,null,null,null,null,null,null,null,null,null,null,null,null,null,null,null,null,null,null,null,null,null,null,null,null,null,null,null,null,null,null,null,null,null,null,null,null,null,null,null,null,null,null,null,null,null,null,null,null,null,null,null,null,null,null,null,null,null,null,null,null,null,null,null,null,null,null,null,null,null,null,null,null,null,null,null,null,null,null,null,null,null,null,null,null,null,null,null,null,null,"NKL",0,0,0,"NKL",null,null,null,null,null,"NKL",0,0,0,"NKL"]
[2364,"Bujnowski","Maciej","Gdańsk",0,1,0,0,null,null,null,null,null,null,null,null,null,null,null,null,null,null,null,null,null,null,null,null,null,null,null,null,null,null,null,null,null,null,null,null,null,null,null,null,null,null,null,null,null,null,null,null,null,null,null,null,null,null,null,null,null,null,null,null,null,null,null,null,null,null,null,null,null,null,null,null,null,null,null,null,null,null,null,null,null,null,null,null,null,null,null,null,null,null,null,null,null,null,null,null,null,null,null,null,null,null,null,null,null,null,null,null,null,null,null,null,null,null,null,null,null,null,null,null,null,null,null,null,null,null,null,null,null,null,null,null,null,null,null,null,null,null,null,null,null,null,null,null,null,null,null,null,null,null,null,null,null,null,null,null,null,null,null,null,null,null,null,null,null,null,null,null,null,null,null,null,null,null,null,null,null,null,null,null,null,null,null,null,null,null,null,null,null,null,null,null,null,null,null,null,null,null,null,null,null,null,null,null,"NKL",0,0,0,"NKL"]
[2365,"Cieliczka","Marek","Warszawa",0,1,0,0,null,null,null,null,null,null,null,null,null,null,null,null,null,null,null,null,null,null,null,null,null,null,null,null,null,null,null,null,null,null,null,null,null,null,null,null,null,null,null,null,null,null,null,null,null,null,null,null,null,null,null,null,null,null,null,null,null,null,null,null,null,null,null,null,null,null,null,null,null,null,null,null,null,null,null,null,null,null,null,null,null,null,null,null,null,null,null,null,null,null,null,null,null,null,null,null,null,null,null,null,null,null,null,null,null,null,null,null,null,null,null,null,null,null,null,null,null,null,null,null,null,null,null,null,null,null,null,null,null,null,null,null,null,null,null,null,null,null,null,null,null,null,null,null,null,null,null,null,null,null,null,null,null,null,null,null,null,null,null,null,null,null,null,null,null,null,null,null,null,null,null,null,null,null,null,null,null,null,null,null,null,null,null,null,null,null,null,null,null,null,"NKL",0,6,0,"12:15:00"]
[2366,"Czyzewski","Ziemowit","Gdańsk",0,1,0,0,null,null,null,null,null,null,null,null,null,null,null,null,null,null,null,null,null,null,null,null,null,null,null,null,null,null,null,null,null,null,null,null,null,null,null,null,null,null,null,null,null,null,null,null,null,null,null,null,null,null,null,null,null,null,null,null,null,null,null,null,null,null,null,null,null,null,null,null,null,null,null,null,null,null,null,null,null,null,null,null,null,null,null,null,null,null,null,null,null,null,null,null,null,null,null,null,null,null,null,null,null,null,null,null,null,null,null,null,null,null,null,null,null,null,null,null,null,null,null,null,"NKL",0,0,0,"NKL"]
[2367,"Deneka","Wojciech","Gliwice",0,1,0,0,null,null,null,null,null,null,null,null,null,null,null,null,null,null,null,null,null,null,null,null,null,null,null,null,null,null,null,null,null,null,null,null,null,null,null,null,null,null,null,null,null,null,null,null,null,null,null,null,null,null,null,null,null,null,null,null,null,null,null,null,null,null,null,null,null,null,null,null,null,null,null,null,null,null,null,null,null,null,null,null,null,null,null,null,null,null,null,null,null,null,null,null,null,null,null,null,null,null,null,null,null,null,null,null,null,null,null,null,null,null,null,null,null,null,null,null,null,null,null,null,null,null,null,null,null,null,null,null,null,null,null,null,null,null,null,null,null,null,null,null,null,null,null,null,null,null,null,null,null,null,null,null,null,null,null,null,null,null,null,null,null,null,null,null,null,null,null,null,null,null,null,null,null,null,null,null,null,null,null,null,null,null,null,null,null,null,null,null,null,null,null,null,null,null,null,null,null,null,null,null,"NKL",0,0,0,"NKL"]
[2368,"Gapińska","Marzena","Bąkowo",0,1,0,0,null,null,null,null,null,null,null,null,null,null,null,null,null,null,null,null,null,null,null,null,null,null,null,null,null,null,null,null,null,null,null,null,null,null,null,null,null,null,null,null,null,null,null,null,null,null,null,null,null,null,null,null,null,null,null,null,null,null,null,null,null,null,null,null,null,null,null,null,null,null,null,null,null,null,null,null,null,null,null,null,null,null,null,null,null,null,null,null,null,null,null,null,null,null,null,null,null,null,null,null,null,null,null,null,null,null,null,null,null,null,null,null,null,null,null,null,null,null,null,null,null,null,null,null,null,null,null,null,null,null,null,null,null,null,null,null,null,null,null,null,"NKL",0,0,0,"NKL"]
[2369,"Gronkiewicz","Andrzej","Gdańsk",0,1,0,0,null,null,null,null,null,null,null,null,null,null,null,null,null,null,null,null,null,null,null,null,null,null,null,null,null,null,null,null,null,null,null,null,null,null,null,null,null,null,null,null,null,null,null,null,null,null,null,null,null,null,null,null,null,null,null,null,null,null,null,null,null,null,null,null,null,null,null,null,null,null,null,null,null,null,null,null,null,null,null,null,"NKL",0,5,-999,"NKL"]
[2370,"Gut","Damian","Borzęcin",0,1,0,0,null,null,null,null,null,null,null,null,null,null,null,null,null,null,null,null,null,null,null,null,null,null,null,null,null,null,null,null,null,null,null,null,null,null,null,null,null,null,null,null,null,null,null,null,null,null,null,null,null,null,null,null,null,null,null,null,null,null,null,null,null,null,null,null,null,null,null,null,null,null,null,null,null,null,null,null,null,null,null,null,null,null,null,null,null,null,null,null,null,null,null,null,null,null,null,"NKL",0,5,"NKL","NKL"]
[2371,"Gwizdała","Karol",null,0,1,0,0,null,null,null,null,null,null,null,null,null,null,null,null,null,null,null,null,null,null,null,null,null,null,null,null,null,null,null,null,null,null,null,null,null,null,null,null,null,null,null,null,null,null,null,null,null,null,null,null,null,null,null,null,null,null,null,null,null,null,null,null,null,null,null,null,null,null,null,null,null,null,null,null,null,null,null,null,null,null,null,null,null,null,null,null,null,null,null,null,null,null,null,null,null,null,null,null,null,null,null,null,null,null,null,null,null,null,null,null,null,null,null,null,null,null,null,null,null,null,null,null,null,null,null,null,null,null,null,null,null,null,null,null,null,null,null,null,null,null,null,null,null,null,null,null,null,null,null,null,null,null,null,null,null,null,null,null,null,null,null,null,null,null,null,null,null,"NKL",0,0,0,"NKL"]
[2372,"Jaskółkowski","Piotr","Gdańsk",0,1,0,0,null,null,null,null,null,null,null,null,null,null,null,null,null,null,null,null,null,null,null,null,null,null,null,null,null,null,null,null,null,null,null,null,null,null,null,null,null,null,null,null,null,null,null,null,null,null,null,null,null,null,null,null,null,null,null,null,null,null,null,null,null,null,null,null,null,null,null,null,null,null,null,null,null,null,null,null,null,null,null,null,null,null,null,null,null,null,null,null,null,null,"NKL",0,3,null,"NKL"]
[2373,"Jazowski","Karol","Rumia",0,1,0,0,null,null,null,null,null,null,null,null,null,null,null,null,null,null,null,null,null,null,null,null,null,null,null,null,null,null,null,null,null,null,null,null,null,null,null,null,null,null,null,null,null,null,null,null,null,null,null,null,null,null,null,null,null,null,null,null,null,null,null,null,null,null,null,null,null,null,null,null,null,null,null,null,null,null,null,null,null,null,null,null,null,null,null,null,null,null,null,null,null,null,null,null,null,null,null,null,null,null,null,null,null,null,null,null,null,null,null,null,null,null,null,null,null,null,null,null,null,null,null,null,null,null,null,null,null,null,null,null,null,null,null,null,null,null,null,null,null,null,null,null,null,null,null,null,null,null,null,null,null,null,null,null,null,null,null,null,null,null,null,null,null,null,null,null,null,null,null,null,null,null,null,null,null,null,null,null,null,null,null,null,"NKL",0,0,0,"NKL"]
[2374,"Kacprzak","Jacek","Lębork",0,1,0,0,null,null,null,null,null,null,null,null,null,null,null,null,null,null,null,null,null,null,null,null,null,null,null,null,null,null,null,null,null,null,null,null,null,null,null,null,null,null,null,null,null,null,null,null,null,null,null,null,null,null,null,null,null,null,null,null,null,null,null,null,null,null,null,null,null,null,null,null,null,null,null,null,null,null,null,null,null,null,null,null,null,null,null,null,null,null,null,null,null,null,null,null,null,null,null,null,null,null,null,null,null,null,null,null,null,null,null,null,null,null,null,null,null,null,null,null,null,null,null,null,null,null,null,null,null,null,null,null,null,null,null,null,null,null,null,null,null,null,null,null,null,null,null,null,null,null,null,null,null,null,null,null,null,null,null,null,null,null,null,null,null,null,null,null,null,null,null,null,null,null,null,null,null,null,null,null,null,null,null,null,null,null,null,null,null,null,null,null,null,null,null,null,null,null,null,null,null,null,null,null,null,null,null,null,null,"NKL",0,7,0,"NKL"]
[2375,"Kaszuba","Grzegorz",null,0,1,0,0,null,null,null,null,null,null,null,null,null,null,null,null,null,null,null,null,null,null,null,null,null,null,null,null,null,null,null,null,null,null,null,null,null,null,null,null,null,null,null,null,null,null,null,null,null,null,null,null,null,null,null,null,null,null,null,null,null,null,null,null,null,null,null,null,null,null,null,null,null,null,null,null,null,null,null,null,null,null,null,null,null,null,null,null,null,null,null,null,null,null,null,null,null,null,null,null,null,null,null,null,null,null,null,null,null,null,null,null,null,null,null,null,null,null,null,null,null,null,null,null,null,null,null,null,null,null,null,null,null,null,null,null,null,null,null,null,null,null,null,null,null,null,null,null,null,null,null,null,null,null,null,null,null,null,null,null,null,null,null,null,null,null,null,null,null,"NKL",0,0,0,"NKL"]
[2376,"Kaszuba","Marek",null,0,1,0,0,null,null,null,null,null,null,null,null,null,null,null,null,null,null,null,null,null,null,null,null,null,null,null,null,null,null,null,null,null,null,null,null,null,null,null,null,null,null,null,null,null,null,null,null,null,null,null,null,null,null,null,null,null,null,null,null,null,null,null,null,null,null,null,null,null,null,null,null,null,null,null,null,null,null,null,null,null,null,null,null,null,null,null,null,null,null,null,null,null,null,null,null,null,null,null,null,null,null,null,null,null,null,null,null,null,null,null,null,null,null,null,null,null,null,null,null,null,null,null,null,null,null,null,null,null,null,null,null,null,null,null,null,null,null,null,null,null,null,null,null,null,null,null,null,null,null,null,null,null,null,null,null,null,null,null,null,null,null,null,null,null,null,null,null,null,"NKL",0,0,0,"NKL"]
[2377,"Kędracki","Miłosz",null,0,1,0,0,null,null,null,null,null,null,null,null,null,null,null,null,null,null,null,null,null,null,null,null,null,null,null,null,null,null,null,null,null,null,null,null,null,null,null,null,null,null,null,null,null,null,null,null,null,null,null,null,null,null,null,null,null,null,null,null,null,null,null,null,null,null,null,null,null,null,null,null,null,null,null,null,null,null,null,null,null,null,null,null,null,null,null,null,null,null,null,null,null,null,null,null,null,null,null,null,null,null,null,null,null,null,null,null,null,null,null,null,null,null,null,null,null,null,null,null,null,null,null,null,null,null,null,null,null,null,null,null,null,null,null,null,null,null,null,null,null,null,null,null,null,null,null,null,null,null,null,null,null,null,null,null,null,null,null,null,null,null,null,null,null,null,null,null,null,null,null,null,null,null,null,null,null,null,null,null,null,null,null,null,null,null,null,null,null,null,null,null,null,null,null,null,null,null,null,null,null,null,null,null,null,null,null,null,null,"NKL",0,6,0,"NKL"]
[2378,"Kisielewski","Paweł",null,0,1,0,0,null,null,null,null,null,null,null,null,null,null,null,null,null,null,null,null,null,null,null,null,null,null,null,null,null,null,null,null,null,null,null,null,null,null,null,null,null,null,null,null,null,null,null,null,null,null,null,null,null,null,null,null,null,null,null,null,null,null,null,null,null,null,null,null,null,null,null,null,null,null,null,null,null,null,null,null,null,null,null,null,null,null,null,null,null,null,null,null,null,null,null,null,null,null,null,null,null,null,null,null,null,null,null,null,null,null,null,null,null,null,null,null,null,null,null,null,null,null,null,null,null,null,null,null,null,null,null,null,null,null,null,null,null,null,null,null,null,null,null,null,null,null,null,null,null,null,null,null,null,null,null,null,null,null,null,null,null,null,null,null,null,null,null,null,null,null,null,null,null,null,null,null,null,null,null,null,null,null,null,null,null,null,null,null,null,null,null,null,null,null,null,null,null,null,null,null,null,null,null,null,null,null,null,null,null,"NKL",0,6,0,"NKL"]
[2379,"Klang","Sylwia","Gdańsk",0,1,0,0,null,null,null,null,null,null,null,null,null,null,null,null,null,null,null,null,null,null,null,null,null,null,null,null,null,null,null,null,null,null,null,null,null,null,null,null,null,null,null,null,null,null,null,null,null,null,null,null,null,null,"NKL",0,null,"brak karty"]
[2380,"Klepacki","Artur",null,0,1,0,0,null,null,null,null,null,null,null,null,null,null,null,null,null,null,null,null,null,null,null,null,null,null,null,null,null,null,null,null,null,null,null,null,null,null,null,null,null,null,null,null,null,null,null,null,null,null,null,null,null,null,null,null,null,null,null,null,null,null,null,null,null,null,null,null,null,null,null,null,null,null,null,null,null,null,null,null,null,null,null,null,null,null,null,null,null,null,null,null,null,null,null,null,null,null,null,null,null,null,null,null,null,null,null,null,null,null,null,null,null,null,null,null,null,null,null,null,null,null,null,null,null,null,null,null,null,null,null,null,null,null,null,null,null,null,null,null,null,null,null,null,null,null,null,null,null,null,null,null,null,null,null,null,null,null,null,null,null,null,null,null,null,null,null,null,null,"NKL",0,0,0,"NKL"]
[2381,"Kowalczyk","Kazimierz","Gdańsk",0,1,0,0,null,null,null,null,null,null,null,null,null,null,null,null,null,null,null,null,null,null,null,null,null,null,null,null,null,null,null,null,null,null,null,null,null,null,null,null,null,null,null,null,null,null,null,null,null,null,null,null,null,null,null,null,null,null,null,null,null,null,null,null,null,null,null,null,null,null,null,null,null,null,null,null,null,null,null,null,null,null,null,null,null,null,null,null,null,null,null,null,null,null,null,null,null,null,null,null,null,null,null,null,null,null,null,null,null,null,null,null,null,null,null,null,null,null,null,null,null,null,null,null,null,null,null,null,null,null,null,null,null,null,null,null,null,null,null,null,null,null,null,null,null,null,null,null,null,null,null,null,null,null,null,null,null,null,null,null,null,null,null,null,null,null,null,null,null,null,null,null,null,null,null,null,null,null,null,null,null,null,null,null,null,null,null,null,null,"NKL",0,0,0,"NKL"]
[2382,"Kowalczyk","Krzysztof","Warszawa",0,1,0,0,null,null,null,null,null,null,null,null,null,null,null,null,null,null,null,null,null,null,null,null,null,null,null,null,null,null,null,null,null,null,null,null,null,null,null,null,null,null,null,null,null,null,null,null,null,null,null,null,null,null,null,null,null,null,null,null,null,null,null,null,null,null,null,null,null,null,null,null,null,null,null,null,null,null,null,null,null,null,null,null,null,null,null,null,null,null,null,null,null,null,null,null,null,null,null,null,null,null,null,null,null,null,null,null,null,null,null,null,null,null,null,null,null,null,null,null,null,null,null,null,null,null,null,null,null,null,null,null,null,null,null,null,null,null,null,null,null,null,null,null,null,null,null,null,null,null,null,null,null,null,null,null,null,null,null,null,null,null,null,null,null,null,null,null,null,null,null,null,null,null,null,null,null,null,null,null,null,null,null,null,null,null,null,null,null,"NKL",0,0,0,"NKL"]
[2383,"Kowalski","Andrzej",null,0,1,0,0,null,null,null,null,null,null,null,null,null,null,null,null,null,null,null,null,null,null,null,null,null,null,null,null,null,null,null,null,null,null,null,null,null,null,null,null,null,null,null,null,null,null,null,null,null,null,null,null,null,null,null,null,null,null,null,null,null,null,null,null,null,null,null,null,null,null,null,null,null,null,null,null,null,null,null,null,null,null,null,null,null,null,null,null,null,null,null,null,null,null,null,null,null,null,null,null,null,null,null,null,null,null,null,null,null,null,null,null,null,null,null,null,null,null,null,null,null,null,null,null,null,null,null,null,null,null,null,null,null,null,null,null,null,null,null,null,null,null,null,null,null,null,null,null,null,null,null,null,null,null,null,null,null,null,null,null,null,null,null,null,null,null,null,null,null,null,null,null,null,null,null,null,null,null,null,null,null,null,null,null,null,null,null,null,null,null,null,null,null,null,null,null,null,null,null,null,null,null,null,null,null,null,null,null,null,null,null,null,null,null,"NKL",0,10,0,"NKL"]
[2384,"Kubuj","Dorota","Warszawa",0,1,0,0,null,null,null,null,null,null,null,null,null,null,null,null,null,null,null,null,null,null,null,null,null,null,null,null,null,null,null,null,null,null,null,null,null,null,null,null,null,null,null,null,null,null,null,null,null,null,null,null,null,null,null,null,null,null,null,null,null,null,null,null,null,null,null,null,null,null,null,null,null,null,null,null,null,null,null,null,null,null,null,null,null,null,null,null,null,null,null,null,null,null,null,null,null,null,null,null,null,null,null,null,"NKL",0,8,"NKL","NKL"]
[2385,"Kusiński","Maciej","Warszawa",0,1,0,0,null,null,null,null,null,null,null,null,null,null,null,null,null,null,null,null,null,null,null,null,null,null,null,null,null,null,null,null,null,null,null,null,null,null,null,null,null,null,null,null,null,null,null,null,null,null,null,null,null,null,null,null,null,null,null,null,null,null,null,null,null,null,null,null,null,null,null,null,null,null,null,null,null,null,null,null,null,null,null,null,null,null,null,null,null,null,null,null,null,null,null,null,null,null,null,null,null,null,null,null,null,null,null,null,null,null,null,null,null,null,null,null,null,null,null,null,null,null,null,null,null,null,null,null,null,null,null,null,null,null,null,null,null,null,null,null,null,null,null,null,null,null,null,null,null,null,null,null,null,null,null,null,null,null,null,null,null,null,null,null,"NKL",0,0,0,"NKL"]
[2386,"Kwaśny","Jarosław","Wrocław",0,1,0,0,null,null,null,null,null,null,null,null,null,null,null,null,null,null,null,null,null,null,null,null,null,null,null,null,null,null,null,null,null,null,null,null,null,null,null,null,null,null,null,null,null,null,null,null,null,null,null,null,null,null,null,null,null,null,null,null,null,null,null,null,null,null,null,null,null,null,null,null,null,null,null,null,null,null,null,null,null,null,null,null,null,null,null,null,null,null,null,null,null,null,null,null,null,null,null,null,null,null,null,null,null,null,null,null,null,null,null,null,null,null,null,null,null,null,null,null,null,null,null,null,null,null,null,null,null,null,null,null,null,null,null,null,null,null,null,"NKL",0,0,0,"NKL"]
[2387,"Kwiatkowski","Grzegorz","Wrocław",0,1,0,0,null,null,null,null,null,null,null,null,null,null,null,null,null,null,null,null,null,null,null,null,null,null,null,null,null,null,null,null,null,null,null,null,null,null,null,null,null,null,null,null,null,null,null,null,null,null,null,null,null,null,null,null,null,null,null,null,null,null,null,null,null,null,null,null,null,null,null,null,null,null,null,null,null,null,null,null,null,null,null,null,null,null,null,null,null,null,null,null,null,null,null,null,null,null,null,null,null,null,null,null,null,null,null,null,null,null,null,null,null,null,null,null,null,null,null,null,null,null,null,null,null,null,null,null,null,null,null,null,null,null,null,null,null,null,null,null,null,null,null,null,null,null,null,null,null,null,null,null,null,null,null,null,null,null,null,null,null,null,null,null,null,null,null,null,null,null,null,null,null,null,null,null,null,null,null,null,null,null,null,null,"NKL",0,5,0,"NKL"]
[2388,"Marciniak","Jakub",null,0,1,0,0,null,null,null,null,null,null,null,null,null,null,null,null,null,null,null,null,null,null,null,null,null,null,null,null,null,null,null,null,null,null,null,null,null,null,null,null,null,null,null,null,null,null,null,null,null,null,null,null,null,null,null,null,null,null,null,null,null,null,null,null,null,null,null,null,null,null,null,null,null,null,null,null,null,null,null,null,null,null,null,null,null,null,null,null,null,null,null,null,null,null,null,null,null,null,null,null,null,null,null,null,null,null,null,null,null,null,null,null,null,null,null,null,null,null,null,null,null,null,null,null,null,null,null,null,null,null,null,null,null,null,null,null,null,null,null,null,null,null,null,null,null,null,null,null,null,null,null,null,null,null,null,null,null,null,null,null,null,null,null,null,null,null,null,null,null,null,null,null,null,null,null,null,null,null,null,null,null,null,null,null,null,null,null,null,null,null,null,null,null,null,null,null,null,null,null,"NKL",0,0,0,"NKL"]
[2389,"Marus ","Łukasz",null,0,1,0,0,null,null,null,null,null,null,null,null,null,null,null,null,null,null,null,null,null,null,null,null,null,null,null,null,null,null,null,null,null,null,null,null,null,null,null,null,null,null,null,null,null,null,null,null,null,null,null,null,null,null,null,null,null,null,null,null,null,null,null,null,null,null,null,null,null,null,null,null,null,null,null,null,null,null,null,null,null,null,null,null,null,null,null,null,null,null,null,null,null,null,null,null,null,null,null,null,null,null,null,null,null,null,null,null,null,null,null,null,null,null,null,null,null,null,null,null,null,null,null,null,"NKL",0,0,0,"NKL"]
[2390,"Mogielska","Iwona","Warka",0,1,0,0,null,null,null,null,null,null,null,null,null,null,null,null,null,null,null,null,null,null,null,null,null,null,null,null,null,null,null,null,null,null,null,null,null,null,null,null,null,null,null,null,null,null,null,null,null,null,null,null,null,null,null,null,null,null,null,null,null,null,null,null,null,null,null,null,null,null,null,null,null,null,null,null,null,null,null,null,null,null,null,null,null,null,null,null,null,null,null,null,null,null,null,null,null,null,null,null,null,null,null,null,null,null,null,null,null,null,null,null,null,null,null,null,null,null,null,null,null,null,null,null,null,null,null,null,null,null,null,null,null,null,null,null,null,null,null,null,null,null,null,null,null,null,null,null,null,null,null,null,null,null,null,null,null,null,null,null,null,null,null,null,null,null,null,null,null,null,null,null,null,null,null,null,null,null,null,null,null,null,null,null,null,null,null,null,null,"NKL",0,0,0,"NKL"]
[2391,"Nazimek","Piotr","Kielce",0,1,0,0,null,null,null,null,null,null,null,null,null,null,null,null,null,null,null,null,null,null,null,null,null,null,null,null,null,null,null,null,null,null,null,null,null,null,null,null,null,null,null,null,null,null,null,null,null,null,null,null,null,null,null,null,null,null,null,null,null,null,null,null,null,null,null,null,null,null,null,null,null,null,null,null,null,null,null,null,null,null,null,null,null,null,null,null,null,null,null,null,null,null,null,null,null,null,null,null,null,null,null,null,null,null,null,null,null,null,null,null,null,null,null,null,null,null,null,null,null,null,null,null,null,null,null,null,null,null,null,null,null,null,null,null,null,null,null,null,null,null,null,null,null,null,null,null,null,null,null,null,null,null,null,null,null,null,null,null,null,null,null,null,null,null,null,null,null,null,null,null,null,null,null,null,null,null,null,null,null,null,null,null,null,null,null,null,null,null,null,null,null,null,null,null,null,null,null,null,null,null,null,null,null,null,null,null,null,"NKL",0,5,0,"NKL"]
[2392,"Neugebauer","Michał","Gdynia",0,1,0,0,null,null,null,null,null,null,null,null,null,null,null,null,null,null,null,null,null,null,null,null,null,null,null,null,null,null,null,null,null,null,null,null,null,null,null,null,null,null,null,null,null,null,null,null,null,null,null,null,null,null,null,null,null,null,null,null,null,null,null,null,null,null,null,null,null,null,null,null,null,null,null,null,null,null,null,null,null,null,null,null,null,null,null,null,null,null,null,null,null,null,null,null,null,null,null,null,null,null,null,null,null,null,null,null,null,null,null,null,null,null,null,null,null,null,null,null,null,null,null,null,null,null,null,null,null,null,null,null,null,null,null,null,null,null,null,null,null,null,null,null,"NKL",0,0,0,"NKL"]
[2393,"Neugebauer","Paweł","Gdańsk",0,1,0,0,null,null,null,null,null,null,null,null,null,null,null,null,null,null,null,null,null,null,null,null,null,null,null,null,null,null,null,null,null,null,null,null,null,null,null,null,null,null,null,null,null,null,null,null,null,null,null,null,null,null,null,null,null,null,null,null,null,null,null,null,null,null,null,null,null,null,null,null,null,null,null,null,null,null,null,null,null,null,null,null,null,null,null,null,null,null,null,null,null,null,null,null,null,null,null,null,null,null,null,null,null,null,null,null,null,null,null,null,null,null,null,null,null,null,null,null,null,null,null,null,null,null,null,null,null,null,null,null,null,null,null,null,null,null,null,null,null,null,null,null,"NKL",0,0,0,"NKL"]
[2394,"Perz","Paweł","Poznań",0,1,0,0,null,null,null,null,null,null,null,null,null,null,null,null,null,null,null,null,null,null,null,null,null,null,null,null,null,null,null,null,null,null,null,null,null,null,null,null,null,null,null,null,null,null,null,null,null,null,null,null,null,null,null,null,null,null,null,null,null,null,null,null,null,null,null,null,null,null,null,null,null,null,null,null,null,null,null,null,null,null,null,null,null,null,null,null,null,null,null,null,null,null,null,null,null,null,null,null,null,null,null,null,null,null,null,null,null,null,null,null,null,null,null,null,null,null,null,null,null,null,null,null,null,null,null,null,null,null,null,null,null,null,null,null,null,null,null,null,null,null,null,null,null,null,null,null,null,null,null,null,null,null,null,null,null,null,null,null,null,null,null,null,null,null,null,null,null,null,null,null,null,null,null,null,null,null,null,null,null,null,null,null,null,null,null,null,null,"NKL",0,0,0,"NKL"]
[2395,"Pietrzykowski","Norbert","Elbląg",0,1,0,0,null,null,null,null,null,null,null,null,null,null,null,null,null,null,null,null,null,null,null,null,null,null,null,null,null,null,null,null,null,null,null,null,null,null,null,null,null,null,null,null,null,null,null,null,null,null,null,null,null,null,null,null,null,null,null,null,null,null,null,null,null,null,null,null,null,null,null,null,null,null,null,null,null,null,null,null,null,null,null,null,null,null,null,null,null,null,null,null,null,null,"NKL",0,4,null,"NKL"]
[2396,"Plewiński","Krystian","Gdynia",0,1,0,0,null,null,null,null,null,null,null,null,null,null,null,null,null,null,null,null,null,null,null,null,null,null,null,null,null,null,null,null,null,null,null,null,null,null,null,null,null,null,null,null,null,null,null,null,null,null,null,null,null,null,null,null,null,null,null,null,null,null,null,null,null,null,null,null,null,null,null,null,null,null,null,null,null,null,null,null,null,null,null,null,null,null,null,null,null,null,null,null,null,null,null,null,null,null,null,null,null,null,null,null,null,null,null,null,null,null,null,null,null,null,null,null,null,null,null,null,null,null,null,null,null,null,null,null,null,null,null,null,null,null,null,null,null,null,null,null,null,null,null,null,null,null,null,null,null,null,null,null,null,null,null,null,null,null,null,null,null,null,null,null,null,null,null,null,null,null,null,null,null,null,null,null,null,null,null,null,null,null,null,null,null,null,null,null,null,"NKL",0,0,0,"NKL"]
[2397,"Poczobut","Janusz",null,0,1,0,0,null,null,null,null,null,null,null,null,null,null,null,null,null,null,null,null,null,null,null,null,null,null,null,null,null,null,null,null,null,null,null,null,null,null,null,null,null,null,null,null,null,null,null,null,null,null,null,null,null,null,null,null,null,null,null,null,null,null,null,null,null,null,null,null,null,null,null,null,null,null,null,null,null,null,null,null,null,null,null,null,null,null,null,null,null,null,null,null,null,null,null,null,null,null,null,null,null,null,null,null,null,null,null,null,null,null,null,null,null,null,null,null,null,null,null,null,null,null,null,null,null,null,null,null,null,null,null,null,null,null,null,null,null,null,null,null,null,null,null,null,null,null,null,null,null,null,null,null,null,null,null,null,null,null,null,null,null,null,null,null,null,null,null,null,null,null,null,null,null,null,null,null,null,null,null,null,null,null,null,null,null,null,null,null,null,null,null,null,null,null,null,null,null,null,null,"NKL",0,0,0,"NKL"]
[2398,"Pujanek","Janusz",null,0,1,0,0,null,null,null,null,null,null,null,null,null,null,null,null,null,null,null,null,null,null,null,null,null,null,null,null,null,null,null,null,null,null,null,null,null,null,null,null,null,null,null,null,null,null,null,null,null,null,null,null,null,null,null,null,null,null,null,null,null,null,null,null,null,null,null,null,null,null,null,null,null,null,null,null,null,null,null,null,null,null,null,null,null,null,null,null,null,null,null,null,null,null,null,null,null,null,null,null,null,null,null,null,null,null,null,null,null,null,null,null,null,null,null,null,null,null,null,null,null,null,null,null,null,null,null,null,null,null,null,null,null,null,null,null,null,null,null,null,null,null,null,null,null,null,null,null,null,null,null,null,null,null,null,null,null,null,null,null,null,null,null,null,null,null,null,null,null,null,null,null,null,null,null,null,null,null,null,null,null,null,null,null,null,null,null,null,null,"NKL",0,0,0,"NKL"]
[2399,"Rybarczyk","Tomasz",null,0,1,0,0,null,null,null,null,null,null,null,null,null,null,null,null,null,null,null,null,null,null,null,null,null,null,null,null,null,null,null,null,null,null,null,null,null,null,null,null,null,null,null,null,null,null,null,null,null,null,null,null,null,null,null,null,null,null,null,null,null,null,null,null,null,null,null,null,null,null,null,null,null,null,null,null,null,null,null,null,null,null,null,null,null,null,null,null,null,null,null,null,null,null,null,null,null,null,null,null,null,null,null,null,null,null,null,null,null,null,null,null,null,null,null,null,null,null,null,null,null,null,null,null,null,null,null,null,null,null,null,null,null,null,null,null,null,null,null,null,null,null,null,null,null,null,null,null,null,null,null,null,null,null,null,null,null,null,null,null,null,null,null,null,null,null,null,null,null,null,null,null,null,null,null,null,null,null,null,null,null,null,null,null,null,null,null,null,null,null,null,null,null,null,null,null,null,null,null,"NKL",0,0,0,"NKL"]
[2400,"Rychły-Lipińska","Anna","Słupsk",0,1,0,0,null,null,null,null,null,null,null,null,null,null,null,null,null,null,null,null,null,null,null,null,null,null,null,null,null,null,null,null,null,null,null,null,null,null,null,null,null,null,null,null,null,null,null,null,null,null,null,null,null,null,null,null,null,null,null,null,null,null,null,null,null,null,null,null,null,null,null,null,null,null,"NKL",0,0,0,"NKL"]
[2401,"Sączewski","Jarosław",null,0,1,0,0,null,null,null,null,null,null,null,null,null,null,null,null,null,null,null,null,null,null,null,null,null,null,null,null,null,null,null,null,null,null,null,null,null,null,null,null,null,null,null,null,null,null,null,null,null,null,null,null,null,null,null,null,null,null,null,null,null,null,null,null,null,null,null,null,null,null,null,null,null,null,null,null,null,null,null,null,null,null,null,null,null,null,null,null,null,null,null,null,null,null,null,null,null,null,null,null,null,null,null,null,null,null,null,null,null,null,null,null,null,null,null,null,null,null,null,null,null,null,null,null,null,null,null,null,null,null,null,null,null,null,null,null,null,null,null,null,null,null,null,null,null,null,null,null,null,null,null,null,null,null,null,null,null,null,null,null,null,null,null,null,null,null,null,null,null,null,null,null,null,null,null,null,null,null,null,null,null,null,null,null,null,null,null,null,null,null,null,null,null,null,null,null,null,null,null,null,null,null,null,null,null,null,null,null,null,null,null,null,null,null,"NKL",0,1,0,"NKL"]
[2402,"Sebzda","Piotr",null,0,1,0,0,null,null,null,null,null,null,null,null,null,null,null,null,null,null,null,null,null,null,null,null,null,null,null,null,null,null,null,null,null,null,null,null,null,null,null,null,null,null,null,null,null,null,null,null,null,null,null,null,null,null,null,null,null,null,null,null,null,null,null,null,null,null,null,null,null,null,null,null,null,null,null,null,null,null,null,null,null,null,null,null,null,null,null,null,null,null,null,null,null,null,null,null,null,null,null,null,null,null,null,null,null,null,null,null,null,null,null,null,null,null,null,null,null,null,null,null,null,null,null,null,null,null,null,null,null,null,null,null,null,null,null,null,null,null,null,null,null,null,null,null,null,null,null,null,null,null,null,null,null,null,null,null,null,null,null,null,null,null,null,null,null,null,null,null,null,"NKL",0,0,0,"NKL"]
[2403,"Sondej","Marcin","Sopot",0,1,0,0,null,null,null,null,null,null,null,null,null,null,null,null,null,null,null,null,null,null,null,null,null,null,null,null,null,null,null,null,null,null,null,null,null,null,null,null,null,null,null,null,null,null,null,null,null,null,null,null,null,null,null,null,null,null,null,null,null,null,null,null,null,null,null,null,null,null,null,null,null,null,null,null,null,null,null,null,null,null,null,null,null,null,null,null,null,null,null,null,null,null,null,null,null,null,null,null,null,null,null,null,null,null,null,null,null,null,null,null,null,null,null,null,null,null,null,null,null,null,null,null,null,null,null,null,null,null,null,null,null,null,null,null,null,null,null,null,null,null,null,null,null,null,null,null,null,null,null,null,null,null,null,null,null,null,null,null,null,null,null,null,null,null,null,null,null,null,null,null,null,null,null,null,null,null,null,null,null,null,null,null,null,null,null,null,null,null,null,null,null,null,null,null,null,null,null,null,null,null,null,null,null,null,null,null,null,"NKL",0,null,0,"NKL"]
[2404,"Stormowski","Patryk",null,0,1,0,0,null,null,null,null,null,null,null,null,null,null,null,null,null,null,null,null,null,null,null,null,null,null,null,null,null,null,null,null,null,null,null,null,null,null,null,null,null,null,null,null,null,null,null,null,null,null,null,null,null,null,null,null,null,null,null,null,null,null,null,null,null,null,null,null,null,null,null,null,null,null,null,null,null,null,null,null,null,null,null,null,null,null,null,null,null,null,null,null,null,null,null,null,null,null,null,null,null,null,null,null,null,null,null,null,null,null,null,null,null,null,null,null,null,null,null,null,null,null,null,null,null,null,null,null,null,null,null,null,null,null,null,null,null,null,null,null,null,null,null,null,null,null,null,null,null,null,null,null,null,null,null,null,null,null,null,null,null,null,null,null,null,null,null,null,null,"NKL",0,0,0,"NKL"]
[2405,"Szcześniak","Krzysztof",null,0,1,0,0,null,null,null,null,null,null,null,null,null,null,null,null,null,null,null,null,null,null,null,null,null,null,null,null,null,null,null,null,null,null,null,null,null,null,null,null,null,null,null,null,null,null,null,null,null,null,null,null,null,null,null,null,null,null,null,null,null,null,null,null,null,null,null,null,null,null,null,null,null,null,null,null,null,null,null,null,null,null,null,null,null,null,null,null,null,null,null,null,null,null,null,null,null,null,null,null,null,null,null,null,null,null,null,null,null,null,null,null,null,null,null,null,null,null,null,null,null,null,null,null,null,null,null,null,null,null,null,null,null,null,null,null,null,null,null,null,null,null,null,null,null,null,null,null,null,null,null,null,null,null,null,null,null,null,null,null,null,null,null,null,null,null,null,null,null,"NKL",0,0,0,"NKL"]
[2406,"Szewczak","Joanna","Warszawa",0,1,0,0,null,null,null,null,null,null,null,null,null,null,null,null,null,null,null,null,null,null,null,null,null,null,null,null,null,null,null,null,null,null,null,null,null,null,null,null,null,null,null,null,null,null,null,null,null,null,null,null,null,null,null,null,null,null,null,null,null,null,null,null,null,null,null,null,null,null,null,null,null,null,null,null,null,null,null,null,null,null,null,null,null,null,null,null,null,null,null,null,null,null,null,null,null,null,null,null,null,null,null,null,"NKL",0,3,"NKL","NKL"]
[2407,"Szocińska","Barbara","Janowiec Wlkp.",0,1,0,0,null,null,null,null,null,null,null,null,null,null,null,null,null,null,null,null,null,null,null,null,null,null,null,null,null,null,null,null,null,null,null,null,null,null,null,null,null,null,null,null,null,null,null,null,null,null,null,null,null,null,null,null,null,null,null,null,null,null,null,null,null,null,null,null,null,null,null,null,null,null,null,null,null,null,null,null,null,null,null,null,null,null,null,null,null,null,null,null,null,null,null,null,null,null,null,null,null,null,null,null,null,null,null,null,null,null,null,null,null,null,null,null,null,null,null,null,null,null,null,null,null,null,null,null,null,null,null,null,null,null,null,null,null,null,null,null,null,null,null,null,null,null,null,null,null,null,null,null,null,null,null,null,null,null,null,null,null,null,null,null,null,null,null,null,null,null,null,null,null,null,null,null,null,null,null,null,null,null,null,null,null,null,null,null,null,null,null,null,null,null,"NKL",0,9,0,"12:49:00"]
[2408,"Szpytman","Ryszard","Wrocław",0,1,0,0,null,null,null,null,null,null,null,null,null,null,null,null,null,null,null,null,null,null,null,null,null,null,null,null,null,null,null,null,null,null,null,null,null,null,null,null,null,null,null,null,null,null,null,null,null,null,null,null,null,null,null,null,null,null,null,null,null,null,null,null,null,null,null,null,null,null,null,null,null,null,null,null,null,null,null,null,null,null,null,null,null,null,null,null,null,null,null,null,null,null,null,null,null,null,null,null,null,null,null,null,null,null,null,null,null,null,null,null,null,null,null,null,null,null,null,null,null,null,null,null,null,null,null,null,null,null,null,null,null,null,null,null,null,null,null,null,null,null,null,null,null,null,null,null,null,null,null,null,null,null,null,null,null,null,null,null,null,null,null,null,null,null,null,null,null,null,null,null,null,null,null,null,null,null,null,null,null,null,null,null,null,null,null,null,null,null,null,null,null,null,null,null,null,null,null,null,null,null,null,null,null,null,null,null,null,"NKL",0,6,0,"NKL"]
[2409,"Szymański","Marcin",null,0,1,0,0,null,null,null,null,null,null,null,null,null,null,null,null,null,null,null,null,null,null,null,null,null,null,null,null,null,null,null,null,null,null,null,null,null,null,null,null,null,null,null,null,null,null,null,null,null,null,null,null,null,null,null,null,null,null,null,null,null,null,null,null,null,null,null,null,null,null,null,null,null,null,null,null,null,null,null,null,null,null,null,null,null,null,null,null,null,null,null,null,null,null,null,null,null,null,null,null,null,null,null,null,null,null,null,null,null,null,null,null,null,null,null,null,null,null,null,null,null,null,null,null,null,null,null,null,null,null,null,null,null,null,null,null,null,null,null,null,null,null,null,null,null,null,null,null,null,null,null,null,null,null,null,null,null,null,null,null,null,null,null,null,null,null,null,null,null,null,null,null,null,null,null,null,null,null,null,null,null,null,null,null,null,null,null,null,null,null,null,null,null,null,"NKL",0,9,0,"12:01:00"]
[2410,"Szymański","Michał","Gdańsk",0,1,0,0,null,null,null,null,null,null,null,null,null,null,null,null,null,null,null,null,null,null,null,null,null,null,null,null,null,null,null,null,null,null,null,null,null,null,null,null,null,null,null,null,null,null,null,null,null,null,null,null,null,null,null,null,null,null,null,null,null,null,null,null,null,null,null,null,null,null,null,null,null,null,null,null,null,null,null,null,null,null,null,null,null,null,null,null,null,null,null,null,null,null,null,null,null,null,null,null,null,null,null,null,null,null,null,null,null,null,null,null,null,null,null,null,null,null,null,null,null,null,null,null,null,null,null,null,null,null,null,null,null,null,null,null,null,null,null,null,null,null,null,null,null,null,null,null,null,null,null,null,null,null,null,null,null,null,null,null,null,null,null,null,null,null,null,null,null,null,null,null,null,null,null,null,null,null,null,null,null,null,null,null,null,null,null,null,null,null,null,null,null,null,null,null,null,null,null,null,null,null,null,null,null,null,null,null,null,"NKL",0,null,0,"NKL"]
[2411,"Trebczyk","Dariusz","Wejcherowo",0,1,0,0,null,null,null,null,null,null,null,null,null,null,null,null,null,null,null,null,null,null,null,null,null,null,null,null,null,null,null,null,null,null,null,null,null,null,null,null,null,null,null,null,null,null,null,null,null,null,null,null,null,null,null,null,null,null,null,null,null,null,null,null,null,null,null,null,null,null,null,null,null,null,null,null,null,null,null,null,null,null,null,null,null,null,null,null,null,null,null,null,null,null,null,null,null,null,null,null,null,null,null,null,null,null,null,null,null,null,null,null,null,null,null,null,null,null,null,null,null,null,null,null,null,null,null,null,null,"NKL",0,0,0,"00:00:00"]
[2412,"Urbański","Leszek","Gdańsk",0,1,0,0,null,null,null,null,null,null,null,null,null,null,null,null,null,null,null,null,null,null,null,null,null,null,null,null,null,null,null,null,null,null,null,null,null,null,null,null,null,null,null,null,null,null,null,null,null,null,null,null,null,null,null,null,null,null,null,null,null,null,null,null,null,null,null,null,null,null,null,null,null,null,null,null,null,null,null,null,null,null,null,null,null,null,null,null,null,null,null,null,null,null,null,null,null,null,null,null,null,null,null,null,null,null,null,null,null,null,null,null,null,null,null,null,null,null,null,null,null,null,null,null,null,null,null,null,null,null,null,null,null,null,null,null,null,null,null,null,null,null,null,null,null,null,null,null,null,null,null,null,null,null,null,null,null,null,null,null,null,null,null,null,null,null,null,null,null,null,null,null,null,null,null,null,null,null,null,null,null,null,null,null,null,null,null,null,null,null,null,null,null,null,null,null,null,null,null,null,null,null,null,null,null,null,null,null,null,"NKL",0,null,0,"NKL"]
[2413,"Warakomski","Jacek","Giżycko",0,1,0,0,null,null,null,null,null,null,null,null,null,null,null,null,null,null,null,null,null,null,null,null,null,null,null,null,null,null,null,null,null,null,null,null,null,null,null,null,null,null,null,null,null,null,null,null,null,null,null,null,null,null,null,null,null,null,null,null,null,null,null,null,null,null,null,null,null,null,null,null,null,null,null,null,null,null,null,null,null,null,null,null,null,null,null,null,null,null,null,null,null,null,null,null,null,null,null,null,null,null,null,null,null,null,null,null,null,null,null,null,null,null,null,null,null,null,null,null,null,null,null,null,null,null,null,null,null,null,null,null,null,null,null,null,null,null,null,null,null,null,null,null,null,null,null,null,null,null,null,null,null,null,null,null,null,null,null,null,null,null,null,null,null,null,null,null,null,null,null,null,null,null,"NKL",0,0,0,"NKL"]
[2414,"Wądzyński","Mateusz","Gdańsk",0,1,0,0,null,null,null,null,null,null,null,null,null,null,null,null,null,null,null,null,null,null,null,null,null,null,null,null,null,null,null,null,null,null,null,null,null,null,null,null,null,null,null,null,null,null,null,null,null,null,null,null,null,null,null,null,null,null,null,null,null,null,null,null,null,null,null,null,null,null,null,null,null,null,null,null,null,null,null,null,null,null,null,null,null,null,null,null,null,null,null,null,null,null,null,null,null,null,null,null,null,null,null,null,null,null,null,null,null,null,null,null,null,null,null,null,null,null,null,null,null,null,null,null,null,null,null,null,null,null,null,null,null,null,null,null,null,null,null,null,null,null,null,null,null,null,null,null,null,null,null,null,null,null,null,null,null,null,null,null,null,null,null,null,null,null,null,null,null,null,null,null,null,null,null,null,null,null,null,null,null,null,null,null,null,null,null,null,null,null,null,null,null,null,null,null,null,null,null,null,null,null,null,null,"NKL",0,0,0,"NKL"]
[2415,"Wiertelak","Jacek","Wrocław",0,1,0,0,null,null,null,null,null,null,null,null,null,null,null,null,null,null,null,null,null,null,null,null,null,null,null,null,null,null,null,null,null,null,null,null,null,null,null,null,null,null,null,null,null,null,null,null,null,null,null,null,null,null,null,null,null,null,null,null,null,null,null,null,null,null,null,null,null,null,null,null,null,null,null,null,null,null,null,null,null,null,null,null,null,null,null,null,null,null,null,null,null,null,null,null,null,null,null,null,null,null,null,null,null,null,null,null,null,null,null,null,null,null,null,null,null,null,null,null,null,null,null,null,null,null,null,null,null,null,null,null,null,null,null,null,null,null,null,null,null,null,null,null,null,null,null,null,null,null,null,null,null,null,null,null,null,null,null,null,null,null,null,null,null,null,null,null,null,null,null,null,null,null,null,null,null,null,null,null,null,null,null,null,"NKL",0,5,0,"NKL"]
[2416,"Witczak","Anna","Kowale",0,1,0,0,null,null,null,null,null,null,null,null,null,null,null,null,null,null,null,null,null,null,null,null,null,null,null,null,null,null,null,null,null,null,null,null,null,null,null,null,null,null,null,null,null,null,null,null,null,null,null,null,null,null,null,null,null,null,null,null,null,null,null,null,"NKL",0,0,"brak karty"]
[2417,"Wojtas","Adam","Słupsk",0,1,0,0,null,null,null,null,null,null,null,null,null,null,null,null,null,null,null,null,null,null,null,null,null,null,null,null,null,null,null,null,null,null,null,null,null,null,null,null,null,null,null,null,null,null,null,null,null,null,null,null,null,null,null,null,null,null,null,null,null,null,null,null,null,null,null,null,null,null,null,null,null,null,null,null,null,null,null,null,null,null,null,null,null,null,null,null,null,null,null,null,null,null,null,null,null,null,null,null,null,null,null,null,null,null,null,null,null,null,null,null,null,null,null,null,null,null,null,null,null,null,null,null,null,null,null,null,null,null,null,null,null,null,null,null,null,null,null,null,null,null,null,null,null,null,null,null,null,null,null,null,null,null,null,null,null,null,null,null,null,null,null,null,null,null,null,null,null,null,null,null,null,null,null,null,null,null,null,null,null,null,null,null,null,null,null,null,null,null,null,null,null,null,null,null,null,null,null,null,null,null,null,null,null,null,null,null,null,"NKL",0,7,0,"NKL"]
[2418,"Woropiński","Antoni","Łomianki",0,1,0,0,null,null,null,null,null,null,null,null,null,null,null,null,null,null,null,null,null,null,null,null,null,null,null,null,null,null,null,null,null,null,null,null,null,null,null,null,null,null,null,null,null,null,null,null,null,null,null,null,null,null,null,null,null,null,null,null,null,null,null,null,null,null,null,null,null,null,null,null,null,null,null,null,null,null,null,null,null,null,null,null,null,null,null,null,null,null,null,null,null,null,null,null,null,null,null,null,null,null,null,null,null,null,null,null,null,null,null,null,null,null,null,null,null,null,null,null,null,null,null,null,null,null,null,null,null,null,null,null,null,null,null,null,null,null,null,null,null,null,null,null,null,null,null,null,null,null,null,null,null,null,null,null,null,null,null,null,null,null,null,null,null,null,null,null,null,null,null,null,null,null,null,null,null,null,null,null,null,null,null,null,null,null,null,null,null,null,null,null,null,null,"NKL",0,6,0,"12:15:00"]
[2419,"Wójcik","Bernard","Wysokie Maz.",0,1,0,0,null,null,null,null,null,null,null,null,null,null,null,null,null,null,null,null,null,null,null,null,null,null,null,null,null,null,null,null,null,null,null,null,null,null,null,null,null,null,null,null,null,null,null,null,null,null,null,null,null,null,null,null,null,null,null,null,null,null,null,null,null,null,null,null,null,null,null,null,null,null,null,null,null,null,null,null,null,null,null,null,null,null,null,null,null,null,null,null,null,null,null,null,null,null,null,null,null,null,null,null,null,null,null,null,null,null,null,null,null,null,null,null,null,null,null,null,null,null,null,null,null,null,null,null,null,null,null,null,null,null,null,null,null,null,null,null,null,null,null,null,"NKL",0,0,0,"NKL"]
[2420,"Wójcik","Michał","Wysokie Maz.",0,1,0,0,null,null,null,null,null,null,null,null,null,null,null,null,null,null,null,null,null,null,null,null,null,null,null,null,null,null,null,null,null,null,null,null,null,null,null,null,null,null,null,null,null,null,null,null,null,null,null,null,null,null,null,null,null,null,null,null,null,null,null,null,null,null,null,null,null,null,null,null,null,null,null,null,null,null,null,null,null,null,null,null,null,null,null,null,null,null,null,null,null,null,null,null,null,null,null,null,null,null,null,null,null,null,null,null,null,null,null,null,null,null,null,null,null,null,null,null,null,null,null,null,null,null,null,null,null,null,null,null,null,null,null,null,null,null,null,null,null,null,null,null,"NKL",0,0,0,"NKL"]
[2421,"Wysocki","Radosław","Warszawa",0,1,0,0,null,null,null,null,null,null,null,null,null,null,null,null,null,null,null,null,null,null,null,null,null,null,null,null,null,null,null,null,null,null,null,null,null,null,null,null,null,null,null,null,null,null,null,null,null,null,null,null,null,null,null,null,null,null,null,null,null,null,null,null,null,null,null,null,null,null,null,null,null,null,null,null,null,null,null,null,null,null,null,null,null,null,null,null,null,null,null,null,null,null,null,null,null,null,null,null,null,null,null,null,"NKL",0,1,"NKL","NKL"]
[2422,"Wysokińska","Anna","Łuków",0,1,0,0,null,null,null,null,null,null,null,null,null,null,null,null,null,null,null,null,null,null,null,null,null,null,null,null,null,null,null,null,null,null,null,null,null,null,null,null,null,null,null,null,null,null,null,null,null,null,null,null,null,null,null,null,null,null,null,null,null,null,null,null,null,null,null,null,null,null,null,null,null,null,null,null,null,null,null,null,null,null,null,null,null,null,null,null,null,null,null,null,null,null,null,null,null,null,null,null,null,null,null,null,"NKL",0,8,"NKL","NKL"]
[2423,"Zgoła","Tomasz",null,0,1,0,0,null,null,null,null,null,null,null,null,null,null,null,null,null,null,null,null,null,null,null,null,null,null,null,null,null,null,null,null,null,null,null,null,null,null,null,null,null,null,null,null,null,null,null,null,null,null,null,null,null,null,null,null,null,null,null,null,null,null,null,null,null,null,null,null,null,null,null,null,null,null,null,null,null,null,null,null,null,null,null,null,null,null,null,null,null,null,null,null,null,null,null,null,null,null,null,null,null,null,null,null,null,null,null,null,null,null,null,null,null,null,null,null,null,null,null,null,null,null,null,null,null,null,null,null,null,null,null,null,null,null,null,null,null,null,null,null,null,null,null,null,null,null,null,null,null,null,null,null,null,null,null,null,null,null,null,null,null,null,null,null,null,null,null,null,null,null,null,null,null,null,null,null,null,null,null,null,null,null,null,null,null,null,null,null,null,null,null,null,null,null,null,null,null,null,null,"NKL",0,0,0,"NKL"]
[2424,"Zieliński","Mikołaj ",null,0,1,0,0,null,null,null,null,null,null,null,null,null,null,null,null,null,null,null,null,null,null,null,null,null,null,null,null,null,null,null,null,null,null,null,null,null,null,null,null,null,null,null,null,null,null,null,null,null,null,null,null,null,null,null,null,null,null,null,null,null,null,null,null,null,null,null,null,null,null,null,null,null,null,null,null,null,null,null,null,null,null,null,null,null,null,null,null,null,null,null,null,null,null,null,null,null,null,null,null,null,null,null,null,null,null,null,null,null,null,null,null,null,null,null,null,null,null,null,null,null,null,null,null,null,null,null,null,null,null,null,null,null,null,null,null,null,null,null,null,null,null,null,null,null,null,null,null,null,null,null,null,null,null,null,null,null,null,null,null,null,null,null,null,null,null,null,null,null,null,null,null,null,null,null,null,null,null,null,null,null,null,null,null,null,null,null,null,null,null,null,null,null,null,null,null,null,null,null,null,null,null,null,null,null,null,null,null,null,null,null,null,null,null,"NKL",0,10,0,"NKL"]
[2425,"Zysk","Tomasz","Gdynia",0,1,0,0,null,null,null,null,null,null,null,null,null,null,null,null,null,null,null,null,null,null,null,null,null,null,null,null,null,null,null,null,null,null,null,null,null,null,null,null,null,null,null,null,null,null,null,null,null,null,null,null,null,null,null,null,null,null,null,null,null,null,null,null,null,null,null,null,null,null,null,null,null,null,null,null,null,null,null,null,null,null,null,null,null,null,null,null,null,null,null,null,null,null,null,null,null,null,null,null,null,null,null,null,null,null,null,null,null,null,null,null,null,null,null,null,null,null,null,null,null,null,null,null,null,null,null,null,null,null,null,null,null,null,null,null,null,null,null,null,null,null,null,null,"NKL",0,0,0,"NKL"]

{"sheet":"Podsumowanie","index":1,"n_rows":46,"n_cols":9,"rows_kept":46,"cut":false,"hidden":false,"merged":[[1,7,1,8],[1,1,2,1],[1,2,2,2],[1,3,2,3],[1,4,1,5],[1,6,2,6]]}
[null,43,null,null,null,{"$f":"SUM(F4:F46)","v":2425},null,{"$f":"SUM(H4:H46)","v":269},{"$f":"SUM(I4:I46)","v":97}]
[null,"edycja","rok","baza","liczba uczestników",null,"% nowych","liczba Harpaganów"]
[null,null,null,null,"łącznie","nowi",null,"łącznie","nowi"]
[null,"H60",2021,"Ocypel",105,24,{"$f":"F4/E4","v":0.22857142857142856},40,19]
[null,"H59",2020,"Porzecze",93,26,{"$f":"F5/E5","v":0.27956989247311825},14,"-"]
[null,"H58",2019,"Bożepole Wielkie",117,29,{"$f":"F6/E6","v":0.24786324786324787},27,10]
[null,"H57",2019,"Miastko",107,35,{"$f":"F7/E7","v":0.32710280373831774},13,3]
[null,"H56",2018,"Kwidzyn",113,24,{"$f":"F8/E8","v":0.21238938053097345},31,18]
[null,"H55",2018,"Choczewo",88,11,{"$f":"F9/E9","v":0.125},22,10]
[null,"H54",2017,"Szemud",102,16,0.15686274509803921,3,"-"]
[null,"H53",2017,"Cewice",91,16,0.17582417582417584,2,"-"]
[null,"H52",2016,"Człuchów",107,22,0.20560747663551401,15,3]
[null,"H51",2016,"Bytów",97,8,8.247422680412371E-2,6,"-"]
[null,"H50",2015,"Sierakowice",202,62,0.30693069306930693,14,4]
[null,"H49",2015,"Kaliska",124,15,0.12096774193548387,14,4]
[null,"H48",2014,"Lipusz",174,34,0.19540229885057472,10,1]
[null,"H47",2014,"Bożepole Wielkie",157,21,0.13375796178343949,8,2]
[null,"H46",2013,"Kwidzyn",196,27,0.13775510204081631,"-","-"]
[null,"H45",2013,"Kolbudy",194,31,0.15979381443298968,"-","-"]
[null,"H44",2012,"Redzikowo",224,59,0.26339285714285715,"-","-"]
[null,"H43",2012,"Czarna Woda",233,30,0.12875536480686695,3,"-"]
[null,"H42",2011,"Elbląg",360,113,0.31388888888888888,"-","-"]
[null,"H41",2011,"Lipnica",285,63,0.22105263157894736,3,"-"]
[null,"H40",2010,"Kościerzyna",299,66,0.22073578595317725,2,"-"]
[null,"H39",2010,"Gdańsk",282,55,0.19503546099290781,6,2]
[null,"H38",2009,"Reda",302,79,0.26158940397350994,"-","-"]
[null,"H37",2009,"Bytonia",296,77,0.26013513513513514,5,3]
[null,"H36",2008,"Sierakowice",290,103,0.35517241379310344,"-","-"]
[null,"H35",2008,"Łęczyce",216,41,0.18981481481481483,"-","-"]
[null,"H34",2007,"Kobylnica",261,96,0.36781609195402298,"-","-"]
[null,"H33",2007,"Trąbki Wielkie",237,66,0.27848101265822783,3,1]
[null,"H32",2006,"Przodkowo",289,120,0.41522491349480967,8,5]
[null,"H31",2006,"Bożepole Wielkie",196,62,0.31632653061224492,"-","-"]
[null,"H30",2005,"Rytel",202,83,0.41089108910891087,2,"-"]
[null,"H29",2005,"Sierakowice",159,34,0.21383647798742139,"-","-"]
[null,"H28",2004,"Kościerzyna",202,81,0.40099009900990101,10,6]
[null,"H27",2004,"Bytów",173,70,0.40462427745664742,"-","-"]
[null,"H26",2003,"Bytonia",186,82,0.44086021505376344,4,2]
[null,"H25",2003,"Elbląg",133,45,0.33834586466165412,"-","-"]
[null,"H24",2002,"Puck",178,85,0.47752808988764045,"-","-"]
[null,"H23",2002,"Drzewina",153,57,0.37254901960784315,"-","-"]
[null,"H22",2001,"Kwidzyn",202,106,0.52475247524752477,4,4]
[null,"H21",2001,"Lębork",207,136,0.65700483091787443,"-","-"]
[null,"H20",2000,"Lębork",130,91,0.7,"-","-"]
[null,"H19",2000,"Czarna Woda",97,82,0.84536082474226804,"-","-"]
[null,"H18",1999,"Wejherowo",42,42,1,"-","-"]

{"sheet":"TABELA PKT","index":2,"n_rows":204,"n_cols":2,"rows_kept":204,"cut":false,"hidden":true,"merged":[]}
[1,100]
[2,96]
[3,92]
[4,90]
[5,88]
[6,86]
[7,84]
[8,82]
[9,80]
[10,79]
[11,78]
[12,77]
[13,76]
[14,75]
[15,74]
[16,73]
[17,72]
[18,71]
[19,70]
[20,69]
[21,68]
[22,67]
[23,66]
[24,65]
[25,64]
[26,63]
[27,62]
[28,61]
[29,60]
[30,59]
[31,58]
[32,57]
[33,56]
[34,55]
[35,54]
[36,53]
[37,52]
[38,51]
[39,50]
[40,49]
[41,48]
[42,47]
[43,46]
[44,45]
[45,44]
[46,43]
[47,42]
[48,41]
[49,40]
[50,39]
[51,38]
[52,37]
[53,36]
[54,35]
[55,34]
[56,33]
[57,32]
[58,31]
[59,30]
[60,29]
[61,28]
[62,27]
[63,26]
[64,25]
[65,24]
[66,23]
[67,22]
[68,21]
[69,20]
[70,19]
[71,18]
[72,17]
[73,16]
[74,15]
[75,14]
[76,13]
[77,12]
[78,11]
[79,10]
[80,9]
[81,8]
[82,7]
[83,6]
[84,5]
[85,4]
[86,3]
[87,2]
[88,1]
[89,1]
[90,1]
[91,1]
[92,1]
[93,1]
[94,1]
[95,1]
[96,1]
[97,1]
[98,1]
[99,1]
[100,1]
[101,1]
[102,1]
[103,1]
[104,1]
[105,1]
[106,1]
[107,1]
[108,1]
[109,1]
[110,1]
[111,1]
[112,1]
[113,1]
[114,1]
[115,1]
[116,1]
[117,1]
[118,1]
[119,1]
[120,1]
[121,1]
[122,1]
[123,1]
[124,1]
[125,1]
[126,1]
[127,1]
[128,1]
[129,1]
[130,1]
[131,1]
[132,1]
[133,1]
[134,1]
[135,1]
[136,1]
[137,1]
[138,1]
[139,1]
[140,1]
[141,1]
[142,1]
[143,1]
[144,1]
[145,1]
[146,1]
[147,1]
[148,1]
[149,1]
[150,1]
[151,1]
[152,1]
[153,1]
[154,1]
[155,1]
[156,1]
[157,1]
[158,1]
[159,1]
[160,1]
[161,1]
[162,1]
[163,1]
[164,1]
[165,1]
[166,1]
[167,1]
[168,1]
[169,1]
[170,1]
[171,1]
[172,1]
[173,1]
[174,1]
[175,1]
[176,1]
[177,1]
[178,1]
[179,1]
[180,1]
[181,1]
[182,1]
[183,1]
[184,1]
[185,1]
[186,1]
[187,1]
[188,1]
[189,1]
[190,1]
[191,1]
[192,1]
[193,1]
[194,1]
[195,1]
[196,1]
[197,1]
[198,1]
[199,1]
[200,1]
[201,1]
[202,1]
[203,1]
[204,1]